Workbook

Sheet Cover

Sheet Model Index
B9: A. | E9: B. | H9: C. | K9: D.
B11: A. | E11: B. | H11: C. | K11: D.
B13: A. | E13: B. | H13: C.
B15: A. | E15: B. | H15: C. | K15: E.
H17: C.
B20: Version | D20: Date | F20: Description | L20: Approved By:
B21: 1 | D21: 2019-01-02 | F21: Final | L21: Ausgrid

Sheet A. Summary
A1: Asset Summary Information
A3: Data Inputs
B5: Data Inputs
B6: Population | C6: ='A. Age Profile'!L4 -> 9986.58256
B7: Object Types | C7: HV Line
B8: Conditional & Function Failures (count) | C8: 5288
B9: Analysis Period (Years) | C9: 6
B10: Asset RAB Life (Years) | C10: ='D. Risk Index Parameters'!E23 -> 58.03338337
B11: Planned Replacement Cost | C11: ='D. Risk Index Parameters'!E24 -> 0
B12: WACC | C12: 0.039
B15: Loss of Supply Consequence Information
B16: ='C. PoC Summary Stats & Para'!C16 -> Proportion Failures Resulting in Unserved Energy | C16: ='C. PoC Summary Stats & Para'!E16 -> 0.1431394692
B17: Value of Customer Reliability (VCR) per kWh | C17: ='C. PoC Summary Stats & Para'!F14 -> 40.729
B18: Outage Type (HV / LV / CBD) | C18: ='C. PoC Summary Stats & Para'!G18 -> HV
B19: Automatic Protection Time (minutes) | C19: ='C. PoC Summary Stats & Para'!G19 -> 0
B20: Switching Time (hours) | C20: ='C. PoC Summary Stats & Para'!G20 -> 1
B21: Restoration/Repair Time (hours) | C21: ='C. PoC Summary Stats & Para'!G21 -> 4
B22: Automatic Protection % Lost Prior to | C22: ='C. PoC Summary Stats & Para'!G22 -> 0
B23: Switching Load % Lost Prior to | C23: ='C. PoC Summary Stats & Para'!G23 -> 0.95
B24: Restoration/Repair Load % Lost Prior to | C24: ='C. PoC Summary Stats & Para'!G24 -> 0.05
B25: Time without Supply (hours) | C25: ='C. PoC Summary Stats & Para'!G25 -> 0.1646103896
B26: Avg. Value of Energy Unserved (per asset per event) | C26: =AVERAGE('C. Reliability Consequence'!H6:$H$1048576) -> 7241.710342
B29: Finance Consequence Information
B30: Reactive Replacement Cost | C30: ='C. PoC Summary Stats & Para'!E31 -> 50308.16152
B31: Repair Cost | C31: ='C. PoC Summary Stats & Para'!E33 -> 2335.556564
B32: Proportion Replacement | C32: ='C. PoC Summary Stats & Para'!E32 -> 0.2
B33: ='C. PoC Summary Stats & Para'!C35 -> Weighted Replacement / Repair Cost | C33: ='C. PoC Summary Stats & Para'!E35 -> 11930.07755
B34: Maintenance original asset per annum | C34: ='C. PoC Summary Stats & Para'!E38 -> 160
B35: Maintenance replacement asset per annum | C35: ='C. PoC Summary Stats & Para'!E39 -> 160
B36: Maintenance benefit per asset per annum | C36: ='C. PoC Summary Stats & Para'!E40 -> 0
A39: Failure Model Parameters
B41: Weibull Parameters | E41: Crow-AMSAA Parameters
B42: βgood | C42: =IF('B. PoF Summary Stats & Params'!$C$12="C", "Not Applicable", 'B. PoF Summary Stats & Params'!M12) -> Not Applicable | E42: βgood | F42: =IF('B. PoF Summary Stats & Params'!$C$12="W", "Not Applicable", 'B. PoF Summary Stats & Params'!I12) -> 3.245191102
B43: ηgood | C43: =IF('B. PoF Summary Stats & Params'!$C$12="C", "Not Applicable", 'B. PoF Summary Stats & Params'!O12) -> Not Applicable | E43: βaverage | F43: =IF('B. PoF Summary Stats & Params'!$C$12="W", "Not Applicable", 'B. PoF Summary Stats & Params'!I6) -> 3.670728166
B44: βaverage | C44: =IF('B. PoF Summary Stats & Params'!$C$12="C", "Not Applicable", 'B. PoF Summary Stats & Params'!M6) -> Not Applicable | E44: βpoor | F44: =IF('B. PoF Summary Stats & Params'!$C$12="W", "Not Applicable", 'B. PoF Summary Stats & Params'!I10) -> 4.09626523
B45: ηaverage | C45: =IF('B. PoF Summary Stats & Params'!$C$12="C", "Not Applicable", 'B. PoF Summary Stats & Params'!M8) -> Not Applicable | E45: λaverage | F45: =IF('B. PoF Summary Stats & Params'!$C$12="W", "Not Applicable", 'B. PoF Summary Stats & Params'!I8) -> 9.877403088e-07
B46: βpoor | C46: =IF('B. PoF Summary Stats & Params'!$C$12="C", "Not Applicable", 'B. PoF Summary Stats & Params'!M14) -> Not Applicable
B47: ηpoor | C47: =IF('B. PoF Summary Stats & Params'!$C$12="C", "Not Applicable", 'B. PoF Summary Stats & Params'!O14) -> Not Applicable
B48: b (intercept) | C48: =IF('B. PoF Summary Stats & Params'!$C$12="C", "Not Applicable", 'B. PoF Summary Stats & Params'!M10) -> Not Applicable
A51: Adjustments to Probability of Failure (PoF)
B53: PoF Adjustment Fators
B54: =IF(ISBLANK('A. Population Info'!G5), "", 'A. Population Info'!G5) -> Type
B55: =IF(ISBLANK('A. Population Info'!H5), "", 'A. Population Info'!H5) -> Construction Type
B56: =IF(ISBLANK('A. Population Info'!I5), "", 'A. Population Info'!I5) -> Distance_To_Coast_Score
B57: =IF(ISBLANK('A. Population Info'!J5), "", 'A. Population Info'!J5) -> 
B58: =IF(ISBLANK('A. Population Info'!K5), "", 'A. Population Info'!K5) -> 
A61: Adjustments to Probability of Consequence (PoC)
B63: PoC Adjustment Factors
B64: =IF(ISBLANK('A. Population Info'!L5), "", 'A. Population Info'!L5) -> School
B65: =IF(ISBLANK('A. Population Info'!M5), "", 'A. Population Info'!M5) -> Spatial_Risk_Score
B66: =IF(ISBLANK('A. Population Info'!N5), "", 'A. Population Info'!N5) -> 
B67: =IF(ISBLANK('A. Population Info'!O5), "", 'A. Population Info'!O5) -> 
B68: =IF(ISBLANK('A. Population Info'!P5), "", 'A. Population Info'!P5) -> 
A71: Model Calculated Failures
E73: Financial Year | F73: FY19 | G73: FY20 | H73: FY21 | I73: FY22 | J73: FY23 | K73: FY24
E74: Model Calculated Failures | F74: ='B. Asset PoF & Health Index'!J4 -> 881.3333333 | G74: ='B. Asset PoF & Health Index'!K4 -> 937.6060099 | H74: ='B. Asset PoF & Health Index'!L4 -> 996.2222643 | I74: ='B. Asset PoF & Health Index'!M4 -> 1057.224874 | J74: ='B. Asset PoF & Health Index'!N4 -> 1120.656326 | K74: ='B. Asset PoF & Health Index'!O4 -> 1186.558836
A77: Asset Health Index
A116: Asset Risk Index

Sheet A. Population Info
C1: Asset Population Information
A4: Asset Identifier | B4: Asset Age | C4: Asset Length or Number within Asset ID | D4: Reliability Asset ID | E4: Average Energy Usage (kW) | F4: Reliability Asset Voltage | G4: PoF Factor 1 | H4: PoF Factor 2 | I4: PoF Factor 3 | J4: PoF Factor 4 | K4: PoF Factor 5 | L4: Consequence Factor 1 | M4: Consequence Factor 2 | N4: Consequence Factor 3 | O4: Consequence Factor 4 | P4: Consequence Factor 5
G5: Type | H5: Construction Type | I5: Distance_To_Coast_Score | L5: School | M5: Spatial_Risk_Score
A6: ZN00227/013015 | B6: 0 | C6: 1.05891 | D6: ZN00227/013015 | E6: 1080.140275 | F6: HV | G6: Unknown | H6: Insulated | I6: 4 | L6: yes | M6: 3
A7: ZN00270/083591 | B7: 0 | C7: 0.49415 | D7: ZN00270/083591 | E7: 1080.140275 | F7: HV | G7: Unknown | H7: Insulated | I7: 5 | L7: yes | M7: 3
A8: ZN15009/000003 | B8: 0 | C8: 0.023 | D8: ZN15009/000003 | E8: 1080.140275 | F8: HV | G8: Unknown | H8: Bare | I8: 5 | L8: yes | M8: 1
A9: ZN00524/033580 | B9: 1 | C9: 1.09594 | D9: ZN00524/033580 | E9: 1080.140275 | F9: HV | G9: Unknown | H9: Insulated | I9: 1 | L9: no | M9: 3
A10: ZN15011/00006R | B10: 1 | C10: 0.07748 | D10: ZN15011/00006R | E10: 1080.140275 | F10: HV | G10: Unknown | H10: Insulated | I10: 4 | L10: yes | M10: 1
A11: ZN00847/000044 | B11: 1 | C11: 0.05633 | D11: ZN00847/000044 | E11: 1080.140275 | F11: HV | G11: Unknown | H11: Insulated | I11: 3 | L11: yes | M11: 1
A12: ZN00217/033611 | B12: 1 | C12: 0.05112 | D12: ZN00217/033611 | E12: 1080.140275 | F12: HV | G12: Unknown | H12: Insulated | I12: 5 | L12: yes | M12: 3
A13: ZN00507/080925 | B13: 2 | C13: 3.8035 | D13: ZN00507/080925 | E13: 1080.140275 | F13: HV | G13: Unknown | H13: Insulated | I13: 2 | L13: no | M13: 4
A14: ZN00847/000021 | B14: 2 | C14: 0.49469 | D14: ZN00847/000021 | E14: 1080.140275 | F14: HV | G14: Unknown | H14: Insulated | I14: 3 | L14: no | M14: 4
A15: ZN00847/000021 | B15: 2 | C15: 0.3823 | D15: ZN00847/000021 | E15: 1080.140275 | F15: HV | G15: Unknown | H15: Insulated | I15: 3 | L15: yes | M15: 3
A16: ZN00507/080922 | B16: 2 | C16: 0.06502 | D16: ZN00507/080922 | E16: 1080.140275 | F16: HV | G16: Unknown | H16: Insulated | I16: 2 | L16: no | M16: 4
A17: ZN00508/082574 | B17: 3 | C17: 1.64011 | D17: ZN00508/082574 | E17: 1080.140275 | F17: HV | G17: Unknown | H17: Insulated | I17: 3 | L17: no | M17: 3
A18: ZN12570/000029 | B18: 3 | C18: 0.59935 | D18: ZN12570/000029 | E18: 1080.140275 | F18: HV | G18: Unknown | H18: Insulated | I18: 5 | L18: no | M18: 1
A19: ZN00195/000029 | B19: 3 | C19: 0.41936 | D19: ZN00195/000029 | E19: 1080.140275 | F19: HV | G19: Unknown | H19: Bare | I19: 3 | L19: yes | M19: 3
A20: ZN01193/00028L | B20: 3 | C20: 0.32654 | D20: ZN01193/00028L | E20: 1080.140275 | F20: HV | G20: Unknown | H20: Insulated | I20: 5 | L20: yes | M20: 2
A21: ZN00238/034150 | B21: 3 | C21: 0.28478 | D21: ZN00238/034150 | E21: 1080.140275 | F21: HV | G21: Unknown | H21: Insulated | I21: 3 | L21: yes | M21: 1
A22: ZN00807/074181 | B22: 3 | C22: 0.1582 | D22: ZN00807/074181 | E22: 1080.140275 | F22: HV | G22: ACSR | H22: Bare | I22: 1 | L22: yes | M22: 1
A23: ZN00080/000025 | B23: 3 | C23: 0.04407 | D23: ZN00080/000025 | E23: 1080.140275 | F23: HV | G23: Unknown | H23: Insulated | I23: 5 | L23: yes | M23: 1
A24: ZN03154/000017 | B24: 3 | C24: 0.04092 | D24: ZN03154/000017 | E24: 1080.140275 | F24: HV | G24: Unknown | H24: Insulated | I24: 5 | L24: yes | M24: 3
A25: ZN00258/080787 | B25: 3 | C25: 0.03782 | D25: ZN00258/080787 | E25: 1080.140275 | F25: HV | G25: Unknown | H25: Bare | I25: 5 | L25: no | M25: 3
A26: ZN03154/000017 | B26: 3 | C26: 0.03122 | D26: ZN03154/000017 | E26: 1080.140275 | F26: HV | G26: Unknown | H26: Insulated | I26: 5 | L26: no | M26: 3
A27: ZN00221/011897 | B27: 3 | C27: 0.02942 | D27: ZN00221/011897 | E27: 1080.140275 | F27: HV | G27: Unknown | H27: Insulated | I27: 3 | L27: yes | M27: 1
A28: ZN00239/082129 | B28: 3 | C28: 0.02523 | D28: ZN00239/082129 | E28: 1080.140275 | F28: HV | G28: Unknown | H28: Insulated | I28: 5 | L28: no | M28: 4
A29: ZN14891/000010 | B29: 4 | C29: 0.77298 | D29: ZN14891/000010 | E29: 1080.140275 | F29: HV | G29: Unknown | H29: Insulated | I29: 5 | L29: yes | M29: 2
A30: ZN00233/082819 | B30: 4 | C30: 1.08242 | D30: ZN00233/082819 | E30: 1080.140275 | F30: HV | G30: Unknown | H30: Insulated | I30: 3 | L30: yes | M30: 3
A31: ZN02635/000052 | B31: 4 | C31: 0.44551 | D31: ZN02635/000052 | E31: 1080.140275 | F31: HV | G31: Unknown | H31: Insulated | I31: 3 | L31: yes | M31: 4
A32: ZN15014/000022 | B32: 4 | C32: 0.3394 | D32: ZN15014/000022 | E32: 1080.140275 | F32: HV | G32: Unknown | H32: Insulated | I32: 5 | L32: no | M32: 3
A33: ZN00802/082215 | B33: 4 | C33: 0.32879 | D33: ZN00802/082215 | E33: 1080.140275 | F33: HV | G33: Unknown | H33: Insulated | I33: 1 | L33: no | M33: 2
A34: ZN12650/00017R | B34: 4 | C34: 0.24357 | D34: ZN12650/00017R | E34: 1080.140275 | F34: HV | G34: Unknown | H34: Insulated | I34: 5 | L34: no | M34: 3
A35: ZN15014/000022 | B35: 4 | C35: 0.12778 | D35: ZN15014/000022 | E35: 1080.140275 | F35: HV | G35: Unknown | H35: Insulated | I35: 5 | L35: yes | M35: 3
A36: ZN00526/034636 | B36: 4 | C36: 0.07204 | D36: ZN00526/034636 | E36: 1080.140275 | F36: HV | G36: Unknown | H36: Insulated | I36: 1 | L36: no | M36: 2
A37: ZN00811/074234 | B37: 4 | C37: 0.06998 | D37: ZN00811/074234 | E37: 1080.140275 | F37: HV | G37: Unknown | H37: Insulated | I37: 1 | L37: no | M37: 3
A38: ZN10999/000007 | B38: 4 | C38: 0.04451 | D38: ZN10999/000007 | E38: 1080.140275 | F38: HV | G38: Unknown | H38: Insulated | I38: 4 | L38: yes | M38: 3
A39: ZN00813/089061 | B39: 4 | C39: 0.03102 | D39: ZN00813/089061 | E39: 1080.140275 | F39: HV | G39: Unknown | H39: Insulated | I39: 1 | L39: no | M39: 1
A40: ZN00264/81240L | B40: 4 | C40: 0.03002 | D40: ZN00264/81240L | E40: 1080.140275 | F40: HV | G40: Unknown | H40: Insulated | I40: 5 | L40: no | M40: 4
A41: ZN00233/082818 | B41: 4 | C41: 0.0293 | D41: ZN00233/082818 | E41: 1080.140275 | F41: HV | G41: Unknown | H41: Bare | I41: 3 | L41: no | M41: 3
A42: ZN12570/000041 | B42: 4 | C42: 0.3742 | D42: ZN12570/000041 | E42: 1080.140275 | F42: HV | G42: Unknown | H42: Insulated | I42: 5 | L42: yes | M42: 2
A43: ZN12630/000008 | B43: 4 | C43: 0.86726 | D43: ZN12630/000008 | E43: 1080.140275 | F43: HV | G43: Unknown | H43: Insulated | I43: 1 | L43: yes | M43: 4
A44: ZN14143/000017 | B44: 5 | C44: 1.15031 | D44: ZN14143/000017 | E44: 1080.140275 | F44: HV | G44: ACSR | H44: Bare | I44: 5 | L44: no | M44: 3
A45: ZN01673/000006 | B45: 5 | C45: 0.16281 | D45: ZN01673/000006 | E45: 1080.140275 | F45: HV | G45: Unknown | H45: Insulated | I45: 3 | L45: yes | M45: 4
A46: ZN12650/000013 | B46: 5 | C46: 1.06121 | D46: ZN12650/000013 | E46: 1080.140275 | F46: HV | G46: Unknown | H46: Insulated | I46: 5 | L46: yes | M46: 3
A47: ZN00522/083123 | B47: 5 | C47: 0.88322 | D47: ZN00522/083123 | E47: 1080.140275 | F47: HV | G47: Unknown | H47: Insulated | I47: 1 | L47: no | M47: 2
A48: ZN12690/000007 | B48: 5 | C48: 0.52915 | D48: ZN12690/000007 | E48: 1080.140275 | F48: HV | G48: Unknown | H48: Insulated | I48: 4 | L48: no | M48: 3
A49: ZN00129/000064 | B49: 5 | C49: 0.12585 | D49: ZN00129/000064 | E49: 1080.140275 | F49: HV | G49: Unknown | H49: Insulated | I49: 5 | L49: yes | M49: 2
A50: ZN00814/082291 | B50: 5 | C50: 0.05998 | D50: ZN00814/082291 | E50: 1080.140275 | F50: HV | G50: Unknown | H50: Insulated | I50: 1 | L50: no | M50: 3
A51: ZN00807/074184 | B51: 5 | C51: 0.05995 | D51: ZN00807/074184 | E51: 1080.140275 | F51: HV | G51: Unknown | H51: Insulated | I51: 1 | L51: no | M51: 3
A52: ZN00516/048067 | B52: 5 | C52: 0.0588 | D52: ZN00516/048067 | E52: 1080.140275 | F52: HV | G52: Unknown | H52: Insulated | I52: 1 | L52: yes | M52: 2
A53: ZN00513/048059 | B53: 5 | C53: 0.047 | D53: ZN00513/048059 | E53: 1080.140275 | F53: HV | G53: Unknown | H53: Insulated | I53: 1 | L53: no | M53: 4
A54: ZN15002/000006 | B54: 5 | C54: 0.04434 | D54: ZN15002/000006 | E54: 1080.140275 | F54: HV | G54: Unknown | H54: Insulated | I54: 5 | L54: yes | M54: 1
A55: ZN00810/074054 | B55: 5 | C55: 0.03995 | D55: ZN00810/074054 | E55: 1080.140275 | F55: HV | G55: Unknown | H55: Insulated | I55: 1 | L55: no | M55: 2
A56: ZN01850/000041 | B56: 5 | C56: 0.03893 | D56: ZN01850/000041 | E56: 1080.140275 | F56: HV | G56: Unknown | H56: Insulated | I56: 4 | L56: yes | M56: 1
A57: ZN00214/008665 | B57: 5 | C57: 0.03383 | D57: ZN00214/008665 | E57: 1080.140275 | F57: HV | G57: Unknown | H57: Insulated | I57: 4 | L57: yes | M57: 2
A58: ZN10990/000008 | B58: 5 | C58: 0.03363 | D58: ZN10990/000008 | E58: 1080.140275 | F58: HV | G58: Unknown | H58: Insulated | I58: 5 | L58: yes | M58: 3
A59: ZN01285/00020R | B59: 5 | C59: 0.02901 | D59: ZN01285/00020R | E59: 1080.140275 | F59: HV | G59: Unknown | H59: Insulated | I59: 4 | L59: yes | M59: 3
A60: ZN00532/083307 | B60: 5 | C60: 0.74553 | D60: ZN00532/083307 | E60: 1080.140275 | F60: HV | G60: Unknown | H60: Insulated | I60: 4 | L60: no | M60: 1
A61: ZN03154/000012 | B61: 5 | C61: 0.16656 | D61: ZN03154/000012 | E61: 1080.140275 | F61: HV | G61: Unknown | H61: Insulated | I61: 4 | L61: yes | M61: 2
A62: ZN00227/013019 | B62: 6 | C62: 1.44946 | D62: ZN00227/013019 | E62: 1080.140275 | F62: HV | G62: Unknown | H62: Insulated | I62: 2 | L62: no | M62: 2
A63: ZN00227/013019 | B63: 6 | C63: 1.28558 | D63: ZN00227/013019 | E63: 1080.140275 | F63: HV | G63: ACSR | H63: Bare | I63: 3 | L63: no | M63: 3
A64: ZN14144/00004L | B64: 6 | C64: 0.24142 | D64: ZN14144/00004L | E64: 1080.140275 | F64: HV | G64: Unknown | H64: Insulated | I64: 5 | L64: yes | M64: 2
A65: ZN00810/074058 | B65: 6 | C65: 0.42572 | D65: ZN00810/074058 | E65: 1080.140275 | F65: HV | G65: Unknown | H65: Insulated | I65: 1 | L65: no | M65: 2
A66: ZN00524/033580 | B66: 6 | C66: 0.51235 | D66: ZN00524/033580 | E66: 1080.140275 | F66: HV | G66: STEEL MAINS | H66: Bare | I66: 1 | L66: no | M66: 1
A67: ZN00526/034633 | B67: 6 | C67: 7.06977 | D67: ZN00526/034633 | E67: 1080.140275 | F67: HV | G67: Unknown | H67: Insulated | I67: 1 | L67: no | M67: 3
A68: ZN00232/011460 | B68: 6 | C68: 1.30416 | D68: ZN00232/011460 | E68: 1080.140275 | F68: HV | G68: Unknown | H68: Bare | I68: 4 | L68: no | M68: 1
A69: ZN13000/00002L | B69: 6 | C69: 1.05416 | D69: ZN13000/00002L | E69: 1080.140275 | F69: HV | G69: Unknown | H69: Bare | I69: 5 | L69: yes | M69: 1
A70: ZN15015/000015 | B70: 6 | C70: 0.85597 | D70: ZN15015/000015 | E70: 1080.140275 | F70: HV | G70: Unknown | H70: Insulated | I70: 5 | L70: yes | M70: 1
A71: ZN04545/000027 | B71: 6 | C71: 0.57142 | D71: ZN04545/000027 | E71: 1080.140275 | F71: HV | G71: Unknown | H71: Insulated | I71: 5 | L71: yes | M71: 2
A72: ZN00524/033572 | B72: 6 | C72: 0.48125 | D72: ZN00524/033572 | E72: 1080.140275 | F72: HV | G72: Unknown | H72: Insulated | I72: 1 | L72: no | M72: 2
A73: ZN15002/000004 | B73: 6 | C73: 0.24437 | D73: ZN15002/000004 | E73: 1080.140275 | F73: HV | G73: Unknown | H73: Insulated | I73: 5 | L73: yes | M73: 3
A74: ZN00239/082131 | B74: 6 | C74: 0.23236 | D74: ZN00239/082131 | E74: 1080.140275 | F74: HV | G74: Unknown | H74: Insulated | I74: 3 | L74: yes | M74: 3
A75: ZN12630/000011 | B75: 6 | C75: 0.19017 | D75: ZN12630/000011 | E75: 1080.140275 | F75: HV | G75: Unknown | H75: Insulated | I75: 3 | L75: yes | M75: 4
A76: ZN00526/034641 | B76: 6 | C76: 0.16534 | D76: ZN00526/034641 | E76: 1080.140275 | F76: HV | G76: Unknown | H76: Insulated | I76: 1 | L76: no | M76: 4
A77: ZN15008/00009L | B77: 6 | C77: 0.16134 | D77: ZN15008/00009L | E77: 1080.140275 | F77: HV | G77: Unknown | H77: Insulated | I77: 5 | L77: yes | M77: 3
A78: ZN01193/000012 | B78: 6 | C78: 0.15975 | D78: ZN01193/000012 | E78: 1080.140275 | F78: HV | G78: Unknown | H78: Insulated | I78: 4 | L78: yes | M78: 3
A79: ZN12570/00037L | B79: 6 | C79: 0.13916 | D79: ZN12570/00037L | E79: 1080.140275 | F79: HV | G79: Unknown | H79: Insulated | I79: 5 | L79: yes | M79: 2
A80: ZN10990/00002R | B80: 6 | C80: 0.10798 | D80: ZN10990/00002R | E80: 1080.140275 | F80: HV | G80: Unknown | H80: Insulated | I80: 5 | L80: yes | M80: 4
A81: ZN00243/80074L | B81: 6 | C81: 0.09497 | D81: ZN00243/80074L | E81: 1080.140275 | F81: HV | G81: Unknown | H81: Insulated | I81: 5 | L81: no | M81: 3
A82: ZN01290/000012 | B82: 6 | C82: 0.05835 | D82: ZN01290/000012 | E82: 1080.140275 | F82: HV | G82: Unknown | H82: Insulated | I82: 5 | L82: yes | M82: 2
A83: ZN00243/80080L | B83: 6 | C83: 0.05806 | D83: ZN00243/80080L | E83: 1080.140275 | F83: HV | G83: Unknown | H83: Insulated | I83: 5 | L83: no | M83: 4
A84: ZN00526/034633 | B84: 6 | C84: 0.05788 | D84: ZN00526/034633 | E84: 1080.140275 | F84: HV | G84: Unknown | H84: Bare | I84: 1 | L84: yes | M84: 2
A85: ZN15006/00012L | B85: 6 | C85: 0.05296 | D85: ZN15006/00012L | E85: 1080.140275 | F85: HV | G85: Unknown | H85: Insulated | I85: 5 | L85: yes | M85: 1
A86: ZN09037/000016 | B86: 6 | C86: 0.03161 | D86: ZN09037/000016 | E86: 1080.140275 | F86: HV | G86: Unknown | H86: Insulated | I86: 5 | L86: yes | M86: 3
A87: ZN15005/00002R | B87: 6 | C87: 0.76141 | D87: ZN15005/00002R | E87: 1080.140275 | F87: HV | G87: Unknown | H87: Insulated | I87: 4 | L87: yes | M87: 3
A88: ZN00233/082813 | B88: 6 | C88: 1.83289 | D88: ZN00233/082813 | E88: 1080.140275 | F88: HV | G88: Unknown | H88: Bare | I88: 3 | L88: no | M88: 1
A89: ZN00224/080328 | B89: 6 | C89: 0.471 | D89: ZN00224/080328 | E89: 1080.140275 | F89: HV | G89: Unknown | H89: Insulated | I89: 4 | L89: no | M89: 1
A90: ZN12600/000011 | B90: 6 | C90: 0.90387 | D90: ZN12600/000011 | E90: 1080.140275 | F90: HV | G90: Unknown | H90: Insulated | I90: 4 | L90: yes | M90: 3
A91: ZN00239/082129 | B91: 6 | C91: 0.29506 | D91: ZN00239/082129 | E91: 1080.140275 | F91: HV | G91: Unknown | H91: Insulated | I91: 5 | L91: yes | M91: 3
A92: ZN12640/000004 | B92: 7 | C92: 4.71464 | D92: ZN12640/000004 | E92: 1080.140275 | F92: HV | G92: Unknown | H92: Insulated | I92: 5 | L92: no | M92: 1
A93: ZN00801/074121 | B93: 7 | C93: 0.92491 | D93: ZN00801/074121 | E93: 1080.140275 | F93: HV | G93: Unknown | H93: Insulated | I93: 1 | L93: no | M93: 3
A94: ZN12640/000008 | B94: 7 | C94: 0.32385 | D94: ZN12640/000008 | E94: 1080.140275 | F94: HV | G94: Unknown | H94: Insulated | I94: 5 | L94: yes | M94: 3
A95: ZN00508/082578 | B95: 7 | C95: 1.42298 | D95: ZN00508/082578 | E95: 1080.140275 | F95: HV | G95: Unknown | H95: Insulated | I95: 3 | L95: no | M95: 2
A96: ZN14892/000016 | B96: 7 | C96: 1.16314 | D96: ZN14892/000016 | E96: 1080.140275 | F96: HV | G96: Unknown | H96: Insulated | I96: 5 | L96: no | M96: 3
A97: ZN00227/013015 | B97: 7 | C97: 8.77599 | D97: ZN00227/013015 | E97: 1080.140275 | F97: HV | G97: Unknown | H97: Insulated | I97: 3 | L97: no | M97: 3
A98: ZN14892/000016 | B98: 7 | C98: 0.58031 | D98: ZN14892/000016 | E98: 1080.140275 | F98: HV | G98: Unknown | H98: Insulated | I98: 5 | L98: yes | M98: 3
A99: ZN00524/033580 | B99: 7 | C99: 0.73065 | D99: ZN00524/033580 | E99: 1080.140275 | F99: HV | G99: Unknown | H99: Insulated | I99: 1 | L99: yes | M99: 2
A100: ZN00528/083020 | B100: 7 | C100: 0.36734 | D100: ZN00528/083020 | E100: 1080.140275 | F100: HV | G100: Unknown | H100: Insulated | I100: 5 | L100: no | M100: 3
A101: ZN00258/080793 | B101: 7 | C101: 0.28383 | D101: ZN00258/080793 | E101: 1080.140275 | F101: HV | G101: Unknown | H101: Bare | I101: 4 | L101: no | M101: 2
A102: ZN12650/00017R | B102: 7 | C102: 0.27689 | D102: ZN12650/00017R | E102: 1080.140275 | F102: HV | G102: Unknown | H102: Insulated | I102: 5 | L102: yes | M102: 2
A103: ZN03425/000012 | B103: 7 | C103: 0.22484 | D103: ZN03425/000012 | E103: 1080.140275 | F103: HV | G103: Unknown | H103: Insulated | I103: 5 | L103: yes | M103: 4
A104: ZN02635/000038 | B104: 7 | C104: 0.10593 | D104: ZN02635/000038 | E104: 1080.140275 | F104: HV | G104: Unknown | H104: Insulated | I104: 2 | L104: yes | M104: 3
A105: ZN35800/00001L | B105: 7 | C105: 0.07045 | D105: ZN35800/00001L | E105: 1080.140275 | F105: HV | G105: Unknown | H105: Insulated | I105: 4 | L105: yes | M105: 3
A106: ZN00530/081060 | B106: 7 | C106: 0.06655 | D106: ZN00530/081060 | E106: 1080.140275 | F106: HV | G106: Unknown | H106: Bare | I106: 1 | L106: no | M106: 1
A107: ZN00965/000029 | B107: 7 | C107: 0.05438 | D107: ZN00965/000029 | E107: 1080.140275 | F107: HV | G107: Unknown | H107: Insulated | I107: 2 | L107: yes | M107: 4
A108: ZN12690/000017 | B108: 7 | C108: 0.03533 | D108: ZN12690/000017 | E108: 1080.140275 | F108: HV | G108: Unknown | H108: Insulated | I108: 5 | L108: yes | M108: 3
A109: ZN00511/029876 | B109: 7 | C109: 0.02597 | D109: ZN00511/029876 | E109: 1080.140275 | F109: HV | G109: STEEL MAINS | H109: Bare | I109: 3 | L109: no | M109: 3
A110: ZN00523/033501 | B110: 7 | C110: 2.80811 | D110: ZN00523/033501 | E110: 1080.140275 | F110: HV | G110: Unknown | H110: Bare | I110: 1 | L110: yes | M110: 2
A111: ZN00507/080922 | B111: 7 | C111: 0.78309 | D111: ZN00507/080922 | E111: 1080.140275 | F111: HV | G111: ACSR | H111: Bare | I111: 2 | L111: yes | M111: 4
A112: ZN10994/00010L | B112: 7 | C112: 0.56528 | D112: ZN10994/00010L | E112: 1080.140275 | F112: HV | G112: Unknown | H112: Insulated | I112: 5 | L112: yes | M112: 4
A113: ZN00180/000017 | B113: 7 | C113: 0.83532 | D113: ZN00180/000017 | E113: 1080.140275 | F113: HV | G113: Unknown | H113: Insulated | I113: 5 | L113: no | M113: 2
A114: ZN00814/082291 | B114: 7 | C114: 0.88252 | D114: ZN00814/082291 | E114: 1080.140275 | F114: HV | G114: STEEL MAINS | H114: Bare | I114: 1 | L114: no | M114: 3
A115: ZN00229/034989 | B115: 7 | C115: 4.79071 | D115: ZN00229/034989 | E115: 1080.140275 | F115: HV | G115: Unknown | H115: Bare | I115: 3 | L115: no | M115: 2
A116: ZN12630/000003 | B116: 8 | C116: 3.67811 | D116: ZN12630/000003 | E116: 1080.140275 | F116: HV | G116: Unknown | H116: Insulated | I116: 2 | L116: no | M116: 3
A117: ZN00080/000031 | B117: 8 | C117: 0.34533 | D117: ZN00080/000031 | E117: 1080.140275 | F117: HV | G117: Unknown | H117: Insulated | I117: 5 | L117: yes | M117: 2
A118: ZN12640/000004 | B118: 8 | C118: 0.1877 | D118: ZN12640/000004 | E118: 1080.140275 | F118: HV | G118: Unknown | H118: Insulated | I118: 5 | L118: yes | M118: 2
A119: ZN00230/081438 | B119: 8 | C119: 1.6995 | D119: ZN00230/081438 | E119: 1080.140275 | F119: HV | G119: Unknown | H119: Insulated | I119: 5 | L119: no | M119: 1
A120: ZN15013/000002 | B120: 8 | C120: 1.66853 | D120: ZN15013/000002 | E120: 1080.140275 | F120: HV | G120: Unknown | H120: Insulated | I120: 3 | L120: yes | M120: 3
A121: ZN12580/00004L | B121: 8 | C121: 1.20484 | D121: ZN12580/00004L | E121: 1080.140275 | F121: HV | G121: Unknown | H121: Insulated | I121: 4 | L121: yes | M121: 3
A122: ZN00216/010722 | B122: 8 | C122: 0.61076 | D122: ZN00216/010722 | E122: 1080.140275 | F122: HV | G122: Unknown | H122: Insulated | I122: 3 | L122: no | M122: 2
A123: ZN00222/033596 | B123: 8 | C123: 0.588 | D123: ZN00222/033596 | E123: 1080.140275 | F123: HV | G123: Unknown | H123: Insulated | I123: 5 | L123: no | M123: 1
A124: ZN03472/000029 | B124: 8 | C124: 0.21146 | D124: ZN03472/000029 | E124: 1080.140275 | F124: HV | G124: Unknown | H124: Insulated | I124: 3 | L124: yes | M124: 3
A125: ZN02635/000032 | B125: 8 | C125: 0.20985 | D125: ZN02635/000032 | E125: 1080.140275 | F125: HV | G125: Unknown | H125: Insulated | I125: 3 | L125: yes | M125: 3
A126: ZN12690/000021 | B126: 8 | C126: 0.11883 | D126: ZN12690/000021 | E126: 1080.140275 | F126: HV | G126: Unknown | H126: Insulated | I126: 4 | L126: no | M126: 3
A127: ZN35500/00028L | B127: 8 | C127: 0.09885 | D127: ZN35500/00028L | E127: 1080.140275 | F127: HV | G127: Unknown | H127: Insulated | I127: 3 | L127: yes | M127: 1
A128: ZN13000/00011L | B128: 8 | C128: 0.0671 | D128: ZN13000/00011L | E128: 1080.140275 | F128: HV | G128: Unknown | H128: Insulated | I128: 5 | L128: yes | M128: 3
A129: ZN15006/000008 | B129: 8 | C129: 0.06428 | D129: ZN15006/000008 | E129: 1080.140275 | F129: HV | G129: Unknown | H129: Insulated | I129: 4 | L129: yes | M129: 3
A130: ZN00261/081885 | B130: 8 | C130: 0.05888 | D130: ZN00261/081885 | E130: 1080.140275 | F130: HV | G130: Unknown | H130: Insulated | I130: 3 | L130: yes | M130: 1
A131: ZN03425/000033 | B131: 8 | C131: 0.04492 | D131: ZN03425/000033 | E131: 1080.140275 | F131: HV | G131: Unknown | H131: Insulated | I131: 5 | L131: yes | M131: 3
A132: ZN12580/000001 | B132: 8 | C132: 0.03167 | D132: ZN12580/000001 | E132: 1080.140275 | F132: HV | G132: Unknown | H132: Insulated | I132: 5 | L132: no | M132: 4
A133: ZN09118/000003 | B133: 8 | C133: 0.02928 | D133: ZN09118/000003 | E133: 1080.140275 | F133: HV | G133: Unknown | H133: Insulated | I133: 5 | L133: yes | M133: 4
A134: ZN12580/00004L | B134: 8 | C134: 0.01832 | D134: ZN12580/00004L | E134: 1080.140275 | F134: HV | G134: Unknown | H134: Insulated | I134: 4 | L134: no | M134: 3
A135: ZN00216/010722 | B135: 8 | C135: 0.00992 | D135: ZN00216/010722 | E135: 1080.140275 | F135: HV | G135: STEEL MAINS | H135: Bare | I135: 3 | L135: no | M135: 2
A136: ZN36200/00011L | B136: 8 | C136: 0.4647 | D136: ZN36200/00011L | E136: 1080.140275 | F136: HV | G136: Unknown | H136: Insulated | I136: 5 | L136: no | M136: 4
A137: ZN12600/000009 | B137: 8 | C137: 0.58671 | D137: ZN12600/000009 | E137: 1080.140275 | F137: HV | G137: Unknown | H137: Insulated | I137: 4 | L137: yes | M137: 3
A138: ZN12630/00006L | B138: 8 | C138: 0.24822 | D138: ZN12630/00006L | E138: 1080.140275 | F138: HV | G138: Unknown | H138: Insulated | I138: 2 | L138: yes | M138: 3
A139: ZN00243/080083 | B139: 8 | C139: 3.00375 | D139: ZN00243/080083 | E139: 1080.140275 | F139: HV | G139: Unknown | H139: Insulated | I139: 3 | L139: no | M139: 4
A140: ZN00511/029877 | B140: 9 | C140: 0.45565 | D140: ZN00511/029877 | E140: 1080.140275 | F140: HV | G140: Unknown | H140: Insulated | I140: 4 | L140: yes | M140: 2
A141: ZN00513/048051 | B141: 9 | C141: 0.33216 | D141: ZN00513/048051 | E141: 1080.140275 | F141: HV | G141: Unknown | H141: Insulated | I141: 1 | L141: yes | M141: 2
A142: ZN00813/089062 | B142: 9 | C142: 0.17847 | D142: ZN00813/089062 | E142: 1080.140275 | F142: HV | G142: Unknown | H142: Insulated | I142: 1 | L142: no | M142: 1
A143: ZN04545/000044 | B143: 9 | C143: 0.42856 | D143: ZN04545/000044 | E143: 1080.140275 | F143: HV | G143: Unknown | H143: Insulated | I143: 4 | L143: yes | M143: 1
A144: ZN00965/000015 | B144: 9 | C144: 3.17674 | D144: ZN00965/000015 | E144: 1080.140275 | F144: HV | G144: Unknown | H144: Insulated | I144: 2 | L144: yes | M144: 3
A145: ZN04545/000036 | B145: 9 | C145: 0.23145 | D145: ZN04545/000036 | E145: 1080.140275 | F145: HV | G145: Unknown | H145: Insulated | I145: 4 | L145: yes | M145: 2
A146: ZN09252/000025 | B146: 9 | C146: 0.75782 | D146: ZN09252/000025 | E146: 1080.140275 | F146: HV | G146: Unknown | H146: Insulated | I146: 5 | L146: yes | M146: 1
A147: ZN12630/000011 | B147: 9 | C147: 2.41079 | D147: ZN12630/000011 | E147: 1080.140275 | F147: HV | G147: Unknown | H147: Insulated | I147: 2 | L147: no | M147: 4
A148: ZN14891/000008 | B148: 9 | C148: 0.47511 | D148: ZN14891/000008 | E148: 1080.140275 | F148: HV | G148: Unknown | H148: Insulated | I148: 5 | L148: yes | M148: 4
A149: ZN12580/00016R | B149: 9 | C149: 1.0857 | D149: ZN12580/00016R | E149: 1080.140275 | F149: HV | G149: Unknown | H149: Insulated | I149: 5 | L149: yes | M149: 3
A150: ZN00801/074123 | B150: 9 | C150: 0.75646 | D150: ZN00801/074123 | E150: 1080.140275 | F150: HV | G150: Unknown | H150: Insulated | I150: 1 | L150: no | M150: 4
A151: ZN04545/000031 | B151: 9 | C151: 0.62159 | D151: ZN04545/000031 | E151: 1080.140275 | F151: HV | G151: Unknown | H151: Insulated | I151: 3 | L151: yes | M151: 1
A152: ZN12600/000003 | B152: 9 | C152: 0.47501 | D152: ZN12600/000003 | E152: 1080.140275 | F152: HV | G152: Unknown | H152: Insulated | I152: 5 | L152: no | M152: 3
A153: ZN00525/034586 | B153: 9 | C153: 0.42007 | D153: ZN00525/034586 | E153: 1080.140275 | F153: HV | G153: Unknown | H153: Insulated | I153: 2 | L153: no | M153: 1
A154: ZN00264/81240L | B154: 9 | C154: 0.32751 | D154: ZN00264/81240L | E154: 1080.140275 | F154: HV | G154: STEEL MAINS | H154: Bare | I154: 5 | L154: yes | M154: 4
A155: ZN00515/035192 | B155: 9 | C155: 0.32521 | D155: ZN00515/035192 | E155: 1080.140275 | F155: HV | G155: Unknown | H155: Insulated | I155: 1 | L155: no | M155: 3
A156: ZN00965/000011 | B156: 9 | C156: 0.27784 | D156: ZN00965/000011 | E156: 1080.140275 | F156: HV | G156: Unknown | H156: Insulated | I156: 2 | L156: no | M156: 3
A157: ZN36200/00011L | B157: 9 | C157: 0.25508 | D157: ZN36200/00011L | E157: 1080.140275 | F157: HV | G157: Unknown | H157: Insulated | I157: 5 | L157: yes | M157: 4
A158: ZN15004/000009 | B158: 9 | C158: 0.21924 | D158: ZN15004/000009 | E158: 1080.140275 | F158: HV | G158: Unknown | H158: Insulated | I158: 5 | L158: yes | M158: 3
A159: ZN00814/082289 | B159: 9 | C159: 0.20854 | D159: ZN00814/082289 | E159: 1080.140275 | F159: HV | G159: Unknown | H159: Insulated | I159: 1 | L159: yes | M159: 2
A160: ZN00224/080331 | B160: 9 | C160: 0.17546 | D160: ZN00224/080331 | E160: 1080.140275 | F160: HV | G160: Unknown | H160: Insulated | I160: 4 | L160: no | M160: 1
A161: ZN12570/000034 | B161: 9 | C161: 0.16658 | D161: ZN12570/000034 | E161: 1080.140275 | F161: HV | G161: Unknown | H161: Insulated | I161: 5 | L161: no | M161: 2
A162: ZN10991/000013 | B162: 9 | C162: 0.14725 | D162: ZN10991/000013 | E162: 1080.140275 | F162: HV | G162: Unknown | H162: Insulated | I162: 5 | L162: yes | M162: 2
A163: ZN00202/034245 | B163: 9 | C163: 0.11384 | D163: ZN00202/034245 | E163: 1080.140275 | F163: HV | G163: Unknown | H163: Insulated | I163: 5 | L163: yes | M163: 1
A164: ZN00258/080775 | B164: 9 | C164: 0.10156 | D164: ZN00258/080775 | E164: 1080.140275 | F164: HV | G164: Unknown | H164: Insulated | I164: 4 | L164: yes | M164: 3
A165: ZN00229/034995 | B165: 9 | C165: 0.08176 | D165: ZN00229/034995 | E165: 1080.140275 | F165: HV | G165: Unknown | H165: Insulated | I165: 4 | L165: no | M165: 4
A166: ZN00814/082289 | B166: 9 | C166: 0.08174 | D166: ZN00814/082289 | E166: 1080.140275 | F166: HV | G166: Unknown | H166: Insulated | I166: 1 | L166: no | M166: 3
A167: ZN12570/000034 | B167: 9 | C167: 0.0289 | D167: ZN12570/000034 | E167: 1080.140275 | F167: HV | G167: Unknown | H167: Insulated | I167: 5 | L167: yes | M167: 1
A168: ZN00204/082699 | B168: 9 | C168: 0.02781 | D168: ZN00204/082699 | E168: 1080.140275 | F168: HV | G168: Unknown | H168: Insulated | I168: 5 | L168: yes | M168: 1
A169: ZN10999/00016L | B169: 9 | C169: 0.02305 | D169: ZN10999/00016L | E169: 1080.140275 | F169: HV | G169: Unknown | H169: Insulated | I169: 5 | L169: yes | M169: 2
A170: ZN00525/034589 | B170: 9 | C170: 0.012 | D170: ZN00525/034589 | E170: 1080.140275 | F170: HV | G170: Unknown | H170: Bare | I170: 2 | L170: no | M170: 1
A171: ZN00524/033570 | B171: 9 | C171: 7.94285 | D171: ZN00524/033570 | E171: 1080.140275 | F171: HV | G171: Unknown | H171: Insulated | I171: 1 | L171: no | M171: 2
A172: ZN03425/000028 | B172: 9 | C172: 0.98052 | D172: ZN03425/000028 | E172: 1080.140275 | F172: HV | G172: Unknown | H172: Insulated | I172: 5 | L172: yes | M172: 2
A173: ZN00528/083014 | B173: 9 | C173: 0.53544 | D173: ZN00528/083014 | E173: 1080.140275 | F173: HV | G173: Unknown | H173: Insulated | I173: 4 | L173: no | M173: 2
A174: ZN03154/000004 | B174: 9 | C174: 1.22556 | D174: ZN03154/000004 | E174: 1080.140275 | F174: HV | G174: Unknown | H174: Insulated | I174: 4 | L174: yes | M174: 4
A175: ZN00195/000030 | B175: 9 | C175: 0.86041 | D175: ZN00195/000030 | E175: 1080.140275 | F175: HV | G175: Unknown | H175: Insulated | I175: 4 | L175: yes | M175: 1
A176: ZN12630/000008 | B176: 9 | C176: 9.19395 | D176: ZN12630/000008 | E176: 1080.140275 | F176: HV | G176: Unknown | H176: Insulated | I176: 1 | L176: no | M176: 3
A177: ZN12690/000016 | B177: 10 | C177: 0.6721 | D177: ZN12690/000016 | E177: 1080.140275 | F177: HV | G177: Unknown | H177: Insulated | I177: 4 | L177: no | M177: 2
A178: ZN00526/034639 | B178: 10 | C178: 6.46659 | D178: ZN00526/034639 | E178: 1080.140275 | F178: HV | G178: Unknown | H178: Insulated | I178: 1 | L178: no | M178: 3
A179: ZN00511/029877 | B179: 10 | C179: 2.16695 | D179: ZN00511/029877 | E179: 1080.140275 | F179: HV | G179: Unknown | H179: Insulated | I179: 3 | L179: no | M179: 3
A180: ZN00526/034637 | B180: 10 | C180: 6.13376 | D180: ZN00526/034637 | E180: 1080.140275 | F180: HV | G180: Unknown | H180: Insulated | I180: 1 | L180: no | M180: 2
A181: ZN00507/080932 | B181: 10 | C181: 1.83575 | D181: ZN00507/080932 | E181: 1080.140275 | F181: HV | G181: Unknown | H181: Insulated | I181: 1 | L181: no | M181: 3
A182: ZN12650/00012R | B182: 10 | C182: 0.70971 | D182: ZN12650/00012R | E182: 1080.140275 | F182: HV | G182: Unknown | H182: Insulated | I182: 4 | L182: yes | M182: 3
A183: ZN12570/000024 | B183: 10 | C183: 0.55126 | D183: ZN12570/000024 | E183: 1080.140275 | F183: HV | G183: Unknown | H183: Insulated | I183: 5 | L183: yes | M183: 2
A184: ZN00522/083132 | B184: 10 | C184: 3.5365 | D184: ZN00522/083132 | E184: 1080.140275 | F184: HV | G184: Unknown | H184: Insulated | I184: 1 | L184: no | M184: 3
A185: ZN12650/000001 | B185: 10 | C185: 2.0364 | D185: ZN12650/000001 | E185: 1080.140275 | F185: HV | G185: Unknown | H185: Insulated | I185: 3 | L185: yes | M185: 3
A186: ZN15011/00002L | B186: 10 | C186: 1.69012 | D186: ZN15011/00002L | E186: 1080.140275 | F186: HV | G186: Unknown | H186: Insulated | I186: 4 | L186: yes | M186: 3
A187: ZN00238/034147 | B187: 10 | C187: 0.56752 | D187: ZN00238/034147 | E187: 1080.140275 | F187: HV | G187: Unknown | H187: Bare | I187: 3 | L187: no | M187: 3
A188: ZN00243/080077 | B188: 10 | C188: 0.44906 | D188: ZN00243/080077 | E188: 1080.140275 | F188: HV | G188: Unknown | H188: Insulated | I188: 4 | L188: no | M188: 1
A189: ZN14143/000006 | B189: 10 | C189: 0.41417 | D189: ZN14143/000006 | E189: 1080.140275 | F189: HV | G189: Unknown | H189: Insulated | I189: 4 | L189: yes | M189: 1
A190: ZN00238/034148 | B190: 10 | C190: 0.33498 | D190: ZN00238/034148 | E190: 1080.140275 | F190: HV | G190: Unknown | H190: Insulated | I190: 4 | L190: no | M190: 2
A191: ZN14143/000006 | B191: 10 | C191: 0.31143 | D191: ZN14143/000006 | E191: 1080.140275 | F191: HV | G191: Unknown | H191: Insulated | I191: 4 | L191: no | M191: 2
A192: ZN12570/000039 | B192: 10 | C192: 0.29842 | D192: ZN12570/000039 | E192: 1080.140275 | F192: HV | G192: Unknown | H192: Insulated | I192: 5 | L192: yes | M192: 2
A193: ZN00513/048057 | B193: 10 | C193: 0.28972 | D193: ZN00513/048057 | E193: 1080.140275 | F193: HV | G193: Unknown | H193: Insulated | I193: 1 | L193: yes | M193: 1
A194: ZN00265/081648 | B194: 10 | C194: 0.24467 | D194: ZN00265/081648 | E194: 1080.140275 | F194: HV | G194: Unknown | H194: Insulated | I194: 5 | L194: no | M194: 1
A195: ZN00242/081532 | B195: 10 | C195: 0.22465 | D195: ZN00242/081532 | E195: 1080.140275 | F195: HV | G195: Unknown | H195: Bare | I195: 4 | L195: yes | M195: 3
A196: ZN14143/000005 | B196: 10 | C196: 0.21852 | D196: ZN14143/000005 | E196: 1080.140275 | F196: HV | G196: Unknown | H196: Insulated | I196: 4 | L196: yes | M196: 1
A197: ZN00129/000039 | B197: 10 | C197: 0.18157 | D197: ZN00129/000039 | E197: 1080.140275 | F197: HV | G197: Unknown | H197: Insulated | I197: 5 | L197: yes | M197: 3
A198: ZN12640/000001 | B198: 10 | C198: 0.16415 | D198: ZN12640/000001 | E198: 1080.140275 | F198: HV | G198: Unknown | H198: Insulated | I198: 5 | L198: no | M198: 1
A199: ZN00243/080075 | B199: 10 | C199: 0.06802 | D199: ZN00243/080075 | E199: 1080.140275 | F199: HV | G199: Unknown | H199: Insulated | I199: 4 | L199: yes | M199: 4
A200: ZN00513/048052 | B200: 10 | C200: 0.03668 | D200: ZN00513/048052 | E200: 1080.140275 | F200: HV | G200: Unknown | H200: Insulated | I200: 1 | L200: yes | M200: 1
A201: ZN10999/00024L | B201: 10 | C201: 0.03615 | D201: ZN10999/00024L | E201: 1080.140275 | F201: HV | G201: Unknown | H201: Insulated | I201: 4 | L201: yes | M201: 4
A202: ZN00230/081432 | B202: 10 | C202: 7.13953 | D202: ZN00230/081432 | E202: 1080.140275 | F202: HV | G202: Unknown | H202: Insulated | I202: 5 | L202: no | M202: 1
... 1816 more rows

Sheet A. Age Profile
C1: Asset Population Age Profile
A3: Asset Age | B3: Median Age (x) | C3: Freq. of x (f) | D3: Cumulative Freq. of x (F) | E3: f.x | G3: E(f) | H3: Number of Assets | K3: Summary Statisitics | N3: Additional Information for Graph
A4: 0 | B4: 0.5 | C4: =SUMIF('A. Population Info'!$B:$B, A4,'A. Population Info'!$C:$C) -> 1.57606 | D4: =SUM($C$4:C4) -> 1.57606 | E4: =B4*C4 -> 0.78803 | F4: =(B4-$L$6)^2*C4 -> 1981.111875 | G4: =_xlfn.NORM.DIST(B4,$L$6,$L$7,FALSE)*$L$4 -> 3.670877481 | H4: =COUNTIF('A. Population Info'!$B:$B, 'A. Age Profile'!A4) -> 3 | K4: No. of Asset Units (km) | L4: =SUM(C:C) -> 9986.58256
A5: 1 | B5: 1.5 | C5: =SUMIF('A. Population Info'!$B:$B, A5,'A. Population Info'!$C:$C) -> 1.28087 | D5: =SUM($C$4:C5) -> 2.85693 | E5: =B5*C5 -> 1.921305 | F5: 1520.513547 | G5: =_xlfn.NORM.DIST(B5,$L$6,$L$7,FALSE)*$L$4 -> 4.720666447 | H5: =COUNTIF('A. Population Info'!$B:$B, 'A. Age Profile'!A5) -> 4 | K5: Population Bins (n) | L5: =SUM(H:H) -> 2013
A6: 2 | B6: 2.5 | C6: =SUMIF('A. Population Info'!$B:$B, A6,'A. Population Info'!$C:$C) -> 4.74551 | D6: =SUM($C$4:C6) -> 7.60244 | E6: =B6*C6 -> 11.863775 | F6: 5311.107805 | G6: 6.027145825 | H6: =COUNTIF('A. Population Info'!$B:$B, 'A. Age Profile'!A6) -> 4 | K6: Mean Age | L6: =SUM(E:E)/SUM(C:C) -> 35.95423567 | N6: Mean Marker | O6: =MATCH(L6,$A$4:$A$104,1) -> 36 | P6: =P8 -> 468.76664
A7: 3 | B7: 3.5 | C7: =SUMIF('A. Population Info'!$B:$B, A7,'A. Population Info'!$C:$C) -> 3.63702 | D7: =SUM($C$4:C7) -> 11.23946 | E7: 12.72957 | F7: 3830.791016 | G7: 7.640029618 | H7: =COUNTIF('A. Population Info'!$B:$B, 'A. Age Profile'!A7) -> 12 | K7: Standard Deviation | L7: =(SUM(F:F)/SUM(C:C))^0.5 -> 11.78865572
A8: 4 | B8: 4.5 | C8: =SUMIF('A. Population Info'!$B:$B, A8,'A. Population Info'!$C:$C) -> 4.85878 | D8: =SUM($C$4:C8) -> 16.09824 | E8: 21.86451 | F8: 4807.126025 | G8: 9.615089785 | H8: =COUNTIF('A. Population Info'!$B:$B, 'A. Age Profile'!A8) -> 15 | K8: Median Age | L8: =L13+(((L4/2)-L10)/L11)*L12 -> 36.80573835 | N8: Median Marker | O8: =MATCH(L8,$A$4:$A$104,1) -> 37 | P8: =INDEX($C$4:$C$104,O8)+50 -> 468.76664
A9: 5 | B9: 5.5 | C9: =SUMIF('A. Population Info'!$B:$B, A9,'A. Population Info'!$C:$C) -> 5.27006 | D9: =SUM($C$4:C9) -> 21.3683 | E9: 28.98533 | F9: 4887.772325 | G9: 12.0139717 | H9: =COUNTIF('A. Population Info'!$B:$B, 'A. Age Profile'!A9) -> 18 | K9: Mode Age | L9: =MATCH(MAX(C4:C104),C4:C104,0) -> 41
A10: 6 | B10: 6.5 | C10: =SUMIF('A. Population Info'!$B:$B, A10,'A. Population Info'!$C:$C) -> 21.26979 | D10: =SUM($C$4:C10) -> 42.63809 | E10: 138.253635 | F10: 18452.64883 | G10: 14.90372485 | H10: =COUNTIF('A. Population Info'!$B:$B, 'A. Age Profile'!A10) -> 30 | K10: F | L10: =INDEX(D4:D104,MATCH(L4/2,$D$4:$D$104,1)) -> 4655.87494
A11: 7 | B11: 7.5 | C11: =SUMIF('A. Population Info'!$B:$B, A11,'A. Population Info'!$C:$C) -> 30.81301 | D11: =SUM($C$4:C11) -> 73.4511 | E11: 231.097575 | F11: 24947.55411 | G11: 18.35599803 | H11: =COUNTIF('A. Population Info'!$B:$B, 'A. Age Profile'!A11) -> 24 | K11: fm | L11: =INDEX(C4:C104,MATCH(L4/2,$D$4:$D$104,1)+1) -> 418.76664
A12: 8 | B12: 8.5 | C12: =SUMIF('A. Population Info'!$B:$B, A12,'A. Population Info'!$C:$C) -> 15.24951 | D12: =SUM($C$4:C12) -> 88.70061 | E12: 129.620835 | F12: 11494.09028 | G12: 22.44585431 | H12: =COUNTIF('A. Population Info'!$B:$B, 'A. Age Profile'!A12) -> 24 | K12: i | L12: =B6-B5 -> 1
A13: 9 | B13: 9.5 | C13: =SUMIF('A. Population Info'!$B:$B, A13,'A. Population Info'!$C:$C) -> 35.11768 | D13: =SUM($C$4:C13) -> 123.81829 | E13: 333.61796 | F13: 24576.28606 | G13: 27.25017123 | H13: =COUNTIF('A. Population Info'!$B:$B, 'A. Age Profile'!A13) -> 37 | K13: Lm | L13: =INDEX(B4:B104,MATCH(L4/2,$D$4:$D$104,1))+L12/2 -> 36
A14: 10 | B14: 10.5 | C14: =SUMIF('A. Population Info'!$B:$B, A14,'A. Population Info'!$C:$C) -> 74.3468 | D14: =SUM($C$4:C14) -> 198.16509 | E14: 780.6414 | F14: 48170.6384 | G14: 32.84560687 | H14: =COUNTIF('A. Population Info'!$B:$B, 'A. Age Profile'!A14) -> 32
A15: 11 | B15: 11.5 | C15: =SUMIF('A. Population Info'!$B:$B, A15,'A. Population Info'!$C:$C) -> 61.0832 | D15: =SUM($C$4:C15) -> 259.24829 | E15: 702.4568 | F15: 36528.34257 | G15: 39.30613162 | H15: =COUNTIF('A. Population Info'!$B:$B, 'A. Age Profile'!A15) -> 35
A16: 12 | B16: 12.5 | C16: =SUMIF('A. Population Info'!$B:$B, A16,'A. Population Info'!$C:$C) -> 43.30469 | D16: =SUM($C$4:C16) -> 302.55298 | E16: 541.308625 | F16: 23821.96067 | G16: 46.70015012 | H16: =COUNTIF('A. Population Info'!$B:$B, 'A. Age Profile'!A16) -> 25
A17: 13 | B17: 13.5 | C17: =SUMIF('A. Population Info'!$B:$B, A17,'A. Population Info'!$C:$C) -> 23.0214 | D17: =SUM($C$4:C17) -> 325.57438 | E17: 310.7889 | F17: 11607.22181 | G17: 55.08726464 | H17: =COUNTIF('A. Population Info'!$B:$B, 'A. Age Profile'!A17) -> 19
A18: 14 | B18: 14.5 | C18: =SUMIF('A. Population Info'!$B:$B, A18,'A. Population Info'!$C:$C) -> 64.5864 | D18: =SUM($C$4:C18) -> 390.16078 | E18: 936.5028 | F18: 29728.10127 | G18: 64.51476181 | H18: =COUNTIF('A. Population Info'!$B:$B, 'A. Age Profile'!A18) -> 34
A19: 15 | B19: 15.5 | C19: =SUMIF('A. Population Info'!$B:$B, A19,'A. Population Info'!$C:$C) -> 20.1621 | D19: =SUM($C$4:C19) -> 410.32288 | E19: 312.51255 | F19: 8435.333845 | G19: 75.01393489 | H19: =COUNTIF('A. Population Info'!$B:$B, 'A. Age Profile'!A19) -> 22
A20: 16 | B20: 16.5 | C20: =SUMIF('A. Population Info'!$B:$B, A20,'A. Population Info'!$C:$C) -> 120.40843 | D20: =SUM($C$4:C20) -> 530.73131 | E20: 1986.739095 | F20: 45570.65164 | G20: 86.59638349 | H20: =COUNTIF('A. Population Info'!$B:$B, 'A. Age Profile'!A20) -> 20
A21: 17 | B21: 17.5 | C21: =SUMIF('A. Population Info'!$B:$B, A21,'A. Population Info'!$C:$C) -> 23.03365 | D21: =SUM($C$4:C21) -> 553.76496 | E21: 403.088875 | F21: 7844.312528 | G21: 99.2504585 | H21: =COUNTIF('A. Population Info'!$B:$B, 'A. Age Profile'!A21) -> 15
A22: 18 | B22: 18.5 | C22: =SUMIF('A. Population Info'!$B:$B, A22,'A. Population Info'!$C:$C) -> 226.32737 | D22: =SUM($C$4:C22) -> 780.09233 | E22: 4187.056345 | F22: 68950.71084 | G22: 112.9380402 | H22: =COUNTIF('A. Population Info'!$B:$B, 'A. Age Profile'!A22) -> 11
A23: 19 | B23: 19.5 | C23: =SUMIF('A. Population Info'!$B:$B, A23,'A. Population Info'!$C:$C) -> 322.10122 | D23: =SUM($C$4:C23) -> 1102.19355 | E23: 6280.97379 | F23: 87206.28709 | G23: 127.5918492 | H23: =COUNTIF('A. Population Info'!$B:$B, 'A. Age Profile'!A23) -> 18
A24: 20 | B24: 20.5 | C24: =SUMIF('A. Population Info'!$B:$B, A24,'A. Population Info'!$C:$C) -> 115.68646 | D24: =SUM($C$4:C24) -> 1217.88001 | E24: 2371.57243 | F24: 27629.79059 | G24: 143.1134907 | H24: =COUNTIF('A. Population Info'!$B:$B, 'A. Age Profile'!A24) -> 12
A25: 21 | B25: 21.5 | C25: =SUMIF('A. Population Info'!$B:$B, A25,'A. Population Info'!$C:$C) -> 138.0183 | D25: =SUM($C$4:C25) -> 1355.89831 | E25: 2967.39345 | F25: 28835.46349 | G25: 159.3724235 | H25: =COUNTIF('A. Population Info'!$B:$B, 'A. Age Profile'!A25) -> 10
A26: 22 | B26: 22.5 | C26: =SUMIF('A. Population Info'!$B:$B, A26,'A. Population Info'!$C:$C) -> 176.84907 | D26: =SUM($C$4:C26) -> 1532.74738 | E26: 3979.104075 | F26: 32012.59215 | G26: 176.2060183 | H26: =COUNTIF('A. Population Info'!$B:$B, 'A. Age Profile'!A26) -> 13
A27: 23 | B27: 23.5 | C27: =SUMIF('A. Population Info'!$B:$B, A27,'A. Population Info'!$C:$C) -> 277.26155 | D27: =SUM($C$4:C27) -> 1810.00893 | E27: 6515.646425 | F27: 43005.48064 | G27: 193.4208366 | H27: =COUNTIF('A. Population Info'!$B:$B, 'A. Age Profile'!A27) -> 22
A28: 24 | B28: 24.5 | C28: =SUMIF('A. Population Info'!$B:$B, A28,'A. Population Info'!$C:$C) -> 228.23174 | D28: =SUM($C$4:C28) -> 2038.24067 | E28: 5591.67763 | F28: 29943.89354 | G28: 210.795209 | H28: =COUNTIF('A. Population Info'!$B:$B, 'A. Age Profile'!A28) -> 18
A29: 25 | B29: 25.5 | C29: =SUMIF('A. Population Info'!$B:$B, A29,'A. Population Info'!$C:$C) -> 200.18016 | D29: =SUM($C$4:C29) -> 2238.42083 | E29: 5104.59408 | F29: 21877.89855 | G29: 228.0831348 | H29: =COUNTIF('A. Population Info'!$B:$B, 'A. Age Profile'!A29) -> 21
A30: 26 | B30: 26.5 | C30: =SUMIF('A. Population Info'!$B:$B, A30,'A. Population Info'!$C:$C) -> 357.47234 | D30: =SUM($C$4:C30) -> 2595.89317 | E30: 9473.01701 | F30: 31951.79719 | G30: 245.019455 | H30: =COUNTIF('A. Population Info'!$B:$B, 'A. Age Profile'!A30) -> 25
A31: 27 | B31: 27.5 | C31: =SUMIF('A. Population Info'!$B:$B, A31,'A. Population Info'!$C:$C) -> 192.79461 | D31: =SUM($C$4:C31) -> 2788.68778 | E31: 5301.851775 | F31: 13779.82138 | G31: 261.3261827 | H31: =COUNTIF('A. Population Info'!$B:$B, 'A. Age Profile'!A31) -> 16
A32: 28 | B32: 28.5 | C32: =SUMIF('A. Population Info'!$B:$B, A32,'A. Population Info'!$C:$C) -> 223.44474 | D32: =SUM($C$4:C32) -> 3012.13252 | E32: 6368.17509 | F32: 12415.84761 | G32: 276.7198021 | H32: =COUNTIF('A. Population Info'!$B:$B, 'A. Age Profile'!A32) -> 31
A33: 29 | B33: 29.5 | C33: =SUMIF('A. Population Info'!$B:$B, A33,'A. Population Info'!$C:$C) -> 219.8673 | D33: =SUM($C$4:C33) -> 3231.99982 | E33: 6486.08535 | F33: 9159.046868 | G33: 290.9192848 | H33: =COUNTIF('A. Population Info'!$B:$B, 'A. Age Profile'!A33) -> 22
A34: 30 | B34: 30.5 | C34: =SUMIF('A. Population Info'!$B:$B, A34,'A. Population Info'!$C:$C) -> 260.75322 | D34: =SUM($C$4:C34) -> 3492.75304 | E34: 7952.97321 | F34: 7757.065854 | G34: 303.6545148 | H34: =COUNTIF('A. Population Info'!$B:$B, 'A. Age Profile'!A34) -> 27
A35: 31 | B35: 31.5 | C35: =SUMIF('A. Population Info'!$B:$B, A35,'A. Population Info'!$C:$C) -> 113.322 | D35: =SUM($C$4:C35) -> 3606.07504 | E35: 3569.643 | F35: 2248.332888 | G35: 314.674777 | H35: =COUNTIF('A. Population Info'!$B:$B, 'A. Age Profile'!A35) -> 26
A36: 32 | B36: 32.5 | C36: =SUMIF('A. Population Info'!$B:$B, A36,'A. Population Info'!$C:$C) -> 143.61992 | D36: =SUM($C$4:C36) -> 3749.69496 | E36: 4667.6474 | F36: =(B36-$L$6)^2*C36 -> 1713.636126 | G36: 323.7569368 | H36: =COUNTIF('A. Population Info'!$B:$B, 'A. Age Profile'!A36) -> 25
A37: 33 | B37: 33.5 | C37: =SUMIF('A. Population Info'!$B:$B, A37,'A. Population Info'!$C:$C) -> 261.87095 | D37: =SUM($C$4:C37) -> 4011.56591 | E37: 8772.676825 | F37: 1577.320148 | G37: 330.7129418 | H37: =COUNTIF('A. Population Info'!$B:$B, 'A. Age Profile'!A37) -> 31
A38: 34 | B38: 34.5 | C38: =SUMIF('A. Population Info'!$B:$B, A38,'A. Population Info'!$C:$C) -> 414.25636 | D38: =SUM($C$4:C38) -> 4425.82227 | E38: 14291.84442 | F38: 876.069921 | G38: 335.3962923 | H38: =COUNTIF('A. Population Info'!$B:$B, 'A. Age Profile'!A38) -> 18
A39: 35 | B39: 35.5 | C39: =SUMIF('A. Population Info'!$B:$B, A39,'A. Population Info'!$C:$C) -> 230.05267 | D39: =SUM($C$4:C39) -> 4655.87494 | E39: 8166.869785 | F39: 47.46677708 | G39: 337.7071713 | H39: =COUNTIF('A. Population Info'!$B:$B, 'A. Age Profile'!A39) -> 37
A40: 36 | B40: 36.5 | C40: =SUMIF('A. Population Info'!$B:$B, A40,'A. Population Info'!$C:$C) -> 418.76664 | D40: =SUM($C$4:C40) -> 5074.64158 | E40: 15284.98236 | F40: 124.7332895 | G40: 337.5959809 | H40: =COUNTIF('A. Population Info'!$B:$B, 'A. Age Profile'!A40) -> 49
A41: 37 | B41: 37.5 | C41: =SUMIF('A. Population Info'!$B:$B, A41,'A. Population Info'!$C:$C) -> 287.45674 | D41: =SUM($C$4:C41) -> 5362.09832 | E41: 10779.62775 | F41: 686.845504 | G41: 335.0651128 | H41: =COUNTIF('A. Population Info'!$B:$B, 'A. Age Profile'!A41) -> 46
A42: 38 | B42: 38.5 | C42: =SUMIF('A. Population Info'!$B:$B, A42,'A. Population Info'!$C:$C) -> 224.06316 | D42: =SUM($C$4:C42) -> 5586.16148 | E42: 8626.43166 | F42: 1452.134526 | G42: 330.1688624 | H42: =COUNTIF('A. Population Info'!$B:$B, 'A. Age Profile'!A42) -> 53
A43: 39 | B43: 39.5 | C43: =SUMIF('A. Population Info'!$B:$B, A43,'A. Population Info'!$C:$C) -> 390.77512 | D43: =SUM($C$4:C43) -> 5976.9366 | E43: 15435.61724 | F43: 4912.998586 | G43: 323.0114925 | H43: =COUNTIF('A. Population Info'!$B:$B, 'A. Age Profile'!A43) -> 49
A44: 40 | B44: 40.5 | C44: =SUMIF('A. Population Info'!$B:$B, A44,'A. Population Info'!$C:$C) -> 504.12606 | D44: =SUM($C$4:C44) -> 6481.06266 | E44: 20417.10543 | F44: 10417.24748 | G44: 313.7435414 | H44: =COUNTIF('A. Population Info'!$B:$B, 'A. Age Profile'!A44) -> 69
A45: 41 | B45: 41.5 | C45: =SUMIF('A. Population Info'!$B:$B, A45,'A. Population Info'!$C:$C) -> 371.13801 | D45: =SUM($C$4:C45) -> 6852.20067 | E45: 15402.22742 | F45: 11414.53582 | G45: 302.5565596 | H45: =COUNTIF('A. Population Info'!$B:$B, 'A. Age Profile'!A45) -> 62
A46: 42 | B46: 42.5 | C46: =SUMIF('A. Population Info'!$B:$B, A46,'A. Population Info'!$C:$C) -> 274.14026 | D46: =SUM($C$4:C46) -> 7126.34093 | E46: 11650.96105 | F46: 11746.09613 | G46: 289.6765308 | H46: =COUNTIF('A. Population Info'!$B:$B, 'A. Age Profile'!A46) -> 52
A47: 43 | B47: 43.5 | C47: =SUMIF('A. Population Info'!$B:$B, A47,'A. Population Info'!$C:$C) -> 226.20293 | D47: =SUM($C$4:C47) -> 7352.54386 | E47: 9839.827455 | F47: 12879.66896 | G47: 275.3562935 | H47: =COUNTIF('A. Population Info'!$B:$B, 'A. Age Profile'!A47) -> 44
A48: 44 | B48: 44.5 | C48: =SUMIF('A. Population Info'!$B:$B, A48,'A. Population Info'!$C:$C) -> 264.60078 | D48: =SUM($C$4:C48) -> 7617.14464 | E48: 11774.73471 | F48: 19323.81825 | G48: 259.8673169 | H48: =COUNTIF('A. Population Info'!$B:$B, 'A. Age Profile'!A48) -> 49
A49: 45 | B49: 45.5 | C49: =SUMIF('A. Population Info'!$B:$B, A49,'A. Population Info'!$C:$C) -> 174.35284 | D49: =SUM($C$4:C49) -> 7791.49748 | E49: 7933.05422 | F49: 15887.31265 | G49: 243.4912036 | H49: =COUNTIF('A. Population Info'!$B:$B, 'A. Age Profile'!A49) -> 37
A50: 46 | B50: 46.5 | C50: =SUMIF('A. Population Info'!$B:$B, A50,'A. Population Info'!$C:$C) -> 126.91075 | D50: =SUM($C$4:C50) -> 7918.40823 | E50: 5901.349875 | F50: 14114.14369 | G50: 226.5112879 | H50: =COUNTIF('A. Population Info'!$B:$B, 'A. Age Profile'!A50) -> 45
A51: 47 | B51: 47.5 | C51: =SUMIF('A. Population Info'!$B:$B, A51,'A. Population Info'!$C:$C) -> 473.08582 | D51: =SUM($C$4:C51) -> 8391.49405 | E51: 22471.57645 | F51: 63064.55101 | G51: 209.2046731 | H51: =COUNTIF('A. Population Info'!$B:$B, 'A. Age Profile'!A51) -> 53
A52: 48 | B52: 48.5 | C52: =SUMIF('A. Population Info'!$B:$B, A52,'A. Population Info'!$C:$C) -> 208.61886 | D52: =SUM($C$4:C52) -> 8600.11291 | E52: 10118.01471 | F52: 32835.81637 | G52: 191.8350112 | H52: =COUNTIF('A. Population Info'!$B:$B, 'A. Age Profile'!A52) -> 52
A53: 49 | B53: 49.5 | C53: =SUMIF('A. Population Info'!$B:$B, A53,'A. Population Info'!$C:$C) -> 184.69778 | D53: =SUM($C$4:C53) -> 8784.81069 | E53: 9142.54011 | F53: 33889.77664 | G53: 174.6462727 | H53: =COUNTIF('A. Population Info'!$B:$B, 'A. Age Profile'!A53) -> 50
A54: 50 | B54: 50.5 | C54: =SUMIF('A. Population Info'!$B:$B, A54,'A. Population Info'!$C:$C) -> 141.86974 | D54: =SUM($C$4:C54) -> 8926.68043 | E54: 7164.42187 | F54: 30016.69461 | G54: 157.857685 | H54: =COUNTIF('A. Population Info'!$B:$B, 'A. Age Profile'!A54) -> 69
A55: 51 | B55: 51.5 | C55: =SUMIF('A. Population Info'!$B:$B, A55,'A. Population Info'!$C:$C) -> 145.4609 | D55: =SUM($C$4:C55) -> 9072.14133 | E55: 7491.23635 | F55: 35153.65042 | G55: 141.6599541 | H55: =COUNTIF('A. Population Info'!$B:$B, 'A. Age Profile'!A55) -> 48
A56: 52 | B56: 52.5 | C56: =SUMIF('A. Population Info'!$B:$B, A56,'A. Population Info'!$C:$C) -> 173.67489 | D56: =SUM($C$4:C56) -> 9245.81622 | E56: 9117.931725 | F56: 47545.64035 | G56: 126.2128061 | H56: =COUNTIF('A. Population Info'!$B:$B, 'A. Age Profile'!A56) -> 54
A57: 53 | B57: 53.5 | C57: =SUMIF('A. Population Info'!$B:$B, A57,'A. Population Info'!$C:$C) -> 160.53515 | D57: =SUM($C$4:C57) -> 9406.35137 | E57: 8588.630525 | F57: 49421.36334 | G57: 111.643825 | H57: =COUNTIF('A. Population Info'!$B:$B, 'A. Age Profile'!A57) -> 70
A58: 54 | B58: 54.5 | C58: =SUMIF('A. Population Info'!$B:$B, A58,'A. Population Info'!$C:$C) -> 156.99846 | D58: =SUM($C$4:C58) -> 9563.34983 | E58: 8556.41607 | F58: 53998.89415 | G58: 98.04849935 | H58: =COUNTIF('A. Population Info'!$B:$B, 'A. Age Profile'!A58) -> 61
A59: 55 | B59: 55.5 | C59: =SUMIF('A. Population Info'!$B:$B, A59,'A. Population Info'!$C:$C) -> 113.26656 | D59: =SUM($C$4:C59) -> 9676.61639 | E59: 6286.29408 | F59: 43272.00583 | G59: 85.49134576 | H59: =COUNTIF('A. Population Info'!$B:$B, 'A. Age Profile'!A59) -> 60
A60: 56 | B60: 56.5 | C60: =SUMIF('A. Population Info'!$B:$B, A60,'A. Population Info'!$C:$C) -> 113.00716 | D60: =SUM($C$4:C60) -> 9789.62355 | E60: 6384.90454 | F60: 47703.53525 | G60: 74.00793984 | H60: =COUNTIF('A. Population Info'!$B:$B, 'A. Age Profile'!A60) -> 68
A61: 57 | B61: 57.5 | C61: =SUMIF('A. Population Info'!$B:$B, A61,'A. Population Info'!$C:$C) -> 59.70349 | D61: =SUM($C$4:C61) -> 9849.32704 | E61: 3432.950675 | F61: 27715.55178 | G61: 63.60766234 | H61: =COUNTIF('A. Population Info'!$B:$B, 'A. Age Profile'!A61) -> 32
A62: 58 | B62: 58.5 | C62: =SUMIF('A. Population Info'!$B:$B, A62,'A. Population Info'!$C:$C) -> 41.23921 | D62: =SUM($C$4:C62) -> 9890.56625 | E62: 2412.493785 | F62: 20962.36425 | G62: 54.27695985 | H62: =COUNTIF('A. Population Info'!$B:$B, 'A. Age Profile'!A62) -> 28
A63: 59 | B63: 59.5 | C63: =SUMIF('A. Population Info'!$B:$B, A63,'A. Population Info'!$C:$C) -> 26.51893 | D63: =SUM($C$4:C63) -> 9917.08518 | E63: 1577.876335 | F63: 14702.17483 | G63: 45.98292059 | H63: =COUNTIF('A. Population Info'!$B:$B, 'A. Age Profile'!A63) -> 22
A64: 60 | B64: 60.5 | C64: =SUMIF('A. Population Info'!$B:$B, A64,'A. Population Info'!$C:$C) -> 42.07597 | D64: =SUM($C$4:C64) -> 9959.16115 | E64: 2545.596185 | F64: 25350.54247 | G64: 38.67697934 | H64: =COUNTIF('A. Population Info'!$B:$B, 'A. Age Profile'!A64) -> 16
A65: 61 | B65: 61.5 | C65: =SUMIF('A. Population Info'!$B:$B, A65,'A. Population Info'!$C:$C) -> 12.27069 | D65: =SUM($C$4:C65) -> 9971.43184 | E65: 754.647435 | F65: 8007.681428 | G65: 32.29858557 | H65: =COUNTIF('A. Population Info'!$B:$B, 'A. Age Profile'!A65) -> 6
A66: 62 | B66: 62.5 | C66: =SUMIF('A. Population Info'!$B:$B, A66,'A. Population Info'!$C:$C) -> 7.80341 | D66: =SUM($C$4:C66) -> 9979.23525 | E66: 487.713125 | F66: 5498.888262 | G66: 26.77869558 | H66: =COUNTIF('A. Population Info'!$B:$B, 'A. Age Profile'!A66) -> 5
A67: 63 | B67: 63.5 | C67: =SUMIF('A. Population Info'!$B:$B, A67,'A. Population Info'!$C:$C) -> 0 | D67: =SUM($C$4:C67) -> 9979.23525 | E67: 0 | F67: 0 | G67: 22.04297923 | H67: =COUNTIF('A. Population Info'!$B:$B, 'A. Age Profile'!A67) -> 0
A68: 64 | B68: 64.5 | C68: =SUMIF('A. Population Info'!$B:$B, A68,'A. Population Info'!$C:$C) -> 1.11616 | D68: =SUM($C$4:C68) -> 9980.35141 | E68: 71.99232 | F68: =(B68-$L$6)^2*C68 -> 909.5148757 | G68: 18.01466222 | H68: =COUNTIF('A. Population Info'!$B:$B, 'A. Age Profile'!A68) -> 1
A69: 65 | B69: 65.5 | C69: =SUMIF('A. Population Info'!$B:$B, A69,'A. Population Info'!$C:$C) -> 0.1923 | D69: =SUM($C$4:C69) -> 9980.54371 | E69: 12.59565 | F69: 167.8687061 | G69: =_xlfn.NORM.DIST(B69,$L$6,$L$7,FALSE)*$L$4 -> 14.61695515 | H69: =COUNTIF('A. Population Info'!$B:$B, 'A. Age Profile'!A69) -> 2
A70: 66 | B70: 66.5 | C70: =SUMIF('A. Population Info'!$B:$B, A70,'A. Population Info'!$C:$C) -> 1.04184 | D70: =SUM($C$4:C70) -> 9981.58555 | E70: =B70*C70 -> 69.28236 | F70: 972.0822678 | G70: 11.7750474 | H70: =COUNTIF('A. Population Info'!$B:$B, 'A. Age Profile'!A70) -> 2
A71: 67 | B71: 67.5 | C71: =SUMIF('A. Population Info'!$B:$B, A71,'A. Population Info'!$C:$C) -> 0 | D71: =SUM($C$4:C71) -> 9981.58555 | E71: 0 | F71: 0 | G71: 9.417667918 | H71: =COUNTIF('A. Population Info'!$B:$B, 'A. Age Profile'!A71) -> 0
A72: 68 | B72: 68.5 | C72: =SUMIF('A. Population Info'!$B:$B, A72,'A. Population Info'!$C:$C) -> 0 | D72: =SUM($C$4:C72) -> 9981.58555 | E72: 0 | F72: 0 | G72: 7.478233817 | H72: =COUNTIF('A. Population Info'!$B:$B, 'A. Age Profile'!A72) -> 0
A73: 69 | B73: 69.5 | C73: =SUMIF('A. Population Info'!$B:$B, A73,'A. Population Info'!$C:$C) -> 0 | D73: =SUM($C$4:C73) -> 9981.58555 | E73: 0 | F73: 0 | G73: 5.895622478 | H73: =COUNTIF('A. Population Info'!$B:$B, 'A. Age Profile'!A73) -> 0
A74: 70 | B74: 70.5 | C74: =SUMIF('A. Population Info'!$B:$B, A74,'A. Population Info'!$C:$C) -> 0 | D74: =SUM($C$4:C74) -> 9981.58555 | E74: 0 | F74: 0 | G74: 4.614612637 | H74: =COUNTIF('A. Population Info'!$B:$B, 'A. Age Profile'!A74) -> 0
A75: 71 | B75: 71.5 | C75: =SUMIF('A. Population Info'!$B:$B, A75,'A. Population Info'!$C:$C) -> 0 | D75: =SUM($C$4:C75) -> 9981.58555 | E75: 0 | F75: 0 | G75: 3.586045494 | H75: =COUNTIF('A. Population Info'!$B:$B, 'A. Age Profile'!A75) -> 0
A76: 72 | B76: 72.5 | C76: =SUMIF('A. Population Info'!$B:$B, A76,'A. Population Info'!$C:$C) -> 0 | D76: =SUM($C$4:C76) -> 9981.58555 | E76: 0 | F76: 0 | G76: 2.766758785 | H76: =COUNTIF('A. Population Info'!$B:$B, 'A. Age Profile'!A76) -> 0
A77: 73 | B77: 73.5 | C77: =SUMIF('A. Population Info'!$B:$B, A77,'A. Population Info'!$C:$C) -> 0 | D77: =SUM($C$4:C77) -> 9981.58555 | E77: 0 | F77: 0 | G77: 2.119345485 | H77: =COUNTIF('A. Population Info'!$B:$B, 'A. Age Profile'!A77) -> 0
A78: 74 | B78: 74.5 | C78: =SUMIF('A. Population Info'!$B:$B, A78,'A. Population Info'!$C:$C) -> 0 | D78: =SUM($C$4:C78) -> 9981.58555 | E78: 0 | F78: 0 | G78: 1.611785259 | H78: =COUNTIF('A. Population Info'!$B:$B, 'A. Age Profile'!A78) -> 0
A79: 75 | B79: 75.5 | C79: =SUMIF('A. Population Info'!$B:$B, A79,'A. Population Info'!$C:$C) -> 0 | D79: =SUM($C$4:C79) -> 9981.58555 | E79: 0 | F79: 0 | G79: 1.216991538 | H79: =COUNTIF('A. Population Info'!$B:$B, 'A. Age Profile'!A79) -> 0
A80: 76 | B80: 76.5 | C80: =SUMIF('A. Population Info'!$B:$B, A80,'A. Population Info'!$C:$C) -> 0 | D80: =SUM($C$4:C80) -> 9981.58555 | E80: 0 | F80: 0 | G80: 0.9123109692 | H80: =COUNTIF('A. Population Info'!$B:$B, 'A. Age Profile'!A80) -> 0
A81: 77 | B81: 77.5 | C81: =SUMIF('A. Population Info'!$B:$B, A81,'A. Population Info'!$C:$C) -> 4.53105 | D81: =SUM($C$4:C81) -> 9986.1166 | E81: 351.156375 | F81: 7820.821272 | G81: 0.6790053459 | H81: =COUNTIF('A. Population Info'!$B:$B, 'A. Age Profile'!A81) -> 1
A82: 78 | B82: 78.5 | C82: =SUMIF('A. Population Info'!$B:$B, A82,'A. Population Info'!$C:$C) -> 0 | D82: =SUM($C$4:C82) -> 9986.1166 | E82: 0 | F82: 0 | G82: 0.5017396809 | H82: =COUNTIF('A. Population Info'!$B:$B, 'A. Age Profile'!A82) -> 0
A83: 79 | B83: 79.5 | C83: =SUMIF('A. Population Info'!$B:$B, A83,'A. Population Info'!$C:$C) -> 0 | D83: =SUM($C$4:C83) -> 9986.1166 | E83: 0 | F83: 0 | G83: 0.3680939367 | H83: =COUNTIF('A. Population Info'!$B:$B, 'A. Age Profile'!A83) -> 0
A84: 80 | B84: 80.5 | C84: =SUMIF('A. Population Info'!$B:$B, A84,'A. Population Info'!$C:$C) -> 0 | D84: =SUM($C$4:C84) -> 9986.1166 | E84: 0 | F84: 0 | G84: 0.268110509 | H84: =COUNTIF('A. Population Info'!$B:$B, 'A. Age Profile'!A84) -> 0
A85: 81 | B85: 81.5 | C85: =SUMIF('A. Population Info'!$B:$B, A85,'A. Population Info'!$C:$C) -> 0 | D85: =SUM($C$4:C85) -> 9986.1166 | E85: 0 | F85: 0 | G85: 0.1938848921 | H85: =COUNTIF('A. Population Info'!$B:$B, 'A. Age Profile'!A85) -> 0
A86: 82 | B86: 82.5 | C86: =SUMIF('A. Population Info'!$B:$B, A86,'A. Population Info'!$C:$C) -> 0 | D86: =SUM($C$4:C86) -> 9986.1166 | E86: 0 | F86: 0 | G86: 0.1392031492 | H86: =COUNTIF('A. Population Info'!$B:$B, 'A. Age Profile'!A86) -> 0
A87: 83 | B87: 83.5 | C87: =SUMIF('A. Population Info'!$B:$B, A87,'A. Population Info'!$C:$C) -> 0 | D87: =SUM($C$4:C87) -> 9986.1166 | E87: 0 | F87: 0 | G87: 0.09922682843 | H87: =COUNTIF('A. Population Info'!$B:$B, 'A. Age Profile'!A87) -> 0
A88: 84 | B88: 84.5 | C88: =SUMIF('A. Population Info'!$B:$B, A88,'A. Population Info'!$C:$C) -> 0 | D88: =SUM($C$4:C88) -> 9986.1166 | E88: 0 | F88: 0 | G88: 0.07022376644 | H88: =COUNTIF('A. Population Info'!$B:$B, 'A. Age Profile'!A88) -> 0
A89: 85 | B89: 85.5 | C89: =SUMIF('A. Population Info'!$B:$B, A89,'A. Population Info'!$C:$C) -> 0 | D89: =SUM($C$4:C89) -> 9986.1166 | E89: 0 | F89: 0 | G89: 0.04934169752 | H89: =COUNTIF('A. Population Info'!$B:$B, 'A. Age Profile'!A89) -> 0
A90: 86 | B90: 86.5 | C90: =SUMIF('A. Population Info'!$B:$B, A90,'A. Population Info'!$C:$C) -> 0 | D90: =SUM($C$4:C90) -> 9986.1166 | E90: 0 | F90: 0 | G90: 0.0344206457 | H90: =COUNTIF('A. Population Info'!$B:$B, 'A. Age Profile'!A90) -> 0
A91: 87 | B91: 87.5 | C91: =SUMIF('A. Population Info'!$B:$B, A91,'A. Population Info'!$C:$C) -> 0 | D91: =SUM($C$4:C91) -> 9986.1166 | E91: 0 | F91: 0 | G91: 0.02383959638 | H91: =COUNTIF('A. Population Info'!$B:$B, 'A. Age Profile'!A91) -> 0
A92: 88 | B92: 88.5 | C92: =SUMIF('A. Population Info'!$B:$B, A92,'A. Population Info'!$C:$C) -> 0 | D92: =SUM($C$4:C92) -> 9986.1166 | E92: 0 | F92: 0 | G92: 0.01639282272 | H92: =COUNTIF('A. Population Info'!$B:$B, 'A. Age Profile'!A92) -> 0
A93: 89 | B93: 89.5 | C93: =SUMIF('A. Population Info'!$B:$B, A93,'A. Population Info'!$C:$C) -> 0 | D93: =SUM($C$4:C93) -> 9986.1166 | E93: 0 | F93: 0 | G93: 0.0111913775 | H93: =COUNTIF('A. Population Info'!$B:$B, 'A. Age Profile'!A93) -> 0
A94: 90 | B94: 90.5 | C94: =SUMIF('A. Population Info'!$B:$B, A94,'A. Population Info'!$C:$C) -> 0.46596 | D94: =SUM($C$4:C94) -> 9986.58256 | E94: =B94*C94 -> 42.16938 | F94: 1386.34302 | G94: 0.007585571512 | H94: =COUNTIF('A. Population Info'!$B:$B, 'A. Age Profile'!A94) -> 2
A95: 91 | B95: 91.5 | C95: =SUMIF('A. Population Info'!$B:$B, A95,'A. Population Info'!$C:$C) -> 0 | D95: =SUM($C$4:C95) -> 9986.58256 | E95: =B95*C95 -> 0 | F95: 0 | G95: 0.005104674183 | H95: =COUNTIF('A. Population Info'!$B:$B, 'A. Age Profile'!A95) -> 0
A96: 92 | B96: 92.5 | C96: =SUMIF('A. Population Info'!$B:$B, A96,'A. Population Info'!$C:$C) -> 0 | D96: =SUM($C$4:C96) -> 9986.58256 | E96: 0 | F96: 0 | G96: 0.003410536541 | H96: =COUNTIF('A. Population Info'!$B:$B, 'A. Age Profile'!A96) -> 0
A97: 93 | B97: 93.5 | C97: =SUMIF('A. Population Info'!$B:$B, A97,'A. Population Info'!$C:$C) -> 0 | D97: =SUM($C$4:C97) -> 9986.58256 | E97: 0 | F97: 0 | G97: 0.002262311198 | H97: =COUNTIF('A. Population Info'!$B:$B, 'A. Age Profile'!A97) -> 0
A98: 94 | B98: 94.5 | C98: =SUMIF('A. Population Info'!$B:$B, A98,'A. Population Info'!$C:$C) -> 0 | D98: =SUM($C$4:C98) -> 9986.58256 | E98: 0 | F98: 0 | G98: 0.00148989939 | H98: =COUNTIF('A. Population Info'!$B:$B, 'A. Age Profile'!A98) -> 0
A99: 95 | B99: 95.5 | C99: =SUMIF('A. Population Info'!$B:$B, A99,'A. Population Info'!$C:$C) -> 0 | D99: =SUM($C$4:C99) -> 9986.58256 | E99: 0 | F99: 0 | G99: 0.0009741739189 | H99: =COUNTIF('A. Population Info'!$B:$B, 'A. Age Profile'!A99) -> 0
A100: 96 | B100: 96.5 | C100: =SUMIF('A. Population Info'!$B:$B, A100,'A. Population Info'!$C:$C) -> 0 | D100: =SUM($C$4:C100) -> 9986.58256 | E100: 0 | F100: 0 | G100: 0.0006323987648 | H100: =COUNTIF('A. Population Info'!$B:$B, 'A. Age Profile'!A100) -> 0
A101: 97 | B101: 97.5 | C101: =SUMIF('A. Population Info'!$B:$B, A101,'A. Population Info'!$C:$C) -> 0 | D101: =SUM($C$4:C101) -> 9986.58256 | E101: 0 | F101: 0 | G101: 0.0004075871528 | H101: =COUNTIF('A. Population Info'!$B:$B, 'A. Age Profile'!A101) -> 0
A102: 98 | B102: 98.5 | C102: =SUMIF('A. Population Info'!$B:$B, A102,'A. Population Info'!$C:$C) -> 0 | D102: =SUM($C$4:C102) -> 9986.58256 | E102: 0 | F102: 0 | G102: 0.0002608104083 | H102: =COUNTIF('A. Population Info'!$B:$B, 'A. Age Profile'!A102) -> 0
A103: 99 | B103: 99.5 | C103: =SUMIF('A. Population Info'!$B:$B, A103,'A. Population Info'!$C:$C) -> 0 | D103: =SUM($C$4:C103) -> 9986.58256 | E103: 0 | F103: 0 | G103: 0.0001656930569 | H103: =COUNTIF('A. Population Info'!$B:$B, 'A. Age Profile'!A103) -> 0
A104: 100 | B104: 100.5 | C104: =SUMIF('A. Population Info'!$B:$B, A104,'A. Population Info'!$C:$C) -> 0 | D104: =SUM($C$4:C104) -> 9986.58256 | E104: 0 | F104: 0 | G104: 0.0001045101956 | H104: =COUNTIF('A. Population Info'!$B:$B, 'A. Age Profile'!A104) -> 0

Sheet A. Initial PoF
B1: Initial Probability of Failure
A3: Age Label | B3: No. of Asset Units | C3: PoFpoor (Upper 95%) | D3: PoFavg | E3: PoFgood (Lower 95%)
A4: 0 | B4: 1 | C4: =IF('B. PoF Summary Stats & Params'!$C$12="C", B4*'B. PoF Summary Stats & Params'!$I$8*'B. PoF Summary Stats & Params'!$I$10*A4^('B. PoF Summary Stats & Params'!$I$10-1), IF('B. PoF Summary Stats & Params'!$C$12="W", B4*(('B. PoF Summary Stats & Params'!$M$14/'B. PoF Summary Stats & Params'!$O$14)*((A4)/'B. PoF Summary Stats & Params'!$O$14)^('B. PoF Summary Stats & Params'!$M$14-1)), "Choose Model")) -> 0 | D4: =IF('B. PoF Summary Stats & Params'!$C$12="C", B4*'B. PoF Summary Stats & Params'!$I$8*'B. PoF Summary Stats & Params'!$I$6*A4^('B. PoF Summary Stats & Params'!$I$6-1), IF('B. PoF Summary Stats & Params'!$C$12="W", B4*(('B. PoF Summary Stats & Params'!$M$6/'B. PoF Summary Stats & Params'!$M$8)*((A4)/'B. PoF Summary Stats & Params'!$M$8)^('B. PoF Summary Stats & Params'!$M$6-1)), "Choose Model")) -> 0 | E4: =IF('B. PoF Summary Stats & Params'!$C$12="C", B4*'B. PoF Summary Stats & Params'!$I$8*'B. PoF Summary Stats & Params'!$I$12*A4^('B. PoF Summary Stats & Params'!$I$12-1), IF('B. PoF Summary Stats & Params'!$C$12="W", B4*(('B. PoF Summary Stats & Params'!$M$12/'B. PoF Summary Stats & Params'!$O$12)*((A4)/'B. PoF Summary Stats & Params'!$O$12)^('B. PoF Summary Stats & Params'!$M$12-1)), "Choose Model")) -> 0
A5: 1 | B5: 1 | C5: =IF('B. PoF Summary Stats & Params'!$C$12="C", B5*'B. PoF Summary Stats & Params'!$I$8*'B. PoF Summary Stats & Params'!$I$10*A5^('B. PoF Summary Stats & Params'!$I$10-1), IF('B. PoF Summary Stats & Params'!$C$12="W", B5*(('B. PoF Summary Stats & Params'!$M$14/'B. PoF Summary Stats & Params'!$O$14)*((A5)/'B. PoF Summary Stats & Params'!$O$14)^('B. PoF Summary Stats & Params'!$M$14-1)), "Choose Model")) -> 4.046046283e-06 | D5: =IF('B. PoF Summary Stats & Params'!$C$12="C", B5*'B. PoF Summary Stats & Params'!$I$8*'B. PoF Summary Stats & Params'!$I$6*A5^('B. PoF Summary Stats & Params'!$I$6-1), IF('B. PoF Summary Stats & Params'!$C$12="W", B5*(('B. PoF Summary Stats & Params'!$M$6/'B. PoF Summary Stats & Params'!$M$8)*((A5)/'B. PoF Summary Stats & Params'!$M$8)^('B. PoF Summary Stats & Params'!$M$6-1)), "Choose Model")) -> 3.625726172e-06 | E5: =IF('B. PoF Summary Stats & Params'!$C$12="C", B5*'B. PoF Summary Stats & Params'!$I$8*'B. PoF Summary Stats & Params'!$I$12*A5^('B. PoF Summary Stats & Params'!$I$12-1), IF('B. PoF Summary Stats & Params'!$C$12="W", B5*(('B. PoF Summary Stats & Params'!$M$12/'B. PoF Summary Stats & Params'!$O$12)*((A5)/'B. PoF Summary Stats & Params'!$O$12)^('B. PoF Summary Stats & Params'!$M$12-1)), "Choose Model")) -> 3.205406061e-06
A6: 2 | B6: 1 | C6: =IF('B. PoF Summary Stats & Params'!$C$12="C", B6*'B. PoF Summary Stats & Params'!$I$8*'B. PoF Summary Stats & Params'!$I$10*A6^('B. PoF Summary Stats & Params'!$I$10-1), IF('B. PoF Summary Stats & Params'!$C$12="W", B6*(('B. PoF Summary Stats & Params'!$M$14/'B. PoF Summary Stats & Params'!$O$14)*((A6)/'B. PoF Summary Stats & Params'!$O$14)^('B. PoF Summary Stats & Params'!$M$14-1)), "Choose Model")) -> 3.460186881e-05 | D6: =IF('B. PoF Summary Stats & Params'!$C$12="C", B6*'B. PoF Summary Stats & Params'!$I$8*'B. PoF Summary Stats & Params'!$I$6*A6^('B. PoF Summary Stats & Params'!$I$6-1), IF('B. PoF Summary Stats & Params'!$C$12="W", B6*(('B. PoF Summary Stats & Params'!$M$6/'B. PoF Summary Stats & Params'!$M$8)*((A6)/'B. PoF Summary Stats & Params'!$M$8)^('B. PoF Summary Stats & Params'!$M$6-1)), "Choose Model")) -> 2.308682919e-05 | E6: =IF('B. PoF Summary Stats & Params'!$C$12="C", B6*'B. PoF Summary Stats & Params'!$I$8*'B. PoF Summary Stats & Params'!$I$12*A6^('B. PoF Summary Stats & Params'!$I$12-1), IF('B. PoF Summary Stats & Params'!$C$12="W", B6*(('B. PoF Summary Stats & Params'!$M$12/'B. PoF Summary Stats & Params'!$O$12)*((A6)/'B. PoF Summary Stats & Params'!$O$12)^('B. PoF Summary Stats & Params'!$M$12-1)), "Choose Model")) -> 1.519682706e-05
A7: 3 | B7: 1 | C7: =IF('B. PoF Summary Stats & Params'!$C$12="C", B7*'B. PoF Summary Stats & Params'!$I$8*'B. PoF Summary Stats & Params'!$I$10*A7^('B. PoF Summary Stats & Params'!$I$10-1), IF('B. PoF Summary Stats & Params'!$C$12="W", B7*(('B. PoF Summary Stats & Params'!$M$14/'B. PoF Summary Stats & Params'!$O$14)*((A7)/'B. PoF Summary Stats & Params'!$O$14)^('B. PoF Summary Stats & Params'!$M$14-1)), "Choose Model")) -> 0.0001214296653 | D7: =IF('B. PoF Summary Stats & Params'!$C$12="C", B7*'B. PoF Summary Stats & Params'!$I$8*'B. PoF Summary Stats & Params'!$I$6*A7^('B. PoF Summary Stats & Params'!$I$6-1), IF('B. PoF Summary Stats & Params'!$C$12="W", B7*(('B. PoF Summary Stats & Params'!$M$6/'B. PoF Summary Stats & Params'!$M$8)*((A7)/'B. PoF Summary Stats & Params'!$M$8)^('B. PoF Summary Stats & Params'!$M$6-1)), "Choose Model")) -> 6.817987097e-05 | E7: =IF('B. PoF Summary Stats & Params'!$C$12="C", B7*'B. PoF Summary Stats & Params'!$I$8*'B. PoF Summary Stats & Params'!$I$12*A7^('B. PoF Summary Stats & Params'!$I$12-1), IF('B. PoF Summary Stats & Params'!$C$12="W", B7*(('B. PoF Summary Stats & Params'!$M$12/'B. PoF Summary Stats & Params'!$O$12)*((A7)/'B. PoF Summary Stats & Params'!$O$12)^('B. PoF Summary Stats & Params'!$M$12-1)), "Choose Model")) -> 3.776690965e-05
A8: 4 | B8: 1 | C8: =IF('B. PoF Summary Stats & Params'!$C$12="C", B8*'B. PoF Summary Stats & Params'!$I$8*'B. PoF Summary Stats & Params'!$I$10*A8^('B. PoF Summary Stats & Params'!$I$10-1), IF('B. PoF Summary Stats & Params'!$C$12="W", B8*(('B. PoF Summary Stats & Params'!$M$14/'B. PoF Summary Stats & Params'!$O$14)*((A8)/'B. PoF Summary Stats & Params'!$O$14)^('B. PoF Summary Stats & Params'!$M$14-1)), "Choose Model")) -> 0.0002959158747 | D8: =IF('B. PoF Summary Stats & Params'!$C$12="C", B8*'B. PoF Summary Stats & Params'!$I$8*'B. PoF Summary Stats & Params'!$I$6*A8^('B. PoF Summary Stats & Params'!$I$6-1), IF('B. PoF Summary Stats & Params'!$C$12="W", B8*(('B. PoF Summary Stats & Params'!$M$6/'B. PoF Summary Stats & Params'!$M$8)*((A8)/'B. PoF Summary Stats & Params'!$M$8)^('B. PoF Summary Stats & Params'!$M$6-1)), "Choose Model")) -> 0.0001470054981 | E8: =IF('B. PoF Summary Stats & Params'!$C$12="C", B8*'B. PoF Summary Stats & Params'!$I$8*'B. PoF Summary Stats & Params'!$I$12*A8^('B. PoF Summary Stats & Params'!$I$12-1), IF('B. PoF Summary Stats & Params'!$C$12="W", B8*(('B. PoF Summary Stats & Params'!$M$12/'B. PoF Summary Stats & Params'!$O$12)*((A8)/'B. PoF Summary Stats & Params'!$O$12)^('B. PoF Summary Stats & Params'!$M$12-1)), "Choose Model")) -> 7.204814256e-05
A9: 5 | B9: 1 | C9: =IF('B. PoF Summary Stats & Params'!$C$12="C", B9*'B. PoF Summary Stats & Params'!$I$8*'B. PoF Summary Stats & Params'!$I$10*A9^('B. PoF Summary Stats & Params'!$I$10-1), IF('B. PoF Summary Stats & Params'!$C$12="W", B9*(('B. PoF Summary Stats & Params'!$M$14/'B. PoF Summary Stats & Params'!$O$14)*((A9)/'B. PoF Summary Stats & Params'!$O$14)^('B. PoF Summary Stats & Params'!$M$14-1)), "Choose Model")) -> 0.0005905101511 | D9: =IF('B. PoF Summary Stats & Params'!$C$12="C", B9*'B. PoF Summary Stats & Params'!$I$8*'B. PoF Summary Stats & Params'!$I$6*A9^('B. PoF Summary Stats & Params'!$I$6-1), IF('B. PoF Summary Stats & Params'!$C$12="W", B9*(('B. PoF Summary Stats & Params'!$M$6/'B. PoF Summary Stats & Params'!$M$8)*((A9)/'B. PoF Summary Stats & Params'!$M$8)^('B. PoF Summary Stats & Params'!$M$6-1)), "Choose Model")) -> 0.0002667803753 | E9: =IF('B. PoF Summary Stats & Params'!$C$12="C", B9*'B. PoF Summary Stats & Params'!$I$8*'B. PoF Summary Stats & Params'!$I$12*A9^('B. PoF Summary Stats & Params'!$I$12-1), IF('B. PoF Summary Stats & Params'!$C$12="W", B9*(('B. PoF Summary Stats & Params'!$M$12/'B. PoF Summary Stats & Params'!$O$12)*((A9)/'B. PoF Summary Stats & Params'!$O$12)^('B. PoF Summary Stats & Params'!$M$12-1)), "Choose Model")) -> 0.0001189061418
A10: 6 | B10: 1 | C10: =IF('B. PoF Summary Stats & Params'!$C$12="C", B10*'B. PoF Summary Stats & Params'!$I$8*'B. PoF Summary Stats & Params'!$I$10*A10^('B. PoF Summary Stats & Params'!$I$10-1), IF('B. PoF Summary Stats & Params'!$C$12="W", B10*(('B. PoF Summary Stats & Params'!$M$14/'B. PoF Summary Stats & Params'!$O$14)*((A10)/'B. PoF Summary Stats & Params'!$O$14)^('B. PoF Summary Stats & Params'!$M$14-1)), "Choose Model")) -> 0.001038468928 | D10: =IF('B. PoF Summary Stats & Params'!$C$12="C", B10*'B. PoF Summary Stats & Params'!$I$8*'B. PoF Summary Stats & Params'!$I$6*A10^('B. PoF Summary Stats & Params'!$I$6-1), IF('B. PoF Summary Stats & Params'!$C$12="W", B10*(('B. PoF Summary Stats & Params'!$M$6/'B. PoF Summary Stats & Params'!$M$8)*((A10)/'B. PoF Summary Stats & Params'!$M$8)^('B. PoF Summary Stats & Params'!$M$6-1)), "Choose Model")) -> 0.0004341356628 | E10: =IF('B. PoF Summary Stats & Params'!$C$12="C", B10*'B. PoF Summary Stats & Params'!$I$8*'B. PoF Summary Stats & Params'!$I$12*A10^('B. PoF Summary Stats & Params'!$I$12-1), IF('B. PoF Summary Stats & Params'!$C$12="W", B10*(('B. PoF Summary Stats & Params'!$M$12/'B. PoF Summary Stats & Params'!$O$12)*((A10)/'B. PoF Summary Stats & Params'!$O$12)^('B. PoF Summary Stats & Params'!$M$12-1)), "Choose Model")) -> 0.0001790528825
A11: 7 | B11: 1 | C11: =IF('B. PoF Summary Stats & Params'!$C$12="C", B11*'B. PoF Summary Stats & Params'!$I$8*'B. PoF Summary Stats & Params'!$I$10*A11^('B. PoF Summary Stats & Params'!$I$10-1), IF('B. PoF Summary Stats & Params'!$C$12="W", B11*(('B. PoF Summary Stats & Params'!$M$14/'B. PoF Summary Stats & Params'!$O$14)*((A11)/'B. PoF Summary Stats & Params'!$O$14)^('B. PoF Summary Stats & Params'!$M$14-1)), "Choose Model")) -> 0.001673703498 | D11: =IF('B. PoF Summary Stats & Params'!$C$12="C", B11*'B. PoF Summary Stats & Params'!$I$8*'B. PoF Summary Stats & Params'!$I$6*A11^('B. PoF Summary Stats & Params'!$I$6-1), IF('B. PoF Summary Stats & Params'!$C$12="W", B11*(('B. PoF Summary Stats & Params'!$M$6/'B. PoF Summary Stats & Params'!$M$8)*((A11)/'B. PoF Summary Stats & Params'!$M$8)^('B. PoF Summary Stats & Params'!$M$6-1)), "Choose Model")) -> 0.0006552727983 | E11: =IF('B. PoF Summary Stats & Params'!$C$12="C", B11*'B. PoF Summary Stats & Params'!$I$8*'B. PoF Summary Stats & Params'!$I$12*A11^('B. PoF Summary Stats & Params'!$I$12-1), IF('B. PoF Summary Stats & Params'!$C$12="W", B11*(('B. PoF Summary Stats & Params'!$M$12/'B. PoF Summary Stats & Params'!$O$12)*((A11)/'B. PoF Summary Stats & Params'!$O$12)^('B. PoF Summary Stats & Params'!$M$12-1)), "Choose Model")) -> 0.0002530985477
A12: 8 | B12: 1 | C12: =IF('B. PoF Summary Stats & Params'!$C$12="C", B12*'B. PoF Summary Stats & Params'!$I$8*'B. PoF Summary Stats & Params'!$I$10*A12^('B. PoF Summary Stats & Params'!$I$10-1), IF('B. PoF Summary Stats & Params'!$C$12="W", B12*(('B. PoF Summary Stats & Params'!$M$14/'B. PoF Summary Stats & Params'!$O$14)*((A12)/'B. PoF Summary Stats & Params'!$O$14)^('B. PoF Summary Stats & Params'!$M$14-1)), "Choose Model")) -> 0.002530678484 | D12: =IF('B. PoF Summary Stats & Params'!$C$12="C", B12*'B. PoF Summary Stats & Params'!$I$8*'B. PoF Summary Stats & Params'!$I$6*A12^('B. PoF Summary Stats & Params'!$I$6-1), IF('B. PoF Summary Stats & Params'!$C$12="W", B12*(('B. PoF Summary Stats & Params'!$M$6/'B. PoF Summary Stats & Params'!$M$8)*((A12)/'B. PoF Summary Stats & Params'!$M$8)^('B. PoF Summary Stats & Params'!$M$6-1)), "Choose Model")) -> 0.00093605823 | E12: =IF('B. PoF Summary Stats & Params'!$C$12="C", B12*'B. PoF Summary Stats & Params'!$I$8*'B. PoF Summary Stats & Params'!$I$12*A12^('B. PoF Summary Stats & Params'!$I$12-1), IF('B. PoF Summary Stats & Params'!$C$12="W", B12*(('B. PoF Summary Stats & Params'!$M$12/'B. PoF Summary Stats & Params'!$O$12)*((A12)/'B. PoF Summary Stats & Params'!$O$12)^('B. PoF Summary Stats & Params'!$M$12-1)), "Choose Model")) -> 0.0003415801748
A13: 9 | B13: 1 | C13: =IF('B. PoF Summary Stats & Params'!$C$12="C", B13*'B. PoF Summary Stats & Params'!$I$8*'B. PoF Summary Stats & Params'!$I$10*A13^('B. PoF Summary Stats & Params'!$I$10-1), IF('B. PoF Summary Stats & Params'!$C$12="W", B13*(('B. PoF Summary Stats & Params'!$M$14/'B. PoF Summary Stats & Params'!$O$14)*((A13)/'B. PoF Summary Stats & Params'!$O$14)^('B. PoF Summary Stats & Params'!$M$14-1)), "Choose Model")) -> 0.003644338839 | D13: =IF('B. PoF Summary Stats & Params'!$C$12="C", B13*'B. PoF Summary Stats & Params'!$I$8*'B. PoF Summary Stats & Params'!$I$6*A13^('B. PoF Summary Stats & Params'!$I$6-1), IF('B. PoF Summary Stats & Params'!$C$12="W", B13*(('B. PoF Summary Stats & Params'!$M$6/'B. PoF Summary Stats & Params'!$M$8)*((A13)/'B. PoF Summary Stats & Params'!$M$8)^('B. PoF Summary Stats & Params'!$M$6-1)), "Choose Model")) -> 0.001282086563 | E13: =IF('B. PoF Summary Stats & Params'!$C$12="C", B13*'B. PoF Summary Stats & Params'!$I$8*'B. PoF Summary Stats & Params'!$I$12*A13^('B. PoF Summary Stats & Params'!$I$12-1), IF('B. PoF Summary Stats & Params'!$C$12="W", B13*(('B. PoF Summary Stats & Params'!$M$12/'B. PoF Summary Stats & Params'!$O$12)*((A13)/'B. PoF Summary Stats & Params'!$O$12)^('B. PoF Summary Stats & Params'!$M$12-1)), "Choose Model")) -> 0.0004449793371
A14: 10 | B14: 1 | C14: =IF('B. PoF Summary Stats & Params'!$C$12="C", B14*'B. PoF Summary Stats & Params'!$I$8*'B. PoF Summary Stats & Params'!$I$10*A14^('B. PoF Summary Stats & Params'!$I$10-1), IF('B. PoF Summary Stats & Params'!$C$12="W", B14*(('B. PoF Summary Stats & Params'!$M$14/'B. PoF Summary Stats & Params'!$O$14)*((A14)/'B. PoF Summary Stats & Params'!$O$14)^('B. PoF Summary Stats & Params'!$M$14-1)), "Choose Model")) -> 0.005050054633 | D14: =IF('B. PoF Summary Stats & Params'!$C$12="C", B14*'B. PoF Summary Stats & Params'!$I$8*'B. PoF Summary Stats & Params'!$I$6*A14^('B. PoF Summary Stats & Params'!$I$6-1), IF('B. PoF Summary Stats & Params'!$C$12="W", B14*(('B. PoF Summary Stats & Params'!$M$6/'B. PoF Summary Stats & Params'!$M$8)*((A14)/'B. PoF Summary Stats & Params'!$M$8)^('B. PoF Summary Stats & Params'!$M$6-1)), "Choose Model")) -> 0.001698725348 | E14: =IF('B. PoF Summary Stats & Params'!$C$12="C", B14*'B. PoF Summary Stats & Params'!$I$8*'B. PoF Summary Stats & Params'!$I$12*A14^('B. PoF Summary Stats & Params'!$I$12-1), IF('B. PoF Summary Stats & Params'!$C$12="W", B14*(('B. PoF Summary Stats & Params'!$M$12/'B. PoF Summary Stats & Params'!$O$12)*((A14)/'B. PoF Summary Stats & Params'!$O$12)^('B. PoF Summary Stats & Params'!$M$12-1)), "Choose Model")) -> 0.0005637339046
A15: 11 | B15: 1 | C15: =IF('B. PoF Summary Stats & Params'!$C$12="C", B15*'B. PoF Summary Stats & Params'!$I$8*'B. PoF Summary Stats & Params'!$I$10*A15^('B. PoF Summary Stats & Params'!$I$10-1), IF('B. PoF Summary Stats & Params'!$C$12="W", B15*(('B. PoF Summary Stats & Params'!$M$14/'B. PoF Summary Stats & Params'!$O$14)*((A15)/'B. PoF Summary Stats & Params'!$O$14)^('B. PoF Summary Stats & Params'!$M$14-1)), "Choose Model")) -> 0.00678357777 | D15: =IF('B. PoF Summary Stats & Params'!$C$12="C", B15*'B. PoF Summary Stats & Params'!$I$8*'B. PoF Summary Stats & Params'!$I$6*A15^('B. PoF Summary Stats & Params'!$I$6-1), IF('B. PoF Summary Stats & Params'!$C$12="W", B15*(('B. PoF Summary Stats & Params'!$M$6/'B. PoF Summary Stats & Params'!$M$8)*((A15)/'B. PoF Summary Stats & Params'!$M$8)^('B. PoF Summary Stats & Params'!$M$6-1)), "Choose Model")) -> 0.002191148326 | E15: =IF('B. PoF Summary Stats & Params'!$C$12="C", B15*'B. PoF Summary Stats & Params'!$I$8*'B. PoF Summary Stats & Params'!$I$12*A15^('B. PoF Summary Stats & Params'!$I$12-1), IF('B. PoF Summary Stats & Params'!$C$12="W", B15*(('B. PoF Summary Stats & Params'!$M$12/'B. PoF Summary Stats & Params'!$O$12)*((A15)/'B. PoF Summary Stats & Params'!$O$12)^('B. PoF Summary Stats & Params'!$M$12-1)), "Choose Model")) -> 0.0006982463011
A16: 12 | B16: 1 | C16: =IF('B. PoF Summary Stats & Params'!$C$12="C", B16*'B. PoF Summary Stats & Params'!$I$8*'B. PoF Summary Stats & Params'!$I$10*A16^('B. PoF Summary Stats & Params'!$I$10-1), IF('B. PoF Summary Stats & Params'!$C$12="W", B16*(('B. PoF Summary Stats & Params'!$M$14/'B. PoF Summary Stats & Params'!$O$14)*((A16)/'B. PoF Summary Stats & Params'!$O$14)^('B. PoF Summary Stats & Params'!$M$14-1)), "Choose Model")) -> 0.008881007064 | D16: =IF('B. PoF Summary Stats & Params'!$C$12="C", B16*'B. PoF Summary Stats & Params'!$I$8*'B. PoF Summary Stats & Params'!$I$6*A16^('B. PoF Summary Stats & Params'!$I$6-1), IF('B. PoF Summary Stats & Params'!$C$12="W", B16*(('B. PoF Summary Stats & Params'!$M$6/'B. PoF Summary Stats & Params'!$M$8)*((A16)/'B. PoF Summary Stats & Params'!$M$8)^('B. PoF Summary Stats & Params'!$M$6-1)), "Choose Model")) -> 0.002764360962 | E16: =IF('B. PoF Summary Stats & Params'!$C$12="C", B16*'B. PoF Summary Stats & Params'!$I$8*'B. PoF Summary Stats & Params'!$I$12*A16^('B. PoF Summary Stats & Params'!$I$12-1), IF('B. PoF Summary Stats & Params'!$C$12="W", B16*(('B. PoF Summary Stats & Params'!$M$12/'B. PoF Summary Stats & Params'!$O$12)*((A16)/'B. PoF Summary Stats & Params'!$O$12)^('B. PoF Summary Stats & Params'!$M$12-1)), "Choose Model")) -> 0.0008488895442
A17: 13 | B17: 1 | C17: =IF('B. PoF Summary Stats & Params'!$C$12="C", B17*'B. PoF Summary Stats & Params'!$I$8*'B. PoF Summary Stats & Params'!$I$10*A17^('B. PoF Summary Stats & Params'!$I$10-1), IF('B. PoF Summary Stats & Params'!$C$12="W", B17*(('B. PoF Summary Stats & Params'!$M$14/'B. PoF Summary Stats & Params'!$O$14)*((A17)/'B. PoF Summary Stats & Params'!$O$14)^('B. PoF Summary Stats & Params'!$M$14-1)), "Choose Model")) -> 0.01137875945 | D17: =IF('B. PoF Summary Stats & Params'!$C$12="C", B17*'B. PoF Summary Stats & Params'!$I$8*'B. PoF Summary Stats & Params'!$I$6*A17^('B. PoF Summary Stats & Params'!$I$6-1), IF('B. PoF Summary Stats & Params'!$C$12="W", B17*(('B. PoF Summary Stats & Params'!$M$6/'B. PoF Summary Stats & Params'!$M$8)*((A17)/'B. PoF Summary Stats & Params'!$M$8)^('B. PoF Summary Stats & Params'!$M$6-1)), "Choose Model")) -> 0.003423220605 | E17: =IF('B. PoF Summary Stats & Params'!$C$12="C", B17*'B. PoF Summary Stats & Params'!$I$8*'B. PoF Summary Stats & Params'!$I$12*A17^('B. PoF Summary Stats & Params'!$I$12-1), IF('B. PoF Summary Stats & Params'!$C$12="W", B17*(('B. PoF Summary Stats & Params'!$M$12/'B. PoF Summary Stats & Params'!$O$12)*((A17)/'B. PoF Summary Stats & Params'!$O$12)^('B. PoF Summary Stats & Params'!$M$12-1)), "Choose Model")) -> 0.00101601181
A18: 14 | B18: 1 | C18: =IF('B. PoF Summary Stats & Params'!$C$12="C", B18*'B. PoF Summary Stats & Params'!$I$8*'B. PoF Summary Stats & Params'!$I$10*A18^('B. PoF Summary Stats & Params'!$I$10-1), IF('B. PoF Summary Stats & Params'!$C$12="W", B18*(('B. PoF Summary Stats & Params'!$M$14/'B. PoF Summary Stats & Params'!$O$14)*((A18)/'B. PoF Summary Stats & Params'!$O$14)^('B. PoF Summary Stats & Params'!$M$14-1)), "Choose Model")) -> 0.01431354582 | D18: =IF('B. PoF Summary Stats & Params'!$C$12="C", B18*'B. PoF Summary Stats & Params'!$I$8*'B. PoF Summary Stats & Params'!$I$6*A18^('B. PoF Summary Stats & Params'!$I$6-1), IF('B. PoF Summary Stats & Params'!$C$12="W", B18*(('B. PoF Summary Stats & Params'!$M$6/'B. PoF Summary Stats & Params'!$M$8)*((A18)/'B. PoF Summary Stats & Params'!$M$8)^('B. PoF Summary Stats & Params'!$M$6-1)), "Choose Model")) -> 0.004172452757 | E18: =IF('B. PoF Summary Stats & Params'!$C$12="C", B18*'B. PoF Summary Stats & Params'!$I$8*'B. PoF Summary Stats & Params'!$I$12*A18^('B. PoF Summary Stats & Params'!$I$12-1), IF('B. PoF Summary Stats & Params'!$C$12="W", B18*(('B. PoF Summary Stats & Params'!$M$12/'B. PoF Summary Stats & Params'!$O$12)*((A18)/'B. PoF Summary Stats & Params'!$O$12)^('B. PoF Summary Stats & Params'!$M$12-1)), "Choose Model")) -> 0.001199939972
A19: 15 | B19: 1 | C19: =IF('B. PoF Summary Stats & Params'!$C$12="C", B19*'B. PoF Summary Stats & Params'!$I$8*'B. PoF Summary Stats & Params'!$I$10*A19^('B. PoF Summary Stats & Params'!$I$10-1), IF('B. PoF Summary Stats & Params'!$C$12="W", B19*(('B. PoF Summary Stats & Params'!$M$14/'B. PoF Summary Stats & Params'!$O$14)*((A19)/'B. PoF Summary Stats & Params'!$O$14)^('B. PoF Summary Stats & Params'!$M$14-1)), "Choose Model")) -> 0.01772235041 | D19: =IF('B. PoF Summary Stats & Params'!$C$12="C", B19*'B. PoF Summary Stats & Params'!$I$8*'B. PoF Summary Stats & Params'!$I$6*A19^('B. PoF Summary Stats & Params'!$I$6-1), IF('B. PoF Summary Stats & Params'!$C$12="W", B19*(('B. PoF Summary Stats & Params'!$M$6/'B. PoF Summary Stats & Params'!$M$8)*((A19)/'B. PoF Summary Stats & Params'!$M$8)^('B. PoF Summary Stats & Params'!$M$6-1)), "Choose Model")) -> 0.005016664442 | E19: =IF('B. PoF Summary Stats & Params'!$C$12="C", B19*'B. PoF Summary Stats & Params'!$I$8*'B. PoF Summary Stats & Params'!$I$12*A19^('B. PoF Summary Stats & Params'!$I$12-1), IF('B. PoF Summary Stats & Params'!$C$12="W", B19*(('B. PoF Summary Stats & Params'!$M$12/'B. PoF Summary Stats & Params'!$O$12)*((A19)/'B. PoF Summary Stats & Params'!$O$12)^('B. PoF Summary Stats & Params'!$M$12-1)), "Choose Model")) -> 0.001400982412
A20: 16 | B20: 1 | C20: =IF('B. PoF Summary Stats & Params'!$C$12="C", B20*'B. PoF Summary Stats & Params'!$I$8*'B. PoF Summary Stats & Params'!$I$10*A20^('B. PoF Summary Stats & Params'!$I$10-1), IF('B. PoF Summary Stats & Params'!$C$12="W", B20*(('B. PoF Summary Stats & Params'!$M$14/'B. PoF Summary Stats & Params'!$O$14)*((A20)/'B. PoF Summary Stats & Params'!$O$14)^('B. PoF Summary Stats & Params'!$M$14-1)), "Choose Model")) -> 0.02164241306 | D20: =IF('B. PoF Summary Stats & Params'!$C$12="C", B20*'B. PoF Summary Stats & Params'!$I$8*'B. PoF Summary Stats & Params'!$I$6*A20^('B. PoF Summary Stats & Params'!$I$6-1), IF('B. PoF Summary Stats & Params'!$C$12="W", B20*(('B. PoF Summary Stats & Params'!$M$6/'B. PoF Summary Stats & Params'!$M$8)*((A20)/'B. PoF Summary Stats & Params'!$M$8)^('B. PoF Summary Stats & Params'!$M$6-1)), "Choose Model")) -> 0.005960355371 | E20: =IF('B. PoF Summary Stats & Params'!$C$12="C", B20*'B. PoF Summary Stats & Params'!$I$8*'B. PoF Summary Stats & Params'!$I$12*A20^('B. PoF Summary Stats & Params'!$I$12-1), IF('B. PoF Summary Stats & Params'!$C$12="W", B20*(('B. PoF Summary Stats & Params'!$M$12/'B. PoF Summary Stats & Params'!$O$12)*((A20)/'B. PoF Summary Stats & Params'!$O$12)^('B. PoF Summary Stats & Params'!$M$12-1)), "Choose Model")) -> 0.001619431282
A21: 17 | B21: 1 | C21: =IF('B. PoF Summary Stats & Params'!$C$12="C", B21*'B. PoF Summary Stats & Params'!$I$8*'B. PoF Summary Stats & Params'!$I$10*A21^('B. PoF Summary Stats & Params'!$I$10-1), IF('B. PoF Summary Stats & Params'!$C$12="W", B21*(('B. PoF Summary Stats & Params'!$M$14/'B. PoF Summary Stats & Params'!$O$14)*((A21)/'B. PoF Summary Stats & Params'!$O$14)^('B. PoF Summary Stats & Params'!$M$14-1)), "Choose Model")) -> 0.02611121369 | D21: =IF('B. PoF Summary Stats & Params'!$C$12="C", B21*'B. PoF Summary Stats & Params'!$I$8*'B. PoF Summary Stats & Params'!$I$6*A21^('B. PoF Summary Stats & Params'!$I$6-1), IF('B. PoF Summary Stats & Params'!$C$12="W", B21*(('B. PoF Summary Stats & Params'!$M$6/'B. PoF Summary Stats & Params'!$M$8)*((A21)/'B. PoF Summary Stats & Params'!$M$8)^('B. PoF Summary Stats & Params'!$M$6-1)), "Choose Model")) -> 0.007007927374 | E21: =IF('B. PoF Summary Stats & Params'!$C$12="C", B21*'B. PoF Summary Stats & Params'!$I$8*'B. PoF Summary Stats & Params'!$I$12*A21^('B. PoF Summary Stats & Params'!$I$12-1), IF('B. PoF Summary Stats & Params'!$C$12="W", B21*(('B. PoF Summary Stats & Params'!$M$12/'B. PoF Summary Stats & Params'!$O$12)*((A21)/'B. PoF Summary Stats & Params'!$O$12)^('B. PoF Summary Stats & Params'!$M$12-1)), "Choose Model")) -> 0.001855564363
A22: 18 | B22: 1 | C22: =IF('B. PoF Summary Stats & Params'!$C$12="C", B22*'B. PoF Summary Stats & Params'!$I$8*'B. PoF Summary Stats & Params'!$I$10*A22^('B. PoF Summary Stats & Params'!$I$10-1), IF('B. PoF Summary Stats & Params'!$C$12="W", B22*(('B. PoF Summary Stats & Params'!$M$14/'B. PoF Summary Stats & Params'!$O$14)*((A22)/'B. PoF Summary Stats & Params'!$O$14)^('B. PoF Summary Stats & Params'!$M$14-1)), "Choose Model")) -> 0.0311664587 | D22: =IF('B. PoF Summary Stats & Params'!$C$12="C", B22*'B. PoF Summary Stats & Params'!$I$8*'B. PoF Summary Stats & Params'!$I$6*A22^('B. PoF Summary Stats & Params'!$I$6-1), IF('B. PoF Summary Stats & Params'!$C$12="W", B22*(('B. PoF Summary Stats & Params'!$M$6/'B. PoF Summary Stats & Params'!$M$8)*((A22)/'B. PoF Summary Stats & Params'!$M$8)^('B. PoF Summary Stats & Params'!$M$6-1)), "Choose Model")) -> 0.008163692477 | E22: =IF('B. PoF Summary Stats & Params'!$C$12="C", B22*'B. PoF Summary Stats & Params'!$I$8*'B. PoF Summary Stats & Params'!$I$12*A22^('B. PoF Summary Stats & Params'!$I$12-1), IF('B. PoF Summary Stats & Params'!$C$12="W", B22*(('B. PoF Summary Stats & Params'!$M$12/'B. PoF Summary Stats & Params'!$O$12)*((A22)/'B. PoF Summary Stats & Params'!$O$12)^('B. PoF Summary Stats & Params'!$M$12-1)), "Choose Model")) -> 0.002109646611
A23: 19 | B23: 1 | C23: =IF('B. PoF Summary Stats & Params'!$C$12="C", B23*'B. PoF Summary Stats & Params'!$I$8*'B. PoF Summary Stats & Params'!$I$10*A23^('B. PoF Summary Stats & Params'!$I$10-1), IF('B. PoF Summary Stats & Params'!$C$12="W", B23*(('B. PoF Summary Stats & Params'!$M$14/'B. PoF Summary Stats & Params'!$O$14)*((A23)/'B. PoF Summary Stats & Params'!$O$14)^('B. PoF Summary Stats & Params'!$M$14-1)), "Choose Model")) -> 0.03684606881 | D23: =IF('B. PoF Summary Stats & Params'!$C$12="C", B23*'B. PoF Summary Stats & Params'!$I$8*'B. PoF Summary Stats & Params'!$I$6*A23^('B. PoF Summary Stats & Params'!$I$6-1), IF('B. PoF Summary Stats & Params'!$C$12="W", B23*(('B. PoF Summary Stats & Params'!$M$6/'B. PoF Summary Stats & Params'!$M$8)*((A23)/'B. PoF Summary Stats & Params'!$M$8)^('B. PoF Summary Stats & Params'!$M$6-1)), "Choose Model")) -> 0.00943187987 | E23: =IF('B. PoF Summary Stats & Params'!$C$12="C", B23*'B. PoF Summary Stats & Params'!$I$8*'B. PoF Summary Stats & Params'!$I$12*A23^('B. PoF Summary Stats & Params'!$I$12-1), IF('B. PoF Summary Stats & Params'!$C$12="W", B23*(('B. PoF Summary Stats & Params'!$M$12/'B. PoF Summary Stats & Params'!$O$12)*((A23)/'B. PoF Summary Stats & Params'!$O$12)^('B. PoF Summary Stats & Params'!$M$12-1)), "Choose Model")) -> 0.002381931456
A24: 20 | B24: 1 | C24: =IF('B. PoF Summary Stats & Params'!$C$12="C", B24*'B. PoF Summary Stats & Params'!$I$8*'B. PoF Summary Stats & Params'!$I$10*A24^('B. PoF Summary Stats & Params'!$I$10-1), IF('B. PoF Summary Stats & Params'!$C$12="W", B24*(('B. PoF Summary Stats & Params'!$M$14/'B. PoF Summary Stats & Params'!$O$14)*((A24)/'B. PoF Summary Stats & Params'!$O$14)^('B. PoF Summary Stats & Params'!$M$14-1)), "Choose Model")) -> 0.04318816831 | D24: =IF('B. PoF Summary Stats & Params'!$C$12="C", B24*'B. PoF Summary Stats & Params'!$I$8*'B. PoF Summary Stats & Params'!$I$6*A24^('B. PoF Summary Stats & Params'!$I$6-1), IF('B. PoF Summary Stats & Params'!$C$12="W", B24*(('B. PoF Summary Stats & Params'!$M$6/'B. PoF Summary Stats & Params'!$M$8)*((A24)/'B. PoF Summary Stats & Params'!$M$8)^('B. PoF Summary Stats & Params'!$M$6-1)), "Choose Model")) -> 0.01081664199 | E24: =IF('B. PoF Summary Stats & Params'!$C$12="C", B24*'B. PoF Summary Stats & Params'!$I$8*'B. PoF Summary Stats & Params'!$I$12*A24^('B. PoF Summary Stats & Params'!$I$12-1), IF('B. PoF Summary Stats & Params'!$C$12="W", B24*(('B. PoF Summary Stats & Params'!$M$12/'B. PoF Summary Stats & Params'!$O$12)*((A24)/'B. PoF Summary Stats & Params'!$O$12)^('B. PoF Summary Stats & Params'!$M$12-1)), "Choose Model")) -> 0.002672661902
A25: 21 | B25: 1 | C25: =IF('B. PoF Summary Stats & Params'!$C$12="C", B25*'B. PoF Summary Stats & Params'!$I$8*'B. PoF Summary Stats & Params'!$I$10*A25^('B. PoF Summary Stats & Params'!$I$10-1), IF('B. PoF Summary Stats & Params'!$C$12="W", B25*(('B. PoF Summary Stats & Params'!$M$14/'B. PoF Summary Stats & Params'!$O$14)*((A25)/'B. PoF Summary Stats & Params'!$O$14)^('B. PoF Summary Stats & Params'!$M$14-1)), "Choose Model")) -> 0.0502310753 | D25: =IF('B. PoF Summary Stats & Params'!$C$12="C", B25*'B. PoF Summary Stats & Params'!$I$8*'B. PoF Summary Stats & Params'!$I$6*A25^('B. PoF Summary Stats & Params'!$I$6-1), IF('B. PoF Summary Stats & Params'!$C$12="W", B25*(('B. PoF Summary Stats & Params'!$M$6/'B. PoF Summary Stats & Params'!$M$8)*((A25)/'B. PoF Summary Stats & Params'!$M$8)^('B. PoF Summary Stats & Params'!$M$6-1)), "Choose Model")) -> 0.01232205983 | E25: =IF('B. PoF Summary Stats & Params'!$C$12="C", B25*'B. PoF Summary Stats & Params'!$I$8*'B. PoF Summary Stats & Params'!$I$12*A25^('B. PoF Summary Stats & Params'!$I$12-1), IF('B. PoF Summary Stats & Params'!$C$12="W", B25*(('B. PoF Summary Stats & Params'!$M$12/'B. PoF Summary Stats & Params'!$O$12)*((A25)/'B. PoF Summary Stats & Params'!$O$12)^('B. PoF Summary Stats & Params'!$M$12-1)), "Choose Model")) -> 0.002982071476
A26: 22 | B26: 1 | C26: =IF('B. PoF Summary Stats & Params'!$C$12="C", B26*'B. PoF Summary Stats & Params'!$I$8*'B. PoF Summary Stats & Params'!$I$10*A26^('B. PoF Summary Stats & Params'!$I$10-1), IF('B. PoF Summary Stats & Params'!$C$12="W", B26*(('B. PoF Summary Stats & Params'!$M$14/'B. PoF Summary Stats & Params'!$O$14)*((A26)/'B. PoF Summary Stats & Params'!$O$14)^('B. PoF Summary Stats & Params'!$M$14-1)), "Choose Model")) -> 0.05801329288 | D26: =IF('B. PoF Summary Stats & Params'!$C$12="C", B26*'B. PoF Summary Stats & Params'!$I$8*'B. PoF Summary Stats & Params'!$I$6*A26^('B. PoF Summary Stats & Params'!$I$6-1), IF('B. PoF Summary Stats & Params'!$C$12="W", B26*(('B. PoF Summary Stats & Params'!$M$6/'B. PoF Summary Stats & Params'!$M$8)*((A26)/'B. PoF Summary Stats & Params'!$M$8)^('B. PoF Summary Stats & Params'!$M$6-1)), "Choose Model")) -> 0.01395214772 | E26: =IF('B. PoF Summary Stats & Params'!$C$12="C", B26*'B. PoF Summary Stats & Params'!$I$8*'B. PoF Summary Stats & Params'!$I$12*A26^('B. PoF Summary Stats & Params'!$I$12-1), IF('B. PoF Summary Stats & Params'!$C$12="W", B26*(('B. PoF Summary Stats & Params'!$M$12/'B. PoF Summary Stats & Params'!$O$12)*((A26)/'B. PoF Summary Stats & Params'!$O$12)^('B. PoF Summary Stats & Params'!$M$12-1)), "Choose Model")) -> 0.003310385045
A27: 23 | B27: 1 | C27: =IF('B. PoF Summary Stats & Params'!$C$12="C", B27*'B. PoF Summary Stats & Params'!$I$8*'B. PoF Summary Stats & Params'!$I$10*A27^('B. PoF Summary Stats & Params'!$I$10-1), IF('B. PoF Summary Stats & Params'!$C$12="W", B27*(('B. PoF Summary Stats & Params'!$M$14/'B. PoF Summary Stats & Params'!$O$14)*((A27)/'B. PoF Summary Stats & Params'!$O$14)^('B. PoF Summary Stats & Params'!$M$14-1)), "Choose Model")) -> 0.06657350122 | D27: =IF('B. PoF Summary Stats & Params'!$C$12="C", B27*'B. PoF Summary Stats & Params'!$I$8*'B. PoF Summary Stats & Params'!$I$6*A27^('B. PoF Summary Stats & Params'!$I$6-1), IF('B. PoF Summary Stats & Params'!$C$12="W", B27*(('B. PoF Summary Stats & Params'!$M$6/'B. PoF Summary Stats & Params'!$M$8)*((A27)/'B. PoF Summary Stats & Params'!$M$8)^('B. PoF Summary Stats & Params'!$M$6-1)), "Choose Model")) -> 0.01571085742 | E27: =IF('B. PoF Summary Stats & Params'!$C$12="C", B27*'B. PoF Summary Stats & Params'!$I$8*'B. PoF Summary Stats & Params'!$I$12*A27^('B. PoF Summary Stats & Params'!$I$12-1), IF('B. PoF Summary Stats & Params'!$C$12="W", B27*(('B. PoF Summary Stats & Params'!$M$12/'B. PoF Summary Stats & Params'!$O$12)*((A27)/'B. PoF Summary Stats & Params'!$O$12)^('B. PoF Summary Stats & Params'!$M$12-1)), "Choose Model")) -> 0.003657819526
A28: 24 | B28: 1 | C28: =IF('B. PoF Summary Stats & Params'!$C$12="C", B28*'B. PoF Summary Stats & Params'!$I$8*'B. PoF Summary Stats & Params'!$I$10*A28^('B. PoF Summary Stats & Params'!$I$10-1), IF('B. PoF Summary Stats & Params'!$C$12="W", B28*(('B. PoF Summary Stats & Params'!$M$14/'B. PoF Summary Stats & Params'!$O$14)*((A28)/'B. PoF Summary Stats & Params'!$O$14)^('B. PoF Summary Stats & Params'!$M$14-1)), "Choose Model")) -> 0.07595055019 | D28: =IF('B. PoF Summary Stats & Params'!$C$12="C", B28*'B. PoF Summary Stats & Params'!$I$8*'B. PoF Summary Stats & Params'!$I$6*A28^('B. PoF Summary Stats & Params'!$I$6-1), IF('B. PoF Summary Stats & Params'!$C$12="W", B28*(('B. PoF Summary Stats & Params'!$M$6/'B. PoF Summary Stats & Params'!$M$8)*((A28)/'B. PoF Summary Stats & Params'!$M$8)^('B. PoF Summary Stats & Params'!$M$6-1)), "Choose Model")) -> 0.01760208199 | E28: =IF('B. PoF Summary Stats & Params'!$C$12="C", B28*'B. PoF Summary Stats & Params'!$I$8*'B. PoF Summary Stats & Params'!$I$12*A28^('B. PoF Summary Stats & Params'!$I$12-1), IF('B. PoF Summary Stats & Params'!$C$12="W", B28*(('B. PoF Summary Stats & Params'!$M$12/'B. PoF Summary Stats & Params'!$O$12)*((A28)/'B. PoF Summary Stats & Params'!$O$12)^('B. PoF Summary Stats & Params'!$M$12-1)), "Choose Model")) -> 0.004024584516
A29: 25 | B29: 1 | C29: =IF('B. PoF Summary Stats & Params'!$C$12="C", B29*'B. PoF Summary Stats & Params'!$I$8*'B. PoF Summary Stats & Params'!$I$10*A29^('B. PoF Summary Stats & Params'!$I$10-1), IF('B. PoF Summary Stats & Params'!$C$12="W", B29*(('B. PoF Summary Stats & Params'!$M$14/'B. PoF Summary Stats & Params'!$O$14)*((A29)/'B. PoF Summary Stats & Params'!$O$14)^('B. PoF Summary Stats & Params'!$M$14-1)), "Choose Model")) -> 0.08618345271 | D29: =IF('B. PoF Summary Stats & Params'!$C$12="C", B29*'B. PoF Summary Stats & Params'!$I$8*'B. PoF Summary Stats & Params'!$I$6*A29^('B. PoF Summary Stats & Params'!$I$6-1), IF('B. PoF Summary Stats & Params'!$C$12="W", B29*(('B. PoF Summary Stats & Params'!$M$6/'B. PoF Summary Stats & Params'!$M$8)*((A29)/'B. PoF Summary Stats & Params'!$M$8)^('B. PoF Summary Stats & Params'!$M$6-1)), "Choose Model")) -> 0.01962965907 | E29: =IF('B. PoF Summary Stats & Params'!$C$12="C", B29*'B. PoF Summary Stats & Params'!$I$8*'B. PoF Summary Stats & Params'!$I$12*A29^('B. PoF Summary Stats & Params'!$I$12-1), IF('B. PoF Summary Stats & Params'!$C$12="W", B29*(('B. PoF Summary Stats & Params'!$M$12/'B. PoF Summary Stats & Params'!$O$12)*((A29)/'B. PoF Summary Stats & Params'!$O$12)^('B. PoF Summary Stats & Params'!$M$12-1)), "Choose Model")) -> 0.004410882834
A30: 26 | B30: 1 | C30: =IF('B. PoF Summary Stats & Params'!$C$12="C", B30*'B. PoF Summary Stats & Params'!$I$8*'B. PoF Summary Stats & Params'!$I$10*A30^('B. PoF Summary Stats & Params'!$I$10-1), IF('B. PoF Summary Stats & Params'!$C$12="W", B30*(('B. PoF Summary Stats & Params'!$M$14/'B. PoF Summary Stats & Params'!$O$14)*((A30)/'B. PoF Summary Stats & Params'!$O$14)^('B. PoF Summary Stats & Params'!$M$14-1)), "Choose Model")) -> 0.0973113786 | D30: =IF('B. PoF Summary Stats & Params'!$C$12="C", B30*'B. PoF Summary Stats & Params'!$I$8*'B. PoF Summary Stats & Params'!$I$6*A30^('B. PoF Summary Stats & Params'!$I$6-1), IF('B. PoF Summary Stats & Params'!$C$12="W", B30*(('B. PoF Summary Stats & Params'!$M$6/'B. PoF Summary Stats & Params'!$M$8)*((A30)/'B. PoF Summary Stats & Params'!$M$8)^('B. PoF Summary Stats & Params'!$M$6-1)), "Choose Model")) -> 0.021797374 | E30: =IF('B. PoF Summary Stats & Params'!$C$12="C", B30*'B. PoF Summary Stats & Params'!$I$8*'B. PoF Summary Stats & Params'!$I$12*A30^('B. PoF Summary Stats & Params'!$I$12-1), IF('B. PoF Summary Stats & Params'!$C$12="W", B30*(('B. PoF Summary Stats & Params'!$M$12/'B. PoF Summary Stats & Params'!$O$12)*((A30)/'B. PoF Summary Stats & Params'!$O$12)^('B. PoF Summary Stats & Params'!$M$12-1)), "Choose Model")) -> 0.004816911016
A31: 27 | B31: 1 | C31: =IF('B. PoF Summary Stats & Params'!$C$12="C", B31*'B. PoF Summary Stats & Params'!$I$8*'B. PoF Summary Stats & Params'!$I$10*A31^('B. PoF Summary Stats & Params'!$I$10-1), IF('B. PoF Summary Stats & Params'!$C$12="W", B31*(('B. PoF Summary Stats & Params'!$M$14/'B. PoF Summary Stats & Params'!$O$14)*((A31)/'B. PoF Summary Stats & Params'!$O$14)^('B. PoF Summary Stats & Params'!$M$14-1)), "Choose Model")) -> 0.1093736488 | D31: =IF('B. PoF Summary Stats & Params'!$C$12="C", B31*'B. PoF Summary Stats & Params'!$I$8*'B. PoF Summary Stats & Params'!$I$6*A31^('B. PoF Summary Stats & Params'!$I$6-1), IF('B. PoF Summary Stats & Params'!$C$12="W", B31*(('B. PoF Summary Stats & Params'!$M$6/'B. PoF Summary Stats & Params'!$M$8)*((A31)/'B. PoF Summary Stats & Params'!$M$8)^('B. PoF Summary Stats & Params'!$M$6-1)), "Choose Model")) -> 0.02410896253 | E31: =IF('B. PoF Summary Stats & Params'!$C$12="C", B31*'B. PoF Summary Stats & Params'!$I$8*'B. PoF Summary Stats & Params'!$I$12*A31^('B. PoF Summary Stats & Params'!$I$12-1), IF('B. PoF Summary Stats & Params'!$C$12="W", B31*(('B. PoF Summary Stats & Params'!$M$12/'B. PoF Summary Stats & Params'!$O$12)*((A31)/'B. PoF Summary Stats & Params'!$O$12)^('B. PoF Summary Stats & Params'!$M$12-1)), "Choose Model")) -> 0.00524285975
A32: 28 | B32: 1 | C32: =IF('B. PoF Summary Stats & Params'!$C$12="C", B32*'B. PoF Summary Stats & Params'!$I$8*'B. PoF Summary Stats & Params'!$I$10*A32^('B. PoF Summary Stats & Params'!$I$10-1), IF('B. PoF Summary Stats & Params'!$C$12="W", B32*(('B. PoF Summary Stats & Params'!$M$14/'B. PoF Summary Stats & Params'!$O$14)*((A32)/'B. PoF Summary Stats & Params'!$O$14)^('B. PoF Summary Stats & Params'!$M$14-1)), "Choose Model")) -> 0.1224097303 | D32: =IF('B. PoF Summary Stats & Params'!$C$12="C", B32*'B. PoF Summary Stats & Params'!$I$8*'B. PoF Summary Stats & Params'!$I$6*A32^('B. PoF Summary Stats & Params'!$I$6-1), IF('B. PoF Summary Stats & Params'!$C$12="W", B32*(('B. PoF Summary Stats & Params'!$M$6/'B. PoF Summary Stats & Params'!$M$8)*((A32)/'B. PoF Summary Stats & Params'!$M$8)^('B. PoF Summary Stats & Params'!$M$6-1)), "Choose Model")) -> 0.0265681134 | E32: =IF('B. PoF Summary Stats & Params'!$C$12="C", B32*'B. PoF Summary Stats & Params'!$I$8*'B. PoF Summary Stats & Params'!$I$12*A32^('B. PoF Summary Stats & Params'!$I$12-1), IF('B. PoF Summary Stats & Params'!$C$12="W", B32*(('B. PoF Summary Stats & Params'!$M$12/'B. PoF Summary Stats & Params'!$O$12)*((A32)/'B. PoF Summary Stats & Params'!$O$12)^('B. PoF Summary Stats & Params'!$M$12-1)), "Choose Model")) -> 0.005688914259
A33: 29 | B33: 1 | C33: =IF('B. PoF Summary Stats & Params'!$C$12="C", B33*'B. PoF Summary Stats & Params'!$I$8*'B. PoF Summary Stats & Params'!$I$10*A33^('B. PoF Summary Stats & Params'!$I$10-1), IF('B. PoF Summary Stats & Params'!$C$12="W", B33*(('B. PoF Summary Stats & Params'!$M$14/'B. PoF Summary Stats & Params'!$O$14)*((A33)/'B. PoF Summary Stats & Params'!$O$14)^('B. PoF Summary Stats & Params'!$M$14-1)), "Choose Model")) -> 0.1364592311 | D33: =IF('B. PoF Summary Stats & Params'!$C$12="C", B33*'B. PoF Summary Stats & Params'!$I$8*'B. PoF Summary Stats & Params'!$I$6*A33^('B. PoF Summary Stats & Params'!$I$6-1), IF('B. PoF Summary Stats & Params'!$C$12="W", B33*(('B. PoF Summary Stats & Params'!$M$6/'B. PoF Summary Stats & Params'!$M$8)*((A33)/'B. PoF Summary Stats & Params'!$M$8)^('B. PoF Summary Stats & Params'!$M$6-1)), "Choose Model")) -> 0.02917847058 | E33: =IF('B. PoF Summary Stats & Params'!$C$12="C", B33*'B. PoF Summary Stats & Params'!$I$8*'B. PoF Summary Stats & Params'!$I$12*A33^('B. PoF Summary Stats & Params'!$I$12-1), IF('B. PoF Summary Stats & Params'!$C$12="W", B33*(('B. PoF Summary Stats & Params'!$M$12/'B. PoF Summary Stats & Params'!$O$12)*((A33)/'B. PoF Summary Stats & Params'!$O$12)^('B. PoF Summary Stats & Params'!$M$12-1)), "Choose Model")) -> 0.00615525466
A34: 30 | B34: 1 | C34: =IF('B. PoF Summary Stats & Params'!$C$12="C", B34*'B. PoF Summary Stats & Params'!$I$8*'B. PoF Summary Stats & Params'!$I$10*A34^('B. PoF Summary Stats & Params'!$I$10-1), IF('B. PoF Summary Stats & Params'!$C$12="W", B34*(('B. PoF Summary Stats & Params'!$M$14/'B. PoF Summary Stats & Params'!$O$14)*((A34)/'B. PoF Summary Stats & Params'!$O$14)^('B. PoF Summary Stats & Params'!$M$14-1)), "Choose Model")) -> 0.1515618955 | D34: =IF('B. PoF Summary Stats & Params'!$C$12="C", B34*'B. PoF Summary Stats & Params'!$I$8*'B. PoF Summary Stats & Params'!$I$6*A34^('B. PoF Summary Stats & Params'!$I$6-1), IF('B. PoF Summary Stats & Params'!$C$12="W", B34*(('B. PoF Summary Stats & Params'!$M$6/'B. PoF Summary Stats & Params'!$M$8)*((A34)/'B. PoF Summary Stats & Params'!$M$8)^('B. PoF Summary Stats & Params'!$M$6-1)), "Choose Model")) -> 0.03194363544 | E34: =IF('B. PoF Summary Stats & Params'!$C$12="C", B34*'B. PoF Summary Stats & Params'!$I$8*'B. PoF Summary Stats & Params'!$I$12*A34^('B. PoF Summary Stats & Params'!$I$12-1), IF('B. PoF Summary Stats & Params'!$C$12="W", B34*(('B. PoF Summary Stats & Params'!$M$12/'B. PoF Summary Stats & Params'!$O$12)*((A34)/'B. PoF Summary Stats & Params'!$O$12)^('B. PoF Summary Stats & Params'!$M$12-1)), "Choose Model")) -> 0.006642056274
A35: 31 | B35: 1 | C35: =IF('B. PoF Summary Stats & Params'!$C$12="C", B35*'B. PoF Summary Stats & Params'!$I$8*'B. PoF Summary Stats & Params'!$I$10*A35^('B. PoF Summary Stats & Params'!$I$10-1), IF('B. PoF Summary Stats & Params'!$C$12="W", B35*(('B. PoF Summary Stats & Params'!$M$14/'B. PoF Summary Stats & Params'!$O$14)*((A35)/'B. PoF Summary Stats & Params'!$O$14)^('B. PoF Summary Stats & Params'!$M$14-1)), "Choose Model")) -> 0.1677576001 | D35: =IF('B. PoF Summary Stats & Params'!$C$12="C", B35*'B. PoF Summary Stats & Params'!$I$8*'B. PoF Summary Stats & Params'!$I$6*A35^('B. PoF Summary Stats & Params'!$I$6-1), IF('B. PoF Summary Stats & Params'!$C$12="W", B35*(('B. PoF Summary Stats & Params'!$M$6/'B. PoF Summary Stats & Params'!$M$8)*((A35)/'B. PoF Summary Stats & Params'!$M$8)^('B. PoF Summary Stats & Params'!$M$6-1)), "Choose Model")) -> 0.03486716867 | E35: =IF('B. PoF Summary Stats & Params'!$C$12="C", B35*'B. PoF Summary Stats & Params'!$I$8*'B. PoF Summary Stats & Params'!$I$12*A35^('B. PoF Summary Stats & Params'!$I$12-1), IF('B. PoF Summary Stats & Params'!$C$12="W", B35*(('B. PoF Summary Stats & Params'!$M$12/'B. PoF Summary Stats & Params'!$O$12)*((A35)/'B. PoF Summary Stats & Params'!$O$12)^('B. PoF Summary Stats & Params'!$M$12-1)), "Choose Model")) -> 0.007149489917
A36: 32 | B36: 1 | C36: =IF('B. PoF Summary Stats & Params'!$C$12="C", B36*'B. PoF Summary Stats & Params'!$I$8*'B. PoF Summary Stats & Params'!$I$10*A36^('B. PoF Summary Stats & Params'!$I$10-1), IF('B. PoF Summary Stats & Params'!$C$12="W", B36*(('B. PoF Summary Stats & Params'!$M$14/'B. PoF Summary Stats & Params'!$O$14)*((A36)/'B. PoF Summary Stats & Params'!$O$14)^('B. PoF Summary Stats & Params'!$M$14-1)), "Choose Model")) -> 0.1850863497 | D36: =IF('B. PoF Summary Stats & Params'!$C$12="C", B36*'B. PoF Summary Stats & Params'!$I$8*'B. PoF Summary Stats & Params'!$I$6*A36^('B. PoF Summary Stats & Params'!$I$6-1), IF('B. PoF Summary Stats & Params'!$C$12="W", B36*(('B. PoF Summary Stats & Params'!$M$6/'B. PoF Summary Stats & Params'!$M$8)*((A36)/'B. PoF Summary Stats & Params'!$M$8)^('B. PoF Summary Stats & Params'!$M$6-1)), "Choose Model")) -> 0.03795259206 | E36: =IF('B. PoF Summary Stats & Params'!$C$12="C", B36*'B. PoF Summary Stats & Params'!$I$8*'B. PoF Summary Stats & Params'!$I$12*A36^('B. PoF Summary Stats & Params'!$I$12-1), IF('B. PoF Summary Stats & Params'!$C$12="W", B36*(('B. PoF Summary Stats & Params'!$M$12/'B. PoF Summary Stats & Params'!$O$12)*((A36)/'B. PoF Summary Stats & Params'!$O$12)^('B. PoF Summary Stats & Params'!$M$12-1)), "Choose Model")) -> 0.007677722155
A37: 33 | B37: 1 | C37: =IF('B. PoF Summary Stats & Params'!$C$12="C", B37*'B. PoF Summary Stats & Params'!$I$8*'B. PoF Summary Stats & Params'!$I$10*A37^('B. PoF Summary Stats & Params'!$I$10-1), IF('B. PoF Summary Stats & Params'!$C$12="W", B37*(('B. PoF Summary Stats & Params'!$M$14/'B. PoF Summary Stats & Params'!$O$14)*((A37)/'B. PoF Summary Stats & Params'!$O$14)^('B. PoF Summary Stats & Params'!$M$14-1)), "Choose Model")) -> 0.2035882737 | D37: =IF('B. PoF Summary Stats & Params'!$C$12="C", B37*'B. PoF Summary Stats & Params'!$I$8*'B. PoF Summary Stats & Params'!$I$6*A37^('B. PoF Summary Stats & Params'!$I$6-1), IF('B. PoF Summary Stats & Params'!$C$12="W", B37*(('B. PoF Summary Stats & Params'!$M$6/'B. PoF Summary Stats & Params'!$M$8)*((A37)/'B. PoF Summary Stats & Params'!$M$8)^('B. PoF Summary Stats & Params'!$M$6-1)), "Choose Model")) -> 0.04120339018 | E37: =IF('B. PoF Summary Stats & Params'!$C$12="C", B37*'B. PoF Summary Stats & Params'!$I$8*'B. PoF Summary Stats & Params'!$I$12*A37^('B. PoF Summary Stats & Params'!$I$12-1), IF('B. PoF Summary Stats & Params'!$C$12="W", B37*(('B. PoF Summary Stats & Params'!$M$12/'B. PoF Summary Stats & Params'!$O$12)*((A37)/'B. PoF Summary Stats & Params'!$O$12)^('B. PoF Summary Stats & Params'!$M$12-1)), "Choose Model")) -> 0.008226915549
A38: 34 | B38: 1 | C38: =IF('B. PoF Summary Stats & Params'!$C$12="C", B38*'B. PoF Summary Stats & Params'!$I$8*'B. PoF Summary Stats & Params'!$I$10*A38^('B. PoF Summary Stats & Params'!$I$10-1), IF('B. PoF Summary Stats & Params'!$C$12="W", B38*(('B. PoF Summary Stats & Params'!$M$14/'B. PoF Summary Stats & Params'!$O$14)*((A38)/'B. PoF Summary Stats & Params'!$O$14)^('B. PoF Summary Stats & Params'!$M$14-1)), "Choose Model")) -> 0.2233036222 | D38: =IF('B. PoF Summary Stats & Params'!$C$12="C", B38*'B. PoF Summary Stats & Params'!$I$8*'B. PoF Summary Stats & Params'!$I$6*A38^('B. PoF Summary Stats & Params'!$I$6-1), IF('B. PoF Summary Stats & Params'!$C$12="W", B38*(('B. PoF Summary Stats & Params'!$M$6/'B. PoF Summary Stats & Params'!$M$8)*((A38)/'B. PoF Summary Stats & Params'!$M$8)^('B. PoF Summary Stats & Params'!$M$6-1)), "Choose Model")) -> 0.04462301193 | E38: =IF('B. PoF Summary Stats & Params'!$C$12="C", B38*'B. PoF Summary Stats & Params'!$I$8*'B. PoF Summary Stats & Params'!$I$12*A38^('B. PoF Summary Stats & Params'!$I$12-1), IF('B. PoF Summary Stats & Params'!$C$12="W", B38*(('B. PoF Summary Stats & Params'!$M$12/'B. PoF Summary Stats & Params'!$O$12)*((A38)/'B. PoF Summary Stats & Params'!$O$12)^('B. PoF Summary Stats & Params'!$M$12-1)), "Choose Model")) -> 0.008797228865
A39: 35 | B39: 1 | C39: =IF('B. PoF Summary Stats & Params'!$C$12="C", B39*'B. PoF Summary Stats & Params'!$I$8*'B. PoF Summary Stats & Params'!$I$10*A39^('B. PoF Summary Stats & Params'!$I$10-1), IF('B. PoF Summary Stats & Params'!$C$12="W", B39*(('B. PoF Summary Stats & Params'!$M$14/'B. PoF Summary Stats & Params'!$O$14)*((A39)/'B. PoF Summary Stats & Params'!$O$14)^('B. PoF Summary Stats & Params'!$M$14-1)), "Choose Model")) -> 0.2442727631 | D39: =IF('B. PoF Summary Stats & Params'!$C$12="C", B39*'B. PoF Summary Stats & Params'!$I$8*'B. PoF Summary Stats & Params'!$I$6*A39^('B. PoF Summary Stats & Params'!$I$6-1), IF('B. PoF Summary Stats & Params'!$C$12="W", B39*(('B. PoF Summary Stats & Params'!$M$6/'B. PoF Summary Stats & Params'!$M$8)*((A39)/'B. PoF Summary Stats & Params'!$M$8)^('B. PoF Summary Stats & Params'!$M$6-1)), "Choose Model")) -> 0.04821487193 | E39: =IF('B. PoF Summary Stats & Params'!$C$12="C", B39*'B. PoF Summary Stats & Params'!$I$8*'B. PoF Summary Stats & Params'!$I$12*A39^('B. PoF Summary Stats & Params'!$I$12-1), IF('B. PoF Summary Stats & Params'!$C$12="W", B39*(('B. PoF Summary Stats & Params'!$M$12/'B. PoF Summary Stats & Params'!$O$12)*((A39)/'B. PoF Summary Stats & Params'!$O$12)^('B. PoF Summary Stats & Params'!$M$12-1)), "Choose Model")) -> 0.009388817281
A40: 36 | B40: 1 | C40: =IF('B. PoF Summary Stats & Params'!$C$12="C", B40*'B. PoF Summary Stats & Params'!$I$8*'B. PoF Summary Stats & Params'!$I$10*A40^('B. PoF Summary Stats & Params'!$I$10-1), IF('B. PoF Summary Stats & Params'!$C$12="W", B40*(('B. PoF Summary Stats & Params'!$M$14/'B. PoF Summary Stats & Params'!$O$14)*((A40)/'B. PoF Summary Stats & Params'!$O$14)^('B. PoF Summary Stats & Params'!$M$14-1)), "Choose Model")) -> 0.2665361787 | D40: =IF('B. PoF Summary Stats & Params'!$C$12="C", B40*'B. PoF Summary Stats & Params'!$I$8*'B. PoF Summary Stats & Params'!$I$6*A40^('B. PoF Summary Stats & Params'!$I$6-1), IF('B. PoF Summary Stats & Params'!$C$12="W", B40*(('B. PoF Summary Stats & Params'!$M$6/'B. PoF Summary Stats & Params'!$M$8)*((A40)/'B. PoF Summary Stats & Params'!$M$8)^('B. PoF Summary Stats & Params'!$M$6-1)), "Choose Model")) -> 0.05198235189 | E40: =IF('B. PoF Summary Stats & Params'!$C$12="C", B40*'B. PoF Summary Stats & Params'!$I$8*'B. PoF Summary Stats & Params'!$I$12*A40^('B. PoF Summary Stats & Params'!$I$12-1), IF('B. PoF Summary Stats & Params'!$C$12="W", B40*(('B. PoF Summary Stats & Params'!$M$12/'B. PoF Summary Stats & Params'!$O$12)*((A40)/'B. PoF Summary Stats & Params'!$O$12)^('B. PoF Summary Stats & Params'!$M$12-1)), "Choose Model")) -> 0.01000183256
A41: 37 | B41: 1 | C41: =IF('B. PoF Summary Stats & Params'!$C$12="C", B41*'B. PoF Summary Stats & Params'!$I$8*'B. PoF Summary Stats & Params'!$I$10*A41^('B. PoF Summary Stats & Params'!$I$10-1), IF('B. PoF Summary Stats & Params'!$C$12="W", B41*(('B. PoF Summary Stats & Params'!$M$14/'B. PoF Summary Stats & Params'!$O$14)*((A41)/'B. PoF Summary Stats & Params'!$O$14)^('B. PoF Summary Stats & Params'!$M$14-1)), "Choose Model")) -> 0.2901344628 | D41: =IF('B. PoF Summary Stats & Params'!$C$12="C", B41*'B. PoF Summary Stats & Params'!$I$8*'B. PoF Summary Stats & Params'!$I$6*A41^('B. PoF Summary Stats & Params'!$I$6-1), IF('B. PoF Summary Stats & Params'!$C$12="W", B41*(('B. PoF Summary Stats & Params'!$M$6/'B. PoF Summary Stats & Params'!$M$8)*((A41)/'B. PoF Summary Stats & Params'!$M$8)^('B. PoF Summary Stats & Params'!$M$6-1)), "Choose Model")) -> 0.05592880185 | E41: =IF('B. PoF Summary Stats & Params'!$C$12="C", B41*'B. PoF Summary Stats & Params'!$I$8*'B. PoF Summary Stats & Params'!$I$12*A41^('B. PoF Summary Stats & Params'!$I$12-1), IF('B. PoF Summary Stats & Params'!$C$12="W", B41*(('B. PoF Summary Stats & Params'!$M$12/'B. PoF Summary Stats & Params'!$O$12)*((A41)/'B. PoF Summary Stats & Params'!$O$12)^('B. PoF Summary Stats & Params'!$M$12-1)), "Choose Model")) -> 0.01063642324
A42: 38 | B42: 1 | C42: =IF('B. PoF Summary Stats & Params'!$C$12="C", B42*'B. PoF Summary Stats & Params'!$I$8*'B. PoF Summary Stats & Params'!$I$10*A42^('B. PoF Summary Stats & Params'!$I$10-1), IF('B. PoF Summary Stats & Params'!$C$12="W", B42*(('B. PoF Summary Stats & Params'!$M$14/'B. PoF Summary Stats & Params'!$O$14)*((A42)/'B. PoF Summary Stats & Params'!$O$14)^('B. PoF Summary Stats & Params'!$M$14-1)), "Choose Model")) -> 0.3151083181 | D42: =IF('B. PoF Summary Stats & Params'!$C$12="C", B42*'B. PoF Summary Stats & Params'!$I$8*'B. PoF Summary Stats & Params'!$I$6*A42^('B. PoF Summary Stats & Params'!$I$6-1), IF('B. PoF Summary Stats & Params'!$C$12="W", B42*(('B. PoF Summary Stats & Params'!$M$6/'B. PoF Summary Stats & Params'!$M$8)*((A42)/'B. PoF Summary Stats & Params'!$M$8)^('B. PoF Summary Stats & Params'!$M$6-1)), "Choose Model")) -> 0.06005754134 | E42: =IF('B. PoF Summary Stats & Params'!$C$12="C", B42*'B. PoF Summary Stats & Params'!$I$8*'B. PoF Summary Stats & Params'!$I$12*A42^('B. PoF Summary Stats & Params'!$I$12-1), IF('B. PoF Summary Stats & Params'!$C$12="W", B42*(('B. PoF Summary Stats & Params'!$M$12/'B. PoF Summary Stats & Params'!$O$12)*((A42)/'B. PoF Summary Stats & Params'!$O$12)^('B. PoF Summary Stats & Params'!$M$12-1)), "Choose Model")) -> 0.01129273475
A43: 39 | B43: 1 | C43: =IF('B. PoF Summary Stats & Params'!$C$12="C", B43*'B. PoF Summary Stats & Params'!$I$8*'B. PoF Summary Stats & Params'!$I$10*A43^('B. PoF Summary Stats & Params'!$I$10-1), IF('B. PoF Summary Stats & Params'!$C$12="W", B43*(('B. PoF Summary Stats & Params'!$M$14/'B. PoF Summary Stats & Params'!$O$14)*((A43)/'B. PoF Summary Stats & Params'!$O$14)^('B. PoF Summary Stats & Params'!$M$14-1)), "Choose Model")) -> 0.3414985531 | D43: =IF('B. PoF Summary Stats & Params'!$C$12="C", B43*'B. PoF Summary Stats & Params'!$I$8*'B. PoF Summary Stats & Params'!$I$6*A43^('B. PoF Summary Stats & Params'!$I$6-1), IF('B. PoF Summary Stats & Params'!$C$12="W", B43*(('B. PoF Summary Stats & Params'!$M$6/'B. PoF Summary Stats & Params'!$M$8)*((A43)/'B. PoF Summary Stats & Params'!$M$8)^('B. PoF Summary Stats & Params'!$M$6-1)), "Choose Model")) -> 0.06437186045 | E43: =IF('B. PoF Summary Stats & Params'!$C$12="C", B43*'B. PoF Summary Stats & Params'!$I$8*'B. PoF Summary Stats & Params'!$I$12*A43^('B. PoF Summary Stats & Params'!$I$12-1), IF('B. PoF Summary Stats & Params'!$C$12="W", B43*(('B. PoF Summary Stats & Params'!$M$12/'B. PoF Summary Stats & Params'!$O$12)*((A43)/'B. PoF Summary Stats & Params'!$O$12)^('B. PoF Summary Stats & Params'!$M$12-1)), "Choose Model")) -> 0.01197090961
A44: 40 | B44: 1 | C44: =IF('B. PoF Summary Stats & Params'!$C$12="C", B44*'B. PoF Summary Stats & Params'!$I$8*'B. PoF Summary Stats & Params'!$I$10*A44^('B. PoF Summary Stats & Params'!$I$10-1), IF('B. PoF Summary Stats & Params'!$C$12="W", B44*(('B. PoF Summary Stats & Params'!$M$14/'B. PoF Summary Stats & Params'!$O$14)*((A44)/'B. PoF Summary Stats & Params'!$O$14)^('B. PoF Summary Stats & Params'!$M$14-1)), "Choose Model")) -> 0.36934608 | D44: =IF('B. PoF Summary Stats & Params'!$C$12="C", B44*'B. PoF Summary Stats & Params'!$I$8*'B. PoF Summary Stats & Params'!$I$6*A44^('B. PoF Summary Stats & Params'!$I$6-1), IF('B. PoF Summary Stats & Params'!$C$12="W", B44*(('B. PoF Summary Stats & Params'!$M$6/'B. PoF Summary Stats & Params'!$M$8)*((A44)/'B. PoF Summary Stats & Params'!$M$8)^('B. PoF Summary Stats & Params'!$M$6-1)), "Choose Model")) -> 0.0688750209 | E44: =IF('B. PoF Summary Stats & Params'!$C$12="C", B44*'B. PoF Summary Stats & Params'!$I$8*'B. PoF Summary Stats & Params'!$I$12*A44^('B. PoF Summary Stats & Params'!$I$12-1), IF('B. PoF Summary Stats & Params'!$C$12="W", B44*(('B. PoF Summary Stats & Params'!$M$12/'B. PoF Summary Stats & Params'!$O$12)*((A44)/'B. PoF Summary Stats & Params'!$O$12)^('B. PoF Summary Stats & Params'!$M$12-1)), "Choose Model")) -> 0.01267108752
A45: 41 | B45: 1 | C45: =IF('B. PoF Summary Stats & Params'!$C$12="C", B45*'B. PoF Summary Stats & Params'!$I$8*'B. PoF Summary Stats & Params'!$I$10*A45^('B. PoF Summary Stats & Params'!$I$10-1), IF('B. PoF Summary Stats & Params'!$C$12="W", B45*(('B. PoF Summary Stats & Params'!$M$14/'B. PoF Summary Stats & Params'!$O$14)*((A45)/'B. PoF Summary Stats & Params'!$O$14)^('B. PoF Summary Stats & Params'!$M$14-1)), "Choose Model")) -> 0.3986919121 | D45: =IF('B. PoF Summary Stats & Params'!$C$12="C", B45*'B. PoF Summary Stats & Params'!$I$8*'B. PoF Summary Stats & Params'!$I$6*A45^('B. PoF Summary Stats & Params'!$I$6-1), IF('B. PoF Summary Stats & Params'!$C$12="W", B45*(('B. PoF Summary Stats & Params'!$M$6/'B. PoF Summary Stats & Params'!$M$8)*((A45)/'B. PoF Summary Stats & Params'!$M$8)^('B. PoF Summary Stats & Params'!$M$6-1)), "Choose Model")) -> 0.07357025698 | E45: =IF('B. PoF Summary Stats & Params'!$C$12="C", B45*'B. PoF Summary Stats & Params'!$I$8*'B. PoF Summary Stats & Params'!$I$12*A45^('B. PoF Summary Stats & Params'!$I$12-1), IF('B. PoF Summary Stats & Params'!$C$12="W", B45*(('B. PoF Summary Stats & Params'!$M$12/'B. PoF Summary Stats & Params'!$O$12)*((A45)/'B. PoF Summary Stats & Params'!$O$12)^('B. PoF Summary Stats & Params'!$M$12-1)), "Choose Model")) -> 0.0133934055
A46: 42 | B46: 1 | C46: =IF('B. PoF Summary Stats & Params'!$C$12="C", B46*'B. PoF Summary Stats & Params'!$I$8*'B. PoF Summary Stats & Params'!$I$10*A46^('B. PoF Summary Stats & Params'!$I$10-1), IF('B. PoF Summary Stats & Params'!$C$12="W", B46*(('B. PoF Summary Stats & Params'!$M$14/'B. PoF Summary Stats & Params'!$O$14)*((A46)/'B. PoF Summary Stats & Params'!$O$14)^('B. PoF Summary Stats & Params'!$M$14-1)), "Choose Model")) -> 0.4295771615 | D46: =IF('B. PoF Summary Stats & Params'!$C$12="C", B46*'B. PoF Summary Stats & Params'!$I$8*'B. PoF Summary Stats & Params'!$I$6*A46^('B. PoF Summary Stats & Params'!$I$6-1), IF('B. PoF Summary Stats & Params'!$C$12="W", B46*(('B. PoF Summary Stats & Params'!$M$6/'B. PoF Summary Stats & Params'!$M$8)*((A46)/'B. PoF Summary Stats & Params'!$M$8)^('B. PoF Summary Stats & Params'!$M$6-1)), "Choose Model")) -> 0.07846077643 | E46: =IF('B. PoF Summary Stats & Params'!$C$12="C", B46*'B. PoF Summary Stats & Params'!$I$8*'B. PoF Summary Stats & Params'!$I$12*A46^('B. PoF Summary Stats & Params'!$I$12-1), IF('B. PoF Summary Stats & Params'!$C$12="W", B46*(('B. PoF Summary Stats & Params'!$M$12/'B. PoF Summary Stats & Params'!$O$12)*((A46)/'B. PoF Summary Stats & Params'!$O$12)^('B. PoF Summary Stats & Params'!$M$12-1)), "Choose Model")) -> 0.01413799801
A47: 43 | B47: 1 | C47: =IF('B. PoF Summary Stats & Params'!$C$12="C", B47*'B. PoF Summary Stats & Params'!$I$8*'B. PoF Summary Stats & Params'!$I$10*A47^('B. PoF Summary Stats & Params'!$I$10-1), IF('B. PoF Summary Stats & Params'!$C$12="W", B47*(('B. PoF Summary Stats & Params'!$M$14/'B. PoF Summary Stats & Params'!$O$14)*((A47)/'B. PoF Summary Stats & Params'!$O$14)^('B. PoF Summary Stats & Params'!$M$14-1)), "Choose Model")) -> 0.462043037 | D47: =IF('B. PoF Summary Stats & Params'!$C$12="C", B47*'B. PoF Summary Stats & Params'!$I$8*'B. PoF Summary Stats & Params'!$I$6*A47^('B. PoF Summary Stats & Params'!$I$6-1), IF('B. PoF Summary Stats & Params'!$C$12="W", B47*(('B. PoF Summary Stats & Params'!$M$6/'B. PoF Summary Stats & Params'!$M$8)*((A47)/'B. PoF Summary Stats & Params'!$M$8)^('B. PoF Summary Stats & Params'!$M$6-1)), "Choose Model")) -> 0.08354976136 | E47: =IF('B. PoF Summary Stats & Params'!$C$12="C", B47*'B. PoF Summary Stats & Params'!$I$8*'B. PoF Summary Stats & Params'!$I$12*A47^('B. PoF Summary Stats & Params'!$I$12-1), IF('B. PoF Summary Stats & Params'!$C$12="W", B47*(('B. PoF Summary Stats & Params'!$M$12/'B. PoF Summary Stats & Params'!$O$12)*((A47)/'B. PoF Summary Stats & Params'!$O$12)^('B. PoF Summary Stats & Params'!$M$12-1)), "Choose Model")) -> 0.01490499707
A48: 44 | B48: 1 | C48: =IF('B. PoF Summary Stats & Params'!$C$12="C", B48*'B. PoF Summary Stats & Params'!$I$8*'B. PoF Summary Stats & Params'!$I$10*A48^('B. PoF Summary Stats & Params'!$I$10-1), IF('B. PoF Summary Stats & Params'!$C$12="W", B48*(('B. PoF Summary Stats & Params'!$M$14/'B. PoF Summary Stats & Params'!$O$14)*((A48)/'B. PoF Summary Stats & Params'!$O$14)^('B. PoF Summary Stats & Params'!$M$14-1)), "Choose Model")) -> 0.496130842 | D48: =IF('B. PoF Summary Stats & Params'!$C$12="C", B48*'B. PoF Summary Stats & Params'!$I$8*'B. PoF Summary Stats & Params'!$I$6*A48^('B. PoF Summary Stats & Params'!$I$6-1), IF('B. PoF Summary Stats & Params'!$C$12="W", B48*(('B. PoF Summary Stats & Params'!$M$6/'B. PoF Summary Stats & Params'!$M$8)*((A48)/'B. PoF Summary Stats & Params'!$M$8)^('B. PoF Summary Stats & Params'!$M$6-1)), "Choose Model")) -> 0.08884036901 | E48: =IF('B. PoF Summary Stats & Params'!$C$12="C", B48*'B. PoF Summary Stats & Params'!$I$8*'B. PoF Summary Stats & Params'!$I$12*A48^('B. PoF Summary Stats & Params'!$I$12-1), IF('B. PoF Summary Stats & Params'!$C$12="W", B48*(('B. PoF Summary Stats & Params'!$M$12/'B. PoF Summary Stats & Params'!$O$12)*((A48)/'B. PoF Summary Stats & Params'!$O$12)^('B. PoF Summary Stats & Params'!$M$12-1)), "Choose Model")) -> 0.01569453233
A49: 45 | B49: 1 | C49: =IF('B. PoF Summary Stats & Params'!$C$12="C", B49*'B. PoF Summary Stats & Params'!$I$8*'B. PoF Summary Stats & Params'!$I$10*A49^('B. PoF Summary Stats & Params'!$I$10-1), IF('B. PoF Summary Stats & Params'!$C$12="W", B49*(('B. PoF Summary Stats & Params'!$M$14/'B. PoF Summary Stats & Params'!$O$14)*((A49)/'B. PoF Summary Stats & Params'!$O$14)^('B. PoF Summary Stats & Params'!$M$14-1)), "Choose Model")) -> 0.5318819725 | D49: =IF('B. PoF Summary Stats & Params'!$C$12="C", B49*'B. PoF Summary Stats & Params'!$I$8*'B. PoF Summary Stats & Params'!$I$6*A49^('B. PoF Summary Stats & Params'!$I$6-1), IF('B. PoF Summary Stats & Params'!$C$12="W", B49*(('B. PoF Summary Stats & Params'!$M$6/'B. PoF Summary Stats & Params'!$M$8)*((A49)/'B. PoF Summary Stats & Params'!$M$8)^('B. PoF Summary Stats & Params'!$M$6-1)), "Choose Model")) -> 0.09433573252 | E49: =IF('B. PoF Summary Stats & Params'!$C$12="C", B49*'B. PoF Summary Stats & Params'!$I$8*'B. PoF Summary Stats & Params'!$I$12*A49^('B. PoF Summary Stats & Params'!$I$12-1), IF('B. PoF Summary Stats & Params'!$C$12="W", B49*(('B. PoF Summary Stats & Params'!$M$12/'B. PoF Summary Stats & Params'!$O$12)*((A49)/'B. PoF Summary Stats & Params'!$O$12)^('B. PoF Summary Stats & Params'!$M$12-1)), "Choose Model")) -> 0.01650673118
A50: 46 | B50: 1 | C50: =IF('B. PoF Summary Stats & Params'!$C$12="C", B50*'B. PoF Summary Stats & Params'!$I$8*'B. PoF Summary Stats & Params'!$I$10*A50^('B. PoF Summary Stats & Params'!$I$10-1), IF('B. PoF Summary Stats & Params'!$C$12="W", B50*(('B. PoF Summary Stats & Params'!$M$14/'B. PoF Summary Stats & Params'!$O$14)*((A50)/'B. PoF Summary Stats & Params'!$O$14)^('B. PoF Summary Stats & Params'!$M$14-1)), "Choose Model")) -> 0.5693379151 | D50: =IF('B. PoF Summary Stats & Params'!$C$12="C", B50*'B. PoF Summary Stats & Params'!$I$8*'B. PoF Summary Stats & Params'!$I$6*A50^('B. PoF Summary Stats & Params'!$I$6-1), IF('B. PoF Summary Stats & Params'!$C$12="W", B50*(('B. PoF Summary Stats & Params'!$M$6/'B. PoF Summary Stats & Params'!$M$8)*((A50)/'B. PoF Summary Stats & Params'!$M$8)^('B. PoF Summary Stats & Params'!$M$6-1)), "Choose Model")) -> 0.1000389617 | E50: =IF('B. PoF Summary Stats & Params'!$C$12="C", B50*'B. PoF Summary Stats & Params'!$I$8*'B. PoF Summary Stats & Params'!$I$12*A50^('B. PoF Summary Stats & Params'!$I$12-1), IF('B. PoF Summary Stats & Params'!$C$12="W", B50*(('B. PoF Summary Stats & Params'!$M$12/'B. PoF Summary Stats & Params'!$O$12)*((A50)/'B. PoF Summary Stats & Params'!$O$12)^('B. PoF Summary Stats & Params'!$M$12-1)), "Choose Model")) -> 0.01734171887
A51: 47 | B51: 1 | C51: =IF('B. PoF Summary Stats & Params'!$C$12="C", B51*'B. PoF Summary Stats & Params'!$I$8*'B. PoF Summary Stats & Params'!$I$10*A51^('B. PoF Summary Stats & Params'!$I$10-1), IF('B. PoF Summary Stats & Params'!$C$12="W", B51*(('B. PoF Summary Stats & Params'!$M$14/'B. PoF Summary Stats & Params'!$O$14)*((A51)/'B. PoF Summary Stats & Params'!$O$14)^('B. PoF Summary Stats & Params'!$M$14-1)), "Choose Model")) -> 0.6085402453 | D51: =IF('B. PoF Summary Stats & Params'!$C$12="C", B51*'B. PoF Summary Stats & Params'!$I$8*'B. PoF Summary Stats & Params'!$I$6*A51^('B. PoF Summary Stats & Params'!$I$6-1), IF('B. PoF Summary Stats & Params'!$C$12="W", B51*(('B. PoF Summary Stats & Params'!$M$6/'B. PoF Summary Stats & Params'!$M$8)*((A51)/'B. PoF Summary Stats & Params'!$M$8)^('B. PoF Summary Stats & Params'!$M$6-1)), "Choose Model")) -> 0.1059531436 | E51: =IF('B. PoF Summary Stats & Params'!$C$12="C", B51*'B. PoF Summary Stats & Params'!$I$8*'B. PoF Summary Stats & Params'!$I$12*A51^('B. PoF Summary Stats & Params'!$I$12-1), IF('B. PoF Summary Stats & Params'!$C$12="W", B51*(('B. PoF Summary Stats & Params'!$M$12/'B. PoF Summary Stats & Params'!$O$12)*((A51)/'B. PoF Summary Stats & Params'!$O$12)^('B. PoF Summary Stats & Params'!$M$12-1)), "Choose Model")) -> 0.01819961854
A52: 48 | B52: 1 | C52: =IF('B. PoF Summary Stats & Params'!$C$12="C", B52*'B. PoF Summary Stats & Params'!$I$8*'B. PoF Summary Stats & Params'!$I$10*A52^('B. PoF Summary Stats & Params'!$I$10-1), IF('B. PoF Summary Stats & Params'!$C$12="W", B52*(('B. PoF Summary Stats & Params'!$M$14/'B. PoF Summary Stats & Params'!$O$14)*((A52)/'B. PoF Summary Stats & Params'!$O$14)^('B. PoF Summary Stats & Params'!$M$14-1)), "Choose Model")) -> 0.6495306256 | D52: =IF('B. PoF Summary Stats & Params'!$C$12="C", B52*'B. PoF Summary Stats & Params'!$I$8*'B. PoF Summary Stats & Params'!$I$6*A52^('B. PoF Summary Stats & Params'!$I$6-1), IF('B. PoF Summary Stats & Params'!$C$12="W", B52*(('B. PoF Summary Stats & Params'!$M$6/'B. PoF Summary Stats & Params'!$M$8)*((A52)/'B. PoF Summary Stats & Params'!$M$8)^('B. PoF Summary Stats & Params'!$M$6-1)), "Choose Model")) -> 0.1120813434 | E52: =IF('B. PoF Summary Stats & Params'!$C$12="C", B52*'B. PoF Summary Stats & Params'!$I$8*'B. PoF Summary Stats & Params'!$I$12*A52^('B. PoF Summary Stats & Params'!$I$12-1), IF('B. PoF Summary Stats & Params'!$C$12="W", B52*(('B. PoF Summary Stats & Params'!$M$12/'B. PoF Summary Stats & Params'!$O$12)*((A52)/'B. PoF Summary Stats & Params'!$O$12)^('B. PoF Summary Stats & Params'!$M$12-1)), "Choose Model")) -> 0.01908055133
A53: 49 | B53: 1 | C53: =IF('B. PoF Summary Stats & Params'!$C$12="C", B53*'B. PoF Summary Stats & Params'!$I$8*'B. PoF Summary Stats & Params'!$I$10*A53^('B. PoF Summary Stats & Params'!$I$10-1), IF('B. PoF Summary Stats & Params'!$C$12="W", B53*(('B. PoF Summary Stats & Params'!$M$14/'B. PoF Summary Stats & Params'!$O$14)*((A53)/'B. PoF Summary Stats & Params'!$O$14)^('B. PoF Summary Stats & Params'!$M$14-1)), "Choose Model")) -> 0.6923508042 | D53: =IF('B. PoF Summary Stats & Params'!$C$12="C", B53*'B. PoF Summary Stats & Params'!$I$8*'B. PoF Summary Stats & Params'!$I$6*A53^('B. PoF Summary Stats & Params'!$I$6-1), IF('B. PoF Summary Stats & Params'!$C$12="W", B53*(('B. PoF Summary Stats & Params'!$M$6/'B. PoF Summary Stats & Params'!$M$8)*((A53)/'B. PoF Summary Stats & Params'!$M$8)^('B. PoF Summary Stats & Params'!$M$6-1)), "Choose Model")) -> 0.1184266047 | E53: =IF('B. PoF Summary Stats & Params'!$C$12="C", B53*'B. PoF Summary Stats & Params'!$I$8*'B. PoF Summary Stats & Params'!$I$12*A53^('B. PoF Summary Stats & Params'!$I$12-1), IF('B. PoF Summary Stats & Params'!$C$12="W", B53*(('B. PoF Summary Stats & Params'!$M$12/'B. PoF Summary Stats & Params'!$O$12)*((A53)/'B. PoF Summary Stats & Params'!$O$12)^('B. PoF Summary Stats & Params'!$M$12-1)), "Choose Model")) -> 0.01998463647
A54: 50 | B54: 1 | C54: =IF('B. PoF Summary Stats & Params'!$C$12="C", B54*'B. PoF Summary Stats & Params'!$I$8*'B. PoF Summary Stats & Params'!$I$10*A54^('B. PoF Summary Stats & Params'!$I$10-1), IF('B. PoF Summary Stats & Params'!$C$12="W", B54*(('B. PoF Summary Stats & Params'!$M$14/'B. PoF Summary Stats & Params'!$O$14)*((A54)/'B. PoF Summary Stats & Params'!$O$14)^('B. PoF Summary Stats & Params'!$M$14-1)), "Choose Model")) -> 0.7370426128 | D54: =IF('B. PoF Summary Stats & Params'!$C$12="C", B54*'B. PoF Summary Stats & Params'!$I$8*'B. PoF Summary Stats & Params'!$I$6*A54^('B. PoF Summary Stats & Params'!$I$6-1), IF('B. PoF Summary Stats & Params'!$C$12="W", B54*(('B. PoF Summary Stats & Params'!$M$6/'B. PoF Summary Stats & Params'!$M$8)*((A54)/'B. PoF Summary Stats & Params'!$M$8)^('B. PoF Summary Stats & Params'!$M$6-1)), "Choose Model")) -> 0.1249919504 | E54: =IF('B. PoF Summary Stats & Params'!$C$12="C", B54*'B. PoF Summary Stats & Params'!$I$8*'B. PoF Summary Stats & Params'!$I$12*A54^('B. PoF Summary Stats & Params'!$I$12-1), IF('B. PoF Summary Stats & Params'!$C$12="W", B54*(('B. PoF Summary Stats & Params'!$M$12/'B. PoF Summary Stats & Params'!$O$12)*((A54)/'B. PoF Summary Stats & Params'!$O$12)^('B. PoF Summary Stats & Params'!$M$12-1)), "Choose Model")) -> 0.02091199129
A55: 51 | B55: 1 | C55: =IF('B. PoF Summary Stats & Params'!$C$12="C", B55*'B. PoF Summary Stats & Params'!$I$8*'B. PoF Summary Stats & Params'!$I$10*A55^('B. PoF Summary Stats & Params'!$I$10-1), IF('B. PoF Summary Stats & Params'!$C$12="W", B55*(('B. PoF Summary Stats & Params'!$M$14/'B. PoF Summary Stats & Params'!$O$14)*((A55)/'B. PoF Summary Stats & Params'!$O$14)^('B. PoF Summary Stats & Params'!$M$14-1)), "Choose Model")) -> 0.7836479657 | D55: =IF('B. PoF Summary Stats & Params'!$C$12="C", B55*'B. PoF Summary Stats & Params'!$I$8*'B. PoF Summary Stats & Params'!$I$6*A55^('B. PoF Summary Stats & Params'!$I$6-1), IF('B. PoF Summary Stats & Params'!$C$12="W", B55*(('B. PoF Summary Stats & Params'!$M$6/'B. PoF Summary Stats & Params'!$M$8)*((A55)/'B. PoF Summary Stats & Params'!$M$8)^('B. PoF Summary Stats & Params'!$M$6-1)), "Choose Model")) -> 0.1317803831 | E55: =IF('B. PoF Summary Stats & Params'!$C$12="C", B55*'B. PoF Summary Stats & Params'!$I$8*'B. PoF Summary Stats & Params'!$I$12*A55^('B. PoF Summary Stats & Params'!$I$12-1), IF('B. PoF Summary Stats & Params'!$C$12="W", B55*(('B. PoF Summary Stats & Params'!$M$12/'B. PoF Summary Stats & Params'!$O$12)*((A55)/'B. PoF Summary Stats & Params'!$O$12)^('B. PoF Summary Stats & Params'!$M$12-1)), "Choose Model")) -> 0.02186273136
A56: 52 | B56: 1 | C56: =IF('B. PoF Summary Stats & Params'!$C$12="C", B56*'B. PoF Summary Stats & Params'!$I$8*'B. PoF Summary Stats & Params'!$I$10*A56^('B. PoF Summary Stats & Params'!$I$10-1), IF('B. PoF Summary Stats & Params'!$C$12="W", B56*(('B. PoF Summary Stats & Params'!$M$14/'B. PoF Summary Stats & Params'!$O$14)*((A56)/'B. PoF Summary Stats & Params'!$O$14)^('B. PoF Summary Stats & Params'!$M$14-1)), "Choose Model")) -> 0.8322088577 | D56: =IF('B. PoF Summary Stats & Params'!$C$12="C", B56*'B. PoF Summary Stats & Params'!$I$8*'B. PoF Summary Stats & Params'!$I$6*A56^('B. PoF Summary Stats & Params'!$I$6-1), IF('B. PoF Summary Stats & Params'!$C$12="W", B56*(('B. PoF Summary Stats & Params'!$M$6/'B. PoF Summary Stats & Params'!$M$8)*((A56)/'B. PoF Summary Stats & Params'!$M$8)^('B. PoF Summary Stats & Params'!$M$6-1)), "Choose Model")) -> 0.1387948858 | E56: =IF('B. PoF Summary Stats & Params'!$C$12="C", B56*'B. PoF Summary Stats & Params'!$I$8*'B. PoF Summary Stats & Params'!$I$12*A56^('B. PoF Summary Stats & Params'!$I$12-1), IF('B. PoF Summary Stats & Params'!$C$12="W", B56*(('B. PoF Summary Stats & Params'!$M$12/'B. PoF Summary Stats & Params'!$O$12)*((A56)/'B. PoF Summary Stats & Params'!$O$12)^('B. PoF Summary Stats & Params'!$M$12-1)), "Choose Model")) -> 0.02283697051
A57: 53 | B57: 1 | C57: =IF('B. PoF Summary Stats & Params'!$C$12="C", B57*'B. PoF Summary Stats & Params'!$I$8*'B. PoF Summary Stats & Params'!$I$10*A57^('B. PoF Summary Stats & Params'!$I$10-1), IF('B. PoF Summary Stats & Params'!$C$12="W", B57*(('B. PoF Summary Stats & Params'!$M$14/'B. PoF Summary Stats & Params'!$O$14)*((A57)/'B. PoF Summary Stats & Params'!$O$14)^('B. PoF Summary Stats & Params'!$M$14-1)), "Choose Model")) -> 0.8827673632 | D57: =IF('B. PoF Summary Stats & Params'!$C$12="C", B57*'B. PoF Summary Stats & Params'!$I$8*'B. PoF Summary Stats & Params'!$I$6*A57^('B. PoF Summary Stats & Params'!$I$6-1), IF('B. PoF Summary Stats & Params'!$C$12="W", B57*(('B. PoF Summary Stats & Params'!$M$6/'B. PoF Summary Stats & Params'!$M$8)*((A57)/'B. PoF Summary Stats & Params'!$M$8)^('B. PoF Summary Stats & Params'!$M$6-1)), "Choose Model")) -> 0.1460384222 | E57: =IF('B. PoF Summary Stats & Params'!$C$12="C", B57*'B. PoF Summary Stats & Params'!$I$8*'B. PoF Summary Stats & Params'!$I$12*A57^('B. PoF Summary Stats & Params'!$I$12-1), IF('B. PoF Summary Stats & Params'!$C$12="W", B57*(('B. PoF Summary Stats & Params'!$M$12/'B. PoF Summary Stats & Params'!$O$12)*((A57)/'B. PoF Summary Stats & Params'!$O$12)^('B. PoF Summary Stats & Params'!$M$12-1)), "Choose Model")) -> 0.0238348209
A58: 54 | B58: 1 | C58: =IF('B. PoF Summary Stats & Params'!$C$12="C", B58*'B. PoF Summary Stats & Params'!$I$8*'B. PoF Summary Stats & Params'!$I$10*A58^('B. PoF Summary Stats & Params'!$I$10-1), IF('B. PoF Summary Stats & Params'!$C$12="W", B58*(('B. PoF Summary Stats & Params'!$M$14/'B. PoF Summary Stats & Params'!$O$14)*((A58)/'B. PoF Summary Stats & Params'!$O$14)^('B. PoF Summary Stats & Params'!$M$14-1)), "Choose Model")) -> 0.9353656343 | D58: =IF('B. PoF Summary Stats & Params'!$C$12="C", B58*'B. PoF Summary Stats & Params'!$I$8*'B. PoF Summary Stats & Params'!$I$6*A58^('B. PoF Summary Stats & Params'!$I$6-1), IF('B. PoF Summary Stats & Params'!$C$12="W", B58*(('B. PoF Summary Stats & Params'!$M$6/'B. PoF Summary Stats & Params'!$M$8)*((A58)/'B. PoF Summary Stats & Params'!$M$8)^('B. PoF Summary Stats & Params'!$M$6-1)), "Choose Model")) -> 0.1535139372 | E58: =IF('B. PoF Summary Stats & Params'!$C$12="C", B58*'B. PoF Summary Stats & Params'!$I$8*'B. PoF Summary Stats & Params'!$I$12*A58^('B. PoF Summary Stats & Params'!$I$12-1), IF('B. PoF Summary Stats & Params'!$C$12="W", B58*(('B. PoF Summary Stats & Params'!$M$12/'B. PoF Summary Stats & Params'!$O$12)*((A58)/'B. PoF Summary Stats & Params'!$O$12)^('B. PoF Summary Stats & Params'!$M$12-1)), "Choose Model")) -> 0.02485639305
A59: 55 | B59: 1 | C59: =IF('B. PoF Summary Stats & Params'!$C$12="C", B59*'B. PoF Summary Stats & Params'!$I$8*'B. PoF Summary Stats & Params'!$I$10*A59^('B. PoF Summary Stats & Params'!$I$10-1), IF('B. PoF Summary Stats & Params'!$C$12="W", B59*(('B. PoF Summary Stats & Params'!$M$14/'B. PoF Summary Stats & Params'!$O$14)*((A59)/'B. PoF Summary Stats & Params'!$O$14)^('B. PoF Summary Stats & Params'!$M$14-1)), "Choose Model")) -> 0.9900458999 | D59: =IF('B. PoF Summary Stats & Params'!$C$12="C", B59*'B. PoF Summary Stats & Params'!$I$8*'B. PoF Summary Stats & Params'!$I$6*A59^('B. PoF Summary Stats & Params'!$I$6-1), IF('B. PoF Summary Stats & Params'!$C$12="W", B59*(('B. PoF Summary Stats & Params'!$M$6/'B. PoF Summary Stats & Params'!$M$8)*((A59)/'B. PoF Summary Stats & Params'!$M$8)^('B. PoF Summary Stats & Params'!$M$6-1)), "Choose Model")) -> 0.1612243576 | E59: =IF('B. PoF Summary Stats & Params'!$C$12="C", B59*'B. PoF Summary Stats & Params'!$I$8*'B. PoF Summary Stats & Params'!$I$12*A59^('B. PoF Summary Stats & Params'!$I$12-1), IF('B. PoF Summary Stats & Params'!$C$12="W", B59*(('B. PoF Summary Stats & Params'!$M$12/'B. PoF Summary Stats & Params'!$O$12)*((A59)/'B. PoF Summary Stats & Params'!$O$12)^('B. PoF Summary Stats & Params'!$M$12-1)), "Choose Model")) -> 0.02590179595
A60: 56 | B60: 1 | C60: =IF('B. PoF Summary Stats & Params'!$C$12="C", B60*'B. PoF Summary Stats & Params'!$I$8*'B. PoF Summary Stats & Params'!$I$10*A60^('B. PoF Summary Stats & Params'!$I$10-1), IF('B. PoF Summary Stats & Params'!$C$12="W", B60*(('B. PoF Summary Stats & Params'!$M$14/'B. PoF Summary Stats & Params'!$O$14)*((A60)/'B. PoF Summary Stats & Params'!$O$14)^('B. PoF Summary Stats & Params'!$M$14-1)), "Choose Model")) -> 1.046850464 | D60: =IF('B. PoF Summary Stats & Params'!$C$12="C", B60*'B. PoF Summary Stats & Params'!$I$8*'B. PoF Summary Stats & Params'!$I$6*A60^('B. PoF Summary Stats & Params'!$I$6-1), IF('B. PoF Summary Stats & Params'!$C$12="W", B60*(('B. PoF Summary Stats & Params'!$M$6/'B. PoF Summary Stats & Params'!$M$8)*((A60)/'B. PoF Summary Stats & Params'!$M$8)^('B. PoF Summary Stats & Params'!$M$6-1)), "Choose Model")) -> 0.1691725924 | E60: =IF('B. PoF Summary Stats & Params'!$C$12="C", B60*'B. PoF Summary Stats & Params'!$I$8*'B. PoF Summary Stats & Params'!$I$12*A60^('B. PoF Summary Stats & Params'!$I$12-1), IF('B. PoF Summary Stats & Params'!$C$12="W", B60*(('B. PoF Summary Stats & Params'!$M$12/'B. PoF Summary Stats & Params'!$O$12)*((A60)/'B. PoF Summary Stats & Params'!$O$12)^('B. PoF Summary Stats & Params'!$M$12-1)), "Choose Model")) -> 0.02697113705
A61: 57 | B61: 1 | C61: =IF('B. PoF Summary Stats & Params'!$C$12="C", B61*'B. PoF Summary Stats & Params'!$I$8*'B. PoF Summary Stats & Params'!$I$10*A61^('B. PoF Summary Stats & Params'!$I$10-1), IF('B. PoF Summary Stats & Params'!$C$12="W", B61*(('B. PoF Summary Stats & Params'!$M$14/'B. PoF Summary Stats & Params'!$O$14)*((A61)/'B. PoF Summary Stats & Params'!$O$14)^('B. PoF Summary Stats & Params'!$M$14-1)), "Choose Model")) -> 1.105821706 | D61: =IF('B. PoF Summary Stats & Params'!$C$12="C", B61*'B. PoF Summary Stats & Params'!$I$8*'B. PoF Summary Stats & Params'!$I$6*A61^('B. PoF Summary Stats & Params'!$I$6-1), IF('B. PoF Summary Stats & Params'!$C$12="W", B61*(('B. PoF Summary Stats & Params'!$M$6/'B. PoF Summary Stats & Params'!$M$8)*((A61)/'B. PoF Summary Stats & Params'!$M$8)^('B. PoF Summary Stats & Params'!$M$6-1)), "Choose Model")) -> 0.1773615331 | E61: =IF('B. PoF Summary Stats & Params'!$C$12="C", B61*'B. PoF Summary Stats & Params'!$I$8*'B. PoF Summary Stats & Params'!$I$12*A61^('B. PoF Summary Stats & Params'!$I$12-1), IF('B. PoF Summary Stats & Params'!$C$12="W", B61*(('B. PoF Summary Stats & Params'!$M$12/'B. PoF Summary Stats & Params'!$O$12)*((A61)/'B. PoF Summary Stats & Params'!$O$12)^('B. PoF Summary Stats & Params'!$M$12-1)), "Choose Model")) -> 0.02806452236
A62: 58 | B62: 1 | C62: =IF('B. PoF Summary Stats & Params'!$C$12="C", B62*'B. PoF Summary Stats & Params'!$I$8*'B. PoF Summary Stats & Params'!$I$10*A62^('B. PoF Summary Stats & Params'!$I$10-1), IF('B. PoF Summary Stats & Params'!$C$12="W", B62*(('B. PoF Summary Stats & Params'!$M$14/'B. PoF Summary Stats & Params'!$O$14)*((A62)/'B. PoF Summary Stats & Params'!$O$14)^('B. PoF Summary Stats & Params'!$M$14-1)), "Choose Model")) -> 1.167002076 | D62: =IF('B. PoF Summary Stats & Params'!$C$12="C", B62*'B. PoF Summary Stats & Params'!$I$8*'B. PoF Summary Stats & Params'!$I$6*A62^('B. PoF Summary Stats & Params'!$I$6-1), IF('B. PoF Summary Stats & Params'!$C$12="W", B62*(('B. PoF Summary Stats & Params'!$M$6/'B. PoF Summary Stats & Params'!$M$8)*((A62)/'B. PoF Summary Stats & Params'!$M$8)^('B. PoF Summary Stats & Params'!$M$6-1)), "Choose Model")) -> 0.1857940545 | E62: =IF('B. PoF Summary Stats & Params'!$C$12="C", B62*'B. PoF Summary Stats & Params'!$I$8*'B. PoF Summary Stats & Params'!$I$12*A62^('B. PoF Summary Stats & Params'!$I$12-1), IF('B. PoF Summary Stats & Params'!$C$12="W", B62*(('B. PoF Summary Stats & Params'!$M$12/'B. PoF Summary Stats & Params'!$O$12)*((A62)/'B. PoF Summary Stats & Params'!$O$12)^('B. PoF Summary Stats & Params'!$M$12-1)), "Choose Model")) -> 0.02918205645
A63: 59 | B63: 1 | C63: =IF('B. PoF Summary Stats & Params'!$C$12="C", B63*'B. PoF Summary Stats & Params'!$I$8*'B. PoF Summary Stats & Params'!$I$10*A63^('B. PoF Summary Stats & Params'!$I$10-1), IF('B. PoF Summary Stats & Params'!$C$12="W", B63*(('B. PoF Summary Stats & Params'!$M$14/'B. PoF Summary Stats & Params'!$O$14)*((A63)/'B. PoF Summary Stats & Params'!$O$14)^('B. PoF Summary Stats & Params'!$M$14-1)), "Choose Model")) -> 1.230434097 | D63: =IF('B. PoF Summary Stats & Params'!$C$12="C", B63*'B. PoF Summary Stats & Params'!$I$8*'B. PoF Summary Stats & Params'!$I$6*A63^('B. PoF Summary Stats & Params'!$I$6-1), IF('B. PoF Summary Stats & Params'!$C$12="W", B63*(('B. PoF Summary Stats & Params'!$M$6/'B. PoF Summary Stats & Params'!$M$8)*((A63)/'B. PoF Summary Stats & Params'!$M$8)^('B. PoF Summary Stats & Params'!$M$6-1)), "Choose Model")) -> 0.1944730146 | E63: =IF('B. PoF Summary Stats & Params'!$C$12="C", B63*'B. PoF Summary Stats & Params'!$I$8*'B. PoF Summary Stats & Params'!$I$12*A63^('B. PoF Summary Stats & Params'!$I$12-1), IF('B. PoF Summary Stats & Params'!$C$12="W", B63*(('B. PoF Summary Stats & Params'!$M$12/'B. PoF Summary Stats & Params'!$O$12)*((A63)/'B. PoF Summary Stats & Params'!$O$12)^('B. PoF Summary Stats & Params'!$M$12-1)), "Choose Model")) -> 0.03032384252
A64: 60 | B64: 1 | C64: =IF('B. PoF Summary Stats & Params'!$C$12="C", B64*'B. PoF Summary Stats & Params'!$I$8*'B. PoF Summary Stats & Params'!$I$10*A64^('B. PoF Summary Stats & Params'!$I$10-1), IF('B. PoF Summary Stats & Params'!$C$12="W", B64*(('B. PoF Summary Stats & Params'!$M$14/'B. PoF Summary Stats & Params'!$O$14)*((A64)/'B. PoF Summary Stats & Params'!$O$14)^('B. PoF Summary Stats & Params'!$M$14-1)), "Choose Model")) -> 1.296160364 | D64: =IF('B. PoF Summary Stats & Params'!$C$12="C", B64*'B. PoF Summary Stats & Params'!$I$8*'B. PoF Summary Stats & Params'!$I$6*A64^('B. PoF Summary Stats & Params'!$I$6-1), IF('B. PoF Summary Stats & Params'!$C$12="W", B64*(('B. PoF Summary Stats & Params'!$M$6/'B. PoF Summary Stats & Params'!$M$8)*((A64)/'B. PoF Summary Stats & Params'!$M$8)^('B. PoF Summary Stats & Params'!$M$6-1)), "Choose Model")) -> 0.2034012554 | E64: =IF('B. PoF Summary Stats & Params'!$C$12="C", B64*'B. PoF Summary Stats & Params'!$I$8*'B. PoF Summary Stats & Params'!$I$12*A64^('B. PoF Summary Stats & Params'!$I$12-1), IF('B. PoF Summary Stats & Params'!$C$12="W", B64*(('B. PoF Summary Stats & Params'!$M$12/'B. PoF Summary Stats & Params'!$O$12)*((A64)/'B. PoF Summary Stats & Params'!$O$12)^('B. PoF Summary Stats & Params'!$M$12-1)), "Choose Model")) -> 0.03148998243
A65: 61 | B65: 1 | C65: =IF('B. PoF Summary Stats & Params'!$C$12="C", B65*'B. PoF Summary Stats & Params'!$I$8*'B. PoF Summary Stats & Params'!$I$10*A65^('B. PoF Summary Stats & Params'!$I$10-1), IF('B. PoF Summary Stats & Params'!$C$12="W", B65*(('B. PoF Summary Stats & Params'!$M$14/'B. PoF Summary Stats & Params'!$O$14)*((A65)/'B. PoF Summary Stats & Params'!$O$14)^('B. PoF Summary Stats & Params'!$M$14-1)), "Choose Model")) -> 1.364223539 | D65: =IF('B. PoF Summary Stats & Params'!$C$12="C", B65*'B. PoF Summary Stats & Params'!$I$8*'B. PoF Summary Stats & Params'!$I$6*A65^('B. PoF Summary Stats & Params'!$I$6-1), IF('B. PoF Summary Stats & Params'!$C$12="W", B65*(('B. PoF Summary Stats & Params'!$M$6/'B. PoF Summary Stats & Params'!$M$8)*((A65)/'B. PoF Summary Stats & Params'!$M$8)^('B. PoF Summary Stats & Params'!$M$6-1)), "Choose Model")) -> 0.2125816028 | E65: =IF('B. PoF Summary Stats & Params'!$C$12="C", B65*'B. PoF Summary Stats & Params'!$I$8*'B. PoF Summary Stats & Params'!$I$12*A65^('B. PoF Summary Stats & Params'!$I$12-1), IF('B. PoF Summary Stats & Params'!$C$12="W", B65*(('B. PoF Summary Stats & Params'!$M$12/'B. PoF Summary Stats & Params'!$O$12)*((A65)/'B. PoF Summary Stats & Params'!$O$12)^('B. PoF Summary Stats & Params'!$M$12-1)), "Choose Model")) -> 0.03268057677
A66: 62 | B66: 1 | C66: =IF('B. PoF Summary Stats & Params'!$C$12="C", B66*'B. PoF Summary Stats & Params'!$I$8*'B. PoF Summary Stats & Params'!$I$10*A66^('B. PoF Summary Stats & Params'!$I$10-1), IF('B. PoF Summary Stats & Params'!$C$12="W", B66*(('B. PoF Summary Stats & Params'!$M$14/'B. PoF Summary Stats & Params'!$O$14)*((A66)/'B. PoF Summary Stats & Params'!$O$14)^('B. PoF Summary Stats & Params'!$M$14-1)), "Choose Model")) -> 1.434666354 | D66: =IF('B. PoF Summary Stats & Params'!$C$12="C", B66*'B. PoF Summary Stats & Params'!$I$8*'B. PoF Summary Stats & Params'!$I$6*A66^('B. PoF Summary Stats & Params'!$I$6-1), IF('B. PoF Summary Stats & Params'!$C$12="W", B66*(('B. PoF Summary Stats & Params'!$M$6/'B. PoF Summary Stats & Params'!$M$8)*((A66)/'B. PoF Summary Stats & Params'!$M$8)^('B. PoF Summary Stats & Params'!$M$6-1)), "Choose Model")) -> 0.2220168675 | E66: =IF('B. PoF Summary Stats & Params'!$C$12="C", B66*'B. PoF Summary Stats & Params'!$I$8*'B. PoF Summary Stats & Params'!$I$12*A66^('B. PoF Summary Stats & Params'!$I$12-1), IF('B. PoF Summary Stats & Params'!$C$12="W", B66*(('B. PoF Summary Stats & Params'!$M$12/'B. PoF Summary Stats & Params'!$O$12)*((A66)/'B. PoF Summary Stats & Params'!$O$12)^('B. PoF Summary Stats & Params'!$M$12-1)), "Choose Model")) -> 0.03389572485
A67: 63 | B67: 1 | C67: =IF('B. PoF Summary Stats & Params'!$C$12="C", B67*'B. PoF Summary Stats & Params'!$I$8*'B. PoF Summary Stats & Params'!$I$10*A67^('B. PoF Summary Stats & Params'!$I$10-1), IF('B. PoF Summary Stats & Params'!$C$12="W", B67*(('B. PoF Summary Stats & Params'!$M$14/'B. PoF Summary Stats & Params'!$O$14)*((A67)/'B. PoF Summary Stats & Params'!$O$14)^('B. PoF Summary Stats & Params'!$M$14-1)), "Choose Model")) -> 1.507531608 | D67: =IF('B. PoF Summary Stats & Params'!$C$12="C", B67*'B. PoF Summary Stats & Params'!$I$8*'B. PoF Summary Stats & Params'!$I$6*A67^('B. PoF Summary Stats & Params'!$I$6-1), IF('B. PoF Summary Stats & Params'!$C$12="W", B67*(('B. PoF Summary Stats & Params'!$M$6/'B. PoF Summary Stats & Params'!$M$8)*((A67)/'B. PoF Summary Stats & Params'!$M$8)^('B. PoF Summary Stats & Params'!$M$6-1)), "Choose Model")) -> 0.2317098451 | E67: =IF('B. PoF Summary Stats & Params'!$C$12="C", B67*'B. PoF Summary Stats & Params'!$I$8*'B. PoF Summary Stats & Params'!$I$12*A67^('B. PoF Summary Stats & Params'!$I$12-1), IF('B. PoF Summary Stats & Params'!$C$12="W", B67*(('B. PoF Summary Stats & Params'!$M$12/'B. PoF Summary Stats & Params'!$O$12)*((A67)/'B. PoF Summary Stats & Params'!$O$12)^('B. PoF Summary Stats & Params'!$M$12-1)), "Choose Model")) -> 0.03513552475
A68: 64 | B68: 1 | C68: =IF('B. PoF Summary Stats & Params'!$C$12="C", B68*'B. PoF Summary Stats & Params'!$I$8*'B. PoF Summary Stats & Params'!$I$10*A68^('B. PoF Summary Stats & Params'!$I$10-1), IF('B. PoF Summary Stats & Params'!$C$12="W", B68*(('B. PoF Summary Stats & Params'!$M$14/'B. PoF Summary Stats & Params'!$O$14)*((A68)/'B. PoF Summary Stats & Params'!$O$14)^('B. PoF Summary Stats & Params'!$M$14-1)), "Choose Model")) -> 1.582862168 | D68: =IF('B. PoF Summary Stats & Params'!$C$12="C", B68*'B. PoF Summary Stats & Params'!$I$8*'B. PoF Summary Stats & Params'!$I$6*A68^('B. PoF Summary Stats & Params'!$I$6-1), IF('B. PoF Summary Stats & Params'!$C$12="W", B68*(('B. PoF Summary Stats & Params'!$M$6/'B. PoF Summary Stats & Params'!$M$8)*((A68)/'B. PoF Summary Stats & Params'!$M$8)^('B. PoF Summary Stats & Params'!$M$6-1)), "Choose Model")) -> 0.2416633161 | E68: =IF('B. PoF Summary Stats & Params'!$C$12="C", B68*'B. PoF Summary Stats & Params'!$I$8*'B. PoF Summary Stats & Params'!$I$12*A68^('B. PoF Summary Stats & Params'!$I$12-1), IF('B. PoF Summary Stats & Params'!$C$12="W", B68*(('B. PoF Summary Stats & Params'!$M$12/'B. PoF Summary Stats & Params'!$O$12)*((A68)/'B. PoF Summary Stats & Params'!$O$12)^('B. PoF Summary Stats & Params'!$M$12-1)), "Choose Model")) -> 0.03640007338
A69: 65 | B69: 1 | C69: =IF('B. PoF Summary Stats & Params'!$C$12="C", B69*'B. PoF Summary Stats & Params'!$I$8*'B. PoF Summary Stats & Params'!$I$10*A69^('B. PoF Summary Stats & Params'!$I$10-1), IF('B. PoF Summary Stats & Params'!$C$12="W", B69*(('B. PoF Summary Stats & Params'!$M$14/'B. PoF Summary Stats & Params'!$O$14)*((A69)/'B. PoF Summary Stats & Params'!$O$14)^('B. PoF Summary Stats & Params'!$M$14-1)), "Choose Model")) -> 1.660700964 | D69: =IF('B. PoF Summary Stats & Params'!$C$12="C", B69*'B. PoF Summary Stats & Params'!$I$8*'B. PoF Summary Stats & Params'!$I$6*A69^('B. PoF Summary Stats & Params'!$I$6-1), IF('B. PoF Summary Stats & Params'!$C$12="W", B69*(('B. PoF Summary Stats & Params'!$M$6/'B. PoF Summary Stats & Params'!$M$8)*((A69)/'B. PoF Summary Stats & Params'!$M$8)^('B. PoF Summary Stats & Params'!$M$6-1)), "Choose Model")) -> 0.2518800468 | E69: =IF('B. PoF Summary Stats & Params'!$C$12="C", B69*'B. PoF Summary Stats & Params'!$I$8*'B. PoF Summary Stats & Params'!$I$12*A69^('B. PoF Summary Stats & Params'!$I$12-1), IF('B. PoF Summary Stats & Params'!$C$12="W", B69*(('B. PoF Summary Stats & Params'!$M$12/'B. PoF Summary Stats & Params'!$O$12)*((A69)/'B. PoF Summary Stats & Params'!$O$12)^('B. PoF Summary Stats & Params'!$M$12-1)), "Choose Model")) -> 0.0376894665
A70: 66 | B70: 1 | C70: =IF('B. PoF Summary Stats & Params'!$C$12="C", B70*'B. PoF Summary Stats & Params'!$I$8*'B. PoF Summary Stats & Params'!$I$10*A70^('B. PoF Summary Stats & Params'!$I$10-1), IF('B. PoF Summary Stats & Params'!$C$12="W", B70*(('B. PoF Summary Stats & Params'!$M$14/'B. PoF Summary Stats & Params'!$O$14)*((A70)/'B. PoF Summary Stats & Params'!$O$14)^('B. PoF Summary Stats & Params'!$M$14-1)), "Choose Model")) -> 1.741090992 | D70: =IF('B. PoF Summary Stats & Params'!$C$12="C", B70*'B. PoF Summary Stats & Params'!$I$8*'B. PoF Summary Stats & Params'!$I$6*A70^('B. PoF Summary Stats & Params'!$I$6-1), IF('B. PoF Summary Stats & Params'!$C$12="W", B70*(('B. PoF Summary Stats & Params'!$M$6/'B. PoF Summary Stats & Params'!$M$8)*((A70)/'B. PoF Summary Stats & Params'!$M$8)^('B. PoF Summary Stats & Params'!$M$6-1)), "Choose Model")) -> 0.2623627891 | E70: =IF('B. PoF Summary Stats & Params'!$C$12="C", B70*'B. PoF Summary Stats & Params'!$I$8*'B. PoF Summary Stats & Params'!$I$12*A70^('B. PoF Summary Stats & Params'!$I$12-1), IF('B. PoF Summary Stats & Params'!$C$12="W", B70*(('B. PoF Summary Stats & Params'!$M$12/'B. PoF Summary Stats & Params'!$O$12)*((A70)/'B. PoF Summary Stats & Params'!$O$12)^('B. PoF Summary Stats & Params'!$M$12-1)), "Choose Model")) -> 0.03900379874
A71: 67 | B71: 1 | C71: =IF('B. PoF Summary Stats & Params'!$C$12="C", B71*'B. PoF Summary Stats & Params'!$I$8*'B. PoF Summary Stats & Params'!$I$10*A71^('B. PoF Summary Stats & Params'!$I$10-1), IF('B. PoF Summary Stats & Params'!$C$12="W", B71*(('B. PoF Summary Stats & Params'!$M$14/'B. PoF Summary Stats & Params'!$O$14)*((A71)/'B. PoF Summary Stats & Params'!$O$14)^('B. PoF Summary Stats & Params'!$M$14-1)), "Choose Model")) -> 1.824075312 | D71: =IF('B. PoF Summary Stats & Params'!$C$12="C", B71*'B. PoF Summary Stats & Params'!$I$8*'B. PoF Summary Stats & Params'!$I$6*A71^('B. PoF Summary Stats & Params'!$I$6-1), IF('B. PoF Summary Stats & Params'!$C$12="W", B71*(('B. PoF Summary Stats & Params'!$M$6/'B. PoF Summary Stats & Params'!$M$8)*((A71)/'B. PoF Summary Stats & Params'!$M$8)^('B. PoF Summary Stats & Params'!$M$6-1)), "Choose Model")) -> 0.2731142811 | E71: =IF('B. PoF Summary Stats & Params'!$C$12="C", B71*'B. PoF Summary Stats & Params'!$I$8*'B. PoF Summary Stats & Params'!$I$12*A71^('B. PoF Summary Stats & Params'!$I$12-1), IF('B. PoF Summary Stats & Params'!$C$12="W", B71*(('B. PoF Summary Stats & Params'!$M$12/'B. PoF Summary Stats & Params'!$O$12)*((A71)/'B. PoF Summary Stats & Params'!$O$12)^('B. PoF Summary Stats & Params'!$M$12-1)), "Choose Model")) -> 0.04034316362
A72: 68 | B72: 1 | C72: =IF('B. PoF Summary Stats & Params'!$C$12="C", B72*'B. PoF Summary Stats & Params'!$I$8*'B. PoF Summary Stats & Params'!$I$10*A72^('B. PoF Summary Stats & Params'!$I$10-1), IF('B. PoF Summary Stats & Params'!$C$12="W", B72*(('B. PoF Summary Stats & Params'!$M$14/'B. PoF Summary Stats & Params'!$O$14)*((A72)/'B. PoF Summary Stats & Params'!$O$14)^('B. PoF Summary Stats & Params'!$M$14-1)), "Choose Model")) -> 1.909697047 | D72: =IF('B. PoF Summary Stats & Params'!$C$12="C", B72*'B. PoF Summary Stats & Params'!$I$8*'B. PoF Summary Stats & Params'!$I$6*A72^('B. PoF Summary Stats & Params'!$I$6-1), IF('B. PoF Summary Stats & Params'!$C$12="W", B72*(('B. PoF Summary Stats & Params'!$M$6/'B. PoF Summary Stats & Params'!$M$8)*((A72)/'B. PoF Summary Stats & Params'!$M$8)^('B. PoF Summary Stats & Params'!$M$6-1)), "Choose Model")) -> 0.2841372473 | E72: =IF('B. PoF Summary Stats & Params'!$C$12="C", B72*'B. PoF Summary Stats & Params'!$I$8*'B. PoF Summary Stats & Params'!$I$12*A72^('B. PoF Summary Stats & Params'!$I$12-1), IF('B. PoF Summary Stats & Params'!$C$12="W", B72*(('B. PoF Summary Stats & Params'!$M$12/'B. PoF Summary Stats & Params'!$O$12)*((A72)/'B. PoF Summary Stats & Params'!$O$12)^('B. PoF Summary Stats & Params'!$M$12-1)), "Choose Model")) -> 0.04170765362
A73: 69 | B73: 1 | C73: =IF('B. PoF Summary Stats & Params'!$C$12="C", B73*'B. PoF Summary Stats & Params'!$I$8*'B. PoF Summary Stats & Params'!$I$10*A73^('B. PoF Summary Stats & Params'!$I$10-1), IF('B. PoF Summary Stats & Params'!$C$12="W", B73*(('B. PoF Summary Stats & Params'!$M$14/'B. PoF Summary Stats & Params'!$O$14)*((A73)/'B. PoF Summary Stats & Params'!$O$14)^('B. PoF Summary Stats & Params'!$M$14-1)), "Choose Model")) -> 1.997999381 | D73: =IF('B. PoF Summary Stats & Params'!$C$12="C", B73*'B. PoF Summary Stats & Params'!$I$8*'B. PoF Summary Stats & Params'!$I$6*A73^('B. PoF Summary Stats & Params'!$I$6-1), IF('B. PoF Summary Stats & Params'!$C$12="W", B73*(('B. PoF Summary Stats & Params'!$M$6/'B. PoF Summary Stats & Params'!$M$8)*((A73)/'B. PoF Summary Stats & Params'!$M$8)^('B. PoF Summary Stats & Params'!$M$6-1)), "Choose Model")) -> 0.2954343988 | E73: =IF('B. PoF Summary Stats & Params'!$C$12="C", B73*'B. PoF Summary Stats & Params'!$I$8*'B. PoF Summary Stats & Params'!$I$12*A73^('B. PoF Summary Stats & Params'!$I$12-1), IF('B. PoF Summary Stats & Params'!$C$12="W", B73*(('B. PoF Summary Stats & Params'!$M$12/'B. PoF Summary Stats & Params'!$O$12)*((A73)/'B. PoF Summary Stats & Params'!$O$12)^('B. PoF Summary Stats & Params'!$M$12-1)), "Choose Model")) -> 0.04309736019
A74: 70 | B74: 1 | C74: =IF('B. PoF Summary Stats & Params'!$C$12="C", B74*'B. PoF Summary Stats & Params'!$I$8*'B. PoF Summary Stats & Params'!$I$10*A74^('B. PoF Summary Stats & Params'!$I$10-1), IF('B. PoF Summary Stats & Params'!$C$12="W", B74*(('B. PoF Summary Stats & Params'!$M$14/'B. PoF Summary Stats & Params'!$O$14)*((A74)/'B. PoF Summary Stats & Params'!$O$14)^('B. PoF Summary Stats & Params'!$M$14-1)), "Choose Model")) -> 2.08902556 | D74: =IF('B. PoF Summary Stats & Params'!$C$12="C", B74*'B. PoF Summary Stats & Params'!$I$8*'B. PoF Summary Stats & Params'!$I$6*A74^('B. PoF Summary Stats & Params'!$I$6-1), IF('B. PoF Summary Stats & Params'!$C$12="W", B74*(('B. PoF Summary Stats & Params'!$M$6/'B. PoF Summary Stats & Params'!$M$8)*((A74)/'B. PoF Summary Stats & Params'!$M$8)^('B. PoF Summary Stats & Params'!$M$6-1)), "Choose Model")) -> 0.3070084335 | E74: =IF('B. PoF Summary Stats & Params'!$C$12="C", B74*'B. PoF Summary Stats & Params'!$I$8*'B. PoF Summary Stats & Params'!$I$12*A74^('B. PoF Summary Stats & Params'!$I$12-1), IF('B. PoF Summary Stats & Params'!$C$12="W", B74*(('B. PoF Summary Stats & Params'!$M$12/'B. PoF Summary Stats & Params'!$O$12)*((A74)/'B. PoF Summary Stats & Params'!$O$12)^('B. PoF Summary Stats & Params'!$M$12-1)), "Choose Model")) -> 0.04451237373
A75: 71 | B75: 1 | C75: =IF('B. PoF Summary Stats & Params'!$C$12="C", B75*'B. PoF Summary Stats & Params'!$I$8*'B. PoF Summary Stats & Params'!$I$10*A75^('B. PoF Summary Stats & Params'!$I$10-1), IF('B. PoF Summary Stats & Params'!$C$12="W", B75*(('B. PoF Summary Stats & Params'!$M$14/'B. PoF Summary Stats & Params'!$O$14)*((A75)/'B. PoF Summary Stats & Params'!$O$14)^('B. PoF Summary Stats & Params'!$M$14-1)), "Choose Model")) -> 2.18281889 | D75: =IF('B. PoF Summary Stats & Params'!$C$12="C", B75*'B. PoF Summary Stats & Params'!$I$8*'B. PoF Summary Stats & Params'!$I$6*A75^('B. PoF Summary Stats & Params'!$I$6-1), IF('B. PoF Summary Stats & Params'!$C$12="W", B75*(('B. PoF Summary Stats & Params'!$M$6/'B. PoF Summary Stats & Params'!$M$8)*((A75)/'B. PoF Summary Stats & Params'!$M$8)^('B. PoF Summary Stats & Params'!$M$6-1)), "Choose Model")) -> 0.3188620366 | E75: =IF('B. PoF Summary Stats & Params'!$C$12="C", B75*'B. PoF Summary Stats & Params'!$I$8*'B. PoF Summary Stats & Params'!$I$12*A75^('B. PoF Summary Stats & Params'!$I$12-1), IF('B. PoF Summary Stats & Params'!$C$12="W", B75*(('B. PoF Summary Stats & Params'!$M$12/'B. PoF Summary Stats & Params'!$O$12)*((A75)/'B. PoF Summary Stats & Params'!$O$12)^('B. PoF Summary Stats & Params'!$M$12-1)), "Choose Model")) -> 0.04595278371
A76: 72 | B76: 1 | C76: =IF('B. PoF Summary Stats & Params'!$C$12="C", B76*'B. PoF Summary Stats & Params'!$I$8*'B. PoF Summary Stats & Params'!$I$10*A76^('B. PoF Summary Stats & Params'!$I$10-1), IF('B. PoF Summary Stats & Params'!$C$12="W", B76*(('B. PoF Summary Stats & Params'!$M$14/'B. PoF Summary Stats & Params'!$O$14)*((A76)/'B. PoF Summary Stats & Params'!$O$14)^('B. PoF Summary Stats & Params'!$M$14-1)), "Choose Model")) -> 2.279422736 | D76: =IF('B. PoF Summary Stats & Params'!$C$12="C", B76*'B. PoF Summary Stats & Params'!$I$8*'B. PoF Summary Stats & Params'!$I$6*A76^('B. PoF Summary Stats & Params'!$I$6-1), IF('B. PoF Summary Stats & Params'!$C$12="W", B76*(('B. PoF Summary Stats & Params'!$M$6/'B. PoF Summary Stats & Params'!$M$8)*((A76)/'B. PoF Summary Stats & Params'!$M$8)^('B. PoF Summary Stats & Params'!$M$6-1)), "Choose Model")) -> 0.3309978806 | E76: =IF('B. PoF Summary Stats & Params'!$C$12="C", B76*'B. PoF Summary Stats & Params'!$I$8*'B. PoF Summary Stats & Params'!$I$12*A76^('B. PoF Summary Stats & Params'!$I$12-1), IF('B. PoF Summary Stats & Params'!$C$12="W", B76*(('B. PoF Summary Stats & Params'!$M$12/'B. PoF Summary Stats & Params'!$O$12)*((A76)/'B. PoF Summary Stats & Params'!$O$12)^('B. PoF Summary Stats & Params'!$M$12-1)), "Choose Model")) -> 0.04741867859
A77: 73 | B77: 1 | C77: =IF('B. PoF Summary Stats & Params'!$C$12="C", B77*'B. PoF Summary Stats & Params'!$I$8*'B. PoF Summary Stats & Params'!$I$10*A77^('B. PoF Summary Stats & Params'!$I$10-1), IF('B. PoF Summary Stats & Params'!$C$12="W", B77*(('B. PoF Summary Stats & Params'!$M$14/'B. PoF Summary Stats & Params'!$O$14)*((A77)/'B. PoF Summary Stats & Params'!$O$14)^('B. PoF Summary Stats & Params'!$M$14-1)), "Choose Model")) -> 2.378880523 | D77: =IF('B. PoF Summary Stats & Params'!$C$12="C", B77*'B. PoF Summary Stats & Params'!$I$8*'B. PoF Summary Stats & Params'!$I$6*A77^('B. PoF Summary Stats & Params'!$I$6-1), IF('B. PoF Summary Stats & Params'!$C$12="W", B77*(('B. PoF Summary Stats & Params'!$M$6/'B. PoF Summary Stats & Params'!$M$8)*((A77)/'B. PoF Summary Stats & Params'!$M$8)^('B. PoF Summary Stats & Params'!$M$6-1)), "Choose Model")) -> 0.3434186258 | E77: =IF('B. PoF Summary Stats & Params'!$C$12="C", B77*'B. PoF Summary Stats & Params'!$I$8*'B. PoF Summary Stats & Params'!$I$12*A77^('B. PoF Summary Stats & Params'!$I$12-1), IF('B. PoF Summary Stats & Params'!$C$12="W", B77*(('B. PoF Summary Stats & Params'!$M$12/'B. PoF Summary Stats & Params'!$O$12)*((A77)/'B. PoF Summary Stats & Params'!$O$12)^('B. PoF Summary Stats & Params'!$M$12-1)), "Choose Model")) -> 0.04891014594
A78: 74 | B78: 1 | C78: =IF('B. PoF Summary Stats & Params'!$C$12="C", B78*'B. PoF Summary Stats & Params'!$I$8*'B. PoF Summary Stats & Params'!$I$10*A78^('B. PoF Summary Stats & Params'!$I$10-1), IF('B. PoF Summary Stats & Params'!$C$12="W", B78*(('B. PoF Summary Stats & Params'!$M$14/'B. PoF Summary Stats & Params'!$O$14)*((A78)/'B. PoF Summary Stats & Params'!$O$14)^('B. PoF Summary Stats & Params'!$M$14-1)), "Choose Model")) -> 2.481235734 | D78: =IF('B. PoF Summary Stats & Params'!$C$12="C", B78*'B. PoF Summary Stats & Params'!$I$8*'B. PoF Summary Stats & Params'!$I$6*A78^('B. PoF Summary Stats & Params'!$I$6-1), IF('B. PoF Summary Stats & Params'!$C$12="W", B78*(('B. PoF Summary Stats & Params'!$M$6/'B. PoF Summary Stats & Params'!$M$8)*((A78)/'B. PoF Summary Stats & Params'!$M$8)^('B. PoF Summary Stats & Params'!$M$6-1)), "Choose Model")) -> 0.3561269201 | E78: =IF('B. PoF Summary Stats & Params'!$C$12="C", B78*'B. PoF Summary Stats & Params'!$I$8*'B. PoF Summary Stats & Params'!$I$12*A78^('B. PoF Summary Stats & Params'!$I$12-1), IF('B. PoF Summary Stats & Params'!$C$12="W", B78*(('B. PoF Summary Stats & Params'!$M$12/'B. PoF Summary Stats & Params'!$O$12)*((A78)/'B. PoF Summary Stats & Params'!$O$12)^('B. PoF Summary Stats & Params'!$M$12-1)), "Choose Model")) -> 0.05042727238
A79: 75 | B79: 1 | C79: =IF('B. PoF Summary Stats & Params'!$C$12="C", B79*'B. PoF Summary Stats & Params'!$I$8*'B. PoF Summary Stats & Params'!$I$10*A79^('B. PoF Summary Stats & Params'!$I$10-1), IF('B. PoF Summary Stats & Params'!$C$12="W", B79*(('B. PoF Summary Stats & Params'!$M$14/'B. PoF Summary Stats & Params'!$O$14)*((A79)/'B. PoF Summary Stats & Params'!$O$14)^('B. PoF Summary Stats & Params'!$M$14-1)), "Choose Model")) -> 2.586531909 | D79: =IF('B. PoF Summary Stats & Params'!$C$12="C", B79*'B. PoF Summary Stats & Params'!$I$8*'B. PoF Summary Stats & Params'!$I$6*A79^('B. PoF Summary Stats & Params'!$I$6-1), IF('B. PoF Summary Stats & Params'!$C$12="W", B79*(('B. PoF Summary Stats & Params'!$M$6/'B. PoF Summary Stats & Params'!$M$8)*((A79)/'B. PoF Summary Stats & Params'!$M$8)^('B. PoF Summary Stats & Params'!$M$6-1)), "Choose Model")) -> 0.3691253997 | E79: =IF('B. PoF Summary Stats & Params'!$C$12="C", B79*'B. PoF Summary Stats & Params'!$I$8*'B. PoF Summary Stats & Params'!$I$12*A79^('B. PoF Summary Stats & Params'!$I$12-1), IF('B. PoF Summary Stats & Params'!$C$12="W", B79*(('B. PoF Summary Stats & Params'!$M$12/'B. PoF Summary Stats & Params'!$O$12)*((A79)/'B. PoF Summary Stats & Params'!$O$12)^('B. PoF Summary Stats & Params'!$M$12-1)), "Choose Model")) -> 0.05197014365
A80: 76 | B80: 1 | C80: =IF('B. PoF Summary Stats & Params'!$C$12="C", B80*'B. PoF Summary Stats & Params'!$I$8*'B. PoF Summary Stats & Params'!$I$10*A80^('B. PoF Summary Stats & Params'!$I$10-1), IF('B. PoF Summary Stats & Params'!$C$12="W", B80*(('B. PoF Summary Stats & Params'!$M$14/'B. PoF Summary Stats & Params'!$O$14)*((A80)/'B. PoF Summary Stats & Params'!$O$14)^('B. PoF Summary Stats & Params'!$M$14-1)), "Choose Model")) -> 2.694812644 | D80: =IF('B. PoF Summary Stats & Params'!$C$12="C", B80*'B. PoF Summary Stats & Params'!$I$8*'B. PoF Summary Stats & Params'!$I$6*A80^('B. PoF Summary Stats & Params'!$I$6-1), IF('B. PoF Summary Stats & Params'!$C$12="W", B80*(('B. PoF Summary Stats & Params'!$M$6/'B. PoF Summary Stats & Params'!$M$8)*((A80)/'B. PoF Summary Stats & Params'!$M$8)^('B. PoF Summary Stats & Params'!$M$6-1)), "Choose Model")) -> 0.382416689 | E80: =IF('B. PoF Summary Stats & Params'!$C$12="C", B80*'B. PoF Summary Stats & Params'!$I$8*'B. PoF Summary Stats & Params'!$I$12*A80^('B. PoF Summary Stats & Params'!$I$12-1), IF('B. PoF Summary Stats & Params'!$C$12="W", B80*(('B. PoF Summary Stats & Params'!$M$12/'B. PoF Summary Stats & Params'!$O$12)*((A80)/'B. PoF Summary Stats & Params'!$O$12)^('B. PoF Summary Stats & Params'!$M$12-1)), "Choose Model")) -> 0.05353884463
A81: 77 | B81: 1 | C81: =IF('B. PoF Summary Stats & Params'!$C$12="C", B81*'B. PoF Summary Stats & Params'!$I$8*'B. PoF Summary Stats & Params'!$I$10*A81^('B. PoF Summary Stats & Params'!$I$10-1), IF('B. PoF Summary Stats & Params'!$C$12="W", B81*(('B. PoF Summary Stats & Params'!$M$14/'B. PoF Summary Stats & Params'!$O$14)*((A81)/'B. PoF Summary Stats & Params'!$O$14)^('B. PoF Summary Stats & Params'!$M$14-1)), "Choose Model")) -> 2.806121592 | D81: =IF('B. PoF Summary Stats & Params'!$C$12="C", B81*'B. PoF Summary Stats & Params'!$I$8*'B. PoF Summary Stats & Params'!$I$6*A81^('B. PoF Summary Stats & Params'!$I$6-1), IF('B. PoF Summary Stats & Params'!$C$12="W", B81*(('B. PoF Summary Stats & Params'!$M$6/'B. PoF Summary Stats & Params'!$M$8)*((A81)/'B. PoF Summary Stats & Params'!$M$8)^('B. PoF Summary Stats & Params'!$M$6-1)), "Choose Model")) -> 0.396003401 | E81: =IF('B. PoF Summary Stats & Params'!$C$12="C", B81*'B. PoF Summary Stats & Params'!$I$8*'B. PoF Summary Stats & Params'!$I$12*A81^('B. PoF Summary Stats & Params'!$I$12-1), IF('B. PoF Summary Stats & Params'!$C$12="W", B81*(('B. PoF Summary Stats & Params'!$M$12/'B. PoF Summary Stats & Params'!$O$12)*((A81)/'B. PoF Summary Stats & Params'!$O$12)^('B. PoF Summary Stats & Params'!$M$12-1)), "Choose Model")) -> 0.05513345935
A82: 78 | B82: 1 | C82: =IF('B. PoF Summary Stats & Params'!$C$12="C", B82*'B. PoF Summary Stats & Params'!$I$8*'B. PoF Summary Stats & Params'!$I$10*A82^('B. PoF Summary Stats & Params'!$I$10-1), IF('B. PoF Summary Stats & Params'!$C$12="W", B82*(('B. PoF Summary Stats & Params'!$M$14/'B. PoF Summary Stats & Params'!$O$14)*((A82)/'B. PoF Summary Stats & Params'!$O$14)^('B. PoF Summary Stats & Params'!$M$14-1)), "Choose Model")) -> 2.920502462 | D82: =IF('B. PoF Summary Stats & Params'!$C$12="C", B82*'B. PoF Summary Stats & Params'!$I$8*'B. PoF Summary Stats & Params'!$I$6*A82^('B. PoF Summary Stats & Params'!$I$6-1), IF('B. PoF Summary Stats & Params'!$C$12="W", B82*(('B. PoF Summary Stats & Params'!$M$6/'B. PoF Summary Stats & Params'!$M$8)*((A82)/'B. PoF Summary Stats & Params'!$M$8)^('B. PoF Summary Stats & Params'!$M$6-1)), "Choose Model")) -> 0.4098881372 | E82: =IF('B. PoF Summary Stats & Params'!$C$12="C", B82*'B. PoF Summary Stats & Params'!$I$8*'B. PoF Summary Stats & Params'!$I$12*A82^('B. PoF Summary Stats & Params'!$I$12-1), IF('B. PoF Summary Stats & Params'!$C$12="W", B82*(('B. PoF Summary Stats & Params'!$M$12/'B. PoF Summary Stats & Params'!$O$12)*((A82)/'B. PoF Summary Stats & Params'!$O$12)^('B. PoF Summary Stats & Params'!$M$12-1)), "Choose Model")) -> 0.05675407099
A83: 79 | B83: 1 | C83: =IF('B. PoF Summary Stats & Params'!$C$12="C", B83*'B. PoF Summary Stats & Params'!$I$8*'B. PoF Summary Stats & Params'!$I$10*A83^('B. PoF Summary Stats & Params'!$I$10-1), IF('B. PoF Summary Stats & Params'!$C$12="W", B83*(('B. PoF Summary Stats & Params'!$M$14/'B. PoF Summary Stats & Params'!$O$14)*((A83)/'B. PoF Summary Stats & Params'!$O$14)^('B. PoF Summary Stats & Params'!$M$14-1)), "Choose Model")) -> 3.037999015 | D83: =IF('B. PoF Summary Stats & Params'!$C$12="C", B83*'B. PoF Summary Stats & Params'!$I$8*'B. PoF Summary Stats & Params'!$I$6*A83^('B. PoF Summary Stats & Params'!$I$6-1), IF('B. PoF Summary Stats & Params'!$C$12="W", B83*(('B. PoF Summary Stats & Params'!$M$6/'B. PoF Summary Stats & Params'!$M$8)*((A83)/'B. PoF Summary Stats & Params'!$M$8)^('B. PoF Summary Stats & Params'!$M$6-1)), "Choose Model")) -> 0.4240734881 | E83: =IF('B. PoF Summary Stats & Params'!$C$12="C", B83*'B. PoF Summary Stats & Params'!$I$8*'B. PoF Summary Stats & Params'!$I$12*A83^('B. PoF Summary Stats & Params'!$I$12-1), IF('B. PoF Summary Stats & Params'!$C$12="W", B83*(('B. PoF Summary Stats & Params'!$M$12/'B. PoF Summary Stats & Params'!$O$12)*((A83)/'B. PoF Summary Stats & Params'!$O$12)^('B. PoF Summary Stats & Params'!$M$12-1)), "Choose Model")) -> 0.05840076193
A84: 80 | B84: 1 | C84: =IF('B. PoF Summary Stats & Params'!$C$12="C", B84*'B. PoF Summary Stats & Params'!$I$8*'B. PoF Summary Stats & Params'!$I$10*A84^('B. PoF Summary Stats & Params'!$I$10-1), IF('B. PoF Summary Stats & Params'!$C$12="W", B84*(('B. PoF Summary Stats & Params'!$M$14/'B. PoF Summary Stats & Params'!$O$14)*((A84)/'B. PoF Summary Stats & Params'!$O$14)^('B. PoF Summary Stats & Params'!$M$14-1)), "Choose Model")) -> 3.158655069 | D84: =IF('B. PoF Summary Stats & Params'!$C$12="C", B84*'B. PoF Summary Stats & Params'!$I$8*'B. PoF Summary Stats & Params'!$I$6*A84^('B. PoF Summary Stats & Params'!$I$6-1), IF('B. PoF Summary Stats & Params'!$C$12="W", B84*(('B. PoF Summary Stats & Params'!$M$6/'B. PoF Summary Stats & Params'!$M$8)*((A84)/'B. PoF Summary Stats & Params'!$M$8)^('B. PoF Summary Stats & Params'!$M$6-1)), "Choose Model")) -> 0.4385620334 | E84: =IF('B. PoF Summary Stats & Params'!$C$12="C", B84*'B. PoF Summary Stats & Params'!$I$8*'B. PoF Summary Stats & Params'!$I$12*A84^('B. PoF Summary Stats & Params'!$I$12-1), IF('B. PoF Summary Stats & Params'!$C$12="W", B84*(('B. PoF Summary Stats & Params'!$M$12/'B. PoF Summary Stats & Params'!$O$12)*((A84)/'B. PoF Summary Stats & Params'!$O$12)^('B. PoF Summary Stats & Params'!$M$12-1)), "Choose Model")) -> 0.06007361378
A85: 81 | B85: 1 | C85: =IF('B. PoF Summary Stats & Params'!$C$12="C", B85*'B. PoF Summary Stats & Params'!$I$8*'B. PoF Summary Stats & Params'!$I$10*A85^('B. PoF Summary Stats & Params'!$I$10-1), IF('B. PoF Summary Stats & Params'!$C$12="W", B85*(('B. PoF Summary Stats & Params'!$M$14/'B. PoF Summary Stats & Params'!$O$14)*((A85)/'B. PoF Summary Stats & Params'!$O$14)^('B. PoF Summary Stats & Params'!$M$14-1)), "Choose Model")) -> 3.282514494 | D85: =IF('B. PoF Summary Stats & Params'!$C$12="C", B85*'B. PoF Summary Stats & Params'!$I$8*'B. PoF Summary Stats & Params'!$I$6*A85^('B. PoF Summary Stats & Params'!$I$6-1), IF('B. PoF Summary Stats & Params'!$C$12="W", B85*(('B. PoF Summary Stats & Params'!$M$6/'B. PoF Summary Stats & Params'!$M$8)*((A85)/'B. PoF Summary Stats & Params'!$M$8)^('B. PoF Summary Stats & Params'!$M$6-1)), "Choose Model")) -> 0.453356342 | E85: =IF('B. PoF Summary Stats & Params'!$C$12="C", B85*'B. PoF Summary Stats & Params'!$I$8*'B. PoF Summary Stats & Params'!$I$12*A85^('B. PoF Summary Stats & Params'!$I$12-1), IF('B. PoF Summary Stats & Params'!$C$12="W", B85*(('B. PoF Summary Stats & Params'!$M$12/'B. PoF Summary Stats & Params'!$O$12)*((A85)/'B. PoF Summary Stats & Params'!$O$12)^('B. PoF Summary Stats & Params'!$M$12-1)), "Choose Model")) -> 0.06177270732
A86: 82 | B86: 1 | C86: =IF('B. PoF Summary Stats & Params'!$C$12="C", B86*'B. PoF Summary Stats & Params'!$I$8*'B. PoF Summary Stats & Params'!$I$10*A86^('B. PoF Summary Stats & Params'!$I$10-1), IF('B. PoF Summary Stats & Params'!$C$12="W", B86*(('B. PoF Summary Stats & Params'!$M$14/'B. PoF Summary Stats & Params'!$O$14)*((A86)/'B. PoF Summary Stats & Params'!$O$14)^('B. PoF Summary Stats & Params'!$M$14-1)), "Choose Model")) -> 3.409621213 | D86: =IF('B. PoF Summary Stats & Params'!$C$12="C", B86*'B. PoF Summary Stats & Params'!$I$8*'B. PoF Summary Stats & Params'!$I$6*A86^('B. PoF Summary Stats & Params'!$I$6-1), IF('B. PoF Summary Stats & Params'!$C$12="W", B86*(('B. PoF Summary Stats & Params'!$M$6/'B. PoF Summary Stats & Params'!$M$8)*((A86)/'B. PoF Summary Stats & Params'!$M$8)^('B. PoF Summary Stats & Params'!$M$6-1)), "Choose Model")) -> 0.4684589722 | E86: =IF('B. PoF Summary Stats & Params'!$C$12="C", B86*'B. PoF Summary Stats & Params'!$I$8*'B. PoF Summary Stats & Params'!$I$12*A86^('B. PoF Summary Stats & Params'!$I$12-1), IF('B. PoF Summary Stats & Params'!$C$12="W", B86*(('B. PoF Summary Stats & Params'!$M$12/'B. PoF Summary Stats & Params'!$O$12)*((A86)/'B. PoF Summary Stats & Params'!$O$12)^('B. PoF Summary Stats & Params'!$M$12-1)), "Choose Model")) -> 0.06349812263
A87: 83 | B87: 1 | C87: =IF('B. PoF Summary Stats & Params'!$C$12="C", B87*'B. PoF Summary Stats & Params'!$I$8*'B. PoF Summary Stats & Params'!$I$10*A87^('B. PoF Summary Stats & Params'!$I$10-1), IF('B. PoF Summary Stats & Params'!$C$12="W", B87*(('B. PoF Summary Stats & Params'!$M$14/'B. PoF Summary Stats & Params'!$O$14)*((A87)/'B. PoF Summary Stats & Params'!$O$14)^('B. PoF Summary Stats & Params'!$M$14-1)), "Choose Model")) -> 3.540019201 | D87: =IF('B. PoF Summary Stats & Params'!$C$12="C", B87*'B. PoF Summary Stats & Params'!$I$8*'B. PoF Summary Stats & Params'!$I$6*A87^('B. PoF Summary Stats & Params'!$I$6-1), IF('B. PoF Summary Stats & Params'!$C$12="W", B87*(('B. PoF Summary Stats & Params'!$M$6/'B. PoF Summary Stats & Params'!$M$8)*((A87)/'B. PoF Summary Stats & Params'!$M$8)^('B. PoF Summary Stats & Params'!$M$6-1)), "Choose Model")) -> 0.4838724718 | E87: =IF('B. PoF Summary Stats & Params'!$C$12="C", B87*'B. PoF Summary Stats & Params'!$I$8*'B. PoF Summary Stats & Params'!$I$12*A87^('B. PoF Summary Stats & Params'!$I$12-1), IF('B. PoF Summary Stats & Params'!$C$12="W", B87*(('B. PoF Summary Stats & Params'!$M$12/'B. PoF Summary Stats & Params'!$O$12)*((A87)/'B. PoF Summary Stats & Params'!$O$12)^('B. PoF Summary Stats & Params'!$M$12-1)), "Choose Model")) -> 0.065249939
A88: 84 | B88: 1 | C88: =IF('B. PoF Summary Stats & Params'!$C$12="C", B88*'B. PoF Summary Stats & Params'!$I$8*'B. PoF Summary Stats & Params'!$I$10*A88^('B. PoF Summary Stats & Params'!$I$10-1), IF('B. PoF Summary Stats & Params'!$C$12="W", B88*(('B. PoF Summary Stats & Params'!$M$14/'B. PoF Summary Stats & Params'!$O$14)*((A88)/'B. PoF Summary Stats & Params'!$O$14)^('B. PoF Summary Stats & Params'!$M$14-1)), "Choose Model")) -> 3.673752484 | D88: =IF('B. PoF Summary Stats & Params'!$C$12="C", B88*'B. PoF Summary Stats & Params'!$I$8*'B. PoF Summary Stats & Params'!$I$6*A88^('B. PoF Summary Stats & Params'!$I$6-1), IF('B. PoF Summary Stats & Params'!$C$12="W", B88*(('B. PoF Summary Stats & Params'!$M$6/'B. PoF Summary Stats & Params'!$M$8)*((A88)/'B. PoF Summary Stats & Params'!$M$8)^('B. PoF Summary Stats & Params'!$M$6-1)), "Choose Model")) -> 0.4995993788 | E88: =IF('B. PoF Summary Stats & Params'!$C$12="C", B88*'B. PoF Summary Stats & Params'!$I$8*'B. PoF Summary Stats & Params'!$I$12*A88^('B. PoF Summary Stats & Params'!$I$12-1), IF('B. PoF Summary Stats & Params'!$C$12="W", B88*(('B. PoF Summary Stats & Params'!$M$12/'B. PoF Summary Stats & Params'!$O$12)*((A88)/'B. PoF Summary Stats & Params'!$O$12)^('B. PoF Summary Stats & Params'!$M$12-1)), "Choose Model")) -> 0.06702823502
A89: 85 | B89: 1 | C89: =IF('B. PoF Summary Stats & Params'!$C$12="C", B89*'B. PoF Summary Stats & Params'!$I$8*'B. PoF Summary Stats & Params'!$I$10*A89^('B. PoF Summary Stats & Params'!$I$10-1), IF('B. PoF Summary Stats & Params'!$C$12="W", B89*(('B. PoF Summary Stats & Params'!$M$14/'B. PoF Summary Stats & Params'!$O$14)*((A89)/'B. PoF Summary Stats & Params'!$O$14)^('B. PoF Summary Stats & Params'!$M$14-1)), "Choose Model")) -> 3.810865142 | D89: =IF('B. PoF Summary Stats & Params'!$C$12="C", B89*'B. PoF Summary Stats & Params'!$I$8*'B. PoF Summary Stats & Params'!$I$6*A89^('B. PoF Summary Stats & Params'!$I$6-1), IF('B. PoF Summary Stats & Params'!$C$12="W", B89*(('B. PoF Summary Stats & Params'!$M$6/'B. PoF Summary Stats & Params'!$M$8)*((A89)/'B. PoF Summary Stats & Params'!$M$8)^('B. PoF Summary Stats & Params'!$M$6-1)), "Choose Model")) -> 0.5156422207 | E89: =IF('B. PoF Summary Stats & Params'!$C$12="C", B89*'B. PoF Summary Stats & Params'!$I$8*'B. PoF Summary Stats & Params'!$I$12*A89^('B. PoF Summary Stats & Params'!$I$12-1), IF('B. PoF Summary Stats & Params'!$C$12="W", B89*(('B. PoF Summary Stats & Params'!$M$12/'B. PoF Summary Stats & Params'!$O$12)*((A89)/'B. PoF Summary Stats & Params'!$O$12)^('B. PoF Summary Stats & Params'!$M$12-1)), "Choose Model")) -> 0.06883308857
A90: 86 | B90: 1 | C90: =IF('B. PoF Summary Stats & Params'!$C$12="C", B90*'B. PoF Summary Stats & Params'!$I$8*'B. PoF Summary Stats & Params'!$I$10*A90^('B. PoF Summary Stats & Params'!$I$10-1), IF('B. PoF Summary Stats & Params'!$C$12="W", B90*(('B. PoF Summary Stats & Params'!$M$14/'B. PoF Summary Stats & Params'!$O$14)*((A90)/'B. PoF Summary Stats & Params'!$O$14)^('B. PoF Summary Stats & Params'!$M$14-1)), "Choose Model")) -> 3.951401302 | D90: =IF('B. PoF Summary Stats & Params'!$C$12="C", B90*'B. PoF Summary Stats & Params'!$I$8*'B. PoF Summary Stats & Params'!$I$6*A90^('B. PoF Summary Stats & Params'!$I$6-1), IF('B. PoF Summary Stats & Params'!$C$12="W", B90*(('B. PoF Summary Stats & Params'!$M$6/'B. PoF Summary Stats & Params'!$M$8)*((A90)/'B. PoF Summary Stats & Params'!$M$8)^('B. PoF Summary Stats & Params'!$M$6-1)), "Choose Model")) -> 0.5320035153 | E90: =IF('B. PoF Summary Stats & Params'!$C$12="C", B90*'B. PoF Summary Stats & Params'!$I$8*'B. PoF Summary Stats & Params'!$I$12*A90^('B. PoF Summary Stats & Params'!$I$12-1), IF('B. PoF Summary Stats & Params'!$C$12="W", B90*(('B. PoF Summary Stats & Params'!$M$12/'B. PoF Summary Stats & Params'!$O$12)*((A90)/'B. PoF Summary Stats & Params'!$O$12)^('B. PoF Summary Stats & Params'!$M$12-1)), "Choose Model")) -> 0.07066457682
A91: 87 | B91: 1 | C91: =IF('B. PoF Summary Stats & Params'!$C$12="C", B91*'B. PoF Summary Stats & Params'!$I$8*'B. PoF Summary Stats & Params'!$I$10*A91^('B. PoF Summary Stats & Params'!$I$10-1), IF('B. PoF Summary Stats & Params'!$C$12="W", B91*(('B. PoF Summary Stats & Params'!$M$14/'B. PoF Summary Stats & Params'!$O$14)*((A91)/'B. PoF Summary Stats & Params'!$O$14)^('B. PoF Summary Stats & Params'!$M$14-1)), "Choose Model")) -> 4.095405143 | D91: =IF('B. PoF Summary Stats & Params'!$C$12="C", B91*'B. PoF Summary Stats & Params'!$I$8*'B. PoF Summary Stats & Params'!$I$6*A91^('B. PoF Summary Stats & Params'!$I$6-1), IF('B. PoF Summary Stats & Params'!$C$12="W", B91*(('B. PoF Summary Stats & Params'!$M$6/'B. PoF Summary Stats & Params'!$M$8)*((A91)/'B. PoF Summary Stats & Params'!$M$8)^('B. PoF Summary Stats & Params'!$M$6-1)), "Choose Model")) -> 0.5486857707 | E91: =IF('B. PoF Summary Stats & Params'!$C$12="C", B91*'B. PoF Summary Stats & Params'!$I$8*'B. PoF Summary Stats & Params'!$I$12*A91^('B. PoF Summary Stats & Params'!$I$12-1), IF('B. PoF Summary Stats & Params'!$C$12="W", B91*(('B. PoF Summary Stats & Params'!$M$12/'B. PoF Summary Stats & Params'!$O$12)*((A91)/'B. PoF Summary Stats & Params'!$O$12)^('B. PoF Summary Stats & Params'!$M$12-1)), "Choose Model")) -> 0.07252277626
A92: 88 | B92: 1 | C92: =IF('B. PoF Summary Stats & Params'!$C$12="C", B92*'B. PoF Summary Stats & Params'!$I$8*'B. PoF Summary Stats & Params'!$I$10*A92^('B. PoF Summary Stats & Params'!$I$10-1), IF('B. PoF Summary Stats & Params'!$C$12="W", B92*(('B. PoF Summary Stats & Params'!$M$14/'B. PoF Summary Stats & Params'!$O$14)*((A92)/'B. PoF Summary Stats & Params'!$O$14)^('B. PoF Summary Stats & Params'!$M$14-1)), "Choose Model")) -> 4.242920893 | D92: =IF('B. PoF Summary Stats & Params'!$C$12="C", B92*'B. PoF Summary Stats & Params'!$I$8*'B. PoF Summary Stats & Params'!$I$6*A92^('B. PoF Summary Stats & Params'!$I$6-1), IF('B. PoF Summary Stats & Params'!$C$12="W", B92*(('B. PoF Summary Stats & Params'!$M$6/'B. PoF Summary Stats & Params'!$M$8)*((A92)/'B. PoF Summary Stats & Params'!$M$8)^('B. PoF Summary Stats & Params'!$M$6-1)), "Choose Model")) -> 0.5656914854 | E92: =IF('B. PoF Summary Stats & Params'!$C$12="C", B92*'B. PoF Summary Stats & Params'!$I$8*'B. PoF Summary Stats & Params'!$I$12*A92^('B. PoF Summary Stats & Params'!$I$12-1), IF('B. PoF Summary Stats & Params'!$C$12="W", B92*(('B. PoF Summary Stats & Params'!$M$12/'B. PoF Summary Stats & Params'!$O$12)*((A92)/'B. PoF Summary Stats & Params'!$O$12)^('B. PoF Summary Stats & Params'!$M$12-1)), "Choose Model")) -> 0.07440776272
A93: 89 | B93: 1 | C93: =IF('B. PoF Summary Stats & Params'!$C$12="C", B93*'B. PoF Summary Stats & Params'!$I$8*'B. PoF Summary Stats & Params'!$I$10*A93^('B. PoF Summary Stats & Params'!$I$10-1), IF('B. PoF Summary Stats & Params'!$C$12="W", B93*(('B. PoF Summary Stats & Params'!$M$14/'B. PoF Summary Stats & Params'!$O$14)*((A93)/'B. PoF Summary Stats & Params'!$O$14)^('B. PoF Summary Stats & Params'!$M$14-1)), "Choose Model")) -> 4.393992829 | D93: =IF('B. PoF Summary Stats & Params'!$C$12="C", B93*'B. PoF Summary Stats & Params'!$I$8*'B. PoF Summary Stats & Params'!$I$6*A93^('B. PoF Summary Stats & Params'!$I$6-1), IF('B. PoF Summary Stats & Params'!$C$12="W", B93*(('B. PoF Summary Stats & Params'!$M$6/'B. PoF Summary Stats & Params'!$M$8)*((A93)/'B. PoF Summary Stats & Params'!$M$8)^('B. PoF Summary Stats & Params'!$M$6-1)), "Choose Model")) -> 0.5830231485 | E93: =IF('B. PoF Summary Stats & Params'!$C$12="C", B93*'B. PoF Summary Stats & Params'!$I$8*'B. PoF Summary Stats & Params'!$I$12*A93^('B. PoF Summary Stats & Params'!$I$12-1), IF('B. PoF Summary Stats & Params'!$C$12="W", B93*(('B. PoF Summary Stats & Params'!$M$12/'B. PoF Summary Stats & Params'!$O$12)*((A93)/'B. PoF Summary Stats & Params'!$O$12)^('B. PoF Summary Stats & Params'!$M$12-1)), "Choose Model")) -> 0.07631961137
A94: 90 | B94: 1 | C94: =IF('B. PoF Summary Stats & Params'!$C$12="C", B94*'B. PoF Summary Stats & Params'!$I$8*'B. PoF Summary Stats & Params'!$I$10*A94^('B. PoF Summary Stats & Params'!$I$10-1), IF('B. PoF Summary Stats & Params'!$C$12="W", B94*(('B. PoF Summary Stats & Params'!$M$14/'B. PoF Summary Stats & Params'!$O$14)*((A94)/'B. PoF Summary Stats & Params'!$O$14)^('B. PoF Summary Stats & Params'!$M$14-1)), "Choose Model")) -> 4.548665276 | D94: =IF('B. PoF Summary Stats & Params'!$C$12="C", B94*'B. PoF Summary Stats & Params'!$I$8*'B. PoF Summary Stats & Params'!$I$6*A94^('B. PoF Summary Stats & Params'!$I$6-1), IF('B. PoF Summary Stats & Params'!$C$12="W", B94*(('B. PoF Summary Stats & Params'!$M$6/'B. PoF Summary Stats & Params'!$M$8)*((A94)/'B. PoF Summary Stats & Params'!$M$8)^('B. PoF Summary Stats & Params'!$M$6-1)), "Choose Model")) -> 0.6006832396 | E94: =IF('B. PoF Summary Stats & Params'!$C$12="C", B94*'B. PoF Summary Stats & Params'!$I$8*'B. PoF Summary Stats & Params'!$I$12*A94^('B. PoF Summary Stats & Params'!$I$12-1), IF('B. PoF Summary Stats & Params'!$C$12="W", B94*(('B. PoF Summary Stats & Params'!$M$12/'B. PoF Summary Stats & Params'!$O$12)*((A94)/'B. PoF Summary Stats & Params'!$O$12)^('B. PoF Summary Stats & Params'!$M$12-1)), "Choose Model")) -> 0.07825839672
A95: 91 | B95: 1 | C95: =IF('B. PoF Summary Stats & Params'!$C$12="C", B95*'B. PoF Summary Stats & Params'!$I$8*'B. PoF Summary Stats & Params'!$I$10*A95^('B. PoF Summary Stats & Params'!$I$10-1), IF('B. PoF Summary Stats & Params'!$C$12="W", B95*(('B. PoF Summary Stats & Params'!$M$14/'B. PoF Summary Stats & Params'!$O$14)*((A95)/'B. PoF Summary Stats & Params'!$O$14)^('B. PoF Summary Stats & Params'!$M$14-1)), "Choose Model")) -> 4.706982609 | D95: =IF('B. PoF Summary Stats & Params'!$C$12="C", B95*'B. PoF Summary Stats & Params'!$I$8*'B. PoF Summary Stats & Params'!$I$6*A95^('B. PoF Summary Stats & Params'!$I$6-1), IF('B. PoF Summary Stats & Params'!$C$12="W", B95*(('B. PoF Summary Stats & Params'!$M$6/'B. PoF Summary Stats & Params'!$M$8)*((A95)/'B. PoF Summary Stats & Params'!$M$8)^('B. PoF Summary Stats & Params'!$M$6-1)), "Choose Model")) -> 0.6186742293 | E95: =IF('B. PoF Summary Stats & Params'!$C$12="C", B95*'B. PoF Summary Stats & Params'!$I$8*'B. PoF Summary Stats & Params'!$I$12*A95^('B. PoF Summary Stats & Params'!$I$12-1), IF('B. PoF Summary Stats & Params'!$C$12="W", B95*(('B. PoF Summary Stats & Params'!$M$12/'B. PoF Summary Stats & Params'!$O$12)*((A95)/'B. PoF Summary Stats & Params'!$O$12)^('B. PoF Summary Stats & Params'!$M$12-1)), "Choose Model")) -> 0.08022419269
A96: 92 | B96: 1 | C96: =IF('B. PoF Summary Stats & Params'!$C$12="C", B96*'B. PoF Summary Stats & Params'!$I$8*'B. PoF Summary Stats & Params'!$I$10*A96^('B. PoF Summary Stats & Params'!$I$10-1), IF('B. PoF Summary Stats & Params'!$C$12="W", B96*(('B. PoF Summary Stats & Params'!$M$14/'B. PoF Summary Stats & Params'!$O$14)*((A96)/'B. PoF Summary Stats & Params'!$O$14)^('B. PoF Summary Stats & Params'!$M$14-1)), "Choose Model")) -> 4.868989247 | D96: =IF('B. PoF Summary Stats & Params'!$C$12="C", B96*'B. PoF Summary Stats & Params'!$I$8*'B. PoF Summary Stats & Params'!$I$6*A96^('B. PoF Summary Stats & Params'!$I$6-1), IF('B. PoF Summary Stats & Params'!$C$12="W", B96*(('B. PoF Summary Stats & Params'!$M$6/'B. PoF Summary Stats & Params'!$M$8)*((A96)/'B. PoF Summary Stats & Params'!$M$8)^('B. PoF Summary Stats & Params'!$M$6-1)), "Choose Model")) -> 0.6369985792 | E96: =IF('B. PoF Summary Stats & Params'!$C$12="C", B96*'B. PoF Summary Stats & Params'!$I$8*'B. PoF Summary Stats & Params'!$I$12*A96^('B. PoF Summary Stats & Params'!$I$12-1), IF('B. PoF Summary Stats & Params'!$C$12="W", B96*(('B. PoF Summary Stats & Params'!$M$12/'B. PoF Summary Stats & Params'!$O$12)*((A96)/'B. PoF Summary Stats & Params'!$O$12)^('B. PoF Summary Stats & Params'!$M$12-1)), "Choose Model")) -> 0.08221707256
A97: 93 | B97: 1 | C97: =IF('B. PoF Summary Stats & Params'!$C$12="C", B97*'B. PoF Summary Stats & Params'!$I$8*'B. PoF Summary Stats & Params'!$I$10*A97^('B. PoF Summary Stats & Params'!$I$10-1), IF('B. PoF Summary Stats & Params'!$C$12="W", B97*(('B. PoF Summary Stats & Params'!$M$14/'B. PoF Summary Stats & Params'!$O$14)*((A97)/'B. PoF Summary Stats & Params'!$O$14)^('B. PoF Summary Stats & Params'!$M$14-1)), "Choose Model")) -> 5.034729659 | D97: =IF('B. PoF Summary Stats & Params'!$C$12="C", B97*'B. PoF Summary Stats & Params'!$I$8*'B. PoF Summary Stats & Params'!$I$6*A97^('B. PoF Summary Stats & Params'!$I$6-1), IF('B. PoF Summary Stats & Params'!$C$12="W", B97*(('B. PoF Summary Stats & Params'!$M$6/'B. PoF Summary Stats & Params'!$M$8)*((A97)/'B. PoF Summary Stats & Params'!$M$8)^('B. PoF Summary Stats & Params'!$M$6-1)), "Choose Model")) -> 0.6556587421 | E97: =IF('B. PoF Summary Stats & Params'!$C$12="C", B97*'B. PoF Summary Stats & Params'!$I$8*'B. PoF Summary Stats & Params'!$I$12*A97^('B. PoF Summary Stats & Params'!$I$12-1), IF('B. PoF Summary Stats & Params'!$C$12="W", B97*(('B. PoF Summary Stats & Params'!$M$12/'B. PoF Summary Stats & Params'!$O$12)*((A97)/'B. PoF Summary Stats & Params'!$O$12)^('B. PoF Summary Stats & Params'!$M$12-1)), "Choose Model")) -> 0.08423710899
A98: 94 | B98: 1 | C98: =IF('B. PoF Summary Stats & Params'!$C$12="C", B98*'B. PoF Summary Stats & Params'!$I$8*'B. PoF Summary Stats & Params'!$I$10*A98^('B. PoF Summary Stats & Params'!$I$10-1), IF('B. PoF Summary Stats & Params'!$C$12="W", B98*(('B. PoF Summary Stats & Params'!$M$14/'B. PoF Summary Stats & Params'!$O$14)*((A98)/'B. PoF Summary Stats & Params'!$O$14)^('B. PoF Summary Stats & Params'!$M$14-1)), "Choose Model")) -> 5.204248359 | D98: =IF('B. PoF Summary Stats & Params'!$C$12="C", B98*'B. PoF Summary Stats & Params'!$I$8*'B. PoF Summary Stats & Params'!$I$6*A98^('B. PoF Summary Stats & Params'!$I$6-1), IF('B. PoF Summary Stats & Params'!$C$12="W", B98*(('B. PoF Summary Stats & Params'!$M$6/'B. PoF Summary Stats & Params'!$M$8)*((A98)/'B. PoF Summary Stats & Params'!$M$8)^('B. PoF Summary Stats & Params'!$M$6-1)), "Choose Model")) -> 0.6746571617 | E98: =IF('B. PoF Summary Stats & Params'!$C$12="C", B98*'B. PoF Summary Stats & Params'!$I$8*'B. PoF Summary Stats & Params'!$I$12*A98^('B. PoF Summary Stats & Params'!$I$12-1), IF('B. PoF Summary Stats & Params'!$C$12="W", B98*(('B. PoF Summary Stats & Params'!$M$12/'B. PoF Summary Stats & Params'!$O$12)*((A98)/'B. PoF Summary Stats & Params'!$O$12)^('B. PoF Summary Stats & Params'!$M$12-1)), "Choose Model")) -> 0.08628437407
A99: 95 | B99: 1 | C99: =IF('B. PoF Summary Stats & Params'!$C$12="C", B99*'B. PoF Summary Stats & Params'!$I$8*'B. PoF Summary Stats & Params'!$I$10*A99^('B. PoF Summary Stats & Params'!$I$10-1), IF('B. PoF Summary Stats & Params'!$C$12="W", B99*(('B. PoF Summary Stats & Params'!$M$14/'B. PoF Summary Stats & Params'!$O$14)*((A99)/'B. PoF Summary Stats & Params'!$O$14)^('B. PoF Summary Stats & Params'!$M$14-1)), "Choose Model")) -> 5.377589908 | D99: =IF('B. PoF Summary Stats & Params'!$C$12="C", B99*'B. PoF Summary Stats & Params'!$I$8*'B. PoF Summary Stats & Params'!$I$6*A99^('B. PoF Summary Stats & Params'!$I$6-1), IF('B. PoF Summary Stats & Params'!$C$12="W", B99*(('B. PoF Summary Stats & Params'!$M$6/'B. PoF Summary Stats & Params'!$M$8)*((A99)/'B. PoF Summary Stats & Params'!$M$8)^('B. PoF Summary Stats & Params'!$M$6-1)), "Choose Model")) -> 0.6939962733 | E99: =IF('B. PoF Summary Stats & Params'!$C$12="C", B99*'B. PoF Summary Stats & Params'!$I$8*'B. PoF Summary Stats & Params'!$I$12*A99^('B. PoF Summary Stats & Params'!$I$12-1), IF('B. PoF Summary Stats & Params'!$C$12="W", B99*(('B. PoF Summary Stats & Params'!$M$12/'B. PoF Summary Stats & Params'!$O$12)*((A99)/'B. PoF Summary Stats & Params'!$O$12)^('B. PoF Summary Stats & Params'!$M$12-1)), "Choose Model")) -> 0.08835893929
A100: 96 | B100: 1 | C100: =IF('B. PoF Summary Stats & Params'!$C$12="C", B100*'B. PoF Summary Stats & Params'!$I$8*'B. PoF Summary Stats & Params'!$I$10*A100^('B. PoF Summary Stats & Params'!$I$10-1), IF('B. PoF Summary Stats & Params'!$C$12="W", B100*(('B. PoF Summary Stats & Params'!$M$14/'B. PoF Summary Stats & Params'!$O$14)*((A100)/'B. PoF Summary Stats & Params'!$O$14)^('B. PoF Summary Stats & Params'!$M$14-1)), "Choose Model")) -> 5.554798912 | D100: =IF('B. PoF Summary Stats & Params'!$C$12="C", B100*'B. PoF Summary Stats & Params'!$I$8*'B. PoF Summary Stats & Params'!$I$6*A100^('B. PoF Summary Stats & Params'!$I$6-1), IF('B. PoF Summary Stats & Params'!$C$12="W", B100*(('B. PoF Summary Stats & Params'!$M$6/'B. PoF Summary Stats & Params'!$M$8)*((A100)/'B. PoF Summary Stats & Params'!$M$8)^('B. PoF Summary Stats & Params'!$M$6-1)), "Choose Model")) -> 0.7136785038 | E100: =IF('B. PoF Summary Stats & Params'!$C$12="C", B100*'B. PoF Summary Stats & Params'!$I$8*'B. PoF Summary Stats & Params'!$I$12*A100^('B. PoF Summary Stats & Params'!$I$12-1), IF('B. PoF Summary Stats & Params'!$C$12="W", B100*(('B. PoF Summary Stats & Params'!$M$12/'B. PoF Summary Stats & Params'!$O$12)*((A100)/'B. PoF Summary Stats & Params'!$O$12)^('B. PoF Summary Stats & Params'!$M$12-1)), "Choose Model")) -> 0.0904608756
A101: 97 | B101: 1 | C101: =IF('B. PoF Summary Stats & Params'!$C$12="C", B101*'B. PoF Summary Stats & Params'!$I$8*'B. PoF Summary Stats & Params'!$I$10*A101^('B. PoF Summary Stats & Params'!$I$10-1), IF('B. PoF Summary Stats & Params'!$C$12="W", B101*(('B. PoF Summary Stats & Params'!$M$14/'B. PoF Summary Stats & Params'!$O$14)*((A101)/'B. PoF Summary Stats & Params'!$O$14)^('B. PoF Summary Stats & Params'!$M$14-1)), "Choose Model")) -> 5.735920023 | D101: =IF('B. PoF Summary Stats & Params'!$C$12="C", B101*'B. PoF Summary Stats & Params'!$I$8*'B. PoF Summary Stats & Params'!$I$6*A101^('B. PoF Summary Stats & Params'!$I$6-1), IF('B. PoF Summary Stats & Params'!$C$12="W", B101*(('B. PoF Summary Stats & Params'!$M$6/'B. PoF Summary Stats & Params'!$M$8)*((A101)/'B. PoF Summary Stats & Params'!$M$8)^('B. PoF Summary Stats & Params'!$M$6-1)), "Choose Model")) -> 0.7337062714 | E101: =IF('B. PoF Summary Stats & Params'!$C$12="C", B101*'B. PoF Summary Stats & Params'!$I$8*'B. PoF Summary Stats & Params'!$I$12*A101^('B. PoF Summary Stats & Params'!$I$12-1), IF('B. PoF Summary Stats & Params'!$C$12="W", B101*(('B. PoF Summary Stats & Params'!$M$12/'B. PoF Summary Stats & Params'!$O$12)*((A101)/'B. PoF Summary Stats & Params'!$O$12)^('B. PoF Summary Stats & Params'!$M$12-1)), "Choose Model")) -> 0.09259025334
A102: 98 | B102: 1 | C102: =IF('B. PoF Summary Stats & Params'!$C$12="C", B102*'B. PoF Summary Stats & Params'!$I$8*'B. PoF Summary Stats & Params'!$I$10*A102^('B. PoF Summary Stats & Params'!$I$10-1), IF('B. PoF Summary Stats & Params'!$C$12="W", B102*(('B. PoF Summary Stats & Params'!$M$14/'B. PoF Summary Stats & Params'!$O$14)*((A102)/'B. PoF Summary Stats & Params'!$O$14)^('B. PoF Summary Stats & Params'!$M$14-1)), "Choose Model")) -> 5.920997937 | D102: =IF('B. PoF Summary Stats & Params'!$C$12="C", B102*'B. PoF Summary Stats & Params'!$I$8*'B. PoF Summary Stats & Params'!$I$6*A102^('B. PoF Summary Stats & Params'!$I$6-1), IF('B. PoF Summary Stats & Params'!$C$12="W", B102*(('B. PoF Summary Stats & Params'!$M$6/'B. PoF Summary Stats & Params'!$M$8)*((A102)/'B. PoF Summary Stats & Params'!$M$8)^('B. PoF Summary Stats & Params'!$M$6-1)), "Choose Model")) -> 0.7540819863 | E102: =IF('B. PoF Summary Stats & Params'!$C$12="C", B102*'B. PoF Summary Stats & Params'!$I$8*'B. PoF Summary Stats & Params'!$I$12*A102^('B. PoF Summary Stats & Params'!$I$12-1), IF('B. PoF Summary Stats & Params'!$C$12="W", B102*(('B. PoF Summary Stats & Params'!$M$12/'B. PoF Summary Stats & Params'!$O$12)*((A102)/'B. PoF Summary Stats & Params'!$O$12)^('B. PoF Summary Stats & Params'!$M$12-1)), "Choose Model")) -> 0.09474714234
A103: 99 | B103: 1 | C103: =IF('B. PoF Summary Stats & Params'!$C$12="C", B103*'B. PoF Summary Stats & Params'!$I$8*'B. PoF Summary Stats & Params'!$I$10*A103^('B. PoF Summary Stats & Params'!$I$10-1), IF('B. PoF Summary Stats & Params'!$C$12="W", B103*(('B. PoF Summary Stats & Params'!$M$14/'B. PoF Summary Stats & Params'!$O$14)*((A103)/'B. PoF Summary Stats & Params'!$O$14)^('B. PoF Summary Stats & Params'!$M$14-1)), "Choose Model")) -> 6.110077394 | D103: =IF('B. PoF Summary Stats & Params'!$C$12="C", B103*'B. PoF Summary Stats & Params'!$I$8*'B. PoF Summary Stats & Params'!$I$6*A103^('B. PoF Summary Stats & Params'!$I$6-1), IF('B. PoF Summary Stats & Params'!$C$12="W", B103*(('B. PoF Summary Stats & Params'!$M$6/'B. PoF Summary Stats & Params'!$M$8)*((A103)/'B. PoF Summary Stats & Params'!$M$8)^('B. PoF Summary Stats & Params'!$M$6-1)), "Choose Model")) -> 0.7748080503 | E103: =IF('B. PoF Summary Stats & Params'!$C$12="C", B103*'B. PoF Summary Stats & Params'!$I$8*'B. PoF Summary Stats & Params'!$I$12*A103^('B. PoF Summary Stats & Params'!$I$12-1), IF('B. PoF Summary Stats & Params'!$C$12="W", B103*(('B. PoF Summary Stats & Params'!$M$12/'B. PoF Summary Stats & Params'!$O$12)*((A103)/'B. PoF Summary Stats & Params'!$O$12)^('B. PoF Summary Stats & Params'!$M$12-1)), "Choose Model")) -> 0.09693161187
A104: 100 | B104: 1 | C104: =IF('B. PoF Summary Stats & Params'!$C$12="C", B104*'B. PoF Summary Stats & Params'!$I$8*'B. PoF Summary Stats & Params'!$I$10*A104^('B. PoF Summary Stats & Params'!$I$10-1), IF('B. PoF Summary Stats & Params'!$C$12="W", B104*(('B. PoF Summary Stats & Params'!$M$14/'B. PoF Summary Stats & Params'!$O$14)*((A104)/'B. PoF Summary Stats & Params'!$O$14)^('B. PoF Summary Stats & Params'!$M$14-1)), "Choose Model")) -> 6.303203179 | D104: =IF('B. PoF Summary Stats & Params'!$C$12="C", B104*'B. PoF Summary Stats & Params'!$I$8*'B. PoF Summary Stats & Params'!$I$6*A104^('B. PoF Summary Stats & Params'!$I$6-1), IF('B. PoF Summary Stats & Params'!$C$12="W", B104*(('B. PoF Summary Stats & Params'!$M$6/'B. PoF Summary Stats & Params'!$M$8)*((A104)/'B. PoF Summary Stats & Params'!$M$8)^('B. PoF Summary Stats & Params'!$M$6-1)), "Choose Model")) -> 0.7958868573 | E104: =IF('B. PoF Summary Stats & Params'!$C$12="C", B104*'B. PoF Summary Stats & Params'!$I$8*'B. PoF Summary Stats & Params'!$I$12*A104^('B. PoF Summary Stats & Params'!$I$12-1), IF('B. PoF Summary Stats & Params'!$C$12="W", B104*(('B. PoF Summary Stats & Params'!$M$12/'B. PoF Summary Stats & Params'!$O$12)*((A104)/'B. PoF Summary Stats & Params'!$O$12)^('B. PoF Summary Stats & Params'!$M$12-1)), "Choose Model")) -> 0.09914373067

Sheet B. PoF Summary Stats & Params
C1: PoF Summary Statistics and Parameters
B3: Summary Statisitics | E3: Failure Model Parameters | H3: Crow-AMSAA Parameters | L3: Weibull Parameters | R3: Health Index Parameters
B5: Number of PoF Adjustment Factors | C5: =COUNTIF('B. Population PoF Scores'!$O$5:$S$5,">"&0) -> 3
B6: Min Score | C6: =C5*1 -> 3 | E6: βavg | F6: =IF($C$12="C", I6, IF($C$12="W", M6, "Choose Model")) -> 3.670728166 | H6: βavg | I6: 3.670728166 | L6: βavg | S6: Earliest Age Asset Considered (Years) | V6: 0.5 | X6: Min PoF | Y6: =IF($C$12="C", I8*I12*V6^(I12-1), IF($C$12="W", (($M12/$O12)*((V6)/$O12)^(M12-1)), "Choose Model")) -> 6.761035032e-07
B7: Max Score | C7: =C5*5 -> 15 | E7: 95%CI Adj (β) | F7: =(F6-F14)/F6 -> 0.1159271526 | S7: Asset Standard Life (Years) | V7: 58.03338337 | X7: Max PoF | Y7: =IF($C$12="C", I8*I10*V9^(I10-1), IF($C$12="W", (($M14/$O14)*((V9)/$O14)^(M14-1)), "Choose Model")) -> 1.582862168
B8: No. of Z-Scores | C8: =5^C5 -> 125 | F8: =F6*F7 -> 0.4255370642 | H8: λavg | I8: 9.877403088e-07 | L8: havg | S8: Asset Standard Life Addition (%) | V8: 0.1 | X8: HI Categories | Y8: 10
E9: Std. Dev | F9: =SQRT(_xlfn.STDEV.P(({1;2;3;4;5}*'B. Population PoF Scores'!O5))^2+_xlfn.STDEV.P(({1;2;3;4;5}*'B. Population PoF Scores'!P5))^2+_xlfn.STDEV.P(({1;2;3;4;5}*'B. Population PoF Scores'!Q5))^2+_xlfn.STDEV.P(({1;2;3;4;5}*'B. Population PoF Scores'!R5))^2+_xlfn.STDEV.P(({1;2;3;4;5}*'B. Population PoF Scores'!S5))^2) -> 2.449489743 | S9: Asset Standard Life + Addition (%) | V9: =ROUND(V7*(1+V8), 0) -> 64 | X9: Delta per Cat. | Y9: =(Y7-Y6)/Y8 -> 0.1582861492
B10: Reference Date | C10: 2018 | E10: Max Std. Dev | F10: =(SUM('B. Population PoF Scores'!O5:S5)-F11)/F9*-1 -> 2.449489743 | H10: βpoor | I10: 4.09626523 | L10: b
E11: Average PoF Factor Score | F11: =SUM('B. Population PoF Scores'!O5:S5)*3 -> 9
B12: Crow-AMSAA or Weibull Failure Model | C12: C | E12: β ZCF Scalar | F12: =F8/F10 -> 0.173724779 | H12: βgood | I12: 3.245191102 | L12: βgood | N12: hgood | S12: HEALTH INDEX | T12: PoF Range
S13: 1 | T13: 0 | U13: =$Y$6+S13*$Y$9 -> 0.1582868253
B14: Replacement Type | C14: New Model | E14: βgood | F14: =IF($C$12="C", I12, IF($C$12="W", M12, "Choose Model")) -> 3.245191102 | L14: βpoor | N14: hpoor | S14: 2 | T14: =U13 -> 0.1582868253 | U14: 0.3165729744
E15: βpoor | F15: =IF($C$12="C", I10, IF($C$12="W", M14, "Choose Model")) -> 4.09626523 | S15: 3 | T15: 0.3165729744 | U15: 0.4748591236
E16: λpopulation | F16: =IF($C$12="C", I8, "Not Applicable") -> 9.877403088e-07 | S16: 4 | T16: 0.4748591236 | U16: 0.6331452728
S17: 5 | T17: 0.6331452728 | U17: 0.7914314219
E18: havg | F18: =IF($C$12="C", "Not Applicable", M8) -> Not Applicable | S18: 6 | T18: 0.7914314219 | U18: 0.9497175711
E19: Intercept (b) | F19: =IF($C$12="C", "Not Applicable", M10) -> Not Applicable | S19: 7 | T19: 0.9497175711 | U19: 1.10800372
E20: hgood | F20: =IF($C$12="C", "Not Applicable", O12) -> Not Applicable | S20: 8 | T20: 1.10800372 | U20: 1.266289869
E21: 95%CI Adj (hgood) | F21: =IF($C$12="C", "Not Applicable", (F20-M8)/M8) -> Not Applicable | S21: 9 | T21: 1.266289869 | U21: 1.424576019
S22: 10 | T22: 1.424576019 | U22: 1.582862168
E23: hpoor | F23: =IF($C$12="C", "Not Applicable", O14) -> Not Applicable
E24: 95%CI Adj (hpoor) | F24: =IF($C$12="C", "Not Applicable", (F23-M8)/M8) -> Not Applicable
E26: Replacement Asset PoF | F26: =IF($C$14="Like-for-like",IF($C$12="C",I8*I6*V6^(I12-1),IF($C$12="W",(($M6/$M8)*((V6)/$M8)^(M6-1)),"Choose Model")),IF($C$14="New model",IF($C$12="C", I8*I12*V6^(I12-1), IF($C$12="W", (($M12/$O12)*((V6)/$O12)^(M12-1)), "Choose Model")))) -> 6.761035032e-07

Sheet B. PoF Adj Factor Scoring
C1: PoF Adjustment Factors and Scores
B3: PoF Affect | C3: PoF Score | E3: Type | H3: Construction Type | K3: Distance_To_Coast_Score | N3: Factor 4 | Q3: Factor 5 | T3: ='B. Population PoF Scores'!B4 -> Type | V3: ='B. Population PoF Scores'!C4 -> Construction Type | X3: ='B. Population PoF Scores'!D4 -> Distance_To_Coast_Score | Z3: ='B. Population PoF Scores'!E4 -> 0 | AB3: ='B. Population PoF Scores'!F4 -> 0
N4: Factor 4 - Description | Q4: Factor 5 - Description | T4: Factor Value | U4: PoF Score | V4: Factor Value | W4: PoF Score | X4: Factor Value | Y4: PoF Score | Z4: Factor Value | AA4: PoF Score | AB4: Factor Value | AC4: PoF Score
T5: ACSR | U5: 5 | V5: Bare | W5: 5 | X5: 1 | Y5: 1
B6: Insignificant | C6: 1 | E6: Unknown | F6: 1 | H6: Bare | I6: 5 | K6: 1 | L6: 1 | O6: 1 | R6: 1 | T6: STEEL MAINS | U6: 5 | V6: Insulated | W6: 1 | X6: 2 | Y6: 2
B7: Minor | C7: 2 | E7: ACSR | F7: 5 | H7: Insulated | I7: 1 | K7: 2 | L7: 2 | O7: 2 | R7: 2 | T7: Unknown | U7: 1 | X7: 3 | Y7: 3
B8: Moderate | C8: 3 | E8: STEEL MAINS | F8: 5 | K8: 3 | L8: 3 | O8: 3 | R8: 3 | X8: 4 | Y8: 4
B9: Major | C9: 4 | K9: 4 | L9: 4 | O9: 4 | R9: 4 | X9: 5 | Y9: 5
B10: Severe | C10: 5 | K10: 5 | L10: 5 | O10: 4 | R10: 5

Sheet B. Population PoF Scores
C1: Population PoF Scores
A3: Asset Identifier | B3: POF ADJUSTMENT FACTORS | G3: POF SCORES
B4: ='A. Population Info'!G5 -> Type | C4: ='A. Population Info'!H5 -> Construction Type | D4: ='A. Population Info'!I5 -> Distance_To_Coast_Score | E4: ='A. Population Info'!J5 -> 0 | F4: ='A. Population Info'!K5 -> 0 | G4: =B4 -> Type | H4: =C4 -> Construction Type | I4: =D4 -> Distance_To_Coast_Score | J4: =E4 -> 0 | K4: =F4 -> 0 | O4: =B4 -> Type | P4: =C4 -> Construction Type | Q4: =D4 -> Distance_To_Coast_Score | R4: =E4 -> 0 | S4: =F4 -> 0
G5: =O5 -> 1 | H5: =P5 -> 1 | I5: =Q5 -> 1 | N5: Weighting 1 | O5: 1 | P5: 1 | Q5: 1 | R5: 0 | S5: 0
A6: ZN00227/013015 | B6: ='A. Population Info'!G6 -> Unknown | C6: ='A. Population Info'!H6 -> Insulated | D6: ='A. Population Info'!I6 -> 4 | E6: ='A. Population Info'!J6 -> 0 | F6: ='A. Population Info'!K6 -> 0 | G6: =VLOOKUP(B:B,OFFSET('B. PoF Adj Factor Scoring'!$T$5:$U$282,,MATCH(G$4,'B. PoF Adj Factor Scoring'!$T$3:$AC$3,0)-1),2,TRUE) -> 1 | H6: =VLOOKUP(C:C,OFFSET('B. PoF Adj Factor Scoring'!$T$5:$U$282,,MATCH(H$4,'B. PoF Adj Factor Scoring'!$T$3:$AC$3,0)-1),2,TRUE) -> 1 | I6: =VLOOKUP(D:D,OFFSET('B. PoF Adj Factor Scoring'!$T$5:$U$282,,MATCH(I$4,'B. PoF Adj Factor Scoring'!$T$3:$AC$3,0)-1),2,TRUE) -> 4
A7: ZN00270/083591 | B7: ='A. Population Info'!G7 -> Unknown | C7: ='A. Population Info'!H7 -> Insulated | D7: ='A. Population Info'!I7 -> 5 | E7: ='A. Population Info'!J7 -> 0 | F7: ='A. Population Info'!K7 -> 0 | G7: =VLOOKUP(B:B,OFFSET('B. PoF Adj Factor Scoring'!$T$5:$U$282,,MATCH(G$4,'B. PoF Adj Factor Scoring'!$T$3:$AC$3,0)-1),2,TRUE) -> 1 | H7: =VLOOKUP(C:C,OFFSET('B. PoF Adj Factor Scoring'!$T$5:$U$282,,MATCH(H$4,'B. PoF Adj Factor Scoring'!$T$3:$AC$3,0)-1),2,TRUE) -> 1 | I7: =VLOOKUP(D:D,OFFSET('B. PoF Adj Factor Scoring'!$T$5:$U$282,,MATCH(I$4,'B. PoF Adj Factor Scoring'!$T$3:$AC$3,0)-1),2,TRUE) -> 5
A8: ZN15009/000003 | B8: ='A. Population Info'!G8 -> Unknown | C8: ='A. Population Info'!H8 -> Bare | D8: ='A. Population Info'!I8 -> 5 | E8: ='A. Population Info'!J8 -> 0 | F8: ='A. Population Info'!K8 -> 0 | G8: =VLOOKUP(B:B,OFFSET('B. PoF Adj Factor Scoring'!$T$5:$U$282,,MATCH(G$4,'B. PoF Adj Factor Scoring'!$T$3:$AC$3,0)-1),2,TRUE) -> 1 | H8: =VLOOKUP(C:C,OFFSET('B. PoF Adj Factor Scoring'!$T$5:$U$282,,MATCH(H$4,'B. PoF Adj Factor Scoring'!$T$3:$AC$3,0)-1),2,TRUE) -> 5 | I8: =VLOOKUP(D:D,OFFSET('B. PoF Adj Factor Scoring'!$T$5:$U$282,,MATCH(I$4,'B. PoF Adj Factor Scoring'!$T$3:$AC$3,0)-1),2,TRUE) -> 5
A9: ZN00524/033580 | B9: ='A. Population Info'!G9 -> Unknown | C9: ='A. Population Info'!H9 -> Insulated | D9: ='A. Population Info'!I9 -> 1 | E9: ='A. Population Info'!J9 -> 0 | F9: ='A. Population Info'!K9 -> 0 | G9: =VLOOKUP(B:B,OFFSET('B. PoF Adj Factor Scoring'!$T$5:$U$282,,MATCH(G$4,'B. PoF Adj Factor Scoring'!$T$3:$AC$3,0)-1),2,TRUE) -> 1 | H9: =VLOOKUP(C:C,OFFSET('B. PoF Adj Factor Scoring'!$T$5:$U$282,,MATCH(H$4,'B. PoF Adj Factor Scoring'!$T$3:$AC$3,0)-1),2,TRUE) -> 1 | I9: =VLOOKUP(D:D,OFFSET('B. PoF Adj Factor Scoring'!$T$5:$U$282,,MATCH(I$4,'B. PoF Adj Factor Scoring'!$T$3:$AC$3,0)-1),2,TRUE) -> 1
A10: ZN15011/00006R | B10: ='A. Population Info'!G10 -> Unknown | C10: ='A. Population Info'!H10 -> Insulated | D10: ='A. Population Info'!I10 -> 4 | E10: ='A. Population Info'!J10 -> 0 | F10: ='A. Population Info'!K10 -> 0 | G10: =VLOOKUP(B:B,OFFSET('B. PoF Adj Factor Scoring'!$T$5:$U$282,,MATCH(G$4,'B. PoF Adj Factor Scoring'!$T$3:$AC$3,0)-1),2,TRUE) -> 1 | H10: =VLOOKUP(C:C,OFFSET('B. PoF Adj Factor Scoring'!$T$5:$U$282,,MATCH(H$4,'B. PoF Adj Factor Scoring'!$T$3:$AC$3,0)-1),2,TRUE) -> 1 | I10: =VLOOKUP(D:D,OFFSET('B. PoF Adj Factor Scoring'!$T$5:$U$282,,MATCH(I$4,'B. PoF Adj Factor Scoring'!$T$3:$AC$3,0)-1),2,TRUE) -> 4
A11: ZN00847/000044 | B11: ='A. Population Info'!G11 -> Unknown | C11: ='A. Population Info'!H11 -> Insulated | D11: ='A. Population Info'!I11 -> 3 | E11: ='A. Population Info'!J11 -> 0 | F11: ='A. Population Info'!K11 -> 0 | G11: =VLOOKUP(B:B,OFFSET('B. PoF Adj Factor Scoring'!$T$5:$U$282,,MATCH(G$4,'B. PoF Adj Factor Scoring'!$T$3:$AC$3,0)-1),2,TRUE) -> 1 | H11: =VLOOKUP(C:C,OFFSET('B. PoF Adj Factor Scoring'!$T$5:$U$282,,MATCH(H$4,'B. PoF Adj Factor Scoring'!$T$3:$AC$3,0)-1),2,TRUE) -> 1 | I11: =VLOOKUP(D:D,OFFSET('B. PoF Adj Factor Scoring'!$T$5:$U$282,,MATCH(I$4,'B. PoF Adj Factor Scoring'!$T$3:$AC$3,0)-1),2,TRUE) -> 3
A12: ZN00217/033611 | B12: ='A. Population Info'!G12 -> Unknown | C12: ='A. Population Info'!H12 -> Insulated | D12: ='A. Population Info'!I12 -> 5 | E12: ='A. Population Info'!J12 -> 0 | F12: ='A. Population Info'!K12 -> 0 | G12: =VLOOKUP(B:B,OFFSET('B. PoF Adj Factor Scoring'!$T$5:$U$282,,MATCH(G$4,'B. PoF Adj Factor Scoring'!$T$3:$AC$3,0)-1),2,TRUE) -> 1 | H12: =VLOOKUP(C:C,OFFSET('B. PoF Adj Factor Scoring'!$T$5:$U$282,,MATCH(H$4,'B. PoF Adj Factor Scoring'!$T$3:$AC$3,0)-1),2,TRUE) -> 1 | I12: =VLOOKUP(D:D,OFFSET('B. PoF Adj Factor Scoring'!$T$5:$U$282,,MATCH(I$4,'B. PoF Adj Factor Scoring'!$T$3:$AC$3,0)-1),2,TRUE) -> 5
A13: ZN00507/080925 | B13: ='A. Population Info'!G13 -> Unknown | C13: ='A. Population Info'!H13 -> Insulated | D13: ='A. Population Info'!I13 -> 2 | E13: ='A. Population Info'!J13 -> 0 | F13: ='A. Population Info'!K13 -> 0 | G13: =VLOOKUP(B:B,OFFSET('B. PoF Adj Factor Scoring'!$T$5:$U$282,,MATCH(G$4,'B. PoF Adj Factor Scoring'!$T$3:$AC$3,0)-1),2,TRUE) -> 1 | H13: =VLOOKUP(C:C,OFFSET('B. PoF Adj Factor Scoring'!$T$5:$U$282,,MATCH(H$4,'B. PoF Adj Factor Scoring'!$T$3:$AC$3,0)-1),2,TRUE) -> 1 | I13: =VLOOKUP(D:D,OFFSET('B. PoF Adj Factor Scoring'!$T$5:$U$282,,MATCH(I$4,'B. PoF Adj Factor Scoring'!$T$3:$AC$3,0)-1),2,TRUE) -> 2
A14: ZN00847/000021 | B14: ='A. Population Info'!G14 -> Unknown | C14: ='A. Population Info'!H14 -> Insulated | D14: ='A. Population Info'!I14 -> 3 | E14: ='A. Population Info'!J14 -> 0 | F14: ='A. Population Info'!K14 -> 0 | G14: =VLOOKUP(B:B,OFFSET('B. PoF Adj Factor Scoring'!$T$5:$U$282,,MATCH(G$4,'B. PoF Adj Factor Scoring'!$T$3:$AC$3,0)-1),2,TRUE) -> 1 | H14: =VLOOKUP(C:C,OFFSET('B. PoF Adj Factor Scoring'!$T$5:$U$282,,MATCH(H$4,'B. PoF Adj Factor Scoring'!$T$3:$AC$3,0)-1),2,TRUE) -> 1 | I14: =VLOOKUP(D:D,OFFSET('B. PoF Adj Factor Scoring'!$T$5:$U$282,,MATCH(I$4,'B. PoF Adj Factor Scoring'!$T$3:$AC$3,0)-1),2,TRUE) -> 3
A15: ZN00847/000021 | B15: ='A. Population Info'!G15 -> Unknown | C15: ='A. Population Info'!H15 -> Insulated | D15: ='A. Population Info'!I15 -> 3 | E15: ='A. Population Info'!J15 -> 0 | F15: ='A. Population Info'!K15 -> 0 | G15: =VLOOKUP(B:B,OFFSET('B. PoF Adj Factor Scoring'!$T$5:$U$282,,MATCH(G$4,'B. PoF Adj Factor Scoring'!$T$3:$AC$3,0)-1),2,TRUE) -> 1 | H15: =VLOOKUP(C:C,OFFSET('B. PoF Adj Factor Scoring'!$T$5:$U$282,,MATCH(H$4,'B. PoF Adj Factor Scoring'!$T$3:$AC$3,0)-1),2,TRUE) -> 1 | I15: =VLOOKUP(D:D,OFFSET('B. PoF Adj Factor Scoring'!$T$5:$U$282,,MATCH(I$4,'B. PoF Adj Factor Scoring'!$T$3:$AC$3,0)-1),2,TRUE) -> 3
A16: ZN00507/080922 | B16: ='A. Population Info'!G16 -> Unknown | C16: ='A. Population Info'!H16 -> Insulated | D16: ='A. Population Info'!I16 -> 2 | E16: ='A. Population Info'!J16 -> 0 | F16: ='A. Population Info'!K16 -> 0 | G16: =VLOOKUP(B:B,OFFSET('B. PoF Adj Factor Scoring'!$T$5:$U$282,,MATCH(G$4,'B. PoF Adj Factor Scoring'!$T$3:$AC$3,0)-1),2,TRUE) -> 1 | H16: =VLOOKUP(C:C,OFFSET('B. PoF Adj Factor Scoring'!$T$5:$U$282,,MATCH(H$4,'B. PoF Adj Factor Scoring'!$T$3:$AC$3,0)-1),2,TRUE) -> 1 | I16: =VLOOKUP(D:D,OFFSET('B. PoF Adj Factor Scoring'!$T$5:$U$282,,MATCH(I$4,'B. PoF Adj Factor Scoring'!$T$3:$AC$3,0)-1),2,TRUE) -> 2
A17: ZN00508/082574 | B17: ='A. Population Info'!G17 -> Unknown | C17: ='A. Population Info'!H17 -> Insulated | D17: ='A. Population Info'!I17 -> 3 | E17: ='A. Population Info'!J17 -> 0 | F17: ='A. Population Info'!K17 -> 0 | G17: =VLOOKUP(B:B,OFFSET('B. PoF Adj Factor Scoring'!$T$5:$U$282,,MATCH(G$4,'B. PoF Adj Factor Scoring'!$T$3:$AC$3,0)-1),2,TRUE) -> 1 | H17: =VLOOKUP(C:C,OFFSET('B. PoF Adj Factor Scoring'!$T$5:$U$282,,MATCH(H$4,'B. PoF Adj Factor Scoring'!$T$3:$AC$3,0)-1),2,TRUE) -> 1 | I17: =VLOOKUP(D:D,OFFSET('B. PoF Adj Factor Scoring'!$T$5:$U$282,,MATCH(I$4,'B. PoF Adj Factor Scoring'!$T$3:$AC$3,0)-1),2,TRUE) -> 3
A18: ZN12570/000029 | B18: ='A. Population Info'!G18 -> Unknown | C18: ='A. Population Info'!H18 -> Insulated | D18: ='A. Population Info'!I18 -> 5 | E18: ='A. Population Info'!J18 -> 0 | F18: ='A. Population Info'!K18 -> 0 | G18: =VLOOKUP(B:B,OFFSET('B. PoF Adj Factor Scoring'!$T$5:$U$282,,MATCH(G$4,'B. PoF Adj Factor Scoring'!$T$3:$AC$3,0)-1),2,TRUE) -> 1 | H18: =VLOOKUP(C:C,OFFSET('B. PoF Adj Factor Scoring'!$T$5:$U$282,,MATCH(H$4,'B. PoF Adj Factor Scoring'!$T$3:$AC$3,0)-1),2,TRUE) -> 1 | I18: =VLOOKUP(D:D,OFFSET('B. PoF Adj Factor Scoring'!$T$5:$U$282,,MATCH(I$4,'B. PoF Adj Factor Scoring'!$T$3:$AC$3,0)-1),2,TRUE) -> 5
A19: ZN00195/000029 | B19: ='A. Population Info'!G19 -> Unknown | C19: ='A. Population Info'!H19 -> Bare | D19: ='A. Population Info'!I19 -> 3 | E19: ='A. Population Info'!J19 -> 0 | F19: ='A. Population Info'!K19 -> 0 | G19: =VLOOKUP(B:B,OFFSET('B. PoF Adj Factor Scoring'!$T$5:$U$282,,MATCH(G$4,'B. PoF Adj Factor Scoring'!$T$3:$AC$3,0)-1),2,TRUE) -> 1 | H19: =VLOOKUP(C:C,OFFSET('B. PoF Adj Factor Scoring'!$T$5:$U$282,,MATCH(H$4,'B. PoF Adj Factor Scoring'!$T$3:$AC$3,0)-1),2,TRUE) -> 5 | I19: =VLOOKUP(D:D,OFFSET('B. PoF Adj Factor Scoring'!$T$5:$U$282,,MATCH(I$4,'B. PoF Adj Factor Scoring'!$T$3:$AC$3,0)-1),2,TRUE) -> 3
A20: ZN01193/00028L | B20: ='A. Population Info'!G20 -> Unknown | C20: ='A. Population Info'!H20 -> Insulated | D20: ='A. Population Info'!I20 -> 5 | E20: ='A. Population Info'!J20 -> 0 | F20: ='A. Population Info'!K20 -> 0 | G20: =VLOOKUP(B:B,OFFSET('B. PoF Adj Factor Scoring'!$T$5:$U$282,,MATCH(G$4,'B. PoF Adj Factor Scoring'!$T$3:$AC$3,0)-1),2,TRUE) -> 1 | H20: =VLOOKUP(C:C,OFFSET('B. PoF Adj Factor Scoring'!$T$5:$U$282,,MATCH(H$4,'B. PoF Adj Factor Scoring'!$T$3:$AC$3,0)-1),2,TRUE) -> 1 | I20: =VLOOKUP(D:D,OFFSET('B. PoF Adj Factor Scoring'!$T$5:$U$282,,MATCH(I$4,'B. PoF Adj Factor Scoring'!$T$3:$AC$3,0)-1),2,TRUE) -> 5
A21: ZN00238/034150 | B21: ='A. Population Info'!G21 -> Unknown | C21: ='A. Population Info'!H21 -> Insulated | D21: ='A. Population Info'!I21 -> 3 | E21: ='A. Population Info'!J21 -> 0 | F21: ='A. Population Info'!K21 -> 0 | G21: =VLOOKUP(B:B,OFFSET('B. PoF Adj Factor Scoring'!$T$5:$U$282,,MATCH(G$4,'B. PoF Adj Factor Scoring'!$T$3:$AC$3,0)-1),2,TRUE) -> 1 | H21: =VLOOKUP(C:C,OFFSET('B. PoF Adj Factor Scoring'!$T$5:$U$282,,MATCH(H$4,'B. PoF Adj Factor Scoring'!$T$3:$AC$3,0)-1),2,TRUE) -> 1 | I21: =VLOOKUP(D:D,OFFSET('B. PoF Adj Factor Scoring'!$T$5:$U$282,,MATCH(I$4,'B. PoF Adj Factor Scoring'!$T$3:$AC$3,0)-1),2,TRUE) -> 3
A22: ZN00807/074181 | B22: ='A. Population Info'!G22 -> ACSR | C22: ='A. Population Info'!H22 -> Bare | D22: ='A. Population Info'!I22 -> 1 | E22: ='A. Population Info'!J22 -> 0 | F22: ='A. Population Info'!K22 -> 0 | G22: =VLOOKUP(B:B,OFFSET('B. PoF Adj Factor Scoring'!$T$5:$U$282,,MATCH(G$4,'B. PoF Adj Factor Scoring'!$T$3:$AC$3,0)-1),2,TRUE) -> 5 | H22: =VLOOKUP(C:C,OFFSET('B. PoF Adj Factor Scoring'!$T$5:$U$282,,MATCH(H$4,'B. PoF Adj Factor Scoring'!$T$3:$AC$3,0)-1),2,TRUE) -> 5 | I22: =VLOOKUP(D:D,OFFSET('B. PoF Adj Factor Scoring'!$T$5:$U$282,,MATCH(I$4,'B. PoF Adj Factor Scoring'!$T$3:$AC$3,0)-1),2,TRUE) -> 1
A23: ZN00080/000025 | B23: ='A. Population Info'!G23 -> Unknown | C23: ='A. Population Info'!H23 -> Insulated | D23: ='A. Population Info'!I23 -> 5 | E23: ='A. Population Info'!J23 -> 0 | F23: ='A. Population Info'!K23 -> 0 | G23: =VLOOKUP(B:B,OFFSET('B. PoF Adj Factor Scoring'!$T$5:$U$282,,MATCH(G$4,'B. PoF Adj Factor Scoring'!$T$3:$AC$3,0)-1),2,TRUE) -> 1 | H23: =VLOOKUP(C:C,OFFSET('B. PoF Adj Factor Scoring'!$T$5:$U$282,,MATCH(H$4,'B. PoF Adj Factor Scoring'!$T$3:$AC$3,0)-1),2,TRUE) -> 1 | I23: =VLOOKUP(D:D,OFFSET('B. PoF Adj Factor Scoring'!$T$5:$U$282,,MATCH(I$4,'B. PoF Adj Factor Scoring'!$T$3:$AC$3,0)-1),2,TRUE) -> 5
A24: ZN03154/000017 | B24: ='A. Population Info'!G24 -> Unknown | C24: ='A. Population Info'!H24 -> Insulated | D24: ='A. Population Info'!I24 -> 5 | E24: ='A. Population Info'!J24 -> 0 | F24: ='A. Population Info'!K24 -> 0 | G24: =VLOOKUP(B:B,OFFSET('B. PoF Adj Factor Scoring'!$T$5:$U$282,,MATCH(G$4,'B. PoF Adj Factor Scoring'!$T$3:$AC$3,0)-1),2,TRUE) -> 1 | H24: =VLOOKUP(C:C,OFFSET('B. PoF Adj Factor Scoring'!$T$5:$U$282,,MATCH(H$4,'B. PoF Adj Factor Scoring'!$T$3:$AC$3,0)-1),2,TRUE) -> 1 | I24: =VLOOKUP(D:D,OFFSET('B. PoF Adj Factor Scoring'!$T$5:$U$282,,MATCH(I$4,'B. PoF Adj Factor Scoring'!$T$3:$AC$3,0)-1),2,TRUE) -> 5
A25: ZN00258/080787 | B25: ='A. Population Info'!G25 -> Unknown | C25: ='A. Population Info'!H25 -> Bare | D25: ='A. Population Info'!I25 -> 5 | E25: ='A. Population Info'!J25 -> 0 | F25: ='A. Population Info'!K25 -> 0 | G25: =VLOOKUP(B:B,OFFSET('B. PoF Adj Factor Scoring'!$T$5:$U$282,,MATCH(G$4,'B. PoF Adj Factor Scoring'!$T$3:$AC$3,0)-1),2,TRUE) -> 1 | H25: =VLOOKUP(C:C,OFFSET('B. PoF Adj Factor Scoring'!$T$5:$U$282,,MATCH(H$4,'B. PoF Adj Factor Scoring'!$T$3:$AC$3,0)-1),2,TRUE) -> 5 | I25: =VLOOKUP(D:D,OFFSET('B. PoF Adj Factor Scoring'!$T$5:$U$282,,MATCH(I$4,'B. PoF Adj Factor Scoring'!$T$3:$AC$3,0)-1),2,TRUE) -> 5
A26: ZN03154/000017 | B26: ='A. Population Info'!G26 -> Unknown | C26: ='A. Population Info'!H26 -> Insulated | D26: ='A. Population Info'!I26 -> 5 | E26: ='A. Population Info'!J26 -> 0 | F26: ='A. Population Info'!K26 -> 0 | G26: =VLOOKUP(B:B,OFFSET('B. PoF Adj Factor Scoring'!$T$5:$U$282,,MATCH(G$4,'B. PoF Adj Factor Scoring'!$T$3:$AC$3,0)-1),2,TRUE) -> 1 | H26: =VLOOKUP(C:C,OFFSET('B. PoF Adj Factor Scoring'!$T$5:$U$282,,MATCH(H$4,'B. PoF Adj Factor Scoring'!$T$3:$AC$3,0)-1),2,TRUE) -> 1 | I26: =VLOOKUP(D:D,OFFSET('B. PoF Adj Factor Scoring'!$T$5:$U$282,,MATCH(I$4,'B. PoF Adj Factor Scoring'!$T$3:$AC$3,0)-1),2,TRUE) -> 5
A27: ZN00221/011897 | B27: ='A. Population Info'!G27 -> Unknown | C27: ='A. Population Info'!H27 -> Insulated | D27: ='A. Population Info'!I27 -> 3 | E27: ='A. Population Info'!J27 -> 0 | F27: ='A. Population Info'!K27 -> 0 | G27: =VLOOKUP(B:B,OFFSET('B. PoF Adj Factor Scoring'!$T$5:$U$282,,MATCH(G$4,'B. PoF Adj Factor Scoring'!$T$3:$AC$3,0)-1),2,TRUE) -> 1 | H27: =VLOOKUP(C:C,OFFSET('B. PoF Adj Factor Scoring'!$T$5:$U$282,,MATCH(H$4,'B. PoF Adj Factor Scoring'!$T$3:$AC$3,0)-1),2,TRUE) -> 1 | I27: =VLOOKUP(D:D,OFFSET('B. PoF Adj Factor Scoring'!$T$5:$U$282,,MATCH(I$4,'B. PoF Adj Factor Scoring'!$T$3:$AC$3,0)-1),2,TRUE) -> 3
A28: ZN00239/082129 | B28: ='A. Population Info'!G28 -> Unknown | C28: ='A. Population Info'!H28 -> Insulated | D28: ='A. Population Info'!I28 -> 5 | E28: ='A. Population Info'!J28 -> 0 | F28: ='A. Population Info'!K28 -> 0 | G28: =VLOOKUP(B:B,OFFSET('B. PoF Adj Factor Scoring'!$T$5:$U$282,,MATCH(G$4,'B. PoF Adj Factor Scoring'!$T$3:$AC$3,0)-1),2,TRUE) -> 1 | H28: =VLOOKUP(C:C,OFFSET('B. PoF Adj Factor Scoring'!$T$5:$U$282,,MATCH(H$4,'B. PoF Adj Factor Scoring'!$T$3:$AC$3,0)-1),2,TRUE) -> 1 | I28: =VLOOKUP(D:D,OFFSET('B. PoF Adj Factor Scoring'!$T$5:$U$282,,MATCH(I$4,'B. PoF Adj Factor Scoring'!$T$3:$AC$3,0)-1),2,TRUE) -> 5
A29: ZN14891/000010 | B29: ='A. Population Info'!G29 -> Unknown | C29: ='A. Population Info'!H29 -> Insulated | D29: ='A. Population Info'!I29 -> 5 | E29: ='A. Population Info'!J29 -> 0 | F29: ='A. Population Info'!K29 -> 0 | G29: =VLOOKUP(B:B,OFFSET('B. PoF Adj Factor Scoring'!$T$5:$U$282,,MATCH(G$4,'B. PoF Adj Factor Scoring'!$T$3:$AC$3,0)-1),2,TRUE) -> 1 | H29: =VLOOKUP(C:C,OFFSET('B. PoF Adj Factor Scoring'!$T$5:$U$282,,MATCH(H$4,'B. PoF Adj Factor Scoring'!$T$3:$AC$3,0)-1),2,TRUE) -> 1 | I29: =VLOOKUP(D:D,OFFSET('B. PoF Adj Factor Scoring'!$T$5:$U$282,,MATCH(I$4,'B. PoF Adj Factor Scoring'!$T$3:$AC$3,0)-1),2,TRUE) -> 5
A30: ZN00233/082819 | B30: ='A. Population Info'!G30 -> Unknown | C30: ='A. Population Info'!H30 -> Insulated | D30: ='A. Population Info'!I30 -> 3 | E30: ='A. Population Info'!J30 -> 0 | F30: ='A. Population Info'!K30 -> 0 | G30: =VLOOKUP(B:B,OFFSET('B. PoF Adj Factor Scoring'!$T$5:$U$282,,MATCH(G$4,'B. PoF Adj Factor Scoring'!$T$3:$AC$3,0)-1),2,TRUE) -> 1 | H30: =VLOOKUP(C:C,OFFSET('B. PoF Adj Factor Scoring'!$T$5:$U$282,,MATCH(H$4,'B. PoF Adj Factor Scoring'!$T$3:$AC$3,0)-1),2,TRUE) -> 1 | I30: =VLOOKUP(D:D,OFFSET('B. PoF Adj Factor Scoring'!$T$5:$U$282,,MATCH(I$4,'B. PoF Adj Factor Scoring'!$T$3:$AC$3,0)-1),2,TRUE) -> 3
A31: ZN02635/000052 | B31: ='A. Population Info'!G31 -> Unknown | C31: ='A. Population Info'!H31 -> Insulated | D31: ='A. Population Info'!I31 -> 3 | E31: ='A. Population Info'!J31 -> 0 | F31: ='A. Population Info'!K31 -> 0 | G31: =VLOOKUP(B:B,OFFSET('B. PoF Adj Factor Scoring'!$T$5:$U$282,,MATCH(G$4,'B. PoF Adj Factor Scoring'!$T$3:$AC$3,0)-1),2,TRUE) -> 1 | H31: =VLOOKUP(C:C,OFFSET('B. PoF Adj Factor Scoring'!$T$5:$U$282,,MATCH(H$4,'B. PoF Adj Factor Scoring'!$T$3:$AC$3,0)-1),2,TRUE) -> 1 | I31: =VLOOKUP(D:D,OFFSET('B. PoF Adj Factor Scoring'!$T$5:$U$282,,MATCH(I$4,'B. PoF Adj Factor Scoring'!$T$3:$AC$3,0)-1),2,TRUE) -> 3
A32: ZN15014/000022 | B32: ='A. Population Info'!G32 -> Unknown | C32: ='A. Population Info'!H32 -> Insulated | D32: ='A. Population Info'!I32 -> 5 | E32: ='A. Population Info'!J32 -> 0 | F32: ='A. Population Info'!K32 -> 0 | G32: =VLOOKUP(B:B,OFFSET('B. PoF Adj Factor Scoring'!$T$5:$U$282,,MATCH(G$4,'B. PoF Adj Factor Scoring'!$T$3:$AC$3,0)-1),2,TRUE) -> 1 | H32: =VLOOKUP(C:C,OFFSET('B. PoF Adj Factor Scoring'!$T$5:$U$282,,MATCH(H$4,'B. PoF Adj Factor Scoring'!$T$3:$AC$3,0)-1),2,TRUE) -> 1 | I32: =VLOOKUP(D:D,OFFSET('B. PoF Adj Factor Scoring'!$T$5:$U$282,,MATCH(I$4,'B. PoF Adj Factor Scoring'!$T$3:$AC$3,0)-1),2,TRUE) -> 5
A33: ZN00802/082215 | B33: ='A. Population Info'!G33 -> Unknown | C33: ='A. Population Info'!H33 -> Insulated | D33: ='A. Population Info'!I33 -> 1 | E33: ='A. Population Info'!J33 -> 0 | F33: ='A. Population Info'!K33 -> 0 | G33: =VLOOKUP(B:B,OFFSET('B. PoF Adj Factor Scoring'!$T$5:$U$282,,MATCH(G$4,'B. PoF Adj Factor Scoring'!$T$3:$AC$3,0)-1),2,TRUE) -> 1 | H33: =VLOOKUP(C:C,OFFSET('B. PoF Adj Factor Scoring'!$T$5:$U$282,,MATCH(H$4,'B. PoF Adj Factor Scoring'!$T$3:$AC$3,0)-1),2,TRUE) -> 1 | I33: =VLOOKUP(D:D,OFFSET('B. PoF Adj Factor Scoring'!$T$5:$U$282,,MATCH(I$4,'B. PoF Adj Factor Scoring'!$T$3:$AC$3,0)-1),2,TRUE) -> 1
A34: ZN12650/00017R | B34: ='A. Population Info'!G34 -> Unknown | C34: ='A. Population Info'!H34 -> Insulated | D34: ='A. Population Info'!I34 -> 5 | E34: ='A. Population Info'!J34 -> 0 | F34: ='A. Population Info'!K34 -> 0 | G34: =VLOOKUP(B:B,OFFSET('B. PoF Adj Factor Scoring'!$T$5:$U$282,,MATCH(G$4,'B. PoF Adj Factor Scoring'!$T$3:$AC$3,0)-1),2,TRUE) -> 1 | H34: =VLOOKUP(C:C,OFFSET('B. PoF Adj Factor Scoring'!$T$5:$U$282,,MATCH(H$4,'B. PoF Adj Factor Scoring'!$T$3:$AC$3,0)-1),2,TRUE) -> 1 | I34: =VLOOKUP(D:D,OFFSET('B. PoF Adj Factor Scoring'!$T$5:$U$282,,MATCH(I$4,'B. PoF Adj Factor Scoring'!$T$3:$AC$3,0)-1),2,TRUE) -> 5
A35: ZN15014/000022 | B35: ='A. Population Info'!G35 -> Unknown | C35: ='A. Population Info'!H35 -> Insulated | D35: ='A. Population Info'!I35 -> 5 | E35: ='A. Population Info'!J35 -> 0 | F35: ='A. Population Info'!K35 -> 0 | G35: =VLOOKUP(B:B,OFFSET('B. PoF Adj Factor Scoring'!$T$5:$U$282,,MATCH(G$4,'B. PoF Adj Factor Scoring'!$T$3:$AC$3,0)-1),2,TRUE) -> 1 | H35: =VLOOKUP(C:C,OFFSET('B. PoF Adj Factor Scoring'!$T$5:$U$282,,MATCH(H$4,'B. PoF Adj Factor Scoring'!$T$3:$AC$3,0)-1),2,TRUE) -> 1 | I35: =VLOOKUP(D:D,OFFSET('B. PoF Adj Factor Scoring'!$T$5:$U$282,,MATCH(I$4,'B. PoF Adj Factor Scoring'!$T$3:$AC$3,0)-1),2,TRUE) -> 5
A36: ZN00526/034636 | B36: ='A. Population Info'!G36 -> Unknown | C36: ='A. Population Info'!H36 -> Insulated | D36: ='A. Population Info'!I36 -> 1 | E36: ='A. Population Info'!J36 -> 0 | F36: ='A. Population Info'!K36 -> 0 | G36: =VLOOKUP(B:B,OFFSET('B. PoF Adj Factor Scoring'!$T$5:$U$282,,MATCH(G$4,'B. PoF Adj Factor Scoring'!$T$3:$AC$3,0)-1),2,TRUE) -> 1 | H36: =VLOOKUP(C:C,OFFSET('B. PoF Adj Factor Scoring'!$T$5:$U$282,,MATCH(H$4,'B. PoF Adj Factor Scoring'!$T$3:$AC$3,0)-1),2,TRUE) -> 1 | I36: =VLOOKUP(D:D,OFFSET('B. PoF Adj Factor Scoring'!$T$5:$U$282,,MATCH(I$4,'B. PoF Adj Factor Scoring'!$T$3:$AC$3,0)-1),2,TRUE) -> 1
A37: ZN00811/074234 | B37: ='A. Population Info'!G37 -> Unknown | C37: ='A. Population Info'!H37 -> Insulated | D37: ='A. Population Info'!I37 -> 1 | E37: ='A. Population Info'!J37 -> 0 | F37: ='A. Population Info'!K37 -> 0 | G37: =VLOOKUP(B:B,OFFSET('B. PoF Adj Factor Scoring'!$T$5:$U$282,,MATCH(G$4,'B. PoF Adj Factor Scoring'!$T$3:$AC$3,0)-1),2,TRUE) -> 1 | H37: =VLOOKUP(C:C,OFFSET('B. PoF Adj Factor Scoring'!$T$5:$U$282,,MATCH(H$4,'B. PoF Adj Factor Scoring'!$T$3:$AC$3,0)-1),2,TRUE) -> 1 | I37: =VLOOKUP(D:D,OFFSET('B. PoF Adj Factor Scoring'!$T$5:$U$282,,MATCH(I$4,'B. PoF Adj Factor Scoring'!$T$3:$AC$3,0)-1),2,TRUE) -> 1
A38: ZN10999/000007 | B38: ='A. Population Info'!G38 -> Unknown | C38: ='A. Population Info'!H38 -> Insulated | D38: ='A. Population Info'!I38 -> 4 | E38: ='A. Population Info'!J38 -> 0 | F38: ='A. Population Info'!K38 -> 0 | G38: =VLOOKUP(B:B,OFFSET('B. PoF Adj Factor Scoring'!$T$5:$U$282,,MATCH(G$4,'B. PoF Adj Factor Scoring'!$T$3:$AC$3,0)-1),2,TRUE) -> 1 | H38: =VLOOKUP(C:C,OFFSET('B. PoF Adj Factor Scoring'!$T$5:$U$282,,MATCH(H$4,'B. PoF Adj Factor Scoring'!$T$3:$AC$3,0)-1),2,TRUE) -> 1 | I38: =VLOOKUP(D:D,OFFSET('B. PoF Adj Factor Scoring'!$T$5:$U$282,,MATCH(I$4,'B. PoF Adj Factor Scoring'!$T$3:$AC$3,0)-1),2,TRUE) -> 4
A39: ZN00813/089061 | B39: ='A. Population Info'!G39 -> Unknown | C39: ='A. Population Info'!H39 -> Insulated | D39: ='A. Population Info'!I39 -> 1 | E39: ='A. Population Info'!J39 -> 0 | F39: ='A. Population Info'!K39 -> 0 | G39: =VLOOKUP(B:B,OFFSET('B. PoF Adj Factor Scoring'!$T$5:$U$282,,MATCH(G$4,'B. PoF Adj Factor Scoring'!$T$3:$AC$3,0)-1),2,TRUE) -> 1 | H39: =VLOOKUP(C:C,OFFSET('B. PoF Adj Factor Scoring'!$T$5:$U$282,,MATCH(H$4,'B. PoF Adj Factor Scoring'!$T$3:$AC$3,0)-1),2,TRUE) -> 1 | I39: =VLOOKUP(D:D,OFFSET('B. PoF Adj Factor Scoring'!$T$5:$U$282,,MATCH(I$4,'B. PoF Adj Factor Scoring'!$T$3:$AC$3,0)-1),2,TRUE) -> 1
A40: ZN00264/81240L | B40: ='A. Population Info'!G40 -> Unknown | C40: ='A. Population Info'!H40 -> Insulated | D40: ='A. Population Info'!I40 -> 5 | E40: ='A. Population Info'!J40 -> 0 | F40: ='A. Population Info'!K40 -> 0 | G40: =VLOOKUP(B:B,OFFSET('B. PoF Adj Factor Scoring'!$T$5:$U$282,,MATCH(G$4,'B. PoF Adj Factor Scoring'!$T$3:$AC$3,0)-1),2,TRUE) -> 1 | H40: =VLOOKUP(C:C,OFFSET('B. PoF Adj Factor Scoring'!$T$5:$U$282,,MATCH(H$4,'B. PoF Adj Factor Scoring'!$T$3:$AC$3,0)-1),2,TRUE) -> 1 | I40: =VLOOKUP(D:D,OFFSET('B. PoF Adj Factor Scoring'!$T$5:$U$282,,MATCH(I$4,'B. PoF Adj Factor Scoring'!$T$3:$AC$3,0)-1),2,TRUE) -> 5
A41: ZN00233/082818 | B41: ='A. Population Info'!G41 -> Unknown | C41: ='A. Population Info'!H41 -> Bare | D41: ='A. Population Info'!I41 -> 3 | E41: ='A. Population Info'!J41 -> 0 | F41: ='A. Population Info'!K41 -> 0 | G41: =VLOOKUP(B:B,OFFSET('B. PoF Adj Factor Scoring'!$T$5:$U$282,,MATCH(G$4,'B. PoF Adj Factor Scoring'!$T$3:$AC$3,0)-1),2,TRUE) -> 1 | H41: =VLOOKUP(C:C,OFFSET('B. PoF Adj Factor Scoring'!$T$5:$U$282,,MATCH(H$4,'B. PoF Adj Factor Scoring'!$T$3:$AC$3,0)-1),2,TRUE) -> 5 | I41: =VLOOKUP(D:D,OFFSET('B. PoF Adj Factor Scoring'!$T$5:$U$282,,MATCH(I$4,'B. PoF Adj Factor Scoring'!$T$3:$AC$3,0)-1),2,TRUE) -> 3
A42: ZN12570/000041 | B42: ='A. Population Info'!G42 -> Unknown | C42: ='A. Population Info'!H42 -> Insulated | D42: ='A. Population Info'!I42 -> 5 | E42: ='A. Population Info'!J42 -> 0 | F42: ='A. Population Info'!K42 -> 0 | G42: =VLOOKUP(B:B,OFFSET('B. PoF Adj Factor Scoring'!$T$5:$U$282,,MATCH(G$4,'B. PoF Adj Factor Scoring'!$T$3:$AC$3,0)-1),2,TRUE) -> 1 | H42: =VLOOKUP(C:C,OFFSET('B. PoF Adj Factor Scoring'!$T$5:$U$282,,MATCH(H$4,'B. PoF Adj Factor Scoring'!$T$3:$AC$3,0)-1),2,TRUE) -> 1 | I42: =VLOOKUP(D:D,OFFSET('B. PoF Adj Factor Scoring'!$T$5:$U$282,,MATCH(I$4,'B. PoF Adj Factor Scoring'!$T$3:$AC$3,0)-1),2,TRUE) -> 5
A43: ZN12630/000008 | B43: ='A. Population Info'!G43 -> Unknown | C43: ='A. Population Info'!H43 -> Insulated | D43: ='A. Population Info'!I43 -> 1 | E43: ='A. Population Info'!J43 -> 0 | F43: ='A. Population Info'!K43 -> 0 | G43: =VLOOKUP(B:B,OFFSET('B. PoF Adj Factor Scoring'!$T$5:$U$282,,MATCH(G$4,'B. PoF Adj Factor Scoring'!$T$3:$AC$3,0)-1),2,TRUE) -> 1 | H43: =VLOOKUP(C:C,OFFSET('B. PoF Adj Factor Scoring'!$T$5:$U$282,,MATCH(H$4,'B. PoF Adj Factor Scoring'!$T$3:$AC$3,0)-1),2,TRUE) -> 1 | I43: =VLOOKUP(D:D,OFFSET('B. PoF Adj Factor Scoring'!$T$5:$U$282,,MATCH(I$4,'B. PoF Adj Factor Scoring'!$T$3:$AC$3,0)-1),2,TRUE) -> 1
A44: ZN14143/000017 | B44: ='A. Population Info'!G44 -> ACSR | C44: ='A. Population Info'!H44 -> Bare | D44: ='A. Population Info'!I44 -> 5 | E44: ='A. Population Info'!J44 -> 0 | F44: ='A. Population Info'!K44 -> 0 | G44: =VLOOKUP(B:B,OFFSET('B. PoF Adj Factor Scoring'!$T$5:$U$282,,MATCH(G$4,'B. PoF Adj Factor Scoring'!$T$3:$AC$3,0)-1),2,TRUE) -> 5 | H44: =VLOOKUP(C:C,OFFSET('B. PoF Adj Factor Scoring'!$T$5:$U$282,,MATCH(H$4,'B. PoF Adj Factor Scoring'!$T$3:$AC$3,0)-1),2,TRUE) -> 5 | I44: =VLOOKUP(D:D,OFFSET('B. PoF Adj Factor Scoring'!$T$5:$U$282,,MATCH(I$4,'B. PoF Adj Factor Scoring'!$T$3:$AC$3,0)-1),2,TRUE) -> 5
A45: ZN01673/000006 | B45: ='A. Population Info'!G45 -> Unknown | C45: ='A. Population Info'!H45 -> Insulated | D45: ='A. Population Info'!I45 -> 3 | E45: ='A. Population Info'!J45 -> 0 | F45: ='A. Population Info'!K45 -> 0 | G45: =VLOOKUP(B:B,OFFSET('B. PoF Adj Factor Scoring'!$T$5:$U$282,,MATCH(G$4,'B. PoF Adj Factor Scoring'!$T$3:$AC$3,0)-1),2,TRUE) -> 1 | H45: =VLOOKUP(C:C,OFFSET('B. PoF Adj Factor Scoring'!$T$5:$U$282,,MATCH(H$4,'B. PoF Adj Factor Scoring'!$T$3:$AC$3,0)-1),2,TRUE) -> 1 | I45: =VLOOKUP(D:D,OFFSET('B. PoF Adj Factor Scoring'!$T$5:$U$282,,MATCH(I$4,'B. PoF Adj Factor Scoring'!$T$3:$AC$3,0)-1),2,TRUE) -> 3
A46: ZN12650/000013 | B46: ='A. Population Info'!G46 -> Unknown | C46: ='A. Population Info'!H46 -> Insulated | D46: ='A. Population Info'!I46 -> 5 | E46: ='A. Population Info'!J46 -> 0 | F46: ='A. Population Info'!K46 -> 0 | G46: =VLOOKUP(B:B,OFFSET('B. PoF Adj Factor Scoring'!$T$5:$U$282,,MATCH(G$4,'B. PoF Adj Factor Scoring'!$T$3:$AC$3,0)-1),2,TRUE) -> 1 | H46: =VLOOKUP(C:C,OFFSET('B. PoF Adj Factor Scoring'!$T$5:$U$282,,MATCH(H$4,'B. PoF Adj Factor Scoring'!$T$3:$AC$3,0)-1),2,TRUE) -> 1 | I46: =VLOOKUP(D:D,OFFSET('B. PoF Adj Factor Scoring'!$T$5:$U$282,,MATCH(I$4,'B. PoF Adj Factor Scoring'!$T$3:$AC$3,0)-1),2,TRUE) -> 5
A47: ZN00522/083123 | B47: ='A. Population Info'!G47 -> Unknown | C47: ='A. Population Info'!H47 -> Insulated | D47: ='A. Population Info'!I47 -> 1 | E47: ='A. Population Info'!J47 -> 0 | F47: ='A. Population Info'!K47 -> 0 | G47: =VLOOKUP(B:B,OFFSET('B. PoF Adj Factor Scoring'!$T$5:$U$282,,MATCH(G$4,'B. PoF Adj Factor Scoring'!$T$3:$AC$3,0)-1),2,TRUE) -> 1 | H47: =VLOOKUP(C:C,OFFSET('B. PoF Adj Factor Scoring'!$T$5:$U$282,,MATCH(H$4,'B. PoF Adj Factor Scoring'!$T$3:$AC$3,0)-1),2,TRUE) -> 1 | I47: =VLOOKUP(D:D,OFFSET('B. PoF Adj Factor Scoring'!$T$5:$U$282,,MATCH(I$4,'B. PoF Adj Factor Scoring'!$T$3:$AC$3,0)-1),2,TRUE) -> 1
A48: ZN12690/000007 | B48: ='A. Population Info'!G48 -> Unknown | C48: ='A. Population Info'!H48 -> Insulated | D48: ='A. Population Info'!I48 -> 4 | E48: ='A. Population Info'!J48 -> 0 | F48: ='A. Population Info'!K48 -> 0 | G48: =VLOOKUP(B:B,OFFSET('B. PoF Adj Factor Scoring'!$T$5:$U$282,,MATCH(G$4,'B. PoF Adj Factor Scoring'!$T$3:$AC$3,0)-1),2,TRUE) -> 1 | H48: =VLOOKUP(C:C,OFFSET('B. PoF Adj Factor Scoring'!$T$5:$U$282,,MATCH(H$4,'B. PoF Adj Factor Scoring'!$T$3:$AC$3,0)-1),2,TRUE) -> 1 | I48: =VLOOKUP(D:D,OFFSET('B. PoF Adj Factor Scoring'!$T$5:$U$282,,MATCH(I$4,'B. PoF Adj Factor Scoring'!$T$3:$AC$3,0)-1),2,TRUE) -> 4
A49: ZN00129/000064 | B49: ='A. Population Info'!G49 -> Unknown | C49: ='A. Population Info'!H49 -> Insulated | D49: ='A. Population Info'!I49 -> 5 | E49: ='A. Population Info'!J49 -> 0 | F49: ='A. Population Info'!K49 -> 0 | G49: =VLOOKUP(B:B,OFFSET('B. PoF Adj Factor Scoring'!$T$5:$U$282,,MATCH(G$4,'B. PoF Adj Factor Scoring'!$T$3:$AC$3,0)-1),2,TRUE) -> 1 | H49: =VLOOKUP(C:C,OFFSET('B. PoF Adj Factor Scoring'!$T$5:$U$282,,MATCH(H$4,'B. PoF Adj Factor Scoring'!$T$3:$AC$3,0)-1),2,TRUE) -> 1 | I49: =VLOOKUP(D:D,OFFSET('B. PoF Adj Factor Scoring'!$T$5:$U$282,,MATCH(I$4,'B. PoF Adj Factor Scoring'!$T$3:$AC$3,0)-1),2,TRUE) -> 5
A50: ZN00814/082291 | B50: ='A. Population Info'!G50 -> Unknown | C50: ='A. Population Info'!H50 -> Insulated | D50: ='A. Population Info'!I50 -> 1 | E50: ='A. Population Info'!J50 -> 0 | F50: ='A. Population Info'!K50 -> 0 | G50: =VLOOKUP(B:B,OFFSET('B. PoF Adj Factor Scoring'!$T$5:$U$282,,MATCH(G$4,'B. PoF Adj Factor Scoring'!$T$3:$AC$3,0)-1),2,TRUE) -> 1 | H50: =VLOOKUP(C:C,OFFSET('B. PoF Adj Factor Scoring'!$T$5:$U$282,,MATCH(H$4,'B. PoF Adj Factor Scoring'!$T$3:$AC$3,0)-1),2,TRUE) -> 1 | I50: =VLOOKUP(D:D,OFFSET('B. PoF Adj Factor Scoring'!$T$5:$U$282,,MATCH(I$4,'B. PoF Adj Factor Scoring'!$T$3:$AC$3,0)-1),2,TRUE) -> 1
A51: ZN00807/074184 | B51: ='A. Population Info'!G51 -> Unknown | C51: ='A. Population Info'!H51 -> Insulated | D51: ='A. Population Info'!I51 -> 1 | E51: ='A. Population Info'!J51 -> 0 | F51: ='A. Population Info'!K51 -> 0 | G51: =VLOOKUP(B:B,OFFSET('B. PoF Adj Factor Scoring'!$T$5:$U$282,,MATCH(G$4,'B. PoF Adj Factor Scoring'!$T$3:$AC$3,0)-1),2,TRUE) -> 1 | H51: =VLOOKUP(C:C,OFFSET('B. PoF Adj Factor Scoring'!$T$5:$U$282,,MATCH(H$4,'B. PoF Adj Factor Scoring'!$T$3:$AC$3,0)-1),2,TRUE) -> 1 | I51: =VLOOKUP(D:D,OFFSET('B. PoF Adj Factor Scoring'!$T$5:$U$282,,MATCH(I$4,'B. PoF Adj Factor Scoring'!$T$3:$AC$3,0)-1),2,TRUE) -> 1
A52: ZN00516/048067 | B52: ='A. Population Info'!G52 -> Unknown | C52: ='A. Population Info'!H52 -> Insulated | D52: ='A. Population Info'!I52 -> 1 | E52: ='A. Population Info'!J52 -> 0 | F52: ='A. Population Info'!K52 -> 0 | G52: =VLOOKUP(B:B,OFFSET('B. PoF Adj Factor Scoring'!$T$5:$U$282,,MATCH(G$4,'B. PoF Adj Factor Scoring'!$T$3:$AC$3,0)-1),2,TRUE) -> 1 | H52: =VLOOKUP(C:C,OFFSET('B. PoF Adj Factor Scoring'!$T$5:$U$282,,MATCH(H$4,'B. PoF Adj Factor Scoring'!$T$3:$AC$3,0)-1),2,TRUE) -> 1 | I52: =VLOOKUP(D:D,OFFSET('B. PoF Adj Factor Scoring'!$T$5:$U$282,,MATCH(I$4,'B. PoF Adj Factor Scoring'!$T$3:$AC$3,0)-1),2,TRUE) -> 1
A53: ZN00513/048059 | B53: ='A. Population Info'!G53 -> Unknown | C53: ='A. Population Info'!H53 -> Insulated | D53: ='A. Population Info'!I53 -> 1 | E53: ='A. Population Info'!J53 -> 0 | F53: ='A. Population Info'!K53 -> 0 | G53: =VLOOKUP(B:B,OFFSET('B. PoF Adj Factor Scoring'!$T$5:$U$282,,MATCH(G$4,'B. PoF Adj Factor Scoring'!$T$3:$AC$3,0)-1),2,TRUE) -> 1 | H53: =VLOOKUP(C:C,OFFSET('B. PoF Adj Factor Scoring'!$T$5:$U$282,,MATCH(H$4,'B. PoF Adj Factor Scoring'!$T$3:$AC$3,0)-1),2,TRUE) -> 1 | I53: =VLOOKUP(D:D,OFFSET('B. PoF Adj Factor Scoring'!$T$5:$U$282,,MATCH(I$4,'B. PoF Adj Factor Scoring'!$T$3:$AC$3,0)-1),2,TRUE) -> 1
A54: ZN15002/000006 | B54: ='A. Population Info'!G54 -> Unknown | C54: ='A. Population Info'!H54 -> Insulated | D54: ='A. Population Info'!I54 -> 5 | E54: ='A. Population Info'!J54 -> 0 | F54: ='A. Population Info'!K54 -> 0 | G54: =VLOOKUP(B:B,OFFSET('B. PoF Adj Factor Scoring'!$T$5:$U$282,,MATCH(G$4,'B. PoF Adj Factor Scoring'!$T$3:$AC$3,0)-1),2,TRUE) -> 1 | H54: =VLOOKUP(C:C,OFFSET('B. PoF Adj Factor Scoring'!$T$5:$U$282,,MATCH(H$4,'B. PoF Adj Factor Scoring'!$T$3:$AC$3,0)-1),2,TRUE) -> 1 | I54: =VLOOKUP(D:D,OFFSET('B. PoF Adj Factor Scoring'!$T$5:$U$282,,MATCH(I$4,'B. PoF Adj Factor Scoring'!$T$3:$AC$3,0)-1),2,TRUE) -> 5
A55: ZN00810/074054 | B55: ='A. Population Info'!G55 -> Unknown | C55: ='A. Population Info'!H55 -> Insulated | D55: ='A. Population Info'!I55 -> 1 | E55: ='A. Population Info'!J55 -> 0 | F55: ='A. Population Info'!K55 -> 0 | G55: =VLOOKUP(B:B,OFFSET('B. PoF Adj Factor Scoring'!$T$5:$U$282,,MATCH(G$4,'B. PoF Adj Factor Scoring'!$T$3:$AC$3,0)-1),2,TRUE) -> 1 | H55: =VLOOKUP(C:C,OFFSET('B. PoF Adj Factor Scoring'!$T$5:$U$282,,MATCH(H$4,'B. PoF Adj Factor Scoring'!$T$3:$AC$3,0)-1),2,TRUE) -> 1 | I55: =VLOOKUP(D:D,OFFSET('B. PoF Adj Factor Scoring'!$T$5:$U$282,,MATCH(I$4,'B. PoF Adj Factor Scoring'!$T$3:$AC$3,0)-1),2,TRUE) -> 1
A56: ZN01850/000041 | B56: ='A. Population Info'!G56 -> Unknown | C56: ='A. Population Info'!H56 -> Insulated | D56: ='A. Population Info'!I56 -> 4 | E56: ='A. Population Info'!J56 -> 0 | F56: ='A. Population Info'!K56 -> 0 | G56: =VLOOKUP(B:B,OFFSET('B. PoF Adj Factor Scoring'!$T$5:$U$282,,MATCH(G$4,'B. PoF Adj Factor Scoring'!$T$3:$AC$3,0)-1),2,TRUE) -> 1 | H56: =VLOOKUP(C:C,OFFSET('B. PoF Adj Factor Scoring'!$T$5:$U$282,,MATCH(H$4,'B. PoF Adj Factor Scoring'!$T$3:$AC$3,0)-1),2,TRUE) -> 1 | I56: =VLOOKUP(D:D,OFFSET('B. PoF Adj Factor Scoring'!$T$5:$U$282,,MATCH(I$4,'B. PoF Adj Factor Scoring'!$T$3:$AC$3,0)-1),2,TRUE) -> 4
A57: ZN00214/008665 | B57: ='A. Population Info'!G57 -> Unknown | C57: ='A. Population Info'!H57 -> Insulated | D57: ='A. Population Info'!I57 -> 4 | E57: ='A. Population Info'!J57 -> 0 | F57: ='A. Population Info'!K57 -> 0 | G57: =VLOOKUP(B:B,OFFSET('B. PoF Adj Factor Scoring'!$T$5:$U$282,,MATCH(G$4,'B. PoF Adj Factor Scoring'!$T$3:$AC$3,0)-1),2,TRUE) -> 1 | H57: =VLOOKUP(C:C,OFFSET('B. PoF Adj Factor Scoring'!$T$5:$U$282,,MATCH(H$4,'B. PoF Adj Factor Scoring'!$T$3:$AC$3,0)-1),2,TRUE) -> 1 | I57: =VLOOKUP(D:D,OFFSET('B. PoF Adj Factor Scoring'!$T$5:$U$282,,MATCH(I$4,'B. PoF Adj Factor Scoring'!$T$3:$AC$3,0)-1),2,TRUE) -> 4
A58: ZN10990/000008 | B58: ='A. Population Info'!G58 -> Unknown | C58: ='A. Population Info'!H58 -> Insulated | D58: ='A. Population Info'!I58 -> 5 | E58: ='A. Population Info'!J58 -> 0 | F58: ='A. Population Info'!K58 -> 0 | G58: =VLOOKUP(B:B,OFFSET('B. PoF Adj Factor Scoring'!$T$5:$U$282,,MATCH(G$4,'B. PoF Adj Factor Scoring'!$T$3:$AC$3,0)-1),2,TRUE) -> 1 | H58: =VLOOKUP(C:C,OFFSET('B. PoF Adj Factor Scoring'!$T$5:$U$282,,MATCH(H$4,'B. PoF Adj Factor Scoring'!$T$3:$AC$3,0)-1),2,TRUE) -> 1 | I58: =VLOOKUP(D:D,OFFSET('B. PoF Adj Factor Scoring'!$T$5:$U$282,,MATCH(I$4,'B. PoF Adj Factor Scoring'!$T$3:$AC$3,0)-1),2,TRUE) -> 5
A59: ZN01285/00020R | B59: ='A. Population Info'!G59 -> Unknown | C59: ='A. Population Info'!H59 -> Insulated | D59: ='A. Population Info'!I59 -> 4 | E59: ='A. Population Info'!J59 -> 0 | F59: ='A. Population Info'!K59 -> 0 | G59: =VLOOKUP(B:B,OFFSET('B. PoF Adj Factor Scoring'!$T$5:$U$282,,MATCH(G$4,'B. PoF Adj Factor Scoring'!$T$3:$AC$3,0)-1),2,TRUE) -> 1 | H59: =VLOOKUP(C:C,OFFSET('B. PoF Adj Factor Scoring'!$T$5:$U$282,,MATCH(H$4,'B. PoF Adj Factor Scoring'!$T$3:$AC$3,0)-1),2,TRUE) -> 1 | I59: =VLOOKUP(D:D,OFFSET('B. PoF Adj Factor Scoring'!$T$5:$U$282,,MATCH(I$4,'B. PoF Adj Factor Scoring'!$T$3:$AC$3,0)-1),2,TRUE) -> 4
A60: ZN00532/083307 | B60: ='A. Population Info'!G60 -> Unknown | C60: ='A. Population Info'!H60 -> Insulated | D60: ='A. Population Info'!I60 -> 4 | E60: ='A. Population Info'!J60 -> 0 | F60: ='A. Population Info'!K60 -> 0 | G60: =VLOOKUP(B:B,OFFSET('B. PoF Adj Factor Scoring'!$T$5:$U$282,,MATCH(G$4,'B. PoF Adj Factor Scoring'!$T$3:$AC$3,0)-1),2,TRUE) -> 1 | H60: =VLOOKUP(C:C,OFFSET('B. PoF Adj Factor Scoring'!$T$5:$U$282,,MATCH(H$4,'B. PoF Adj Factor Scoring'!$T$3:$AC$3,0)-1),2,TRUE) -> 1 | I60: =VLOOKUP(D:D,OFFSET('B. PoF Adj Factor Scoring'!$T$5:$U$282,,MATCH(I$4,'B. PoF Adj Factor Scoring'!$T$3:$AC$3,0)-1),2,TRUE) -> 4
A61: ZN03154/000012 | B61: ='A. Population Info'!G61 -> Unknown | C61: ='A. Population Info'!H61 -> Insulated | D61: ='A. Population Info'!I61 -> 4 | E61: ='A. Population Info'!J61 -> 0 | F61: ='A. Population Info'!K61 -> 0 | G61: =VLOOKUP(B:B,OFFSET('B. PoF Adj Factor Scoring'!$T$5:$U$282,,MATCH(G$4,'B. PoF Adj Factor Scoring'!$T$3:$AC$3,0)-1),2,TRUE) -> 1 | H61: =VLOOKUP(C:C,OFFSET('B. PoF Adj Factor Scoring'!$T$5:$U$282,,MATCH(H$4,'B. PoF Adj Factor Scoring'!$T$3:$AC$3,0)-1),2,TRUE) -> 1 | I61: =VLOOKUP(D:D,OFFSET('B. PoF Adj Factor Scoring'!$T$5:$U$282,,MATCH(I$4,'B. PoF Adj Factor Scoring'!$T$3:$AC$3,0)-1),2,TRUE) -> 4
A62: ZN00227/013019 | B62: ='A. Population Info'!G62 -> Unknown | C62: ='A. Population Info'!H62 -> Insulated | D62: ='A. Population Info'!I62 -> 2 | E62: ='A. Population Info'!J62 -> 0 | F62: ='A. Population Info'!K62 -> 0 | G62: =VLOOKUP(B:B,OFFSET('B. PoF Adj Factor Scoring'!$T$5:$U$282,,MATCH(G$4,'B. PoF Adj Factor Scoring'!$T$3:$AC$3,0)-1),2,TRUE) -> 1 | H62: =VLOOKUP(C:C,OFFSET('B. PoF Adj Factor Scoring'!$T$5:$U$282,,MATCH(H$4,'B. PoF Adj Factor Scoring'!$T$3:$AC$3,0)-1),2,TRUE) -> 1 | I62: =VLOOKUP(D:D,OFFSET('B. PoF Adj Factor Scoring'!$T$5:$U$282,,MATCH(I$4,'B. PoF Adj Factor Scoring'!$T$3:$AC$3,0)-1),2,TRUE) -> 2
A63: ZN00227/013019 | B63: ='A. Population Info'!G63 -> ACSR | C63: ='A. Population Info'!H63 -> Bare | D63: ='A. Population Info'!I63 -> 3 | E63: ='A. Population Info'!J63 -> 0 | F63: ='A. Population Info'!K63 -> 0 | G63: =VLOOKUP(B:B,OFFSET('B. PoF Adj Factor Scoring'!$T$5:$U$282,,MATCH(G$4,'B. PoF Adj Factor Scoring'!$T$3:$AC$3,0)-1),2,TRUE) -> 5 | H63: =VLOOKUP(C:C,OFFSET('B. PoF Adj Factor Scoring'!$T$5:$U$282,,MATCH(H$4,'B. PoF Adj Factor Scoring'!$T$3:$AC$3,0)-1),2,TRUE) -> 5 | I63: =VLOOKUP(D:D,OFFSET('B. PoF Adj Factor Scoring'!$T$5:$U$282,,MATCH(I$4,'B. PoF Adj Factor Scoring'!$T$3:$AC$3,0)-1),2,TRUE) -> 3
A64: ZN14144/00004L | B64: ='A. Population Info'!G64 -> Unknown | C64: ='A. Population Info'!H64 -> Insulated | D64: ='A. Population Info'!I64 -> 5 | E64: ='A. Population Info'!J64 -> 0 | F64: ='A. Population Info'!K64 -> 0 | G64: =VLOOKUP(B:B,OFFSET('B. PoF Adj Factor Scoring'!$T$5:$U$282,,MATCH(G$4,'B. PoF Adj Factor Scoring'!$T$3:$AC$3,0)-1),2,TRUE) -> 1 | H64: =VLOOKUP(C:C,OFFSET('B. PoF Adj Factor Scoring'!$T$5:$U$282,,MATCH(H$4,'B. PoF Adj Factor Scoring'!$T$3:$AC$3,0)-1),2,TRUE) -> 1 | I64: =VLOOKUP(D:D,OFFSET('B. PoF Adj Factor Scoring'!$T$5:$U$282,,MATCH(I$4,'B. PoF Adj Factor Scoring'!$T$3:$AC$3,0)-1),2,TRUE) -> 5
A65: ZN00810/074058 | B65: ='A. Population Info'!G65 -> Unknown | C65: ='A. Population Info'!H65 -> Insulated | D65: ='A. Population Info'!I65 -> 1 | E65: ='A. Population Info'!J65 -> 0 | F65: ='A. Population Info'!K65 -> 0 | G65: =VLOOKUP(B:B,OFFSET('B. PoF Adj Factor Scoring'!$T$5:$U$282,,MATCH(G$4,'B. PoF Adj Factor Scoring'!$T$3:$AC$3,0)-1),2,TRUE) -> 1 | H65: =VLOOKUP(C:C,OFFSET('B. PoF Adj Factor Scoring'!$T$5:$U$282,,MATCH(H$4,'B. PoF Adj Factor Scoring'!$T$3:$AC$3,0)-1),2,TRUE) -> 1 | I65: =VLOOKUP(D:D,OFFSET('B. PoF Adj Factor Scoring'!$T$5:$U$282,,MATCH(I$4,'B. PoF Adj Factor Scoring'!$T$3:$AC$3,0)-1),2,TRUE) -> 1
A66: ZN00524/033580 | B66: ='A. Population Info'!G66 -> STEEL MAINS | C66: ='A. Population Info'!H66 -> Bare | D66: ='A. Population Info'!I66 -> 1 | E66: ='A. Population Info'!J66 -> 0 | F66: ='A. Population Info'!K66 -> 0 | G66: =VLOOKUP(B:B,OFFSET('B. PoF Adj Factor Scoring'!$T$5:$U$282,,MATCH(G$4,'B. PoF Adj Factor Scoring'!$T$3:$AC$3,0)-1),2,TRUE) -> 5 | H66: =VLOOKUP(C:C,OFFSET('B. PoF Adj Factor Scoring'!$T$5:$U$282,,MATCH(H$4,'B. PoF Adj Factor Scoring'!$T$3:$AC$3,0)-1),2,TRUE) -> 5 | I66: =VLOOKUP(D:D,OFFSET('B. PoF Adj Factor Scoring'!$T$5:$U$282,,MATCH(I$4,'B. PoF Adj Factor Scoring'!$T$3:$AC$3,0)-1),2,TRUE) -> 1
A67: ZN00526/034633 | B67: ='A. Population Info'!G67 -> Unknown | C67: ='A. Population Info'!H67 -> Insulated | D67: ='A. Population Info'!I67 -> 1 | E67: ='A. Population Info'!J67 -> 0 | F67: ='A. Population Info'!K67 -> 0 | G67: =VLOOKUP(B:B,OFFSET('B. PoF Adj Factor Scoring'!$T$5:$U$282,,MATCH(G$4,'B. PoF Adj Factor Scoring'!$T$3:$AC$3,0)-1),2,TRUE) -> 1 | H67: =VLOOKUP(C:C,OFFSET('B. PoF Adj Factor Scoring'!$T$5:$U$282,,MATCH(H$4,'B. PoF Adj Factor Scoring'!$T$3:$AC$3,0)-1),2,TRUE) -> 1 | I67: =VLOOKUP(D:D,OFFSET('B. PoF Adj Factor Scoring'!$T$5:$U$282,,MATCH(I$4,'B. PoF Adj Factor Scoring'!$T$3:$AC$3,0)-1),2,TRUE) -> 1
A68: ZN00232/011460 | B68: ='A. Population Info'!G68 -> Unknown | C68: ='A. Population Info'!H68 -> Bare | D68: ='A. Population Info'!I68 -> 4 | E68: ='A. Population Info'!J68 -> 0 | F68: ='A. Population Info'!K68 -> 0 | G68: =VLOOKUP(B:B,OFFSET('B. PoF Adj Factor Scoring'!$T$5:$U$282,,MATCH(G$4,'B. PoF Adj Factor Scoring'!$T$3:$AC$3,0)-1),2,TRUE) -> 1 | H68: =VLOOKUP(C:C,OFFSET('B. PoF Adj Factor Scoring'!$T$5:$U$282,,MATCH(H$4,'B. PoF Adj Factor Scoring'!$T$3:$AC$3,0)-1),2,TRUE) -> 5 | I68: =VLOOKUP(D:D,OFFSET('B. PoF Adj Factor Scoring'!$T$5:$U$282,,MATCH(I$4,'B. PoF Adj Factor Scoring'!$T$3:$AC$3,0)-1),2,TRUE) -> 4
A69: ZN13000/00002L | B69: ='A. Population Info'!G69 -> Unknown | C69: ='A. Population Info'!H69 -> Bare | D69: ='A. Population Info'!I69 -> 5 | E69: ='A. Population Info'!J69 -> 0 | F69: ='A. Population Info'!K69 -> 0 | G69: =VLOOKUP(B:B,OFFSET('B. PoF Adj Factor Scoring'!$T$5:$U$282,,MATCH(G$4,'B. PoF Adj Factor Scoring'!$T$3:$AC$3,0)-1),2,TRUE) -> 1 | H69: =VLOOKUP(C:C,OFFSET('B. PoF Adj Factor Scoring'!$T$5:$U$282,,MATCH(H$4,'B. PoF Adj Factor Scoring'!$T$3:$AC$3,0)-1),2,TRUE) -> 5 | I69: =VLOOKUP(D:D,OFFSET('B. PoF Adj Factor Scoring'!$T$5:$U$282,,MATCH(I$4,'B. PoF Adj Factor Scoring'!$T$3:$AC$3,0)-1),2,TRUE) -> 5
A70: ZN15015/000015 | B70: ='A. Population Info'!G70 -> Unknown | C70: ='A. Population Info'!H70 -> Insulated | D70: ='A. Population Info'!I70 -> 5 | E70: ='A. Population Info'!J70 -> 0 | F70: ='A. Population Info'!K70 -> 0 | G70: =VLOOKUP(B:B,OFFSET('B. PoF Adj Factor Scoring'!$T$5:$U$282,,MATCH(G$4,'B. PoF Adj Factor Scoring'!$T$3:$AC$3,0)-1),2,TRUE) -> 1 | H70: =VLOOKUP(C:C,OFFSET('B. PoF Adj Factor Scoring'!$T$5:$U$282,,MATCH(H$4,'B. PoF Adj Factor Scoring'!$T$3:$AC$3,0)-1),2,TRUE) -> 1 | I70: =VLOOKUP(D:D,OFFSET('B. PoF Adj Factor Scoring'!$T$5:$U$282,,MATCH(I$4,'B. PoF Adj Factor Scoring'!$T$3:$AC$3,0)-1),2,TRUE) -> 5
A71: ZN04545/000027 | B71: ='A. Population Info'!G71 -> Unknown | C71: ='A. Population Info'!H71 -> Insulated | D71: ='A. Population Info'!I71 -> 5 | E71: ='A. Population Info'!J71 -> 0 | F71: ='A. Population Info'!K71 -> 0 | G71: =VLOOKUP(B:B,OFFSET('B. PoF Adj Factor Scoring'!$T$5:$U$282,,MATCH(G$4,'B. PoF Adj Factor Scoring'!$T$3:$AC$3,0)-1),2,TRUE) -> 1 | H71: =VLOOKUP(C:C,OFFSET('B. PoF Adj Factor Scoring'!$T$5:$U$282,,MATCH(H$4,'B. PoF Adj Factor Scoring'!$T$3:$AC$3,0)-1),2,TRUE) -> 1 | I71: =VLOOKUP(D:D,OFFSET('B. PoF Adj Factor Scoring'!$T$5:$U$282,,MATCH(I$4,'B. PoF Adj Factor Scoring'!$T$3:$AC$3,0)-1),2,TRUE) -> 5
A72: ZN00524/033572 | B72: ='A. Population Info'!G72 -> Unknown | C72: ='A. Population Info'!H72 -> Insulated | D72: ='A. Population Info'!I72 -> 1 | E72: ='A. Population Info'!J72 -> 0 | F72: ='A. Population Info'!K72 -> 0 | G72: =VLOOKUP(B:B,OFFSET('B. PoF Adj Factor Scoring'!$T$5:$U$282,,MATCH(G$4,'B. PoF Adj Factor Scoring'!$T$3:$AC$3,0)-1),2,TRUE) -> 1 | H72: =VLOOKUP(C:C,OFFSET('B. PoF Adj Factor Scoring'!$T$5:$U$282,,MATCH(H$4,'B. PoF Adj Factor Scoring'!$T$3:$AC$3,0)-1),2,TRUE) -> 1 | I72: =VLOOKUP(D:D,OFFSET('B. PoF Adj Factor Scoring'!$T$5:$U$282,,MATCH(I$4,'B. PoF Adj Factor Scoring'!$T$3:$AC$3,0)-1),2,TRUE) -> 1
A73: ZN15002/000004 | B73: ='A. Population Info'!G73 -> Unknown | C73: ='A. Population Info'!H73 -> Insulated | D73: ='A. Population Info'!I73 -> 5 | E73: ='A. Population Info'!J73 -> 0 | F73: ='A. Population Info'!K73 -> 0 | G73: =VLOOKUP(B:B,OFFSET('B. PoF Adj Factor Scoring'!$T$5:$U$282,,MATCH(G$4,'B. PoF Adj Factor Scoring'!$T$3:$AC$3,0)-1),2,TRUE) -> 1 | H73: =VLOOKUP(C:C,OFFSET('B. PoF Adj Factor Scoring'!$T$5:$U$282,,MATCH(H$4,'B. PoF Adj Factor Scoring'!$T$3:$AC$3,0)-1),2,TRUE) -> 1 | I73: =VLOOKUP(D:D,OFFSET('B. PoF Adj Factor Scoring'!$T$5:$U$282,,MATCH(I$4,'B. PoF Adj Factor Scoring'!$T$3:$AC$3,0)-1),2,TRUE) -> 5
A74: ZN00239/082131 | B74: ='A. Population Info'!G74 -> Unknown | C74: ='A. Population Info'!H74 -> Insulated | D74: ='A. Population Info'!I74 -> 3 | E74: ='A. Population Info'!J74 -> 0 | F74: ='A. Population Info'!K74 -> 0 | G74: =VLOOKUP(B:B,OFFSET('B. PoF Adj Factor Scoring'!$T$5:$U$282,,MATCH(G$4,'B. PoF Adj Factor Scoring'!$T$3:$AC$3,0)-1),2,TRUE) -> 1 | H74: =VLOOKUP(C:C,OFFSET('B. PoF Adj Factor Scoring'!$T$5:$U$282,,MATCH(H$4,'B. PoF Adj Factor Scoring'!$T$3:$AC$3,0)-1),2,TRUE) -> 1 | I74: =VLOOKUP(D:D,OFFSET('B. PoF Adj Factor Scoring'!$T$5:$U$282,,MATCH(I$4,'B. PoF Adj Factor Scoring'!$T$3:$AC$3,0)-1),2,TRUE) -> 3
A75: ZN12630/000011 | B75: ='A. Population Info'!G75 -> Unknown | C75: ='A. Population Info'!H75 -> Insulated | D75: ='A. Population Info'!I75 -> 3 | E75: ='A. Population Info'!J75 -> 0 | F75: ='A. Population Info'!K75 -> 0 | G75: =VLOOKUP(B:B,OFFSET('B. PoF Adj Factor Scoring'!$T$5:$U$282,,MATCH(G$4,'B. PoF Adj Factor Scoring'!$T$3:$AC$3,0)-1),2,TRUE) -> 1 | H75: =VLOOKUP(C:C,OFFSET('B. PoF Adj Factor Scoring'!$T$5:$U$282,,MATCH(H$4,'B. PoF Adj Factor Scoring'!$T$3:$AC$3,0)-1),2,TRUE) -> 1 | I75: =VLOOKUP(D:D,OFFSET('B. PoF Adj Factor Scoring'!$T$5:$U$282,,MATCH(I$4,'B. PoF Adj Factor Scoring'!$T$3:$AC$3,0)-1),2,TRUE) -> 3
A76: ZN00526/034641 | B76: ='A. Population Info'!G76 -> Unknown | C76: ='A. Population Info'!H76 -> Insulated | D76: ='A. Population Info'!I76 -> 1 | E76: ='A. Population Info'!J76 -> 0 | F76: ='A. Population Info'!K76 -> 0 | G76: =VLOOKUP(B:B,OFFSET('B. PoF Adj Factor Scoring'!$T$5:$U$282,,MATCH(G$4,'B. PoF Adj Factor Scoring'!$T$3:$AC$3,0)-1),2,TRUE) -> 1 | H76: =VLOOKUP(C:C,OFFSET('B. PoF Adj Factor Scoring'!$T$5:$U$282,,MATCH(H$4,'B. PoF Adj Factor Scoring'!$T$3:$AC$3,0)-1),2,TRUE) -> 1 | I76: =VLOOKUP(D:D,OFFSET('B. PoF Adj Factor Scoring'!$T$5:$U$282,,MATCH(I$4,'B. PoF Adj Factor Scoring'!$T$3:$AC$3,0)-1),2,TRUE) -> 1
A77: ZN15008/00009L | B77: ='A. Population Info'!G77 -> Unknown | C77: ='A. Population Info'!H77 -> Insulated | D77: ='A. Population Info'!I77 -> 5 | E77: ='A. Population Info'!J77 -> 0 | F77: ='A. Population Info'!K77 -> 0 | G77: =VLOOKUP(B:B,OFFSET('B. PoF Adj Factor Scoring'!$T$5:$U$282,,MATCH(G$4,'B. PoF Adj Factor Scoring'!$T$3:$AC$3,0)-1),2,TRUE) -> 1 | H77: =VLOOKUP(C:C,OFFSET('B. PoF Adj Factor Scoring'!$T$5:$U$282,,MATCH(H$4,'B. PoF Adj Factor Scoring'!$T$3:$AC$3,0)-1),2,TRUE) -> 1 | I77: =VLOOKUP(D:D,OFFSET('B. PoF Adj Factor Scoring'!$T$5:$U$282,,MATCH(I$4,'B. PoF Adj Factor Scoring'!$T$3:$AC$3,0)-1),2,TRUE) -> 5
A78: ZN01193/000012 | B78: ='A. Population Info'!G78 -> Unknown | C78: ='A. Population Info'!H78 -> Insulated | D78: ='A. Population Info'!I78 -> 4 | E78: ='A. Population Info'!J78 -> 0 | F78: ='A. Population Info'!K78 -> 0 | G78: =VLOOKUP(B:B,OFFSET('B. PoF Adj Factor Scoring'!$T$5:$U$282,,MATCH(G$4,'B. PoF Adj Factor Scoring'!$T$3:$AC$3,0)-1),2,TRUE) -> 1 | H78: =VLOOKUP(C:C,OFFSET('B. PoF Adj Factor Scoring'!$T$5:$U$282,,MATCH(H$4,'B. PoF Adj Factor Scoring'!$T$3:$AC$3,0)-1),2,TRUE) -> 1 | I78: =VLOOKUP(D:D,OFFSET('B. PoF Adj Factor Scoring'!$T$5:$U$282,,MATCH(I$4,'B. PoF Adj Factor Scoring'!$T$3:$AC$3,0)-1),2,TRUE) -> 4
A79: ZN12570/00037L | B79: ='A. Population Info'!G79 -> Unknown | C79: ='A. Population Info'!H79 -> Insulated | D79: ='A. Population Info'!I79 -> 5 | E79: ='A. Population Info'!J79 -> 0 | F79: ='A. Population Info'!K79 -> 0 | G79: =VLOOKUP(B:B,OFFSET('B. PoF Adj Factor Scoring'!$T$5:$U$282,,MATCH(G$4,'B. PoF Adj Factor Scoring'!$T$3:$AC$3,0)-1),2,TRUE) -> 1 | H79: =VLOOKUP(C:C,OFFSET('B. PoF Adj Factor Scoring'!$T$5:$U$282,,MATCH(H$4,'B. PoF Adj Factor Scoring'!$T$3:$AC$3,0)-1),2,TRUE) -> 1 | I79: =VLOOKUP(D:D,OFFSET('B. PoF Adj Factor Scoring'!$T$5:$U$282,,MATCH(I$4,'B. PoF Adj Factor Scoring'!$T$3:$AC$3,0)-1),2,TRUE) -> 5
A80: ZN10990/00002R | B80: ='A. Population Info'!G80 -> Unknown | C80: ='A. Population Info'!H80 -> Insulated | D80: ='A. Population Info'!I80 -> 5 | E80: ='A. Population Info'!J80 -> 0 | F80: ='A. Population Info'!K80 -> 0 | G80: =VLOOKUP(B:B,OFFSET('B. PoF Adj Factor Scoring'!$T$5:$U$282,,MATCH(G$4,'B. PoF Adj Factor Scoring'!$T$3:$AC$3,0)-1),2,TRUE) -> 1 | H80: =VLOOKUP(C:C,OFFSET('B. PoF Adj Factor Scoring'!$T$5:$U$282,,MATCH(H$4,'B. PoF Adj Factor Scoring'!$T$3:$AC$3,0)-1),2,TRUE) -> 1 | I80: =VLOOKUP(D:D,OFFSET('B. PoF Adj Factor Scoring'!$T$5:$U$282,,MATCH(I$4,'B. PoF Adj Factor Scoring'!$T$3:$AC$3,0)-1),2,TRUE) -> 5
A81: ZN00243/80074L | B81: ='A. Population Info'!G81 -> Unknown | C81: ='A. Population Info'!H81 -> Insulated | D81: ='A. Population Info'!I81 -> 5 | E81: ='A. Population Info'!J81 -> 0 | F81: ='A. Population Info'!K81 -> 0 | G81: =VLOOKUP(B:B,OFFSET('B. PoF Adj Factor Scoring'!$T$5:$U$282,,MATCH(G$4,'B. PoF Adj Factor Scoring'!$T$3:$AC$3,0)-1),2,TRUE) -> 1 | H81: =VLOOKUP(C:C,OFFSET('B. PoF Adj Factor Scoring'!$T$5:$U$282,,MATCH(H$4,'B. PoF Adj Factor Scoring'!$T$3:$AC$3,0)-1),2,TRUE) -> 1 | I81: =VLOOKUP(D:D,OFFSET('B. PoF Adj Factor Scoring'!$T$5:$U$282,,MATCH(I$4,'B. PoF Adj Factor Scoring'!$T$3:$AC$3,0)-1),2,TRUE) -> 5
A82: ZN01290/000012 | B82: ='A. Population Info'!G82 -> Unknown | C82: ='A. Population Info'!H82 -> Insulated | D82: ='A. Population Info'!I82 -> 5 | E82: ='A. Population Info'!J82 -> 0 | F82: ='A. Population Info'!K82 -> 0 | G82: =VLOOKUP(B:B,OFFSET('B. PoF Adj Factor Scoring'!$T$5:$U$282,,MATCH(G$4,'B. PoF Adj Factor Scoring'!$T$3:$AC$3,0)-1),2,TRUE) -> 1 | H82: =VLOOKUP(C:C,OFFSET('B. PoF Adj Factor Scoring'!$T$5:$U$282,,MATCH(H$4,'B. PoF Adj Factor Scoring'!$T$3:$AC$3,0)-1),2,TRUE) -> 1 | I82: =VLOOKUP(D:D,OFFSET('B. PoF Adj Factor Scoring'!$T$5:$U$282,,MATCH(I$4,'B. PoF Adj Factor Scoring'!$T$3:$AC$3,0)-1),2,TRUE) -> 5
A83: ZN00243/80080L | B83: ='A. Population Info'!G83 -> Unknown | C83: ='A. Population Info'!H83 -> Insulated | D83: ='A. Population Info'!I83 -> 5 | E83: ='A. Population Info'!J83 -> 0 | F83: ='A. Population Info'!K83 -> 0 | G83: =VLOOKUP(B:B,OFFSET('B. PoF Adj Factor Scoring'!$T$5:$U$282,,MATCH(G$4,'B. PoF Adj Factor Scoring'!$T$3:$AC$3,0)-1),2,TRUE) -> 1 | H83: =VLOOKUP(C:C,OFFSET('B. PoF Adj Factor Scoring'!$T$5:$U$282,,MATCH(H$4,'B. PoF Adj Factor Scoring'!$T$3:$AC$3,0)-1),2,TRUE) -> 1 | I83: =VLOOKUP(D:D,OFFSET('B. PoF Adj Factor Scoring'!$T$5:$U$282,,MATCH(I$4,'B. PoF Adj Factor Scoring'!$T$3:$AC$3,0)-1),2,TRUE) -> 5
A84: ZN00526/034633 | B84: ='A. Population Info'!G84 -> Unknown | C84: ='A. Population Info'!H84 -> Bare | D84: ='A. Population Info'!I84 -> 1 | E84: ='A. Population Info'!J84 -> 0 | F84: ='A. Population Info'!K84 -> 0 | G84: =VLOOKUP(B:B,OFFSET('B. PoF Adj Factor Scoring'!$T$5:$U$282,,MATCH(G$4,'B. PoF Adj Factor Scoring'!$T$3:$AC$3,0)-1),2,TRUE) -> 1 | H84: =VLOOKUP(C:C,OFFSET('B. PoF Adj Factor Scoring'!$T$5:$U$282,,MATCH(H$4,'B. PoF Adj Factor Scoring'!$T$3:$AC$3,0)-1),2,TRUE) -> 5 | I84: =VLOOKUP(D:D,OFFSET('B. PoF Adj Factor Scoring'!$T$5:$U$282,,MATCH(I$4,'B. PoF Adj Factor Scoring'!$T$3:$AC$3,0)-1),2,TRUE) -> 1
A85: ZN15006/00012L | B85: ='A. Population Info'!G85 -> Unknown | C85: ='A. Population Info'!H85 -> Insulated | D85: ='A. Population Info'!I85 -> 5 | E85: ='A. Population Info'!J85 -> 0 | F85: ='A. Population Info'!K85 -> 0 | G85: =VLOOKUP(B:B,OFFSET('B. PoF Adj Factor Scoring'!$T$5:$U$282,,MATCH(G$4,'B. PoF Adj Factor Scoring'!$T$3:$AC$3,0)-1),2,TRUE) -> 1 | H85: =VLOOKUP(C:C,OFFSET('B. PoF Adj Factor Scoring'!$T$5:$U$282,,MATCH(H$4,'B. PoF Adj Factor Scoring'!$T$3:$AC$3,0)-1),2,TRUE) -> 1 | I85: =VLOOKUP(D:D,OFFSET('B. PoF Adj Factor Scoring'!$T$5:$U$282,,MATCH(I$4,'B. PoF Adj Factor Scoring'!$T$3:$AC$3,0)-1),2,TRUE) -> 5
A86: ZN09037/000016 | B86: ='A. Population Info'!G86 -> Unknown | C86: ='A. Population Info'!H86 -> Insulated | D86: ='A. Population Info'!I86 -> 5 | E86: ='A. Population Info'!J86 -> 0 | F86: ='A. Population Info'!K86 -> 0 | G86: =VLOOKUP(B:B,OFFSET('B. PoF Adj Factor Scoring'!$T$5:$U$282,,MATCH(G$4,'B. PoF Adj Factor Scoring'!$T$3:$AC$3,0)-1),2,TRUE) -> 1 | H86: =VLOOKUP(C:C,OFFSET('B. PoF Adj Factor Scoring'!$T$5:$U$282,,MATCH(H$4,'B. PoF Adj Factor Scoring'!$T$3:$AC$3,0)-1),2,TRUE) -> 1 | I86: =VLOOKUP(D:D,OFFSET('B. PoF Adj Factor Scoring'!$T$5:$U$282,,MATCH(I$4,'B. PoF Adj Factor Scoring'!$T$3:$AC$3,0)-1),2,TRUE) -> 5
A87: ZN15005/00002R | B87: ='A. Population Info'!G87 -> Unknown | C87: ='A. Population Info'!H87 -> Insulated | D87: ='A. Population Info'!I87 -> 4 | E87: ='A. Population Info'!J87 -> 0 | F87: ='A. Population Info'!K87 -> 0 | G87: =VLOOKUP(B:B,OFFSET('B. PoF Adj Factor Scoring'!$T$5:$U$282,,MATCH(G$4,'B. PoF Adj Factor Scoring'!$T$3:$AC$3,0)-1),2,TRUE) -> 1 | H87: =VLOOKUP(C:C,OFFSET('B. PoF Adj Factor Scoring'!$T$5:$U$282,,MATCH(H$4,'B. PoF Adj Factor Scoring'!$T$3:$AC$3,0)-1),2,TRUE) -> 1 | I87: =VLOOKUP(D:D,OFFSET('B. PoF Adj Factor Scoring'!$T$5:$U$282,,MATCH(I$4,'B. PoF Adj Factor Scoring'!$T$3:$AC$3,0)-1),2,TRUE) -> 4
A88: ZN00233/082813 | B88: ='A. Population Info'!G88 -> Unknown | C88: ='A. Population Info'!H88 -> Bare | D88: ='A. Population Info'!I88 -> 3 | E88: ='A. Population Info'!J88 -> 0 | F88: ='A. Population Info'!K88 -> 0 | G88: =VLOOKUP(B:B,OFFSET('B. PoF Adj Factor Scoring'!$T$5:$U$282,,MATCH(G$4,'B. PoF Adj Factor Scoring'!$T$3:$AC$3,0)-1),2,TRUE) -> 1 | H88: =VLOOKUP(C:C,OFFSET('B. PoF Adj Factor Scoring'!$T$5:$U$282,,MATCH(H$4,'B. PoF Adj Factor Scoring'!$T$3:$AC$3,0)-1),2,TRUE) -> 5 | I88: =VLOOKUP(D:D,OFFSET('B. PoF Adj Factor Scoring'!$T$5:$U$282,,MATCH(I$4,'B. PoF Adj Factor Scoring'!$T$3:$AC$3,0)-1),2,TRUE) -> 3
A89: ZN00224/080328 | B89: ='A. Population Info'!G89 -> Unknown | C89: ='A. Population Info'!H89 -> Insulated | D89: ='A. Population Info'!I89 -> 4 | E89: ='A. Population Info'!J89 -> 0 | F89: ='A. Population Info'!K89 -> 0 | G89: =VLOOKUP(B:B,OFFSET('B. PoF Adj Factor Scoring'!$T$5:$U$282,,MATCH(G$4,'B. PoF Adj Factor Scoring'!$T$3:$AC$3,0)-1),2,TRUE) -> 1 | H89: =VLOOKUP(C:C,OFFSET('B. PoF Adj Factor Scoring'!$T$5:$U$282,,MATCH(H$4,'B. PoF Adj Factor Scoring'!$T$3:$AC$3,0)-1),2,TRUE) -> 1 | I89: =VLOOKUP(D:D,OFFSET('B. PoF Adj Factor Scoring'!$T$5:$U$282,,MATCH(I$4,'B. PoF Adj Factor Scoring'!$T$3:$AC$3,0)-1),2,TRUE) -> 4
A90: ZN12600/000011 | B90: ='A. Population Info'!G90 -> Unknown | C90: ='A. Population Info'!H90 -> Insulated | D90: ='A. Population Info'!I90 -> 4 | E90: ='A. Population Info'!J90 -> 0 | F90: ='A. Population Info'!K90 -> 0 | G90: =VLOOKUP(B:B,OFFSET('B. PoF Adj Factor Scoring'!$T$5:$U$282,,MATCH(G$4,'B. PoF Adj Factor Scoring'!$T$3:$AC$3,0)-1),2,TRUE) -> 1 | H90: =VLOOKUP(C:C,OFFSET('B. PoF Adj Factor Scoring'!$T$5:$U$282,,MATCH(H$4,'B. PoF Adj Factor Scoring'!$T$3:$AC$3,0)-1),2,TRUE) -> 1 | I90: =VLOOKUP(D:D,OFFSET('B. PoF Adj Factor Scoring'!$T$5:$U$282,,MATCH(I$4,'B. PoF Adj Factor Scoring'!$T$3:$AC$3,0)-1),2,TRUE) -> 4
A91: ZN00239/082129 | B91: ='A. Population Info'!G91 -> Unknown | C91: ='A. Population Info'!H91 -> Insulated | D91: ='A. Population Info'!I91 -> 5 | E91: ='A. Population Info'!J91 -> 0 | F91: ='A. Population Info'!K91 -> 0 | G91: =VLOOKUP(B:B,OFFSET('B. PoF Adj Factor Scoring'!$T$5:$U$282,,MATCH(G$4,'B. PoF Adj Factor Scoring'!$T$3:$AC$3,0)-1),2,TRUE) -> 1 | H91: =VLOOKUP(C:C,OFFSET('B. PoF Adj Factor Scoring'!$T$5:$U$282,,MATCH(H$4,'B. PoF Adj Factor Scoring'!$T$3:$AC$3,0)-1),2,TRUE) -> 1 | I91: =VLOOKUP(D:D,OFFSET('B. PoF Adj Factor Scoring'!$T$5:$U$282,,MATCH(I$4,'B. PoF Adj Factor Scoring'!$T$3:$AC$3,0)-1),2,TRUE) -> 5
A92: ZN12640/000004 | B92: ='A. Population Info'!G92 -> Unknown | C92: ='A. Population Info'!H92 -> Insulated | D92: ='A. Population Info'!I92 -> 5 | E92: ='A. Population Info'!J92 -> 0 | F92: ='A. Population Info'!K92 -> 0 | G92: =VLOOKUP(B:B,OFFSET('B. PoF Adj Factor Scoring'!$T$5:$U$282,,MATCH(G$4,'B. PoF Adj Factor Scoring'!$T$3:$AC$3,0)-1),2,TRUE) -> 1 | H92: =VLOOKUP(C:C,OFFSET('B. PoF Adj Factor Scoring'!$T$5:$U$282,,MATCH(H$4,'B. PoF Adj Factor Scoring'!$T$3:$AC$3,0)-1),2,TRUE) -> 1 | I92: =VLOOKUP(D:D,OFFSET('B. PoF Adj Factor Scoring'!$T$5:$U$282,,MATCH(I$4,'B. PoF Adj Factor Scoring'!$T$3:$AC$3,0)-1),2,TRUE) -> 5
A93: ZN00801/074121 | B93: ='A. Population Info'!G93 -> Unknown | C93: ='A. Population Info'!H93 -> Insulated | D93: ='A. Population Info'!I93 -> 1 | E93: ='A. Population Info'!J93 -> 0 | F93: ='A. Population Info'!K93 -> 0 | G93: =VLOOKUP(B:B,OFFSET('B. PoF Adj Factor Scoring'!$T$5:$U$282,,MATCH(G$4,'B. PoF Adj Factor Scoring'!$T$3:$AC$3,0)-1),2,TRUE) -> 1 | H93: =VLOOKUP(C:C,OFFSET('B. PoF Adj Factor Scoring'!$T$5:$U$282,,MATCH(H$4,'B. PoF Adj Factor Scoring'!$T$3:$AC$3,0)-1),2,TRUE) -> 1 | I93: =VLOOKUP(D:D,OFFSET('B. PoF Adj Factor Scoring'!$T$5:$U$282,,MATCH(I$4,'B. PoF Adj Factor Scoring'!$T$3:$AC$3,0)-1),2,TRUE) -> 1
A94: ZN12640/000008 | B94: ='A. Population Info'!G94 -> Unknown | C94: ='A. Population Info'!H94 -> Insulated | D94: ='A. Population Info'!I94 -> 5 | E94: ='A. Population Info'!J94 -> 0 | F94: ='A. Population Info'!K94 -> 0 | G94: =VLOOKUP(B:B,OFFSET('B. PoF Adj Factor Scoring'!$T$5:$U$282,,MATCH(G$4,'B. PoF Adj Factor Scoring'!$T$3:$AC$3,0)-1),2,TRUE) -> 1 | H94: =VLOOKUP(C:C,OFFSET('B. PoF Adj Factor Scoring'!$T$5:$U$282,,MATCH(H$4,'B. PoF Adj Factor Scoring'!$T$3:$AC$3,0)-1),2,TRUE) -> 1 | I94: =VLOOKUP(D:D,OFFSET('B. PoF Adj Factor Scoring'!$T$5:$U$282,,MATCH(I$4,'B. PoF Adj Factor Scoring'!$T$3:$AC$3,0)-1),2,TRUE) -> 5
A95: ZN00508/082578 | B95: ='A. Population Info'!G95 -> Unknown | C95: ='A. Population Info'!H95 -> Insulated | D95: ='A. Population Info'!I95 -> 3 | E95: ='A. Population Info'!J95 -> 0 | F95: ='A. Population Info'!K95 -> 0 | G95: =VLOOKUP(B:B,OFFSET('B. PoF Adj Factor Scoring'!$T$5:$U$282,,MATCH(G$4,'B. PoF Adj Factor Scoring'!$T$3:$AC$3,0)-1),2,TRUE) -> 1 | H95: =VLOOKUP(C:C,OFFSET('B. PoF Adj Factor Scoring'!$T$5:$U$282,,MATCH(H$4,'B. PoF Adj Factor Scoring'!$T$3:$AC$3,0)-1),2,TRUE) -> 1 | I95: =VLOOKUP(D:D,OFFSET('B. PoF Adj Factor Scoring'!$T$5:$U$282,,MATCH(I$4,'B. PoF Adj Factor Scoring'!$T$3:$AC$3,0)-1),2,TRUE) -> 3
A96: ZN14892/000016 | B96: ='A. Population Info'!G96 -> Unknown | C96: ='A. Population Info'!H96 -> Insulated | D96: ='A. Population Info'!I96 -> 5 | E96: ='A. Population Info'!J96 -> 0 | F96: ='A. Population Info'!K96 -> 0 | G96: =VLOOKUP(B:B,OFFSET('B. PoF Adj Factor Scoring'!$T$5:$U$282,,MATCH(G$4,'B. PoF Adj Factor Scoring'!$T$3:$AC$3,0)-1),2,TRUE) -> 1 | H96: =VLOOKUP(C:C,OFFSET('B. PoF Adj Factor Scoring'!$T$5:$U$282,,MATCH(H$4,'B. PoF Adj Factor Scoring'!$T$3:$AC$3,0)-1),2,TRUE) -> 1 | I96: =VLOOKUP(D:D,OFFSET('B. PoF Adj Factor Scoring'!$T$5:$U$282,,MATCH(I$4,'B. PoF Adj Factor Scoring'!$T$3:$AC$3,0)-1),2,TRUE) -> 5
A97: ZN00227/013015 | B97: ='A. Population Info'!G97 -> Unknown | C97: ='A. Population Info'!H97 -> Insulated | D97: ='A. Population Info'!I97 -> 3 | E97: ='A. Population Info'!J97 -> 0 | F97: ='A. Population Info'!K97 -> 0 | G97: =VLOOKUP(B:B,OFFSET('B. PoF Adj Factor Scoring'!$T$5:$U$282,,MATCH(G$4,'B. PoF Adj Factor Scoring'!$T$3:$AC$3,0)-1),2,TRUE) -> 1 | H97: =VLOOKUP(C:C,OFFSET('B. PoF Adj Factor Scoring'!$T$5:$U$282,,MATCH(H$4,'B. PoF Adj Factor Scoring'!$T$3:$AC$3,0)-1),2,TRUE) -> 1 | I97: =VLOOKUP(D:D,OFFSET('B. PoF Adj Factor Scoring'!$T$5:$U$282,,MATCH(I$4,'B. PoF Adj Factor Scoring'!$T$3:$AC$3,0)-1),2,TRUE) -> 3
A98: ZN14892/000016 | B98: ='A. Population Info'!G98 -> Unknown | C98: ='A. Population Info'!H98 -> Insulated | D98: ='A. Population Info'!I98 -> 5 | E98: ='A. Population Info'!J98 -> 0 | F98: ='A. Population Info'!K98 -> 0 | G98: =VLOOKUP(B:B,OFFSET('B. PoF Adj Factor Scoring'!$T$5:$U$282,,MATCH(G$4,'B. PoF Adj Factor Scoring'!$T$3:$AC$3,0)-1),2,TRUE) -> 1 | H98: =VLOOKUP(C:C,OFFSET('B. PoF Adj Factor Scoring'!$T$5:$U$282,,MATCH(H$4,'B. PoF Adj Factor Scoring'!$T$3:$AC$3,0)-1),2,TRUE) -> 1 | I98: =VLOOKUP(D:D,OFFSET('B. PoF Adj Factor Scoring'!$T$5:$U$282,,MATCH(I$4,'B. PoF Adj Factor Scoring'!$T$3:$AC$3,0)-1),2,TRUE) -> 5
A99: ZN00524/033580 | B99: ='A. Population Info'!G99 -> Unknown | C99: ='A. Population Info'!H99 -> Insulated | D99: ='A. Population Info'!I99 -> 1 | E99: ='A. Population Info'!J99 -> 0 | F99: ='A. Population Info'!K99 -> 0 | G99: =VLOOKUP(B:B,OFFSET('B. PoF Adj Factor Scoring'!$T$5:$U$282,,MATCH(G$4,'B. PoF Adj Factor Scoring'!$T$3:$AC$3,0)-1),2,TRUE) -> 1 | H99: =VLOOKUP(C:C,OFFSET('B. PoF Adj Factor Scoring'!$T$5:$U$282,,MATCH(H$4,'B. PoF Adj Factor Scoring'!$T$3:$AC$3,0)-1),2,TRUE) -> 1 | I99: =VLOOKUP(D:D,OFFSET('B. PoF Adj Factor Scoring'!$T$5:$U$282,,MATCH(I$4,'B. PoF Adj Factor Scoring'!$T$3:$AC$3,0)-1),2,TRUE) -> 1
A100: ZN00528/083020 | B100: ='A. Population Info'!G100 -> Unknown | C100: ='A. Population Info'!H100 -> Insulated | D100: ='A. Population Info'!I100 -> 5 | E100: ='A. Population Info'!J100 -> 0 | F100: ='A. Population Info'!K100 -> 0 | G100: =VLOOKUP(B:B,OFFSET('B. PoF Adj Factor Scoring'!$T$5:$U$282,,MATCH(G$4,'B. PoF Adj Factor Scoring'!$T$3:$AC$3,0)-1),2,TRUE) -> 1 | H100: =VLOOKUP(C:C,OFFSET('B. PoF Adj Factor Scoring'!$T$5:$U$282,,MATCH(H$4,'B. PoF Adj Factor Scoring'!$T$3:$AC$3,0)-1),2,TRUE) -> 1 | I100: =VLOOKUP(D:D,OFFSET('B. PoF Adj Factor Scoring'!$T$5:$U$282,,MATCH(I$4,'B. PoF Adj Factor Scoring'!$T$3:$AC$3,0)-1),2,TRUE) -> 5
A101: ZN00258/080793 | B101: ='A. Population Info'!G101 -> Unknown | C101: ='A. Population Info'!H101 -> Bare | D101: ='A. Population Info'!I101 -> 4 | E101: ='A. Population Info'!J101 -> 0 | F101: ='A. Population Info'!K101 -> 0 | G101: =VLOOKUP(B:B,OFFSET('B. PoF Adj Factor Scoring'!$T$5:$U$282,,MATCH(G$4,'B. PoF Adj Factor Scoring'!$T$3:$AC$3,0)-1),2,TRUE) -> 1 | H101: =VLOOKUP(C:C,OFFSET('B. PoF Adj Factor Scoring'!$T$5:$U$282,,MATCH(H$4,'B. PoF Adj Factor Scoring'!$T$3:$AC$3,0)-1),2,TRUE) -> 5 | I101: =VLOOKUP(D:D,OFFSET('B. PoF Adj Factor Scoring'!$T$5:$U$282,,MATCH(I$4,'B. PoF Adj Factor Scoring'!$T$3:$AC$3,0)-1),2,TRUE) -> 4
A102: ZN12650/00017R | B102: ='A. Population Info'!G102 -> Unknown | C102: ='A. Population Info'!H102 -> Insulated | D102: ='A. Population Info'!I102 -> 5 | E102: ='A. Population Info'!J102 -> 0 | F102: ='A. Population Info'!K102 -> 0 | G102: =VLOOKUP(B:B,OFFSET('B. PoF Adj Factor Scoring'!$T$5:$U$282,,MATCH(G$4,'B. PoF Adj Factor Scoring'!$T$3:$AC$3,0)-1),2,TRUE) -> 1 | H102: =VLOOKUP(C:C,OFFSET('B. PoF Adj Factor Scoring'!$T$5:$U$282,,MATCH(H$4,'B. PoF Adj Factor Scoring'!$T$3:$AC$3,0)-1),2,TRUE) -> 1 | I102: =VLOOKUP(D:D,OFFSET('B. PoF Adj Factor Scoring'!$T$5:$U$282,,MATCH(I$4,'B. PoF Adj Factor Scoring'!$T$3:$AC$3,0)-1),2,TRUE) -> 5
A103: ZN03425/000012 | B103: ='A. Population Info'!G103 -> Unknown | C103: ='A. Population Info'!H103 -> Insulated | D103: ='A. Population Info'!I103 -> 5 | E103: ='A. Population Info'!J103 -> 0 | F103: ='A. Population Info'!K103 -> 0 | G103: =VLOOKUP(B:B,OFFSET('B. PoF Adj Factor Scoring'!$T$5:$U$282,,MATCH(G$4,'B. PoF Adj Factor Scoring'!$T$3:$AC$3,0)-1),2,TRUE) -> 1 | H103: =VLOOKUP(C:C,OFFSET('B. PoF Adj Factor Scoring'!$T$5:$U$282,,MATCH(H$4,'B. PoF Adj Factor Scoring'!$T$3:$AC$3,0)-1),2,TRUE) -> 1 | I103: =VLOOKUP(D:D,OFFSET('B. PoF Adj Factor Scoring'!$T$5:$U$282,,MATCH(I$4,'B. PoF Adj Factor Scoring'!$T$3:$AC$3,0)-1),2,TRUE) -> 5
A104: ZN02635/000038 | B104: ='A. Population Info'!G104 -> Unknown | C104: ='A. Population Info'!H104 -> Insulated | D104: ='A. Population Info'!I104 -> 2 | E104: ='A. Population Info'!J104 -> 0 | F104: ='A. Population Info'!K104 -> 0 | G104: =VLOOKUP(B:B,OFFSET('B. PoF Adj Factor Scoring'!$T$5:$U$282,,MATCH(G$4,'B. PoF Adj Factor Scoring'!$T$3:$AC$3,0)-1),2,TRUE) -> 1 | H104: =VLOOKUP(C:C,OFFSET('B. PoF Adj Factor Scoring'!$T$5:$U$282,,MATCH(H$4,'B. PoF Adj Factor Scoring'!$T$3:$AC$3,0)-1),2,TRUE) -> 1 | I104: =VLOOKUP(D:D,OFFSET('B. PoF Adj Factor Scoring'!$T$5:$U$282,,MATCH(I$4,'B. PoF Adj Factor Scoring'!$T$3:$AC$3,0)-1),2,TRUE) -> 2
A105: ZN35800/00001L | B105: ='A. Population Info'!G105 -> Unknown | C105: ='A. Population Info'!H105 -> Insulated | D105: ='A. Population Info'!I105 -> 4 | E105: ='A. Population Info'!J105 -> 0 | F105: ='A. Population Info'!K105 -> 0 | G105: =VLOOKUP(B:B,OFFSET('B. PoF Adj Factor Scoring'!$T$5:$U$282,,MATCH(G$4,'B. PoF Adj Factor Scoring'!$T$3:$AC$3,0)-1),2,TRUE) -> 1 | H105: =VLOOKUP(C:C,OFFSET('B. PoF Adj Factor Scoring'!$T$5:$U$282,,MATCH(H$4,'B. PoF Adj Factor Scoring'!$T$3:$AC$3,0)-1),2,TRUE) -> 1 | I105: =VLOOKUP(D:D,OFFSET('B. PoF Adj Factor Scoring'!$T$5:$U$282,,MATCH(I$4,'B. PoF Adj Factor Scoring'!$T$3:$AC$3,0)-1),2,TRUE) -> 4
A106: ZN00530/081060 | B106: ='A. Population Info'!G106 -> Unknown | C106: ='A. Population Info'!H106 -> Bare | D106: ='A. Population Info'!I106 -> 1 | E106: ='A. Population Info'!J106 -> 0 | F106: ='A. Population Info'!K106 -> 0 | G106: =VLOOKUP(B:B,OFFSET('B. PoF Adj Factor Scoring'!$T$5:$U$282,,MATCH(G$4,'B. PoF Adj Factor Scoring'!$T$3:$AC$3,0)-1),2,TRUE) -> 1 | H106: =VLOOKUP(C:C,OFFSET('B. PoF Adj Factor Scoring'!$T$5:$U$282,,MATCH(H$4,'B. PoF Adj Factor Scoring'!$T$3:$AC$3,0)-1),2,TRUE) -> 5 | I106: =VLOOKUP(D:D,OFFSET('B. PoF Adj Factor Scoring'!$T$5:$U$282,,MATCH(I$4,'B. PoF Adj Factor Scoring'!$T$3:$AC$3,0)-1),2,TRUE) -> 1
A107: ZN00965/000029 | B107: ='A. Population Info'!G107 -> Unknown | C107: ='A. Population Info'!H107 -> Insulated | D107: ='A. Population Info'!I107 -> 2 | E107: ='A. Population Info'!J107 -> 0 | F107: ='A. Population Info'!K107 -> 0 | G107: =VLOOKUP(B:B,OFFSET('B. PoF Adj Factor Scoring'!$T$5:$U$282,,MATCH(G$4,'B. PoF Adj Factor Scoring'!$T$3:$AC$3,0)-1),2,TRUE) -> 1 | H107: =VLOOKUP(C:C,OFFSET('B. PoF Adj Factor Scoring'!$T$5:$U$282,,MATCH(H$4,'B. PoF Adj Factor Scoring'!$T$3:$AC$3,0)-1),2,TRUE) -> 1 | I107: =VLOOKUP(D:D,OFFSET('B. PoF Adj Factor Scoring'!$T$5:$U$282,,MATCH(I$4,'B. PoF Adj Factor Scoring'!$T$3:$AC$3,0)-1),2,TRUE) -> 2
A108: ZN12690/000017 | B108: ='A. Population Info'!G108 -> Unknown | C108: ='A. Population Info'!H108 -> Insulated | D108: ='A. Population Info'!I108 -> 5 | E108: ='A. Population Info'!J108 -> 0 | F108: ='A. Population Info'!K108 -> 0 | G108: =VLOOKUP(B:B,OFFSET('B. PoF Adj Factor Scoring'!$T$5:$U$282,,MATCH(G$4,'B. PoF Adj Factor Scoring'!$T$3:$AC$3,0)-1),2,TRUE) -> 1 | H108: =VLOOKUP(C:C,OFFSET('B. PoF Adj Factor Scoring'!$T$5:$U$282,,MATCH(H$4,'B. PoF Adj Factor Scoring'!$T$3:$AC$3,0)-1),2,TRUE) -> 1 | I108: =VLOOKUP(D:D,OFFSET('B. PoF Adj Factor Scoring'!$T$5:$U$282,,MATCH(I$4,'B. PoF Adj Factor Scoring'!$T$3:$AC$3,0)-1),2,TRUE) -> 5
A109: ZN00511/029876 | B109: ='A. Population Info'!G109 -> STEEL MAINS | C109: ='A. Population Info'!H109 -> Bare | D109: ='A. Population Info'!I109 -> 3 | E109: ='A. Population Info'!J109 -> 0 | F109: ='A. Population Info'!K109 -> 0 | G109: =VLOOKUP(B:B,OFFSET('B. PoF Adj Factor Scoring'!$T$5:$U$282,,MATCH(G$4,'B. PoF Adj Factor Scoring'!$T$3:$AC$3,0)-1),2,TRUE) -> 5 | H109: =VLOOKUP(C:C,OFFSET('B. PoF Adj Factor Scoring'!$T$5:$U$282,,MATCH(H$4,'B. PoF Adj Factor Scoring'!$T$3:$AC$3,0)-1),2,TRUE) -> 5 | I109: =VLOOKUP(D:D,OFFSET('B. PoF Adj Factor Scoring'!$T$5:$U$282,,MATCH(I$4,'B. PoF Adj Factor Scoring'!$T$3:$AC$3,0)-1),2,TRUE) -> 3
A110: ZN00523/033501 | B110: ='A. Population Info'!G110 -> Unknown | C110: ='A. Population Info'!H110 -> Bare | D110: ='A. Population Info'!I110 -> 1 | E110: ='A. Population Info'!J110 -> 0 | F110: ='A. Population Info'!K110 -> 0 | G110: =VLOOKUP(B:B,OFFSET('B. PoF Adj Factor Scoring'!$T$5:$U$282,,MATCH(G$4,'B. PoF Adj Factor Scoring'!$T$3:$AC$3,0)-1),2,TRUE) -> 1 | H110: =VLOOKUP(C:C,OFFSET('B. PoF Adj Factor Scoring'!$T$5:$U$282,,MATCH(H$4,'B. PoF Adj Factor Scoring'!$T$3:$AC$3,0)-1),2,TRUE) -> 5 | I110: =VLOOKUP(D:D,OFFSET('B. PoF Adj Factor Scoring'!$T$5:$U$282,,MATCH(I$4,'B. PoF Adj Factor Scoring'!$T$3:$AC$3,0)-1),2,TRUE) -> 1
A111: ZN00507/080922 | B111: ='A. Population Info'!G111 -> ACSR | C111: ='A. Population Info'!H111 -> Bare | D111: ='A. Population Info'!I111 -> 2 | E111: ='A. Population Info'!J111 -> 0 | F111: ='A. Population Info'!K111 -> 0 | G111: =VLOOKUP(B:B,OFFSET('B. PoF Adj Factor Scoring'!$T$5:$U$282,,MATCH(G$4,'B. PoF Adj Factor Scoring'!$T$3:$AC$3,0)-1),2,TRUE) -> 5 | H111: =VLOOKUP(C:C,OFFSET('B. PoF Adj Factor Scoring'!$T$5:$U$282,,MATCH(H$4,'B. PoF Adj Factor Scoring'!$T$3:$AC$3,0)-1),2,TRUE) -> 5 | I111: =VLOOKUP(D:D,OFFSET('B. PoF Adj Factor Scoring'!$T$5:$U$282,,MATCH(I$4,'B. PoF Adj Factor Scoring'!$T$3:$AC$3,0)-1),2,TRUE) -> 2
A112: ZN10994/00010L | B112: ='A. Population Info'!G112 -> Unknown | C112: ='A. Population Info'!H112 -> Insulated | D112: ='A. Population Info'!I112 -> 5 | E112: ='A. Population Info'!J112 -> 0 | F112: ='A. Population Info'!K112 -> 0 | G112: =VLOOKUP(B:B,OFFSET('B. PoF Adj Factor Scoring'!$T$5:$U$282,,MATCH(G$4,'B. PoF Adj Factor Scoring'!$T$3:$AC$3,0)-1),2,TRUE) -> 1 | H112: =VLOOKUP(C:C,OFFSET('B. PoF Adj Factor Scoring'!$T$5:$U$282,,MATCH(H$4,'B. PoF Adj Factor Scoring'!$T$3:$AC$3,0)-1),2,TRUE) -> 1 | I112: =VLOOKUP(D:D,OFFSET('B. PoF Adj Factor Scoring'!$T$5:$U$282,,MATCH(I$4,'B. PoF Adj Factor Scoring'!$T$3:$AC$3,0)-1),2,TRUE) -> 5
A113: ZN00180/000017 | B113: ='A. Population Info'!G113 -> Unknown | C113: ='A. Population Info'!H113 -> Insulated | D113: ='A. Population Info'!I113 -> 5 | E113: ='A. Population Info'!J113 -> 0 | F113: ='A. Population Info'!K113 -> 0 | G113: =VLOOKUP(B:B,OFFSET('B. PoF Adj Factor Scoring'!$T$5:$U$282,,MATCH(G$4,'B. PoF Adj Factor Scoring'!$T$3:$AC$3,0)-1),2,TRUE) -> 1 | H113: =VLOOKUP(C:C,OFFSET('B. PoF Adj Factor Scoring'!$T$5:$U$282,,MATCH(H$4,'B. PoF Adj Factor Scoring'!$T$3:$AC$3,0)-1),2,TRUE) -> 1 | I113: =VLOOKUP(D:D,OFFSET('B. PoF Adj Factor Scoring'!$T$5:$U$282,,MATCH(I$4,'B. PoF Adj Factor Scoring'!$T$3:$AC$3,0)-1),2,TRUE) -> 5
A114: ZN00814/082291 | B114: ='A. Population Info'!G114 -> STEEL MAINS | C114: ='A. Population Info'!H114 -> Bare | D114: ='A. Population Info'!I114 -> 1 | E114: ='A. Population Info'!J114 -> 0 | F114: ='A. Population Info'!K114 -> 0 | G114: =VLOOKUP(B:B,OFFSET('B. PoF Adj Factor Scoring'!$T$5:$U$282,,MATCH(G$4,'B. PoF Adj Factor Scoring'!$T$3:$AC$3,0)-1),2,TRUE) -> 5 | H114: =VLOOKUP(C:C,OFFSET('B. PoF Adj Factor Scoring'!$T$5:$U$282,,MATCH(H$4,'B. PoF Adj Factor Scoring'!$T$3:$AC$3,0)-1),2,TRUE) -> 5 | I114: =VLOOKUP(D:D,OFFSET('B. PoF Adj Factor Scoring'!$T$5:$U$282,,MATCH(I$4,'B. PoF Adj Factor Scoring'!$T$3:$AC$3,0)-1),2,TRUE) -> 1
A115: ZN00229/034989 | B115: ='A. Population Info'!G115 -> Unknown | C115: ='A. Population Info'!H115 -> Bare | D115: ='A. Population Info'!I115 -> 3 | E115: ='A. Population Info'!J115 -> 0 | F115: ='A. Population Info'!K115 -> 0 | G115: =VLOOKUP(B:B,OFFSET('B. PoF Adj Factor Scoring'!$T$5:$U$282,,MATCH(G$4,'B. PoF Adj Factor Scoring'!$T$3:$AC$3,0)-1),2,TRUE) -> 1 | H115: =VLOOKUP(C:C,OFFSET('B. PoF Adj Factor Scoring'!$T$5:$U$282,,MATCH(H$4,'B. PoF Adj Factor Scoring'!$T$3:$AC$3,0)-1),2,TRUE) -> 5 | I115: =VLOOKUP(D:D,OFFSET('B. PoF Adj Factor Scoring'!$T$5:$U$282,,MATCH(I$4,'B. PoF Adj Factor Scoring'!$T$3:$AC$3,0)-1),2,TRUE) -> 3
A116: ZN12630/000003 | B116: ='A. Population Info'!G116 -> Unknown | C116: ='A. Population Info'!H116 -> Insulated | D116: ='A. Population Info'!I116 -> 2 | E116: ='A. Population Info'!J116 -> 0 | F116: ='A. Population Info'!K116 -> 0 | G116: =VLOOKUP(B:B,OFFSET('B. PoF Adj Factor Scoring'!$T$5:$U$282,,MATCH(G$4,'B. PoF Adj Factor Scoring'!$T$3:$AC$3,0)-1),2,TRUE) -> 1 | H116: =VLOOKUP(C:C,OFFSET('B. PoF Adj Factor Scoring'!$T$5:$U$282,,MATCH(H$4,'B. PoF Adj Factor Scoring'!$T$3:$AC$3,0)-1),2,TRUE) -> 1 | I116: =VLOOKUP(D:D,OFFSET('B. PoF Adj Factor Scoring'!$T$5:$U$282,,MATCH(I$4,'B. PoF Adj Factor Scoring'!$T$3:$AC$3,0)-1),2,TRUE) -> 2
A117: ZN00080/000031 | B117: ='A. Population Info'!G117 -> Unknown | C117: ='A. Population Info'!H117 -> Insulated | D117: ='A. Population Info'!I117 -> 5 | E117: ='A. Population Info'!J117 -> 0 | F117: ='A. Population Info'!K117 -> 0 | G117: =VLOOKUP(B:B,OFFSET('B. PoF Adj Factor Scoring'!$T$5:$U$282,,MATCH(G$4,'B. PoF Adj Factor Scoring'!$T$3:$AC$3,0)-1),2,TRUE) -> 1 | H117: =VLOOKUP(C:C,OFFSET('B. PoF Adj Factor Scoring'!$T$5:$U$282,,MATCH(H$4,'B. PoF Adj Factor Scoring'!$T$3:$AC$3,0)-1),2,TRUE) -> 1 | I117: =VLOOKUP(D:D,OFFSET('B. PoF Adj Factor Scoring'!$T$5:$U$282,,MATCH(I$4,'B. PoF Adj Factor Scoring'!$T$3:$AC$3,0)-1),2,TRUE) -> 5
A118: ZN12640/000004 | B118: ='A. Population Info'!G118 -> Unknown | C118: ='A. Population Info'!H118 -> Insulated | D118: ='A. Population Info'!I118 -> 5 | E118: ='A. Population Info'!J118 -> 0 | F118: ='A. Population Info'!K118 -> 0 | G118: =VLOOKUP(B:B,OFFSET('B. PoF Adj Factor Scoring'!$T$5:$U$282,,MATCH(G$4,'B. PoF Adj Factor Scoring'!$T$3:$AC$3,0)-1),2,TRUE) -> 1 | H118: =VLOOKUP(C:C,OFFSET('B. PoF Adj Factor Scoring'!$T$5:$U$282,,MATCH(H$4,'B. PoF Adj Factor Scoring'!$T$3:$AC$3,0)-1),2,TRUE) -> 1 | I118: =VLOOKUP(D:D,OFFSET('B. PoF Adj Factor Scoring'!$T$5:$U$282,,MATCH(I$4,'B. PoF Adj Factor Scoring'!$T$3:$AC$3,0)-1),2,TRUE) -> 5
A119: ZN00230/081438 | B119: ='A. Population Info'!G119 -> Unknown | C119: ='A. Population Info'!H119 -> Insulated | D119: ='A. Population Info'!I119 -> 5 | E119: ='A. Population Info'!J119 -> 0 | F119: ='A. Population Info'!K119 -> 0 | G119: =VLOOKUP(B:B,OFFSET('B. PoF Adj Factor Scoring'!$T$5:$U$282,,MATCH(G$4,'B. PoF Adj Factor Scoring'!$T$3:$AC$3,0)-1),2,TRUE) -> 1 | H119: =VLOOKUP(C:C,OFFSET('B. PoF Adj Factor Scoring'!$T$5:$U$282,,MATCH(H$4,'B. PoF Adj Factor Scoring'!$T$3:$AC$3,0)-1),2,TRUE) -> 1 | I119: =VLOOKUP(D:D,OFFSET('B. PoF Adj Factor Scoring'!$T$5:$U$282,,MATCH(I$4,'B. PoF Adj Factor Scoring'!$T$3:$AC$3,0)-1),2,TRUE) -> 5
A120: ZN15013/000002 | B120: ='A. Population Info'!G120 -> Unknown | C120: ='A. Population Info'!H120 -> Insulated | D120: ='A. Population Info'!I120 -> 3 | E120: ='A. Population Info'!J120 -> 0 | F120: ='A. Population Info'!K120 -> 0 | G120: =VLOOKUP(B:B,OFFSET('B. PoF Adj Factor Scoring'!$T$5:$U$282,,MATCH(G$4,'B. PoF Adj Factor Scoring'!$T$3:$AC$3,0)-1),2,TRUE) -> 1 | H120: =VLOOKUP(C:C,OFFSET('B. PoF Adj Factor Scoring'!$T$5:$U$282,,MATCH(H$4,'B. PoF Adj Factor Scoring'!$T$3:$AC$3,0)-1),2,TRUE) -> 1 | I120: =VLOOKUP(D:D,OFFSET('B. PoF Adj Factor Scoring'!$T$5:$U$282,,MATCH(I$4,'B. PoF Adj Factor Scoring'!$T$3:$AC$3,0)-1),2,TRUE) -> 3
A121: ZN12580/00004L | B121: ='A. Population Info'!G121 -> Unknown | C121: ='A. Population Info'!H121 -> Insulated | D121: ='A. Population Info'!I121 -> 4 | E121: ='A. Population Info'!J121 -> 0 | F121: ='A. Population Info'!K121 -> 0 | G121: =VLOOKUP(B:B,OFFSET('B. PoF Adj Factor Scoring'!$T$5:$U$282,,MATCH(G$4,'B. PoF Adj Factor Scoring'!$T$3:$AC$3,0)-1),2,TRUE) -> 1 | H121: =VLOOKUP(C:C,OFFSET('B. PoF Adj Factor Scoring'!$T$5:$U$282,,MATCH(H$4,'B. PoF Adj Factor Scoring'!$T$3:$AC$3,0)-1),2,TRUE) -> 1 | I121: =VLOOKUP(D:D,OFFSET('B. PoF Adj Factor Scoring'!$T$5:$U$282,,MATCH(I$4,'B. PoF Adj Factor Scoring'!$T$3:$AC$3,0)-1),2,TRUE) -> 4
A122: ZN00216/010722 | B122: ='A. Population Info'!G122 -> Unknown | C122: ='A. Population Info'!H122 -> Insulated | D122: ='A. Population Info'!I122 -> 3 | E122: ='A. Population Info'!J122 -> 0 | F122: ='A. Population Info'!K122 -> 0 | G122: =VLOOKUP(B:B,OFFSET('B. PoF Adj Factor Scoring'!$T$5:$U$282,,MATCH(G$4,'B. PoF Adj Factor Scoring'!$T$3:$AC$3,0)-1),2,TRUE) -> 1 | H122: =VLOOKUP(C:C,OFFSET('B. PoF Adj Factor Scoring'!$T$5:$U$282,,MATCH(H$4,'B. PoF Adj Factor Scoring'!$T$3:$AC$3,0)-1),2,TRUE) -> 1 | I122: =VLOOKUP(D:D,OFFSET('B. PoF Adj Factor Scoring'!$T$5:$U$282,,MATCH(I$4,'B. PoF Adj Factor Scoring'!$T$3:$AC$3,0)-1),2,TRUE) -> 3
A123: ZN00222/033596 | B123: ='A. Population Info'!G123 -> Unknown | C123: ='A. Population Info'!H123 -> Insulated | D123: ='A. Population Info'!I123 -> 5 | E123: ='A. Population Info'!J123 -> 0 | F123: ='A. Population Info'!K123 -> 0 | G123: =VLOOKUP(B:B,OFFSET('B. PoF Adj Factor Scoring'!$T$5:$U$282,,MATCH(G$4,'B. PoF Adj Factor Scoring'!$T$3:$AC$3,0)-1),2,TRUE) -> 1 | H123: =VLOOKUP(C:C,OFFSET('B. PoF Adj Factor Scoring'!$T$5:$U$282,,MATCH(H$4,'B. PoF Adj Factor Scoring'!$T$3:$AC$3,0)-1),2,TRUE) -> 1 | I123: =VLOOKUP(D:D,OFFSET('B. PoF Adj Factor Scoring'!$T$5:$U$282,,MATCH(I$4,'B. PoF Adj Factor Scoring'!$T$3:$AC$3,0)-1),2,TRUE) -> 5
A124: ZN03472/000029 | B124: ='A. Population Info'!G124 -> Unknown | C124: ='A. Population Info'!H124 -> Insulated | D124: ='A. Population Info'!I124 -> 3 | E124: ='A. Population Info'!J124 -> 0 | F124: ='A. Population Info'!K124 -> 0 | G124: =VLOOKUP(B:B,OFFSET('B. PoF Adj Factor Scoring'!$T$5:$U$282,,MATCH(G$4,'B. PoF Adj Factor Scoring'!$T$3:$AC$3,0)-1),2,TRUE) -> 1 | H124: =VLOOKUP(C:C,OFFSET('B. PoF Adj Factor Scoring'!$T$5:$U$282,,MATCH(H$4,'B. PoF Adj Factor Scoring'!$T$3:$AC$3,0)-1),2,TRUE) -> 1 | I124: =VLOOKUP(D:D,OFFSET('B. PoF Adj Factor Scoring'!$T$5:$U$282,,MATCH(I$4,'B. PoF Adj Factor Scoring'!$T$3:$AC$3,0)-1),2,TRUE) -> 3
A125: ZN02635/000032 | B125: ='A. Population Info'!G125 -> Unknown | C125: ='A. Population Info'!H125 -> Insulated | D125: ='A. Population Info'!I125 -> 3 | E125: ='A. Population Info'!J125 -> 0 | F125: ='A. Population Info'!K125 -> 0 | G125: =VLOOKUP(B:B,OFFSET('B. PoF Adj Factor Scoring'!$T$5:$U$282,,MATCH(G$4,'B. PoF Adj Factor Scoring'!$T$3:$AC$3,0)-1),2,TRUE) -> 1 | H125: =VLOOKUP(C:C,OFFSET('B. PoF Adj Factor Scoring'!$T$5:$U$282,,MATCH(H$4,'B. PoF Adj Factor Scoring'!$T$3:$AC$3,0)-1),2,TRUE) -> 1 | I125: =VLOOKUP(D:D,OFFSET('B. PoF Adj Factor Scoring'!$T$5:$U$282,,MATCH(I$4,'B. PoF Adj Factor Scoring'!$T$3:$AC$3,0)-1),2,TRUE) -> 3
A126: ZN12690/000021 | B126: ='A. Population Info'!G126 -> Unknown | C126: ='A. Population Info'!H126 -> Insulated | D126: ='A. Population Info'!I126 -> 4 | E126: ='A. Population Info'!J126 -> 0 | F126: ='A. Population Info'!K126 -> 0 | G126: =VLOOKUP(B:B,OFFSET('B. PoF Adj Factor Scoring'!$T$5:$U$282,,MATCH(G$4,'B. PoF Adj Factor Scoring'!$T$3:$AC$3,0)-1),2,TRUE) -> 1 | H126: =VLOOKUP(C:C,OFFSET('B. PoF Adj Factor Scoring'!$T$5:$U$282,,MATCH(H$4,'B. PoF Adj Factor Scoring'!$T$3:$AC$3,0)-1),2,TRUE) -> 1 | I126: =VLOOKUP(D:D,OFFSET('B. PoF Adj Factor Scoring'!$T$5:$U$282,,MATCH(I$4,'B. PoF Adj Factor Scoring'!$T$3:$AC$3,0)-1),2,TRUE) -> 4
A127: ZN35500/00028L | B127: ='A. Population Info'!G127 -> Unknown | C127: ='A. Population Info'!H127 -> Insulated | D127: ='A. Population Info'!I127 -> 3 | E127: ='A. Population Info'!J127 -> 0 | F127: ='A. Population Info'!K127 -> 0 | G127: =VLOOKUP(B:B,OFFSET('B. PoF Adj Factor Scoring'!$T$5:$U$282,,MATCH(G$4,'B. PoF Adj Factor Scoring'!$T$3:$AC$3,0)-1),2,TRUE) -> 1 | H127: =VLOOKUP(C:C,OFFSET('B. PoF Adj Factor Scoring'!$T$5:$U$282,,MATCH(H$4,'B. PoF Adj Factor Scoring'!$T$3:$AC$3,0)-1),2,TRUE) -> 1 | I127: =VLOOKUP(D:D,OFFSET('B. PoF Adj Factor Scoring'!$T$5:$U$282,,MATCH(I$4,'B. PoF Adj Factor Scoring'!$T$3:$AC$3,0)-1),2,TRUE) -> 3
A128: ZN13000/00011L | B128: ='A. Population Info'!G128 -> Unknown | C128: ='A. Population Info'!H128 -> Insulated | D128: ='A. Population Info'!I128 -> 5 | E128: ='A. Population Info'!J128 -> 0 | F128: ='A. Population Info'!K128 -> 0 | G128: =VLOOKUP(B:B,OFFSET('B. PoF Adj Factor Scoring'!$T$5:$U$282,,MATCH(G$4,'B. PoF Adj Factor Scoring'!$T$3:$AC$3,0)-1),2,TRUE) -> 1 | H128: =VLOOKUP(C:C,OFFSET('B. PoF Adj Factor Scoring'!$T$5:$U$282,,MATCH(H$4,'B. PoF Adj Factor Scoring'!$T$3:$AC$3,0)-1),2,TRUE) -> 1 | I128: =VLOOKUP(D:D,OFFSET('B. PoF Adj Factor Scoring'!$T$5:$U$282,,MATCH(I$4,'B. PoF Adj Factor Scoring'!$T$3:$AC$3,0)-1),2,TRUE) -> 5
A129: ZN15006/000008 | B129: ='A. Population Info'!G129 -> Unknown | C129: ='A. Population Info'!H129 -> Insulated | D129: ='A. Population Info'!I129 -> 4 | E129: ='A. Population Info'!J129 -> 0 | F129: ='A. Population Info'!K129 -> 0 | G129: =VLOOKUP(B:B,OFFSET('B. PoF Adj Factor Scoring'!$T$5:$U$282,,MATCH(G$4,'B. PoF Adj Factor Scoring'!$T$3:$AC$3,0)-1),2,TRUE) -> 1 | H129: =VLOOKUP(C:C,OFFSET('B. PoF Adj Factor Scoring'!$T$5:$U$282,,MATCH(H$4,'B. PoF Adj Factor Scoring'!$T$3:$AC$3,0)-1),2,TRUE) -> 1 | I129: =VLOOKUP(D:D,OFFSET('B. PoF Adj Factor Scoring'!$T$5:$U$282,,MATCH(I$4,'B. PoF Adj Factor Scoring'!$T$3:$AC$3,0)-1),2,TRUE) -> 4
A130: ZN00261/081885 | B130: ='A. Population Info'!G130 -> Unknown | C130: ='A. Population Info'!H130 -> Insulated | D130: ='A. Population Info'!I130 -> 3 | E130: ='A. Population Info'!J130 -> 0 | F130: ='A. Population Info'!K130 -> 0 | G130: =VLOOKUP(B:B,OFFSET('B. PoF Adj Factor Scoring'!$T$5:$U$282,,MATCH(G$4,'B. PoF Adj Factor Scoring'!$T$3:$AC$3,0)-1),2,TRUE) -> 1 | H130: =VLOOKUP(C:C,OFFSET('B. PoF Adj Factor Scoring'!$T$5:$U$282,,MATCH(H$4,'B. PoF Adj Factor Scoring'!$T$3:$AC$3,0)-1),2,TRUE) -> 1 | I130: =VLOOKUP(D:D,OFFSET('B. PoF Adj Factor Scoring'!$T$5:$U$282,,MATCH(I$4,'B. PoF Adj Factor Scoring'!$T$3:$AC$3,0)-1),2,TRUE) -> 3
A131: ZN03425/000033 | B131: ='A. Population Info'!G131 -> Unknown | C131: ='A. Population Info'!H131 -> Insulated | D131: ='A. Population Info'!I131 -> 5 | E131: ='A. Population Info'!J131 -> 0 | F131: ='A. Population Info'!K131 -> 0 | G131: =VLOOKUP(B:B,OFFSET('B. PoF Adj Factor Scoring'!$T$5:$U$282,,MATCH(G$4,'B. PoF Adj Factor Scoring'!$T$3:$AC$3,0)-1),2,TRUE) -> 1 | H131: =VLOOKUP(C:C,OFFSET('B. PoF Adj Factor Scoring'!$T$5:$U$282,,MATCH(H$4,'B. PoF Adj Factor Scoring'!$T$3:$AC$3,0)-1),2,TRUE) -> 1 | I131: =VLOOKUP(D:D,OFFSET('B. PoF Adj Factor Scoring'!$T$5:$U$282,,MATCH(I$4,'B. PoF Adj Factor Scoring'!$T$3:$AC$3,0)-1),2,TRUE) -> 5
A132: ZN12580/000001 | B132: ='A. Population Info'!G132 -> Unknown | C132: ='A. Population Info'!H132 -> Insulated | D132: ='A. Population Info'!I132 -> 5 | E132: ='A. Population Info'!J132 -> 0 | F132: ='A. Population Info'!K132 -> 0 | G132: =VLOOKUP(B:B,OFFSET('B. PoF Adj Factor Scoring'!$T$5:$U$282,,MATCH(G$4,'B. PoF Adj Factor Scoring'!$T$3:$AC$3,0)-1),2,TRUE) -> 1 | H132: =VLOOKUP(C:C,OFFSET('B. PoF Adj Factor Scoring'!$T$5:$U$282,,MATCH(H$4,'B. PoF Adj Factor Scoring'!$T$3:$AC$3,0)-1),2,TRUE) -> 1 | I132: =VLOOKUP(D:D,OFFSET('B. PoF Adj Factor Scoring'!$T$5:$U$282,,MATCH(I$4,'B. PoF Adj Factor Scoring'!$T$3:$AC$3,0)-1),2,TRUE) -> 5
A133: ZN09118/000003 | B133: ='A. Population Info'!G133 -> Unknown | C133: ='A. Population Info'!H133 -> Insulated | D133: ='A. Population Info'!I133 -> 5 | E133: ='A. Population Info'!J133 -> 0 | F133: ='A. Population Info'!K133 -> 0 | G133: =VLOOKUP(B:B,OFFSET('B. PoF Adj Factor Scoring'!$T$5:$U$282,,MATCH(G$4,'B. PoF Adj Factor Scoring'!$T$3:$AC$3,0)-1),2,TRUE) -> 1 | H133: =VLOOKUP(C:C,OFFSET('B. PoF Adj Factor Scoring'!$T$5:$U$282,,MATCH(H$4,'B. PoF Adj Factor Scoring'!$T$3:$AC$3,0)-1),2,TRUE) -> 1 | I133: =VLOOKUP(D:D,OFFSET('B. PoF Adj Factor Scoring'!$T$5:$U$282,,MATCH(I$4,'B. PoF Adj Factor Scoring'!$T$3:$AC$3,0)-1),2,TRUE) -> 5
A134: ZN12580/00004L | B134: ='A. Population Info'!G134 -> Unknown | C134: ='A. Population Info'!H134 -> Insulated | D134: ='A. Population Info'!I134 -> 4 | E134: ='A. Population Info'!J134 -> 0 | F134: ='A. Population Info'!K134 -> 0 | G134: =VLOOKUP(B:B,OFFSET('B. PoF Adj Factor Scoring'!$T$5:$U$282,,MATCH(G$4,'B. PoF Adj Factor Scoring'!$T$3:$AC$3,0)-1),2,TRUE) -> 1 | H134: =VLOOKUP(C:C,OFFSET('B. PoF Adj Factor Scoring'!$T$5:$U$282,,MATCH(H$4,'B. PoF Adj Factor Scoring'!$T$3:$AC$3,0)-1),2,TRUE) -> 1 | I134: =VLOOKUP(D:D,OFFSET('B. PoF Adj Factor Scoring'!$T$5:$U$282,,MATCH(I$4,'B. PoF Adj Factor Scoring'!$T$3:$AC$3,0)-1),2,TRUE) -> 4
A135: ZN00216/010722 | B135: ='A. Population Info'!G135 -> STEEL MAINS | C135: ='A. Population Info'!H135 -> Bare | D135: ='A. Population Info'!I135 -> 3 | E135: ='A. Population Info'!J135 -> 0 | F135: ='A. Population Info'!K135 -> 0 | G135: =VLOOKUP(B:B,OFFSET('B. PoF Adj Factor Scoring'!$T$5:$U$282,,MATCH(G$4,'B. PoF Adj Factor Scoring'!$T$3:$AC$3,0)-1),2,TRUE) -> 5 | H135: =VLOOKUP(C:C,OFFSET('B. PoF Adj Factor Scoring'!$T$5:$U$282,,MATCH(H$4,'B. PoF Adj Factor Scoring'!$T$3:$AC$3,0)-1),2,TRUE) -> 5 | I135: =VLOOKUP(D:D,OFFSET('B. PoF Adj Factor Scoring'!$T$5:$U$282,,MATCH(I$4,'B. PoF Adj Factor Scoring'!$T$3:$AC$3,0)-1),2,TRUE) -> 3
A136: ZN36200/00011L | B136: ='A. Population Info'!G136 -> Unknown | C136: ='A. Population Info'!H136 -> Insulated | D136: ='A. Population Info'!I136 -> 5 | E136: ='A. Population Info'!J136 -> 0 | F136: ='A. Population Info'!K136 -> 0 | G136: =VLOOKUP(B:B,OFFSET('B. PoF Adj Factor Scoring'!$T$5:$U$282,,MATCH(G$4,'B. PoF Adj Factor Scoring'!$T$3:$AC$3,0)-1),2,TRUE) -> 1 | H136: =VLOOKUP(C:C,OFFSET('B. PoF Adj Factor Scoring'!$T$5:$U$282,,MATCH(H$4,'B. PoF Adj Factor Scoring'!$T$3:$AC$3,0)-1),2,TRUE) -> 1 | I136: =VLOOKUP(D:D,OFFSET('B. PoF Adj Factor Scoring'!$T$5:$U$282,,MATCH(I$4,'B. PoF Adj Factor Scoring'!$T$3:$AC$3,0)-1),2,TRUE) -> 5
A137: ZN12600/000009 | B137: ='A. Population Info'!G137 -> Unknown | C137: ='A. Population Info'!H137 -> Insulated | D137: ='A. Population Info'!I137 -> 4 | E137: ='A. Population Info'!J137 -> 0 | F137: ='A. Population Info'!K137 -> 0 | G137: =VLOOKUP(B:B,OFFSET('B. PoF Adj Factor Scoring'!$T$5:$U$282,,MATCH(G$4,'B. PoF Adj Factor Scoring'!$T$3:$AC$3,0)-1),2,TRUE) -> 1 | H137: =VLOOKUP(C:C,OFFSET('B. PoF Adj Factor Scoring'!$T$5:$U$282,,MATCH(H$4,'B. PoF Adj Factor Scoring'!$T$3:$AC$3,0)-1),2,TRUE) -> 1 | I137: =VLOOKUP(D:D,OFFSET('B. PoF Adj Factor Scoring'!$T$5:$U$282,,MATCH(I$4,'B. PoF Adj Factor Scoring'!$T$3:$AC$3,0)-1),2,TRUE) -> 4
A138: ZN12630/00006L | B138: ='A. Population Info'!G138 -> Unknown | C138: ='A. Population Info'!H138 -> Insulated | D138: ='A. Population Info'!I138 -> 2 | E138: ='A. Population Info'!J138 -> 0 | F138: ='A. Population Info'!K138 -> 0 | G138: =VLOOKUP(B:B,OFFSET('B. PoF Adj Factor Scoring'!$T$5:$U$282,,MATCH(G$4,'B. PoF Adj Factor Scoring'!$T$3:$AC$3,0)-1),2,TRUE) -> 1 | H138: =VLOOKUP(C:C,OFFSET('B. PoF Adj Factor Scoring'!$T$5:$U$282,,MATCH(H$4,'B. PoF Adj Factor Scoring'!$T$3:$AC$3,0)-1),2,TRUE) -> 1 | I138: =VLOOKUP(D:D,OFFSET('B. PoF Adj Factor Scoring'!$T$5:$U$282,,MATCH(I$4,'B. PoF Adj Factor Scoring'!$T$3:$AC$3,0)-1),2,TRUE) -> 2
A139: ZN00243/080083 | B139: ='A. Population Info'!G139 -> Unknown | C139: ='A. Population Info'!H139 -> Insulated | D139: ='A. Population Info'!I139 -> 3 | E139: ='A. Population Info'!J139 -> 0 | F139: ='A. Population Info'!K139 -> 0 | G139: =VLOOKUP(B:B,OFFSET('B. PoF Adj Factor Scoring'!$T$5:$U$282,,MATCH(G$4,'B. PoF Adj Factor Scoring'!$T$3:$AC$3,0)-1),2,TRUE) -> 1 | H139: =VLOOKUP(C:C,OFFSET('B. PoF Adj Factor Scoring'!$T$5:$U$282,,MATCH(H$4,'B. PoF Adj Factor Scoring'!$T$3:$AC$3,0)-1),2,TRUE) -> 1 | I139: =VLOOKUP(D:D,OFFSET('B. PoF Adj Factor Scoring'!$T$5:$U$282,,MATCH(I$4,'B. PoF Adj Factor Scoring'!$T$3:$AC$3,0)-1),2,TRUE) -> 3
A140: ZN00511/029877 | B140: ='A. Population Info'!G140 -> Unknown | C140: ='A. Population Info'!H140 -> Insulated | D140: ='A. Population Info'!I140 -> 4 | E140: ='A. Population Info'!J140 -> 0 | F140: ='A. Population Info'!K140 -> 0 | G140: =VLOOKUP(B:B,OFFSET('B. PoF Adj Factor Scoring'!$T$5:$U$282,,MATCH(G$4,'B. PoF Adj Factor Scoring'!$T$3:$AC$3,0)-1),2,TRUE) -> 1 | H140: =VLOOKUP(C:C,OFFSET('B. PoF Adj Factor Scoring'!$T$5:$U$282,,MATCH(H$4,'B. PoF Adj Factor Scoring'!$T$3:$AC$3,0)-1),2,TRUE) -> 1 | I140: =VLOOKUP(D:D,OFFSET('B. PoF Adj Factor Scoring'!$T$5:$U$282,,MATCH(I$4,'B. PoF Adj Factor Scoring'!$T$3:$AC$3,0)-1),2,TRUE) -> 4
A141: ZN00513/048051 | B141: ='A. Population Info'!G141 -> Unknown | C141: ='A. Population Info'!H141 -> Insulated | D141: ='A. Population Info'!I141 -> 1 | E141: ='A. Population Info'!J141 -> 0 | F141: ='A. Population Info'!K141 -> 0 | G141: =VLOOKUP(B:B,OFFSET('B. PoF Adj Factor Scoring'!$T$5:$U$282,,MATCH(G$4,'B. PoF Adj Factor Scoring'!$T$3:$AC$3,0)-1),2,TRUE) -> 1 | H141: =VLOOKUP(C:C,OFFSET('B. PoF Adj Factor Scoring'!$T$5:$U$282,,MATCH(H$4,'B. PoF Adj Factor Scoring'!$T$3:$AC$3,0)-1),2,TRUE) -> 1 | I141: =VLOOKUP(D:D,OFFSET('B. PoF Adj Factor Scoring'!$T$5:$U$282,,MATCH(I$4,'B. PoF Adj Factor Scoring'!$T$3:$AC$3,0)-1),2,TRUE) -> 1
A142: ZN00813/089062 | B142: ='A. Population Info'!G142 -> Unknown | C142: ='A. Population Info'!H142 -> Insulated | D142: ='A. Population Info'!I142 -> 1 | E142: ='A. Population Info'!J142 -> 0 | F142: ='A. Population Info'!K142 -> 0 | G142: =VLOOKUP(B:B,OFFSET('B. PoF Adj Factor Scoring'!$T$5:$U$282,,MATCH(G$4,'B. PoF Adj Factor Scoring'!$T$3:$AC$3,0)-1),2,TRUE) -> 1 | H142: =VLOOKUP(C:C,OFFSET('B. PoF Adj Factor Scoring'!$T$5:$U$282,,MATCH(H$4,'B. PoF Adj Factor Scoring'!$T$3:$AC$3,0)-1),2,TRUE) -> 1 | I142: =VLOOKUP(D:D,OFFSET('B. PoF Adj Factor Scoring'!$T$5:$U$282,,MATCH(I$4,'B. PoF Adj Factor Scoring'!$T$3:$AC$3,0)-1),2,TRUE) -> 1
A143: ZN04545/000044 | B143: ='A. Population Info'!G143 -> Unknown | C143: ='A. Population Info'!H143 -> Insulated | D143: ='A. Population Info'!I143 -> 4 | E143: ='A. Population Info'!J143 -> 0 | F143: ='A. Population Info'!K143 -> 0 | G143: =VLOOKUP(B:B,OFFSET('B. PoF Adj Factor Scoring'!$T$5:$U$282,,MATCH(G$4,'B. PoF Adj Factor Scoring'!$T$3:$AC$3,0)-1),2,TRUE) -> 1 | H143: =VLOOKUP(C:C,OFFSET('B. PoF Adj Factor Scoring'!$T$5:$U$282,,MATCH(H$4,'B. PoF Adj Factor Scoring'!$T$3:$AC$3,0)-1),2,TRUE) -> 1 | I143: =VLOOKUP(D:D,OFFSET('B. PoF Adj Factor Scoring'!$T$5:$U$282,,MATCH(I$4,'B. PoF Adj Factor Scoring'!$T$3:$AC$3,0)-1),2,TRUE) -> 4
A144: ZN00965/000015 | B144: ='A. Population Info'!G144 -> Unknown | C144: ='A. Population Info'!H144 -> Insulated | D144: ='A. Population Info'!I144 -> 2 | E144: ='A. Population Info'!J144 -> 0 | F144: ='A. Population Info'!K144 -> 0 | G144: =VLOOKUP(B:B,OFFSET('B. PoF Adj Factor Scoring'!$T$5:$U$282,,MATCH(G$4,'B. PoF Adj Factor Scoring'!$T$3:$AC$3,0)-1),2,TRUE) -> 1 | H144: =VLOOKUP(C:C,OFFSET('B. PoF Adj Factor Scoring'!$T$5:$U$282,,MATCH(H$4,'B. PoF Adj Factor Scoring'!$T$3:$AC$3,0)-1),2,TRUE) -> 1 | I144: =VLOOKUP(D:D,OFFSET('B. PoF Adj Factor Scoring'!$T$5:$U$282,,MATCH(I$4,'B. PoF Adj Factor Scoring'!$T$3:$AC$3,0)-1),2,TRUE) -> 2
A145: ZN04545/000036 | B145: ='A. Population Info'!G145 -> Unknown | C145: ='A. Population Info'!H145 -> Insulated | D145: ='A. Population Info'!I145 -> 4 | E145: ='A. Population Info'!J145 -> 0 | F145: ='A. Population Info'!K145 -> 0 | G145: =VLOOKUP(B:B,OFFSET('B. PoF Adj Factor Scoring'!$T$5:$U$282,,MATCH(G$4,'B. PoF Adj Factor Scoring'!$T$3:$AC$3,0)-1),2,TRUE) -> 1 | H145: =VLOOKUP(C:C,OFFSET('B. PoF Adj Factor Scoring'!$T$5:$U$282,,MATCH(H$4,'B. PoF Adj Factor Scoring'!$T$3:$AC$3,0)-1),2,TRUE) -> 1 | I145: =VLOOKUP(D:D,OFFSET('B. PoF Adj Factor Scoring'!$T$5:$U$282,,MATCH(I$4,'B. PoF Adj Factor Scoring'!$T$3:$AC$3,0)-1),2,TRUE) -> 4
A146: ZN09252/000025 | B146: ='A. Population Info'!G146 -> Unknown | C146: ='A. Population Info'!H146 -> Insulated | D146: ='A. Population Info'!I146 -> 5 | E146: ='A. Population Info'!J146 -> 0 | F146: ='A. Population Info'!K146 -> 0 | G146: =VLOOKUP(B:B,OFFSET('B. PoF Adj Factor Scoring'!$T$5:$U$282,,MATCH(G$4,'B. PoF Adj Factor Scoring'!$T$3:$AC$3,0)-1),2,TRUE) -> 1 | H146: =VLOOKUP(C:C,OFFSET('B. PoF Adj Factor Scoring'!$T$5:$U$282,,MATCH(H$4,'B. PoF Adj Factor Scoring'!$T$3:$AC$3,0)-1),2,TRUE) -> 1 | I146: =VLOOKUP(D:D,OFFSET('B. PoF Adj Factor Scoring'!$T$5:$U$282,,MATCH(I$4,'B. PoF Adj Factor Scoring'!$T$3:$AC$3,0)-1),2,TRUE) -> 5
A147: ZN12630/000011 | B147: ='A. Population Info'!G147 -> Unknown | C147: ='A. Population Info'!H147 -> Insulated | D147: ='A. Population Info'!I147 -> 2 | E147: ='A. Population Info'!J147 -> 0 | F147: ='A. Population Info'!K147 -> 0 | G147: =VLOOKUP(B:B,OFFSET('B. PoF Adj Factor Scoring'!$T$5:$U$282,,MATCH(G$4,'B. PoF Adj Factor Scoring'!$T$3:$AC$3,0)-1),2,TRUE) -> 1 | H147: =VLOOKUP(C:C,OFFSET('B. PoF Adj Factor Scoring'!$T$5:$U$282,,MATCH(H$4,'B. PoF Adj Factor Scoring'!$T$3:$AC$3,0)-1),2,TRUE) -> 1 | I147: =VLOOKUP(D:D,OFFSET('B. PoF Adj Factor Scoring'!$T$5:$U$282,,MATCH(I$4,'B. PoF Adj Factor Scoring'!$T$3:$AC$3,0)-1),2,TRUE) -> 2
A148: ZN14891/000008 | B148: ='A. Population Info'!G148 -> Unknown | C148: ='A. Population Info'!H148 -> Insulated | D148: ='A. Population Info'!I148 -> 5 | E148: ='A. Population Info'!J148 -> 0 | F148: ='A. Population Info'!K148 -> 0 | G148: =VLOOKUP(B:B,OFFSET('B. PoF Adj Factor Scoring'!$T$5:$U$282,,MATCH(G$4,'B. PoF Adj Factor Scoring'!$T$3:$AC$3,0)-1),2,TRUE) -> 1 | H148: =VLOOKUP(C:C,OFFSET('B. PoF Adj Factor Scoring'!$T$5:$U$282,,MATCH(H$4,'B. PoF Adj Factor Scoring'!$T$3:$AC$3,0)-1),2,TRUE) -> 1 | I148: =VLOOKUP(D:D,OFFSET('B. PoF Adj Factor Scoring'!$T$5:$U$282,,MATCH(I$4,'B. PoF Adj Factor Scoring'!$T$3:$AC$3,0)-1),2,TRUE) -> 5
A149: ZN12580/00016R | B149: ='A. Population Info'!G149 -> Unknown | C149: ='A. Population Info'!H149 -> Insulated | D149: ='A. Population Info'!I149 -> 5 | E149: ='A. Population Info'!J149 -> 0 | F149: ='A. Population Info'!K149 -> 0 | G149: =VLOOKUP(B:B,OFFSET('B. PoF Adj Factor Scoring'!$T$5:$U$282,,MATCH(G$4,'B. PoF Adj Factor Scoring'!$T$3:$AC$3,0)-1),2,TRUE) -> 1 | H149: =VLOOKUP(C:C,OFFSET('B. PoF Adj Factor Scoring'!$T$5:$U$282,,MATCH(H$4,'B. PoF Adj Factor Scoring'!$T$3:$AC$3,0)-1),2,TRUE) -> 1 | I149: =VLOOKUP(D:D,OFFSET('B. PoF Adj Factor Scoring'!$T$5:$U$282,,MATCH(I$4,'B. PoF Adj Factor Scoring'!$T$3:$AC$3,0)-1),2,TRUE) -> 5
A150: ZN00801/074123 | B150: ='A. Population Info'!G150 -> Unknown | C150: ='A. Population Info'!H150 -> Insulated | D150: ='A. Population Info'!I150 -> 1 | E150: ='A. Population Info'!J150 -> 0 | F150: ='A. Population Info'!K150 -> 0 | G150: =VLOOKUP(B:B,OFFSET('B. PoF Adj Factor Scoring'!$T$5:$U$282,,MATCH(G$4,'B. PoF Adj Factor Scoring'!$T$3:$AC$3,0)-1),2,TRUE) -> 1 | H150: =VLOOKUP(C:C,OFFSET('B. PoF Adj Factor Scoring'!$T$5:$U$282,,MATCH(H$4,'B. PoF Adj Factor Scoring'!$T$3:$AC$3,0)-1),2,TRUE) -> 1 | I150: =VLOOKUP(D:D,OFFSET('B. PoF Adj Factor Scoring'!$T$5:$U$282,,MATCH(I$4,'B. PoF Adj Factor Scoring'!$T$3:$AC$3,0)-1),2,TRUE) -> 1
A151: ZN04545/000031 | B151: ='A. Population Info'!G151 -> Unknown | C151: ='A. Population Info'!H151 -> Insulated | D151: ='A. Population Info'!I151 -> 3 | E151: ='A. Population Info'!J151 -> 0 | F151: ='A. Population Info'!K151 -> 0 | G151: =VLOOKUP(B:B,OFFSET('B. PoF Adj Factor Scoring'!$T$5:$U$282,,MATCH(G$4,'B. PoF Adj Factor Scoring'!$T$3:$AC$3,0)-1),2,TRUE) -> 1 | H151: =VLOOKUP(C:C,OFFSET('B. PoF Adj Factor Scoring'!$T$5:$U$282,,MATCH(H$4,'B. PoF Adj Factor Scoring'!$T$3:$AC$3,0)-1),2,TRUE) -> 1 | I151: =VLOOKUP(D:D,OFFSET('B. PoF Adj Factor Scoring'!$T$5:$U$282,,MATCH(I$4,'B. PoF Adj Factor Scoring'!$T$3:$AC$3,0)-1),2,TRUE) -> 3
A152: ZN12600/000003 | B152: ='A. Population Info'!G152 -> Unknown | C152: ='A. Population Info'!H152 -> Insulated | D152: ='A. Population Info'!I152 -> 5 | E152: ='A. Population Info'!J152 -> 0 | F152: ='A. Population Info'!K152 -> 0 | G152: =VLOOKUP(B:B,OFFSET('B. PoF Adj Factor Scoring'!$T$5:$U$282,,MATCH(G$4,'B. PoF Adj Factor Scoring'!$T$3:$AC$3,0)-1),2,TRUE) -> 1 | H152: =VLOOKUP(C:C,OFFSET('B. PoF Adj Factor Scoring'!$T$5:$U$282,,MATCH(H$4,'B. PoF Adj Factor Scoring'!$T$3:$AC$3,0)-1),2,TRUE) -> 1 | I152: =VLOOKUP(D:D,OFFSET('B. PoF Adj Factor Scoring'!$T$5:$U$282,,MATCH(I$4,'B. PoF Adj Factor Scoring'!$T$3:$AC$3,0)-1),2,TRUE) -> 5
A153: ZN00525/034586 | B153: ='A. Population Info'!G153 -> Unknown | C153: ='A. Population Info'!H153 -> Insulated | D153: ='A. Population Info'!I153 -> 2 | E153: ='A. Population Info'!J153 -> 0 | F153: ='A. Population Info'!K153 -> 0 | G153: =VLOOKUP(B:B,OFFSET('B. PoF Adj Factor Scoring'!$T$5:$U$282,,MATCH(G$4,'B. PoF Adj Factor Scoring'!$T$3:$AC$3,0)-1),2,TRUE) -> 1 | H153: =VLOOKUP(C:C,OFFSET('B. PoF Adj Factor Scoring'!$T$5:$U$282,,MATCH(H$4,'B. PoF Adj Factor Scoring'!$T$3:$AC$3,0)-1),2,TRUE) -> 1 | I153: =VLOOKUP(D:D,OFFSET('B. PoF Adj Factor Scoring'!$T$5:$U$282,,MATCH(I$4,'B. PoF Adj Factor Scoring'!$T$3:$AC$3,0)-1),2,TRUE) -> 2
A154: ZN00264/81240L | B154: ='A. Population Info'!G154 -> STEEL MAINS | C154: ='A. Population Info'!H154 -> Bare | D154: ='A. Population Info'!I154 -> 5 | E154: ='A. Population Info'!J154 -> 0 | F154: ='A. Population Info'!K154 -> 0 | G154: =VLOOKUP(B:B,OFFSET('B. PoF Adj Factor Scoring'!$T$5:$U$282,,MATCH(G$4,'B. PoF Adj Factor Scoring'!$T$3:$AC$3,0)-1),2,TRUE) -> 5 | H154: =VLOOKUP(C:C,OFFSET('B. PoF Adj Factor Scoring'!$T$5:$U$282,,MATCH(H$4,'B. PoF Adj Factor Scoring'!$T$3:$AC$3,0)-1),2,TRUE) -> 5 | I154: =VLOOKUP(D:D,OFFSET('B. PoF Adj Factor Scoring'!$T$5:$U$282,,MATCH(I$4,'B. PoF Adj Factor Scoring'!$T$3:$AC$3,0)-1),2,TRUE) -> 5
A155: ZN00515/035192 | B155: ='A. Population Info'!G155 -> Unknown | C155: ='A. Population Info'!H155 -> Insulated | D155: ='A. Population Info'!I155 -> 1 | E155: ='A. Population Info'!J155 -> 0 | F155: ='A. Population Info'!K155 -> 0 | G155: =VLOOKUP(B:B,OFFSET('B. PoF Adj Factor Scoring'!$T$5:$U$282,,MATCH(G$4,'B. PoF Adj Factor Scoring'!$T$3:$AC$3,0)-1),2,TRUE) -> 1 | H155: =VLOOKUP(C:C,OFFSET('B. PoF Adj Factor Scoring'!$T$5:$U$282,,MATCH(H$4,'B. PoF Adj Factor Scoring'!$T$3:$AC$3,0)-1),2,TRUE) -> 1 | I155: =VLOOKUP(D:D,OFFSET('B. PoF Adj Factor Scoring'!$T$5:$U$282,,MATCH(I$4,'B. PoF Adj Factor Scoring'!$T$3:$AC$3,0)-1),2,TRUE) -> 1
A156: ZN00965/000011 | B156: ='A. Population Info'!G156 -> Unknown | C156: ='A. Population Info'!H156 -> Insulated | D156: ='A. Population Info'!I156 -> 2 | E156: ='A. Population Info'!J156 -> 0 | F156: ='A. Population Info'!K156 -> 0 | G156: =VLOOKUP(B:B,OFFSET('B. PoF Adj Factor Scoring'!$T$5:$U$282,,MATCH(G$4,'B. PoF Adj Factor Scoring'!$T$3:$AC$3,0)-1),2,TRUE) -> 1 | H156: =VLOOKUP(C:C,OFFSET('B. PoF Adj Factor Scoring'!$T$5:$U$282,,MATCH(H$4,'B. PoF Adj Factor Scoring'!$T$3:$AC$3,0)-1),2,TRUE) -> 1 | I156: =VLOOKUP(D:D,OFFSET('B. PoF Adj Factor Scoring'!$T$5:$U$282,,MATCH(I$4,'B. PoF Adj Factor Scoring'!$T$3:$AC$3,0)-1),2,TRUE) -> 2
